Workbook

Sheet Aux. (hidden)
D1: MOD. COMPOS. | E1: COMPOSIÇÕES/ LISTA AUXILIAR | F1: INDEXADO | G1: ORÇAMENTO | H1: Unidades Planilha Auxiliar
B2: material | C2: SINAPI | D2: SINAPI | E2: SINAPI | F2: SINAPI | G2: SINAPI | H2: H
B3: mão de obra | C3: SICRO | D3: SICRO | E3: SICRO | F3: SICRO | G3: SICRO | H3: KM
B4: insumo | C4: SICRO EQUIP. | D4: SMOV | E4: SICRO EQUIP. | F4: SICRO EQUIP. | G4: MERCADO | H4: L
B5: equipamento | C5: SMOV | D5: DAER | E5: MERCADO | F5: MERCADO | G5: CCU | H5: M
C6: MERCADO | D6: TCPO | E6: INDEXADO | F6: CCU | G6: - | H6: M2
C7: DAER | D7: PLEO | E7: CCU | F7: - | G7: INDEXADO | H7: M2XMES
C8: CCU | D8: ORSE | E8: - | F8: ANP | G8: ANP | H8: M3
D9: SEINFRA | E9: ANP | F9: DAER | G9: DAER | H9: M3XKM
C10: INDEXADO | D10: CEHOP | E10: DAER | F10: CONSULTORIA DNIT | G10: CONSULTORIA DNIT | H10: MES
D11: SUDECAP | E11: CONSULTORIA DNIT | F11: PREGÃO ELETRÔNICO | G11: PREGÃO ELETRÔNICO | H11: MXMES
B12: CREA/RS | D12: DER-PR | E12: PREGÃO ELETRÔNICO | F12: DMLU | G12: DMLU | H12: T
B13: CAU/RS | D13: SIURB | E13: DMLU | F13: DMAE | G13: DMAE | H13: TXKM
D14: - | E14: DMAE | F14: CEEE | G14: CEEE | H14: UN
E15: CEEE | F15: EPTC | G15: EPTC | H15: ADES
B16: Tabela Desonerada | E16: EPTC | F16: CREA | G16: CREA | H16: AMP
B17: Tabela Não Desonerada | E17: CREA | F17: CAU | G17: CAU | H17: ANO
E18: CAU | F18: ORSE | G18: ORSE | H18: BAND
E19: ORSE | F19: SEINFRA | G19: SEINFRA | H19: BAST
B20: nº ART: | E20: SEINFRA | F20: CEHOP | G20: CEHOP | H20: BG
B21: nº RRT: | E21: CEHOP | F21: SUDECAP | G21: SUDECAP | H21: BL
E22: SUDECAP | F22: DER-PR | G22: DER-PR | H22: BLD
E23: DER-PR | F23: SIURB | G23: SIURB | H23: BLI
E24: SIURB | F24: =E25 -> - | G24: =E25 -> - | H24: BLS
E25: - | F25: - | G25: - | H25: BOB
E26: - | H26: BOMB
H27: BOT
H28: BRR
H29: CAP
H30: CARR
H31: CART
H32: CENTO
H33: CH
H34: CHI
H35: CHP
H36: CIL
H37: CJ
H38: CM
H39: CMCOL
H40: CN
H41: COL
H42: COM
H43: CR
H44: CRG
H45: CX
H46: DIA
H47: DOSE
H48: DRG
H49: DZ
H50: EIXO
H51: EMB
H52: ENV
H53: ES
H54: FA
H55: FD
H56: FITA
H57: FL
H58: FLAC
H59: FR
H60: FX
H61: FXMES
H62: G
H63: GAL
H64: GFA
H65: HA
H66: JG
H67: KCAL
H68: KG
H69: KIT
H70: KM2
H71: KMROD
H72: KWH
H73: KWP
H74: LB
H75: LDIL
H76: LT
H77: MB
H78: MC
H79: MD
H80: MG
H81: MIL
H82: MIN
H83: ML
H84: MOL
H85: MWH
H86: NOV
H87: PAC
H88: PAR
H89: PAS
H90: PC
H91: PF
H92: PG
H93: POS
H94: POT
H95: PT
H96: RD
H97: REF
H98: RL
H99: RLT
H100: RM
H101: SC
H102: SCH
H103: SECAO
H104: SEM
H105: SEMAN
H106: SER
H107: SUP
H108: TB
H109: TBT
H110: TIRA
H111: TL
H112: TM
H113: TO
H114: TRN
H115: TST
H116: TX
H117: UNMES
H118: UST
H119: VD
H120: VG

Sheet Modelo de Proposta (hidden)
B1: FÓRMULAS P/ CURVA ABC | D1: PREFEITURA MUNICIPAL DE PORTO ALEGRE
D2: ='Orçamento N_DESON.'!D2:S2 -> SECRETARIA MUNICIPAL DO MEIO AMBIENTE, URBANISMO E SUSTENTABILIDADE
D3: PLANILHA ORÇAMENTÁRIA
E4: Razão Social: | H4: CNPJ: | M4: Tabela Não Desonerada
D5: Serviço: | F5: =Dados!C5 -> OBRA DE REVITALIZAÇÃO PRAÇA ESTÁDIO ALIM PEDRO - ACADEMIA AO AR LIVRE | R5: Encargos sociais (hora):
D6: Local: | F6: =Dados!C6 -> AV. DOS INDUSTRIÁRIOS, S/N - BAIRRO IAPI, PORTO ALEGRE/RS | R6: Encargos sociais (mês):
D7: Item | E7: Código | F7: Fonte | G7: Descrição | H7: Unid. | I7: Quant. | J7: Custo Unitário (R$) | N7: BDI | O7: Preço Unitário (R$) | P7: Preço Total (R$)
J8: Equip. | K8: Mão de Obra | L8: Material | M8: Total | P8: Equip. | Q8: Mão de Obra | R8: Material | S8: Total
D10: ='Orçamento N_DESON.'!D10 -> 1 | G10: ='Orçamento N_DESON.'!G10 -> SERVIÇOS PRELIMINARES | S10: =S62 -> 0
B11: =S11/$S$1150 ->  | D11: ='Orçamento N_DESON.'!D11 -> 1.1 | E11: ='Orçamento N_DESON.'!E11 -> CCU-01 | F11: ='Orçamento N_DESON.'!F11 -> CCU | G11: ='Orçamento N_DESON.'!G11 -> REMOÇÃO DE PASSEIOS - SEM REMOÇÃO DE ENTULHOS | H11: ='Orçamento N_DESON.'!H11 -> M2 | I11: ='Orçamento N_DESON.'!I11 -> 3.48 | M11: =SUM(J11:L11) -> 0 | O11: =IF(N11="-",M11,TRUNC(M11*(1+N11),2)) -> 0 | P11: =IFERROR(TRUNC(TRUNC((J11*(1+$N11)),2)*$I11,2),0) -> 0 | Q11: 0 | R11: =S11-Q11-P11 -> 0 | S11: =IFERROR(TRUNC(O11*I11,2),0) -> 0
D12: ='Orçamento N_DESON.'!D12 -> 1.2 | E12: ='Orçamento N_DESON.'!E12 -> CCU-02 | F12: ='Orçamento N_DESON.'!F12 -> CCU | G12: =IF(OR($F12="ANP",$F12="DAER",$F12="CONSULTORIA DNIT",$F12="PREGÃO ELETRÔNICO",$F12="DMLU",$F12="DMAE",$F12="EPTC"),VLOOKUP($E12,'Planilha Auxiliar'!$A$4:$L$1000,8,FALSE),IF($F12="INDEXADO",CONCATENATE(VLOOKUP($E12,'Index DESON.'!$A$9:$S$1305,3,FALSE)," (",VLOOKUP($E12,'Index DESON.'!$A$9:$S$1305,2,FALSE),")"),IF($F12="CCU",VLOOKUP($E12,'Resumo CCU DESON.'!$A$2:$D$202,2,FALSE),IF($F12="MERCADO",VLOOKUP($E12,'Planillha de cotações'!$B$7:$L$102,2,FALSE),IF($F12="PLEO",VLOOKUP($E12,'PLEO DESON.'!$A$4:$D$14999,2,FALSE),IF($F12="SICRO",VLOOKUP($E12,'SICRO DESON.'!$A$4:$D$50010,2,FALSE),IF($F12="SINAPI",IFERROR((VLOOKUP($E12,'comp. SINAPI DESON.'!$G$7:$L$50000,2,FALSE)),(VLOOKUP($E12,'ins. SINAPI DESON.'!$A$8:$E$15000,2,FALSE))),"-"))))))) -> REMOÇÃO DE ENTULHO C/CAÇAMBA | H12: =IF(OR($F12="ANP",$F12="DAER",$F12="CONSULTORIA DNIT",$F12="PREGÃO ELETRÔNICO",$F12="DMLU",$F12="DMAE",$F12="EPTC"),VLOOKUP($E12,'Planilha Auxiliar'!$A$4:$L$1000,9,FALSE),IF($F12="INDEXADO",VLOOKUP($E12,'Index DESON.'!$A$9:$S$1305,4,FALSE),IF($F12="CCU",VLOOKUP($E12,'Resumo CCU DESON.'!$A$2:$D$202,3,FALSE),IF($F12="MERCADO",VLOOKUP('Modelo de Proposta'!$E12,'Planillha de cotações'!$B$7:$L$1143,7,FALSE),IF($F12="PLEO",VLOOKUP($E12,'PLEO DESON.'!$A$4:$D$14999,3,FALSE),IF($F12="SICRO",VLOOKUP($E12,'SICRO DESON.'!$A$4:$D$50010,3,FALSE),IF($F12="SINAPI",IFERROR((VLOOKUP($E12,'comp. SINAPI DESON.'!$G$7:$L$50000,3,FALSE)),(VLOOKUP($E12,'ins. SINAPI DESON.'!$A$8:$E$15000,3,FALSE))),"-"))))))) -> M3 | I12: ='Orçamento N_DESON.'!I12 -> 20.35 | M12: 0 | O12: 0 | P12: =IFERROR(TRUNC(TRUNC((J12*(1+$N12)),2)*$I12,2),0) -> 0 | Q12: 0 | R12: 0 | S12: 0
D13: ='Orçamento N_DESON.'!D13 -> 1.3 | E13: ='Orçamento N_DESON.'!E13 -> 0 | F13: ='Orçamento N_DESON.'!F13 -> 0 | G13: =IF(OR($F13="ANP",$F13="DAER",$F13="CONSULTORIA DNIT",$F13="PREGÃO ELETRÔNICO",$F13="DMLU",$F13="DMAE",$F13="EPTC"),VLOOKUP($E13,'Planilha Auxiliar'!$A$4:$L$1000,8,FALSE),IF($F13="INDEXADO",CONCATENATE(VLOOKUP($E13,'Index DESON.'!$A$9:$S$1305,3,FALSE)," (",VLOOKUP($E13,'Index DESON.'!$A$9:$S$1305,2,FALSE),")"),IF($F13="CCU",VLOOKUP($E13,'Resumo CCU DESON.'!$A$2:$D$202,2,FALSE),IF($F13="MERCADO",VLOOKUP($E13,'Planillha de cotações'!$B$7:$L$102,2,FALSE),IF($F13="PLEO",VLOOKUP($E13,'PLEO DESON.'!$A$4:$D$14999,2,FALSE),IF($F13="SICRO",VLOOKUP($E13,'SICRO DESON.'!$A$4:$D$50010,2,FALSE),IF($F13="SINAPI",IFERROR((VLOOKUP($E13,'comp. SINAPI DESON.'!$G$7:$L$50000,2,FALSE)),(VLOOKUP($E13,'ins. SINAPI DESON.'!$A$8:$E$15000,2,FALSE))),"-"))))))) -> - | H13: =IF(OR($F13="ANP",$F13="DAER",$F13="CONSULTORIA DNIT",$F13="PREGÃO ELETRÔNICO",$F13="DMLU",$F13="DMAE",$F13="EPTC"),VLOOKUP($E13,'Planilha Auxiliar'!$A$4:$L$1000,9,FALSE),IF($F13="INDEXADO",VLOOKUP($E13,'Index DESON.'!$A$9:$S$1305,4,FALSE),IF($F13="CCU",VLOOKUP($E13,'Resumo CCU DESON.'!$A$2:$D$202,3,FALSE),IF($F13="MERCADO",VLOOKUP('Modelo de Proposta'!$E13,'Planillha de cotações'!$B$7:$L$1143,7,FALSE),IF($F13="PLEO",VLOOKUP($E13,'PLEO DESON.'!$A$4:$D$14999,3,FALSE),IF($F13="SICRO",VLOOKUP($E13,'SICRO DESON.'!$A$4:$D$50010,3,FALSE),IF($F13="SINAPI",IFERROR((VLOOKUP($E13,'comp. SINAPI DESON.'!$G$7:$L$50000,3,FALSE)),(VLOOKUP($E13,'ins. SINAPI DESON.'!$A$8:$E$15000,3,FALSE))),"-"))))))) -> - | I13: ='Orçamento N_DESON.'!I13 -> 0 | M13: 0 | O13: 0 | P13: =IFERROR(TRUNC(TRUNC((J13*(1+$N13)),2)*$I13,2),0) -> 0 | Q13: 0 | R13: 0 | S13: 0
D14: ='Orçamento N_DESON.'!D14 -> 1.4 | E14: ='Orçamento N_DESON.'!E14 -> 0 | F14: ='Orçamento N_DESON.'!F14 -> 0 | G14: =IF(OR($F14="ANP",$F14="DAER",$F14="CONSULTORIA DNIT",$F14="PREGÃO ELETRÔNICO",$F14="DMLU",$F14="DMAE",$F14="EPTC"),VLOOKUP($E14,'Planilha Auxiliar'!$A$4:$L$1000,8,FALSE),IF($F14="INDEXADO",CONCATENATE(VLOOKUP($E14,'Index DESON.'!$A$9:$S$1305,3,FALSE)," (",VLOOKUP($E14,'Index DESON.'!$A$9:$S$1305,2,FALSE),")"),IF($F14="CCU",VLOOKUP($E14,'Resumo CCU DESON.'!$A$2:$D$202,2,FALSE),IF($F14="MERCADO",VLOOKUP($E14,'Planillha de cotações'!$B$7:$L$102,2,FALSE),IF($F14="PLEO",VLOOKUP($E14,'PLEO DESON.'!$A$4:$D$14999,2,FALSE),IF($F14="SICRO",VLOOKUP($E14,'SICRO DESON.'!$A$4:$D$50010,2,FALSE),IF($F14="SINAPI",IFERROR((VLOOKUP($E14,'comp. SINAPI DESON.'!$G$7:$L$50000,2,FALSE)),(VLOOKUP($E14,'ins. SINAPI DESON.'!$A$8:$E$15000,2,FALSE))),"-"))))))) -> - | H14: =IF(OR($F14="ANP",$F14="DAER",$F14="CONSULTORIA DNIT",$F14="PREGÃO ELETRÔNICO",$F14="DMLU",$F14="DMAE",$F14="EPTC"),VLOOKUP($E14,'Planilha Auxiliar'!$A$4:$L$1000,9,FALSE),IF($F14="INDEXADO",VLOOKUP($E14,'Index DESON.'!$A$9:$S$1305,4,FALSE),IF($F14="CCU",VLOOKUP($E14,'Resumo CCU DESON.'!$A$2:$D$202,3,FALSE),IF($F14="MERCADO",VLOOKUP('Modelo de Proposta'!$E14,'Planillha de cotações'!$B$7:$L$1143,7,FALSE),IF($F14="PLEO",VLOOKUP($E14,'PLEO DESON.'!$A$4:$D$14999,3,FALSE),IF($F14="SICRO",VLOOKUP($E14,'SICRO DESON.'!$A$4:$D$50010,3,FALSE),IF($F14="SINAPI",IFERROR((VLOOKUP($E14,'comp. SINAPI DESON.'!$G$7:$L$50000,3,FALSE)),(VLOOKUP($E14,'ins. SINAPI DESON.'!$A$8:$E$15000,3,FALSE))),"-"))))))) -> - | I14: ='Orçamento N_DESON.'!I14 -> 0 | M14: 0 | O14: 0 | P14: =IFERROR(TRUNC(TRUNC((J14*(1+$N14)),2)*$I14,2),0) -> 0 | Q14: 0 | R14: 0 | S14: 0
D15: ='Orçamento N_DESON.'!D15 -> 1.5 | E15: ='Orçamento N_DESON.'!E15 -> 0 | F15: ='Orçamento N_DESON.'!F15 -> 0 | G15: =IF(OR($F15="ANP",$F15="DAER",$F15="CONSULTORIA DNIT",$F15="PREGÃO ELETRÔNICO",$F15="DMLU",$F15="DMAE",$F15="EPTC"),VLOOKUP($E15,'Planilha Auxiliar'!$A$4:$L$1000,8,FALSE),IF($F15="INDEXADO",CONCATENATE(VLOOKUP($E15,'Index DESON.'!$A$9:$S$1305,3,FALSE)," (",VLOOKUP($E15,'Index DESON.'!$A$9:$S$1305,2,FALSE),")"),IF($F15="CCU",VLOOKUP($E15,'Resumo CCU DESON.'!$A$2:$D$202,2,FALSE),IF($F15="MERCADO",VLOOKUP($E15,'Planillha de cotações'!$B$7:$L$102,2,FALSE),IF($F15="PLEO",VLOOKUP($E15,'PLEO DESON.'!$A$4:$D$14999,2,FALSE),IF($F15="SICRO",VLOOKUP($E15,'SICRO DESON.'!$A$4:$D$50010,2,FALSE),IF($F15="SINAPI",IFERROR((VLOOKUP($E15,'comp. SINAPI DESON.'!$G$7:$L$50000,2,FALSE)),(VLOOKUP($E15,'ins. SINAPI DESON.'!$A$8:$E$15000,2,FALSE))),"-"))))))) -> - | H15: =IF(OR($F15="ANP",$F15="DAER",$F15="CONSULTORIA DNIT",$F15="PREGÃO ELETRÔNICO",$F15="DMLU",$F15="DMAE",$F15="EPTC"),VLOOKUP($E15,'Planilha Auxiliar'!$A$4:$L$1000,9,FALSE),IF($F15="INDEXADO",VLOOKUP($E15,'Index DESON.'!$A$9:$S$1305,4,FALSE),IF($F15="CCU",VLOOKUP($E15,'Resumo CCU DESON.'!$A$2:$D$202,3,FALSE),IF($F15="MERCADO",VLOOKUP('Modelo de Proposta'!$E15,'Planillha de cotações'!$B$7:$L$1143,7,FALSE),IF($F15="PLEO",VLOOKUP($E15,'PLEO DESON.'!$A$4:$D$14999,3,FALSE),IF($F15="SICRO",VLOOKUP($E15,'SICRO DESON.'!$A$4:$D$50010,3,FALSE),IF($F15="SINAPI",IFERROR((VLOOKUP($E15,'comp. SINAPI DESON.'!$G$7:$L$50000,3,FALSE)),(VLOOKUP($E15,'ins. SINAPI DESON.'!$A$8:$E$15000,3,FALSE))),"-"))))))) -> - | I15: ='Orçamento N_DESON.'!I15 -> 0 | M15: 0 | O15: 0 | P15: =IFERROR(TRUNC(TRUNC((J15*(1+$N15)),2)*$I15,2),0) -> 0 | Q15: 0 | R15: 0 | S15: 0
D16: ='Orçamento N_DESON.'!D16 -> 1.6 | E16: ='Orçamento N_DESON.'!E16 -> 0 | F16: ='Orçamento N_DESON.'!F16 -> 0 | G16: =IF(OR($F16="ANP",$F16="DAER",$F16="CONSULTORIA DNIT",$F16="PREGÃO ELETRÔNICO",$F16="DMLU",$F16="DMAE",$F16="EPTC"),VLOOKUP($E16,'Planilha Auxiliar'!$A$4:$L$1000,8,FALSE),IF($F16="INDEXADO",CONCATENATE(VLOOKUP($E16,'Index DESON.'!$A$9:$S$1305,3,FALSE)," (",VLOOKUP($E16,'Index DESON.'!$A$9:$S$1305,2,FALSE),")"),IF($F16="CCU",VLOOKUP($E16,'Resumo CCU DESON.'!$A$2:$D$202,2,FALSE),IF($F16="MERCADO",VLOOKUP($E16,'Planillha de cotações'!$B$7:$L$102,2,FALSE),IF($F16="PLEO",VLOOKUP($E16,'PLEO DESON.'!$A$4:$D$14999,2,FALSE),IF($F16="SICRO",VLOOKUP($E16,'SICRO DESON.'!$A$4:$D$50010,2,FALSE),IF($F16="SINAPI",IFERROR((VLOOKUP($E16,'comp. SINAPI DESON.'!$G$7:$L$50000,2,FALSE)),(VLOOKUP($E16,'ins. SINAPI DESON.'!$A$8:$E$15000,2,FALSE))),"-"))))))) -> - | H16: =IF(OR($F16="ANP",$F16="DAER",$F16="CONSULTORIA DNIT",$F16="PREGÃO ELETRÔNICO",$F16="DMLU",$F16="DMAE",$F16="EPTC"),VLOOKUP($E16,'Planilha Auxiliar'!$A$4:$L$1000,9,FALSE),IF($F16="INDEXADO",VLOOKUP($E16,'Index DESON.'!$A$9:$S$1305,4,FALSE),IF($F16="CCU",VLOOKUP($E16,'Resumo CCU DESON.'!$A$2:$D$202,3,FALSE),IF($F16="MERCADO",VLOOKUP('Modelo de Proposta'!$E16,'Planillha de cotações'!$B$7:$L$1143,7,FALSE),IF($F16="PLEO",VLOOKUP($E16,'PLEO DESON.'!$A$4:$D$14999,3,FALSE),IF($F16="SICRO",VLOOKUP($E16,'SICRO DESON.'!$A$4:$D$50010,3,FALSE),IF($F16="SINAPI",IFERROR((VLOOKUP($E16,'comp. SINAPI DESON.'!$G$7:$L$50000,3,FALSE)),(VLOOKUP($E16,'ins. SINAPI DESON.'!$A$8:$E$15000,3,FALSE))),"-"))))))) -> - | I16: ='Orçamento N_DESON.'!I16 -> 0 | M16: 0 | O16: 0 | P16: =IFERROR(TRUNC(TRUNC((J16*(1+$N16)),2)*$I16,2),0) -> 0 | Q16: 0 | R16: 0 | S16: 0
D17: ='Orçamento N_DESON.'!D17 -> 1.7 | E17: ='Orçamento N_DESON.'!E17 -> 0 | F17: ='Orçamento N_DESON.'!F17 -> 0 | G17: =IF(OR($F17="ANP",$F17="DAER",$F17="CONSULTORIA DNIT",$F17="PREGÃO ELETRÔNICO",$F17="DMLU",$F17="DMAE",$F17="EPTC"),VLOOKUP($E17,'Planilha Auxiliar'!$A$4:$L$1000,8,FALSE),IF($F17="INDEXADO",CONCATENATE(VLOOKUP($E17,'Index DESON.'!$A$9:$S$1305,3,FALSE)," (",VLOOKUP($E17,'Index DESON.'!$A$9:$S$1305,2,FALSE),")"),IF($F17="CCU",VLOOKUP($E17,'Resumo CCU DESON.'!$A$2:$D$202,2,FALSE),IF($F17="MERCADO",VLOOKUP($E17,'Planillha de cotações'!$B$7:$L$102,2,FALSE),IF($F17="PLEO",VLOOKUP($E17,'PLEO DESON.'!$A$4:$D$14999,2,FALSE),IF($F17="SICRO",VLOOKUP($E17,'SICRO DESON.'!$A$4:$D$50010,2,FALSE),IF($F17="SINAPI",IFERROR((VLOOKUP($E17,'comp. SINAPI DESON.'!$G$7:$L$50000,2,FALSE)),(VLOOKUP($E17,'ins. SINAPI DESON.'!$A$8:$E$15000,2,FALSE))),"-"))))))) -> - | H17: =IF(OR($F17="ANP",$F17="DAER",$F17="CONSULTORIA DNIT",$F17="PREGÃO ELETRÔNICO",$F17="DMLU",$F17="DMAE",$F17="EPTC"),VLOOKUP($E17,'Planilha Auxiliar'!$A$4:$L$1000,9,FALSE),IF($F17="INDEXADO",VLOOKUP($E17,'Index DESON.'!$A$9:$S$1305,4,FALSE),IF($F17="CCU",VLOOKUP($E17,'Resumo CCU DESON.'!$A$2:$D$202,3,FALSE),IF($F17="MERCADO",VLOOKUP('Modelo de Proposta'!$E17,'Planillha de cotações'!$B$7:$L$1143,7,FALSE),IF($F17="PLEO",VLOOKUP($E17,'PLEO DESON.'!$A$4:$D$14999,3,FALSE),IF($F17="SICRO",VLOOKUP($E17,'SICRO DESON.'!$A$4:$D$50010,3,FALSE),IF($F17="SINAPI",IFERROR((VLOOKUP($E17,'comp. SINAPI DESON.'!$G$7:$L$50000,3,FALSE)),(VLOOKUP($E17,'ins. SINAPI DESON.'!$A$8:$E$15000,3,FALSE))),"-"))))))) -> - | I17: ='Orçamento N_DESON.'!I17 -> 0 | M17: 0 | O17: 0 | P17: =IFERROR(TRUNC(TRUNC((J17*(1+$N17)),2)*$I17,2),0) -> 0 | Q17: 0 | R17: 0 | S17: 0
D18: ='Orçamento N_DESON.'!D18 -> 1.8 | E18: ='Orçamento N_DESON.'!E18 -> 0 | F18: ='Orçamento N_DESON.'!F18 -> 0 | G18: =IF(OR($F18="ANP",$F18="DAER",$F18="CONSULTORIA DNIT",$F18="PREGÃO ELETRÔNICO",$F18="DMLU",$F18="DMAE",$F18="EPTC"),VLOOKUP($E18,'Planilha Auxiliar'!$A$4:$L$1000,8,FALSE),IF($F18="INDEXADO",CONCATENATE(VLOOKUP($E18,'Index DESON.'!$A$9:$S$1305,3,FALSE)," (",VLOOKUP($E18,'Index DESON.'!$A$9:$S$1305,2,FALSE),")"),IF($F18="CCU",VLOOKUP($E18,'Resumo CCU DESON.'!$A$2:$D$202,2,FALSE),IF($F18="MERCADO",VLOOKUP($E18,'Planillha de cotações'!$B$7:$L$102,2,FALSE),IF($F18="PLEO",VLOOKUP($E18,'PLEO DESON.'!$A$4:$D$14999,2,FALSE),IF($F18="SICRO",VLOOKUP($E18,'SICRO DESON.'!$A$4:$D$50010,2,FALSE),IF($F18="SINAPI",IFERROR((VLOOKUP($E18,'comp. SINAPI DESON.'!$G$7:$L$50000,2,FALSE)),(VLOOKUP($E18,'ins. SINAPI DESON.'!$A$8:$E$15000,2,FALSE))),"-"))))))) -> - | H18: =IF(OR($F18="ANP",$F18="DAER",$F18="CONSULTORIA DNIT",$F18="PREGÃO ELETRÔNICO",$F18="DMLU",$F18="DMAE",$F18="EPTC"),VLOOKUP($E18,'Planilha Auxiliar'!$A$4:$L$1000,9,FALSE),IF($F18="INDEXADO",VLOOKUP($E18,'Index DESON.'!$A$9:$S$1305,4,FALSE),IF($F18="CCU",VLOOKUP($E18,'Resumo CCU DESON.'!$A$2:$D$202,3,FALSE),IF($F18="MERCADO",VLOOKUP('Modelo de Proposta'!$E18,'Planillha de cotações'!$B$7:$L$1143,7,FALSE),IF($F18="PLEO",VLOOKUP($E18,'PLEO DESON.'!$A$4:$D$14999,3,FALSE),IF($F18="SICRO",VLOOKUP($E18,'SICRO DESON.'!$A$4:$D$50010,3,FALSE),IF($F18="SINAPI",IFERROR((VLOOKUP($E18,'comp. SINAPI DESON.'!$G$7:$L$50000,3,FALSE)),(VLOOKUP($E18,'ins. SINAPI DESON.'!$A$8:$E$15000,3,FALSE))),"-"))))))) -> - | I18: ='Orçamento N_DESON.'!I18 -> 0 | M18: 0 | O18: 0 | P18: =IFERROR(TRUNC(TRUNC((J18*(1+$N18)),2)*$I18,2),0) -> 0 | Q18: 0 | R18: 0 | S18: 0
D19: ='Orçamento N_DESON.'!D19 -> 1.9 | E19: ='Orçamento N_DESON.'!E19 -> 0 | F19: ='Orçamento N_DESON.'!F19 -> 0 | G19: =IF(OR($F19="ANP",$F19="DAER",$F19="CONSULTORIA DNIT",$F19="PREGÃO ELETRÔNICO",$F19="DMLU",$F19="DMAE",$F19="EPTC"),VLOOKUP($E19,'Planilha Auxiliar'!$A$4:$L$1000,8,FALSE),IF($F19="INDEXADO",CONCATENATE(VLOOKUP($E19,'Index DESON.'!$A$9:$S$1305,3,FALSE)," (",VLOOKUP($E19,'Index DESON.'!$A$9:$S$1305,2,FALSE),")"),IF($F19="CCU",VLOOKUP($E19,'Resumo CCU DESON.'!$A$2:$D$202,2,FALSE),IF($F19="MERCADO",VLOOKUP($E19,'Planillha de cotações'!$B$7:$L$102,2,FALSE),IF($F19="PLEO",VLOOKUP($E19,'PLEO DESON.'!$A$4:$D$14999,2,FALSE),IF($F19="SICRO",VLOOKUP($E19,'SICRO DESON.'!$A$4:$D$50010,2,FALSE),IF($F19="SINAPI",IFERROR((VLOOKUP($E19,'comp. SINAPI DESON.'!$G$7:$L$50000,2,FALSE)),(VLOOKUP($E19,'ins. SINAPI DESON.'!$A$8:$E$15000,2,FALSE))),"-"))))))) -> - | H19: =IF(OR($F19="ANP",$F19="DAER",$F19="CONSULTORIA DNIT",$F19="PREGÃO ELETRÔNICO",$F19="DMLU",$F19="DMAE",$F19="EPTC"),VLOOKUP($E19,'Planilha Auxiliar'!$A$4:$L$1000,9,FALSE),IF($F19="INDEXADO",VLOOKUP($E19,'Index DESON.'!$A$9:$S$1305,4,FALSE),IF($F19="CCU",VLOOKUP($E19,'Resumo CCU DESON.'!$A$2:$D$202,3,FALSE),IF($F19="MERCADO",VLOOKUP('Modelo de Proposta'!$E19,'Planillha de cotações'!$B$7:$L$1143,7,FALSE),IF($F19="PLEO",VLOOKUP($E19,'PLEO DESON.'!$A$4:$D$14999,3,FALSE),IF($F19="SICRO",VLOOKUP($E19,'SICRO DESON.'!$A$4:$D$50010,3,FALSE),IF($F19="SINAPI",IFERROR((VLOOKUP($E19,'comp. SINAPI DESON.'!$G$7:$L$50000,3,FALSE)),(VLOOKUP($E19,'ins. SINAPI DESON.'!$A$8:$E$15000,3,FALSE))),"-"))))))) -> - | I19: ='Orçamento N_DESON.'!I19 -> 0 | M19: 0 | O19: 0 | P19: =IFERROR(TRUNC(TRUNC((J19*(1+$N19)),2)*$I19,2),0) -> 0 | Q19: 0 | R19: 0 | S19: 0
D20: ='Orçamento N_DESON.'!D20 -> 1.10 | E20: ='Orçamento N_DESON.'!E20 -> 0 | F20: ='Orçamento N_DESON.'!F20 -> 0 | G20: =IF(OR($F20="ANP",$F20="DAER",$F20="CONSULTORIA DNIT",$F20="PREGÃO ELETRÔNICO",$F20="DMLU",$F20="DMAE",$F20="EPTC"),VLOOKUP($E20,'Planilha Auxiliar'!$A$4:$L$1000,8,FALSE),IF($F20="INDEXADO",CONCATENATE(VLOOKUP($E20,'Index DESON.'!$A$9:$S$1305,3,FALSE)," (",VLOOKUP($E20,'Index DESON.'!$A$9:$S$1305,2,FALSE),")"),IF($F20="CCU",VLOOKUP($E20,'Resumo CCU DESON.'!$A$2:$D$202,2,FALSE),IF($F20="MERCADO",VLOOKUP($E20,'Planillha de cotações'!$B$7:$L$102,2,FALSE),IF($F20="PLEO",VLOOKUP($E20,'PLEO DESON.'!$A$4:$D$14999,2,FALSE),IF($F20="SICRO",VLOOKUP($E20,'SICRO DESON.'!$A$4:$D$50010,2,FALSE),IF($F20="SINAPI",IFERROR((VLOOKUP($E20,'comp. SINAPI DESON.'!$G$7:$L$50000,2,FALSE)),(VLOOKUP($E20,'ins. SINAPI DESON.'!$A$8:$E$15000,2,FALSE))),"-"))))))) -> - | H20: =IF(OR($F20="ANP",$F20="DAER",$F20="CONSULTORIA DNIT",$F20="PREGÃO ELETRÔNICO",$F20="DMLU",$F20="DMAE",$F20="EPTC"),VLOOKUP($E20,'Planilha Auxiliar'!$A$4:$L$1000,9,FALSE),IF($F20="INDEXADO",VLOOKUP($E20,'Index DESON.'!$A$9:$S$1305,4,FALSE),IF($F20="CCU",VLOOKUP($E20,'Resumo CCU DESON.'!$A$2:$D$202,3,FALSE),IF($F20="MERCADO",VLOOKUP('Modelo de Proposta'!$E20,'Planillha de cotações'!$B$7:$L$1143,7,FALSE),IF($F20="PLEO",VLOOKUP($E20,'PLEO DESON.'!$A$4:$D$14999,3,FALSE),IF($F20="SICRO",VLOOKUP($E20,'SICRO DESON.'!$A$4:$D$50010,3,FALSE),IF($F20="SINAPI",IFERROR((VLOOKUP($E20,'comp. SINAPI DESON.'!$G$7:$L$50000,3,FALSE)),(VLOOKUP($E20,'ins. SINAPI DESON.'!$A$8:$E$15000,3,FALSE))),"-"))))))) -> - | I20: ='Orçamento N_DESON.'!I20 -> 0 | M20: 0 | O20: 0 | P20: =IFERROR(TRUNC(TRUNC((J20*(1+$N20)),2)*$I20,2),0) -> 0 | Q20: 0 | R20: 0 | S20: 0
D21: ='Orçamento N_DESON.'!D21 -> 1.11 | E21: ='Orçamento N_DESON.'!E21 -> 0 | F21: ='Orçamento N_DESON.'!F21 -> 0 | G21: =IF(OR($F21="ANP",$F21="DAER",$F21="CONSULTORIA DNIT",$F21="PREGÃO ELETRÔNICO",$F21="DMLU",$F21="DMAE",$F21="EPTC"),VLOOKUP($E21,'Planilha Auxiliar'!$A$4:$L$1000,8,FALSE),IF($F21="INDEXADO",CONCATENATE(VLOOKUP($E21,'Index DESON.'!$A$9:$S$1305,3,FALSE)," (",VLOOKUP($E21,'Index DESON.'!$A$9:$S$1305,2,FALSE),")"),IF($F21="CCU",VLOOKUP($E21,'Resumo CCU DESON.'!$A$2:$D$202,2,FALSE),IF($F21="MERCADO",VLOOKUP($E21,'Planillha de cotações'!$B$7:$L$102,2,FALSE),IF($F21="PLEO",VLOOKUP($E21,'PLEO DESON.'!$A$4:$D$14999,2,FALSE),IF($F21="SICRO",VLOOKUP($E21,'SICRO DESON.'!$A$4:$D$50010,2,FALSE),IF($F21="SINAPI",IFERROR((VLOOKUP($E21,'comp. SINAPI DESON.'!$G$7:$L$50000,2,FALSE)),(VLOOKUP($E21,'ins. SINAPI DESON.'!$A$8:$E$15000,2,FALSE))),"-"))))))) -> - | H21: =IF(OR($F21="ANP",$F21="DAER",$F21="CONSULTORIA DNIT",$F21="PREGÃO ELETRÔNICO",$F21="DMLU",$F21="DMAE",$F21="EPTC"),VLOOKUP($E21,'Planilha Auxiliar'!$A$4:$L$1000,9,FALSE),IF($F21="INDEXADO",VLOOKUP($E21,'Index DESON.'!$A$9:$S$1305,4,FALSE),IF($F21="CCU",VLOOKUP($E21,'Resumo CCU DESON.'!$A$2:$D$202,3,FALSE),IF($F21="MERCADO",VLOOKUP('Modelo de Proposta'!$E21,'Planillha de cotações'!$B$7:$L$1143,7,FALSE),IF($F21="PLEO",VLOOKUP($E21,'PLEO DESON.'!$A$4:$D$14999,3,FALSE),IF($F21="SICRO",VLOOKUP($E21,'SICRO DESON.'!$A$4:$D$50010,3,FALSE),IF($F21="SINAPI",IFERROR((VLOOKUP($E21,'comp. SINAPI DESON.'!$G$7:$L$50000,3,FALSE)),(VLOOKUP($E21,'ins. SINAPI DESON.'!$A$8:$E$15000,3,FALSE))),"-"))))))) -> - | I21: ='Orçamento N_DESON.'!I21 -> 0 | M21: 0 | O21: 0 | P21: =IFERROR(TRUNC(TRUNC((J21*(1+$N21)),2)*$I21,2),0) -> 0 | Q21: 0 | R21: 0 | S21: 0
D22: ='Orçamento N_DESON.'!D22 -> 1.12 | E22: ='Orçamento N_DESON.'!E22 -> 0 | F22: ='Orçamento N_DESON.'!F22 -> 0 | G22: =IF(OR($F22="ANP",$F22="DAER",$F22="CONSULTORIA DNIT",$F22="PREGÃO ELETRÔNICO",$F22="DMLU",$F22="DMAE",$F22="EPTC"),VLOOKUP($E22,'Planilha Auxiliar'!$A$4:$L$1000,8,FALSE),IF($F22="INDEXADO",CONCATENATE(VLOOKUP($E22,'Index DESON.'!$A$9:$S$1305,3,FALSE)," (",VLOOKUP($E22,'Index DESON.'!$A$9:$S$1305,2,FALSE),")"),IF($F22="CCU",VLOOKUP($E22,'Resumo CCU DESON.'!$A$2:$D$202,2,FALSE),IF($F22="MERCADO",VLOOKUP($E22,'Planillha de cotações'!$B$7:$L$102,2,FALSE),IF($F22="PLEO",VLOOKUP($E22,'PLEO DESON.'!$A$4:$D$14999,2,FALSE),IF($F22="SICRO",VLOOKUP($E22,'SICRO DESON.'!$A$4:$D$50010,2,FALSE),IF($F22="SINAPI",IFERROR((VLOOKUP($E22,'comp. SINAPI DESON.'!$G$7:$L$50000,2,FALSE)),(VLOOKUP($E22,'ins. SINAPI DESON.'!$A$8:$E$15000,2,FALSE))),"-"))))))) -> - | H22: =IF(OR($F22="ANP",$F22="DAER",$F22="CONSULTORIA DNIT",$F22="PREGÃO ELETRÔNICO",$F22="DMLU",$F22="DMAE",$F22="EPTC"),VLOOKUP($E22,'Planilha Auxiliar'!$A$4:$L$1000,9,FALSE),IF($F22="INDEXADO",VLOOKUP($E22,'Index DESON.'!$A$9:$S$1305,4,FALSE),IF($F22="CCU",VLOOKUP($E22,'Resumo CCU DESON.'!$A$2:$D$202,3,FALSE),IF($F22="MERCADO",VLOOKUP('Modelo de Proposta'!$E22,'Planillha de cotações'!$B$7:$L$1143,7,FALSE),IF($F22="PLEO",VLOOKUP($E22,'PLEO DESON.'!$A$4:$D$14999,3,FALSE),IF($F22="SICRO",VLOOKUP($E22,'SICRO DESON.'!$A$4:$D$50010,3,FALSE),IF($F22="SINAPI",IFERROR((VLOOKUP($E22,'comp. SINAPI DESON.'!$G$7:$L$50000,3,FALSE)),(VLOOKUP($E22,'ins. SINAPI DESON.'!$A$8:$E$15000,3,FALSE))),"-"))))))) -> - | I22: ='Orçamento N_DESON.'!I22 -> 0 | M22: 0 | O22: 0 | P22: =IFERROR(TRUNC(TRUNC((J22*(1+$N22)),2)*$I22,2),0) -> 0 | Q22: 0 | R22: 0 | S22: 0
D23: ='Orçamento N_DESON.'!D23 -> 1.13 | E23: ='Orçamento N_DESON.'!E23 -> 0 | F23: ='Orçamento N_DESON.'!F23 -> 0 | G23: =IF(OR($F23="ANP",$F23="DAER",$F23="CONSULTORIA DNIT",$F23="PREGÃO ELETRÔNICO",$F23="DMLU",$F23="DMAE",$F23="EPTC"),VLOOKUP($E23,'Planilha Auxiliar'!$A$4:$L$1000,8,FALSE),IF($F23="INDEXADO",CONCATENATE(VLOOKUP($E23,'Index DESON.'!$A$9:$S$1305,3,FALSE)," (",VLOOKUP($E23,'Index DESON.'!$A$9:$S$1305,2,FALSE),")"),IF($F23="CCU",VLOOKUP($E23,'Resumo CCU DESON.'!$A$2:$D$202,2,FALSE),IF($F23="MERCADO",VLOOKUP($E23,'Planillha de cotações'!$B$7:$L$102,2,FALSE),IF($F23="PLEO",VLOOKUP($E23,'PLEO DESON.'!$A$4:$D$14999,2,FALSE),IF($F23="SICRO",VLOOKUP($E23,'SICRO DESON.'!$A$4:$D$50010,2,FALSE),IF($F23="SINAPI",IFERROR((VLOOKUP($E23,'comp. SINAPI DESON.'!$G$7:$L$50000,2,FALSE)),(VLOOKUP($E23,'ins. SINAPI DESON.'!$A$8:$E$15000,2,FALSE))),"-"))))))) -> - | H23: =IF(OR($F23="ANP",$F23="DAER",$F23="CONSULTORIA DNIT",$F23="PREGÃO ELETRÔNICO",$F23="DMLU",$F23="DMAE",$F23="EPTC"),VLOOKUP($E23,'Planilha Auxiliar'!$A$4:$L$1000,9,FALSE),IF($F23="INDEXADO",VLOOKUP($E23,'Index DESON.'!$A$9:$S$1305,4,FALSE),IF($F23="CCU",VLOOKUP($E23,'Resumo CCU DESON.'!$A$2:$D$202,3,FALSE),IF($F23="MERCADO",VLOOKUP('Modelo de Proposta'!$E23,'Planillha de cotações'!$B$7:$L$1143,7,FALSE),IF($F23="PLEO",VLOOKUP($E23,'PLEO DESON.'!$A$4:$D$14999,3,FALSE),IF($F23="SICRO",VLOOKUP($E23,'SICRO DESON.'!$A$4:$D$50010,3,FALSE),IF($F23="SINAPI",IFERROR((VLOOKUP($E23,'comp. SINAPI DESON.'!$G$7:$L$50000,3,FALSE)),(VLOOKUP($E23,'ins. SINAPI DESON.'!$A$8:$E$15000,3,FALSE))),"-"))))))) -> - | I23: ='Orçamento N_DESON.'!I23 -> 0 | M23: 0 | O23: 0 | P23: =IFERROR(TRUNC(TRUNC((J23*(1+$N23)),2)*$I23,2),0) -> 0 | Q23: 0 | R23: 0 | S23: 0
D24: ='Orçamento N_DESON.'!D24 -> 1.14 | E24: ='Orçamento N_DESON.'!E24 -> 0 | F24: ='Orçamento N_DESON.'!F24 -> 0 | G24: =IF(OR($F24="ANP",$F24="DAER",$F24="CONSULTORIA DNIT",$F24="PREGÃO ELETRÔNICO",$F24="DMLU",$F24="DMAE",$F24="EPTC"),VLOOKUP($E24,'Planilha Auxiliar'!$A$4:$L$1000,8,FALSE),IF($F24="INDEXADO",CONCATENATE(VLOOKUP($E24,'Index DESON.'!$A$9:$S$1305,3,FALSE)," (",VLOOKUP($E24,'Index DESON.'!$A$9:$S$1305,2,FALSE),")"),IF($F24="CCU",VLOOKUP($E24,'Resumo CCU DESON.'!$A$2:$D$202,2,FALSE),IF($F24="MERCADO",VLOOKUP($E24,'Planillha de cotações'!$B$7:$L$102,2,FALSE),IF($F24="PLEO",VLOOKUP($E24,'PLEO DESON.'!$A$4:$D$14999,2,FALSE),IF($F24="SICRO",VLOOKUP($E24,'SICRO DESON.'!$A$4:$D$50010,2,FALSE),IF($F24="SINAPI",IFERROR((VLOOKUP($E24,'comp. SINAPI DESON.'!$G$7:$L$50000,2,FALSE)),(VLOOKUP($E24,'ins. SINAPI DESON.'!$A$8:$E$15000,2,FALSE))),"-"))))))) -> - | H24: =IF(OR($F24="ANP",$F24="DAER",$F24="CONSULTORIA DNIT",$F24="PREGÃO ELETRÔNICO",$F24="DMLU",$F24="DMAE",$F24="EPTC"),VLOOKUP($E24,'Planilha Auxiliar'!$A$4:$L$1000,9,FALSE),IF($F24="INDEXADO",VLOOKUP($E24,'Index DESON.'!$A$9:$S$1305,4,FALSE),IF($F24="CCU",VLOOKUP($E24,'Resumo CCU DESON.'!$A$2:$D$202,3,FALSE),IF($F24="MERCADO",VLOOKUP('Modelo de Proposta'!$E24,'Planillha de cotações'!$B$7:$L$1143,7,FALSE),IF($F24="PLEO",VLOOKUP($E24,'PLEO DESON.'!$A$4:$D$14999,3,FALSE),IF($F24="SICRO",VLOOKUP($E24,'SICRO DESON.'!$A$4:$D$50010,3,FALSE),IF($F24="SINAPI",IFERROR((VLOOKUP($E24,'comp. SINAPI DESON.'!$G$7:$L$50000,3,FALSE)),(VLOOKUP($E24,'ins. SINAPI DESON.'!$A$8:$E$15000,3,FALSE))),"-"))))))) -> - | I24: ='Orçamento N_DESON.'!I24 -> 0 | M24: 0 | O24: 0 | P24: =IFERROR(TRUNC(TRUNC((J24*(1+$N24)),2)*$I24,2),0) -> 0 | Q24: 0 | R24: 0 | S24: 0
D25: ='Orçamento N_DESON.'!D25 -> 1.15 | E25: ='Orçamento N_DESON.'!E25 -> 0 | F25: ='Orçamento N_DESON.'!F25 -> 0 | G25: =IF(OR($F25="ANP",$F25="DAER",$F25="CONSULTORIA DNIT",$F25="PREGÃO ELETRÔNICO",$F25="DMLU",$F25="DMAE",$F25="EPTC"),VLOOKUP($E25,'Planilha Auxiliar'!$A$4:$L$1000,8,FALSE),IF($F25="INDEXADO",CONCATENATE(VLOOKUP($E25,'Index DESON.'!$A$9:$S$1305,3,FALSE)," (",VLOOKUP($E25,'Index DESON.'!$A$9:$S$1305,2,FALSE),")"),IF($F25="CCU",VLOOKUP($E25,'Resumo CCU DESON.'!$A$2:$D$202,2,FALSE),IF($F25="MERCADO",VLOOKUP($E25,'Planillha de cotações'!$B$7:$L$102,2,FALSE),IF($F25="PLEO",VLOOKUP($E25,'PLEO DESON.'!$A$4:$D$14999,2,FALSE),IF($F25="SICRO",VLOOKUP($E25,'SICRO DESON.'!$A$4:$D$50010,2,FALSE),IF($F25="SINAPI",IFERROR((VLOOKUP($E25,'comp. SINAPI DESON.'!$G$7:$L$50000,2,FALSE)),(VLOOKUP($E25,'ins. SINAPI DESON.'!$A$8:$E$15000,2,FALSE))),"-"))))))) -> - | H25: =IF(OR($F25="ANP",$F25="DAER",$F25="CONSULTORIA DNIT",$F25="PREGÃO ELETRÔNICO",$F25="DMLU",$F25="DMAE",$F25="EPTC"),VLOOKUP($E25,'Planilha Auxiliar'!$A$4:$L$1000,9,FALSE),IF($F25="INDEXADO",VLOOKUP($E25,'Index DESON.'!$A$9:$S$1305,4,FALSE),IF($F25="CCU",VLOOKUP($E25,'Resumo CCU DESON.'!$A$2:$D$202,3,FALSE),IF($F25="MERCADO",VLOOKUP('Modelo de Proposta'!$E25,'Planillha de cotações'!$B$7:$L$1143,7,FALSE),IF($F25="PLEO",VLOOKUP($E25,'PLEO DESON.'!$A$4:$D$14999,3,FALSE),IF($F25="SICRO",VLOOKUP($E25,'SICRO DESON.'!$A$4:$D$50010,3,FALSE),IF($F25="SINAPI",IFERROR((VLOOKUP($E25,'comp. SINAPI DESON.'!$G$7:$L$50000,3,FALSE)),(VLOOKUP($E25,'ins. SINAPI DESON.'!$A$8:$E$15000,3,FALSE))),"-"))))))) -> - | I25: ='Orçamento N_DESON.'!I25 -> 0 | M25: 0 | O25: 0 | P25: =IFERROR(TRUNC(TRUNC((J25*(1+$N25)),2)*$I25,2),0) -> 0 | Q25: 0 | R25: 0 | S25: 0
D26: ='Orçamento N_DESON.'!D26 -> 1.16 | E26: ='Orçamento N_DESON.'!E26 -> 0 | F26: ='Orçamento N_DESON.'!F26 -> 0 | G26: =IF(OR($F26="ANP",$F26="DAER",$F26="CONSULTORIA DNIT",$F26="PREGÃO ELETRÔNICO",$F26="DMLU",$F26="DMAE",$F26="EPTC"),VLOOKUP($E26,'Planilha Auxiliar'!$A$4:$L$1000,8,FALSE),IF($F26="INDEXADO",CONCATENATE(VLOOKUP($E26,'Index DESON.'!$A$9:$S$1305,3,FALSE)," (",VLOOKUP($E26,'Index DESON.'!$A$9:$S$1305,2,FALSE),")"),IF($F26="CCU",VLOOKUP($E26,'Resumo CCU DESON.'!$A$2:$D$202,2,FALSE),IF($F26="MERCADO",VLOOKUP($E26,'Planillha de cotações'!$B$7:$L$102,2,FALSE),IF($F26="PLEO",VLOOKUP($E26,'PLEO DESON.'!$A$4:$D$14999,2,FALSE),IF($F26="SICRO",VLOOKUP($E26,'SICRO DESON.'!$A$4:$D$50010,2,FALSE),IF($F26="SINAPI",IFERROR((VLOOKUP($E26,'comp. SINAPI DESON.'!$G$7:$L$50000,2,FALSE)),(VLOOKUP($E26,'ins. SINAPI DESON.'!$A$8:$E$15000,2,FALSE))),"-"))))))) -> - | H26: =IF(OR($F26="ANP",$F26="DAER",$F26="CONSULTORIA DNIT",$F26="PREGÃO ELETRÔNICO",$F26="DMLU",$F26="DMAE",$F26="EPTC"),VLOOKUP($E26,'Planilha Auxiliar'!$A$4:$L$1000,9,FALSE),IF($F26="INDEXADO",VLOOKUP($E26,'Index DESON.'!$A$9:$S$1305,4,FALSE),IF($F26="CCU",VLOOKUP($E26,'Resumo CCU DESON.'!$A$2:$D$202,3,FALSE),IF($F26="MERCADO",VLOOKUP('Modelo de Proposta'!$E26,'Planillha de cotações'!$B$7:$L$1143,7,FALSE),IF($F26="PLEO",VLOOKUP($E26,'PLEO DESON.'!$A$4:$D$14999,3,FALSE),IF($F26="SICRO",VLOOKUP($E26,'SICRO DESON.'!$A$4:$D$50010,3,FALSE),IF($F26="SINAPI",IFERROR((VLOOKUP($E26,'comp. SINAPI DESON.'!$G$7:$L$50000,3,FALSE)),(VLOOKUP($E26,'ins. SINAPI DESON.'!$A$8:$E$15000,3,FALSE))),"-"))))))) -> - | I26: ='Orçamento N_DESON.'!I26 -> 0 | M26: 0 | O26: 0 | P26: =IFERROR(TRUNC(TRUNC((J26*(1+$N26)),2)*$I26,2),0) -> 0 | Q26: 0 | R26: 0 | S26: 0
D27: ='Orçamento N_DESON.'!D27 -> 1.17 | E27: ='Orçamento N_DESON.'!E27 -> 0 | F27: ='Orçamento N_DESON.'!F27 -> 0 | G27: =IF(OR($F27="ANP",$F27="DAER",$F27="CONSULTORIA DNIT",$F27="PREGÃO ELETRÔNICO",$F27="DMLU",$F27="DMAE",$F27="EPTC"),VLOOKUP($E27,'Planilha Auxiliar'!$A$4:$L$1000,8,FALSE),IF($F27="INDEXADO",CONCATENATE(VLOOKUP($E27,'Index DESON.'!$A$9:$S$1305,3,FALSE)," (",VLOOKUP($E27,'Index DESON.'!$A$9:$S$1305,2,FALSE),")"),IF($F27="CCU",VLOOKUP($E27,'Resumo CCU DESON.'!$A$2:$D$202,2,FALSE),IF($F27="MERCADO",VLOOKUP($E27,'Planillha de cotações'!$B$7:$L$102,2,FALSE),IF($F27="PLEO",VLOOKUP($E27,'PLEO DESON.'!$A$4:$D$14999,2,FALSE),IF($F27="SICRO",VLOOKUP($E27,'SICRO DESON.'!$A$4:$D$50010,2,FALSE),IF($F27="SINAPI",IFERROR((VLOOKUP($E27,'comp. SINAPI DESON.'!$G$7:$L$50000,2,FALSE)),(VLOOKUP($E27,'ins. SINAPI DESON.'!$A$8:$E$15000,2,FALSE))),"-"))))))) -> - | H27: =IF(OR($F27="ANP",$F27="DAER",$F27="CONSULTORIA DNIT",$F27="PREGÃO ELETRÔNICO",$F27="DMLU",$F27="DMAE",$F27="EPTC"),VLOOKUP($E27,'Planilha Auxiliar'!$A$4:$L$1000,9,FALSE),IF($F27="INDEXADO",VLOOKUP($E27,'Index DESON.'!$A$9:$S$1305,4,FALSE),IF($F27="CCU",VLOOKUP($E27,'Resumo CCU DESON.'!$A$2:$D$202,3,FALSE),IF($F27="MERCADO",VLOOKUP('Modelo de Proposta'!$E27,'Planillha de cotações'!$B$7:$L$1143,7,FALSE),IF($F27="PLEO",VLOOKUP($E27,'PLEO DESON.'!$A$4:$D$14999,3,FALSE),IF($F27="SICRO",VLOOKUP($E27,'SICRO DESON.'!$A$4:$D$50010,3,FALSE),IF($F27="SINAPI",IFERROR((VLOOKUP($E27,'comp. SINAPI DESON.'!$G$7:$L$50000,3,FALSE)),(VLOOKUP($E27,'ins. SINAPI DESON.'!$A$8:$E$15000,3,FALSE))),"-"))))))) -> - | I27: ='Orçamento N_DESON.'!I27 -> 0 | M27: 0 | O27: 0 | P27: =IFERROR(TRUNC(TRUNC((J27*(1+$N27)),2)*$I27,2),0) -> 0 | Q27: 0 | R27: 0 | S27: 0
D28: ='Orçamento N_DESON.'!D28 -> 1.18 | E28: ='Orçamento N_DESON.'!E28 -> 0 | F28: ='Orçamento N_DESON.'!F28 -> 0 | G28: =IF(OR($F28="ANP",$F28="DAER",$F28="CONSULTORIA DNIT",$F28="PREGÃO ELETRÔNICO",$F28="DMLU",$F28="DMAE",$F28="EPTC"),VLOOKUP($E28,'Planilha Auxiliar'!$A$4:$L$1000,8,FALSE),IF($F28="INDEXADO",CONCATENATE(VLOOKUP($E28,'Index DESON.'!$A$9:$S$1305,3,FALSE)," (",VLOOKUP($E28,'Index DESON.'!$A$9:$S$1305,2,FALSE),")"),IF($F28="CCU",VLOOKUP($E28,'Resumo CCU DESON.'!$A$2:$D$202,2,FALSE),IF($F28="MERCADO",VLOOKUP($E28,'Planillha de cotações'!$B$7:$L$102,2,FALSE),IF($F28="PLEO",VLOOKUP($E28,'PLEO DESON.'!$A$4:$D$14999,2,FALSE),IF($F28="SICRO",VLOOKUP($E28,'SICRO DESON.'!$A$4:$D$50010,2,FALSE),IF($F28="SINAPI",IFERROR((VLOOKUP($E28,'comp. SINAPI DESON.'!$G$7:$L$50000,2,FALSE)),(VLOOKUP($E28,'ins. SINAPI DESON.'!$A$8:$E$15000,2,FALSE))),"-"))))))) -> - | H28: =IF(OR($F28="ANP",$F28="DAER",$F28="CONSULTORIA DNIT",$F28="PREGÃO ELETRÔNICO",$F28="DMLU",$F28="DMAE",$F28="EPTC"),VLOOKUP($E28,'Planilha Auxiliar'!$A$4:$L$1000,9,FALSE),IF($F28="INDEXADO",VLOOKUP($E28,'Index DESON.'!$A$9:$S$1305,4,FALSE),IF($F28="CCU",VLOOKUP($E28,'Resumo CCU DESON.'!$A$2:$D$202,3,FALSE),IF($F28="MERCADO",VLOOKUP('Modelo de Proposta'!$E28,'Planillha de cotações'!$B$7:$L$1143,7,FALSE),IF($F28="PLEO",VLOOKUP($E28,'PLEO DESON.'!$A$4:$D$14999,3,FALSE),IF($F28="SICRO",VLOOKUP($E28,'SICRO DESON.'!$A$4:$D$50010,3,FALSE),IF($F28="SINAPI",IFERROR((VLOOKUP($E28,'comp. SINAPI DESON.'!$G$7:$L$50000,3,FALSE)),(VLOOKUP($E28,'ins. SINAPI DESON.'!$A$8:$E$15000,3,FALSE))),"-"))))))) -> - | I28: ='Orçamento N_DESON.'!I28 -> 0 | M28: 0 | O28: 0 | P28: =IFERROR(TRUNC(TRUNC((J28*(1+$N28)),2)*$I28,2),0) -> 0 | Q28: 0 | R28: 0 | S28: 0
D29: ='Orçamento N_DESON.'!D29 -> 1.19 | E29: ='Orçamento N_DESON.'!E29 -> 0 | F29: ='Orçamento N_DESON.'!F29 -> 0 | G29: =IF(OR($F29="ANP",$F29="DAER",$F29="CONSULTORIA DNIT",$F29="PREGÃO ELETRÔNICO",$F29="DMLU",$F29="DMAE",$F29="EPTC"),VLOOKUP($E29,'Planilha Auxiliar'!$A$4:$L$1000,8,FALSE),IF($F29="INDEXADO",CONCATENATE(VLOOKUP($E29,'Index DESON.'!$A$9:$S$1305,3,FALSE)," (",VLOOKUP($E29,'Index DESON.'!$A$9:$S$1305,2,FALSE),")"),IF($F29="CCU",VLOOKUP($E29,'Resumo CCU DESON.'!$A$2:$D$202,2,FALSE),IF($F29="MERCADO",VLOOKUP($E29,'Planillha de cotações'!$B$7:$L$102,2,FALSE),IF($F29="PLEO",VLOOKUP($E29,'PLEO DESON.'!$A$4:$D$14999,2,FALSE),IF($F29="SICRO",VLOOKUP($E29,'SICRO DESON.'!$A$4:$D$50010,2,FALSE),IF($F29="SINAPI",IFERROR((VLOOKUP($E29,'comp. SINAPI DESON.'!$G$7:$L$50000,2,FALSE)),(VLOOKUP($E29,'ins. SINAPI DESON.'!$A$8:$E$15000,2,FALSE))),"-"))))))) -> - | H29: =IF(OR($F29="ANP",$F29="DAER",$F29="CONSULTORIA DNIT",$F29="PREGÃO ELETRÔNICO",$F29="DMLU",$F29="DMAE",$F29="EPTC"),VLOOKUP($E29,'Planilha Auxiliar'!$A$4:$L$1000,9,FALSE),IF($F29="INDEXADO",VLOOKUP($E29,'Index DESON.'!$A$9:$S$1305,4,FALSE),IF($F29="CCU",VLOOKUP($E29,'Resumo CCU DESON.'!$A$2:$D$202,3,FALSE),IF($F29="MERCADO",VLOOKUP('Modelo de Proposta'!$E29,'Planillha de cotações'!$B$7:$L$1143,7,FALSE),IF($F29="PLEO",VLOOKUP($E29,'PLEO DESON.'!$A$4:$D$14999,3,FALSE),IF($F29="SICRO",VLOOKUP($E29,'SICRO DESON.'!$A$4:$D$50010,3,FALSE),IF($F29="SINAPI",IFERROR((VLOOKUP($E29,'comp. SINAPI DESON.'!$G$7:$L$50000,3,FALSE)),(VLOOKUP($E29,'ins. SINAPI DESON.'!$A$8:$E$15000,3,FALSE))),"-"))))))) -> - | I29: ='Orçamento N_DESON.'!I29 -> 0 | M29: 0 | O29: 0 | P29: =IFERROR(TRUNC(TRUNC((J29*(1+$N29)),2)*$I29,2),0) -> 0 | Q29: 0 | R29: 0 | S29: 0
D30: ='Orçamento N_DESON.'!D30 -> 1.20 | E30: ='Orçamento N_DESON.'!E30 -> 0 | F30: ='Orçamento N_DESON.'!F30 -> 0 | G30: =IF(OR($F30="ANP",$F30="DAER",$F30="CONSULTORIA DNIT",$F30="PREGÃO ELETRÔNICO",$F30="DMLU",$F30="DMAE",$F30="EPTC"),VLOOKUP($E30,'Planilha Auxiliar'!$A$4:$L$1000,8,FALSE),IF($F30="INDEXADO",CONCATENATE(VLOOKUP($E30,'Index DESON.'!$A$9:$S$1305,3,FALSE)," (",VLOOKUP($E30,'Index DESON.'!$A$9:$S$1305,2,FALSE),")"),IF($F30="CCU",VLOOKUP($E30,'Resumo CCU DESON.'!$A$2:$D$202,2,FALSE),IF($F30="MERCADO",VLOOKUP($E30,'Planillha de cotações'!$B$7:$L$102,2,FALSE),IF($F30="PLEO",VLOOKUP($E30,'PLEO DESON.'!$A$4:$D$14999,2,FALSE),IF($F30="SICRO",VLOOKUP($E30,'SICRO DESON.'!$A$4:$D$50010,2,FALSE),IF($F30="SINAPI",IFERROR((VLOOKUP($E30,'comp. SINAPI DESON.'!$G$7:$L$50000,2,FALSE)),(VLOOKUP($E30,'ins. SINAPI DESON.'!$A$8:$E$15000,2,FALSE))),"-"))))))) -> - | H30: =IF(OR($F30="ANP",$F30="DAER",$F30="CONSULTORIA DNIT",$F30="PREGÃO ELETRÔNICO",$F30="DMLU",$F30="DMAE",$F30="EPTC"),VLOOKUP($E30,'Planilha Auxiliar'!$A$4:$L$1000,9,FALSE),IF($F30="INDEXADO",VLOOKUP($E30,'Index DESON.'!$A$9:$S$1305,4,FALSE),IF($F30="CCU",VLOOKUP($E30,'Resumo CCU DESON.'!$A$2:$D$202,3,FALSE),IF($F30="MERCADO",VLOOKUP('Modelo de Proposta'!$E30,'Planillha de cotações'!$B$7:$L$1143,7,FALSE),IF($F30="PLEO",VLOOKUP($E30,'PLEO DESON.'!$A$4:$D$14999,3,FALSE),IF($F30="SICRO",VLOOKUP($E30,'SICRO DESON.'!$A$4:$D$50010,3,FALSE),IF($F30="SINAPI",IFERROR((VLOOKUP($E30,'comp. SINAPI DESON.'!$G$7:$L$50000,3,FALSE)),(VLOOKUP($E30,'ins. SINAPI DESON.'!$A$8:$E$15000,3,FALSE))),"-"))))))) -> - | I30: ='Orçamento N_DESON.'!I30 -> 0 | M30: 0 | O30: 0 | P30: =IFERROR(TRUNC(TRUNC((J30*(1+$N30)),2)*$I30,2),0) -> 0 | Q30: 0 | R30: 0 | S30: 0
D31: ='Orçamento N_DESON.'!D31 -> 1.21 | E31: ='Orçamento N_DESON.'!E31 -> 0 | F31: ='Orçamento N_DESON.'!F31 -> 0 | G31: =IF(OR($F31="ANP",$F31="DAER",$F31="CONSULTORIA DNIT",$F31="PREGÃO ELETRÔNICO",$F31="DMLU",$F31="DMAE",$F31="EPTC"),VLOOKUP($E31,'Planilha Auxiliar'!$A$4:$L$1000,8,FALSE),IF($F31="INDEXADO",CONCATENATE(VLOOKUP($E31,'Index DESON.'!$A$9:$S$1305,3,FALSE)," (",VLOOKUP($E31,'Index DESON.'!$A$9:$S$1305,2,FALSE),")"),IF($F31="CCU",VLOOKUP($E31,'Resumo CCU DESON.'!$A$2:$D$202,2,FALSE),IF($F31="MERCADO",VLOOKUP($E31,'Planillha de cotações'!$B$7:$L$102,2,FALSE),IF($F31="PLEO",VLOOKUP($E31,'PLEO DESON.'!$A$4:$D$14999,2,FALSE),IF($F31="SICRO",VLOOKUP($E31,'SICRO DESON.'!$A$4:$D$50010,2,FALSE),IF($F31="SINAPI",IFERROR((VLOOKUP($E31,'comp. SINAPI DESON.'!$G$7:$L$50000,2,FALSE)),(VLOOKUP($E31,'ins. SINAPI DESON.'!$A$8:$E$15000,2,FALSE))),"-"))))))) -> - | H31: =IF(OR($F31="ANP",$F31="DAER",$F31="CONSULTORIA DNIT",$F31="PREGÃO ELETRÔNICO",$F31="DMLU",$F31="DMAE",$F31="EPTC"),VLOOKUP($E31,'Planilha Auxiliar'!$A$4:$L$1000,9,FALSE),IF($F31="INDEXADO",VLOOKUP($E31,'Index DESON.'!$A$9:$S$1305,4,FALSE),IF($F31="CCU",VLOOKUP($E31,'Resumo CCU DESON.'!$A$2:$D$202,3,FALSE),IF($F31="MERCADO",VLOOKUP('Modelo de Proposta'!$E31,'Planillha de cotações'!$B$7:$L$1143,7,FALSE),IF($F31="PLEO",VLOOKUP($E31,'PLEO DESON.'!$A$4:$D$14999,3,FALSE),IF($F31="SICRO",VLOOKUP($E31,'SICRO DESON.'!$A$4:$D$50010,3,FALSE),IF($F31="SINAPI",IFERROR((VLOOKUP($E31,'comp. SINAPI DESON.'!$G$7:$L$50000,3,FALSE)),(VLOOKUP($E31,'ins. SINAPI DESON.'!$A$8:$E$15000,3,FALSE))),"-"))))))) -> - | I31: ='Orçamento N_DESON.'!I31 -> 0 | M31: 0 | O31: 0 | P31: =IFERROR(TRUNC(TRUNC((J31*(1+$N31)),2)*$I31,2),0) -> 0 | Q31: 0 | R31: 0 | S31: 0
D32: ='Orçamento N_DESON.'!D32 -> 1.22 | E32: ='Orçamento N_DESON.'!E32 -> 0 | F32: ='Orçamento N_DESON.'!F32 -> 0 | G32: =IF(OR($F32="ANP",$F32="DAER",$F32="CONSULTORIA DNIT",$F32="PREGÃO ELETRÔNICO",$F32="DMLU",$F32="DMAE",$F32="EPTC"),VLOOKUP($E32,'Planilha Auxiliar'!$A$4:$L$1000,8,FALSE),IF($F32="INDEXADO",CONCATENATE(VLOOKUP($E32,'Index DESON.'!$A$9:$S$1305,3,FALSE)," (",VLOOKUP($E32,'Index DESON.'!$A$9:$S$1305,2,FALSE),")"),IF($F32="CCU",VLOOKUP($E32,'Resumo CCU DESON.'!$A$2:$D$202,2,FALSE),IF($F32="MERCADO",VLOOKUP($E32,'Planillha de cotações'!$B$7:$L$102,2,FALSE),IF($F32="PLEO",VLOOKUP($E32,'PLEO DESON.'!$A$4:$D$14999,2,FALSE),IF($F32="SICRO",VLOOKUP($E32,'SICRO DESON.'!$A$4:$D$50010,2,FALSE),IF($F32="SINAPI",IFERROR((VLOOKUP($E32,'comp. SINAPI DESON.'!$G$7:$L$50000,2,FALSE)),(VLOOKUP($E32,'ins. SINAPI DESON.'!$A$8:$E$15000,2,FALSE))),"-"))))))) -> - | H32: =IF(OR($F32="ANP",$F32="DAER",$F32="CONSULTORIA DNIT",$F32="PREGÃO ELETRÔNICO",$F32="DMLU",$F32="DMAE",$F32="EPTC"),VLOOKUP($E32,'Planilha Auxiliar'!$A$4:$L$1000,9,FALSE),IF($F32="INDEXADO",VLOOKUP($E32,'Index DESON.'!$A$9:$S$1305,4,FALSE),IF($F32="CCU",VLOOKUP($E32,'Resumo CCU DESON.'!$A$2:$D$202,3,FALSE),IF($F32="MERCADO",VLOOKUP('Modelo de Proposta'!$E32,'Planillha de cotações'!$B$7:$L$1143,7,FALSE),IF($F32="PLEO",VLOOKUP($E32,'PLEO DESON.'!$A$4:$D$14999,3,FALSE),IF($F32="SICRO",VLOOKUP($E32,'SICRO DESON.'!$A$4:$D$50010,3,FALSE),IF($F32="SINAPI",IFERROR((VLOOKUP($E32,'comp. SINAPI DESON.'!$G$7:$L$50000,3,FALSE)),(VLOOKUP($E32,'ins. SINAPI DESON.'!$A$8:$E$15000,3,FALSE))),"-"))))))) -> - | I32: ='Orçamento N_DESON.'!I32 -> 0 | M32: 0 | O32: 0 | P32: =IFERROR(TRUNC(TRUNC((J32*(1+$N32)),2)*$I32,2),0) -> 0 | Q32: 0 | R32: 0 | S32: 0
D33: ='Orçamento N_DESON.'!D33 -> 1.23 | E33: ='Orçamento N_DESON.'!E33 -> 0 | F33: ='Orçamento N_DESON.'!F33 -> 0 | G33: =IF(OR($F33="ANP",$F33="DAER",$F33="CONSULTORIA DNIT",$F33="PREGÃO ELETRÔNICO",$F33="DMLU",$F33="DMAE",$F33="EPTC"),VLOOKUP($E33,'Planilha Auxiliar'!$A$4:$L$1000,8,FALSE),IF($F33="INDEXADO",CONCATENATE(VLOOKUP($E33,'Index DESON.'!$A$9:$S$1305,3,FALSE)," (",VLOOKUP($E33,'Index DESON.'!$A$9:$S$1305,2,FALSE),")"),IF($F33="CCU",VLOOKUP($E33,'Resumo CCU DESON.'!$A$2:$D$202,2,FALSE),IF($F33="MERCADO",VLOOKUP($E33,'Planillha de cotações'!$B$7:$L$102,2,FALSE),IF($F33="PLEO",VLOOKUP($E33,'PLEO DESON.'!$A$4:$D$14999,2,FALSE),IF($F33="SICRO",VLOOKUP($E33,'SICRO DESON.'!$A$4:$D$50010,2,FALSE),IF($F33="SINAPI",IFERROR((VLOOKUP($E33,'comp. SINAPI DESON.'!$G$7:$L$50000,2,FALSE)),(VLOOKUP($E33,'ins. SINAPI DESON.'!$A$8:$E$15000,2,FALSE))),"-"))))))) -> - | H33: =IF(OR($F33="ANP",$F33="DAER",$F33="CONSULTORIA DNIT",$F33="PREGÃO ELETRÔNICO",$F33="DMLU",$F33="DMAE",$F33="EPTC"),VLOOKUP($E33,'Planilha Auxiliar'!$A$4:$L$1000,9,FALSE),IF($F33="INDEXADO",VLOOKUP($E33,'Index DESON.'!$A$9:$S$1305,4,FALSE),IF($F33="CCU",VLOOKUP($E33,'Resumo CCU DESON.'!$A$2:$D$202,3,FALSE),IF($F33="MERCADO",VLOOKUP('Modelo de Proposta'!$E33,'Planillha de cotações'!$B$7:$L$1143,7,FALSE),IF($F33="PLEO",VLOOKUP($E33,'PLEO DESON.'!$A$4:$D$14999,3,FALSE),IF($F33="SICRO",VLOOKUP($E33,'SICRO DESON.'!$A$4:$D$50010,3,FALSE),IF($F33="SINAPI",IFERROR((VLOOKUP($E33,'comp. SINAPI DESON.'!$G$7:$L$50000,3,FALSE)),(VLOOKUP($E33,'ins. SINAPI DESON.'!$A$8:$E$15000,3,FALSE))),"-"))))))) -> - | I33: ='Orçamento N_DESON.'!I33 -> 0 | M33: 0 | O33: 0 | P33: =IFERROR(TRUNC(TRUNC((J33*(1+$N33)),2)*$I33,2),0) -> 0 | Q33: 0 | R33: 0 | S33: 0
D34: ='Orçamento N_DESON.'!D34 -> 1.24 | E34: ='Orçamento N_DESON.'!E34 -> 0 | F34: ='Orçamento N_DESON.'!F34 -> 0 | G34: =IF(OR($F34="ANP",$F34="DAER",$F34="CONSULTORIA DNIT",$F34="PREGÃO ELETRÔNICO",$F34="DMLU",$F34="DMAE",$F34="EPTC"),VLOOKUP($E34,'Planilha Auxiliar'!$A$4:$L$1000,8,FALSE),IF($F34="INDEXADO",CONCATENATE(VLOOKUP($E34,'Index DESON.'!$A$9:$S$1305,3,FALSE)," (",VLOOKUP($E34,'Index DESON.'!$A$9:$S$1305,2,FALSE),")"),IF($F34="CCU",VLOOKUP($E34,'Resumo CCU DESON.'!$A$2:$D$202,2,FALSE),IF($F34="MERCADO",VLOOKUP($E34,'Planillha de cotações'!$B$7:$L$102,2,FALSE),IF($F34="PLEO",VLOOKUP($E34,'PLEO DESON.'!$A$4:$D$14999,2,FALSE),IF($F34="SICRO",VLOOKUP($E34,'SICRO DESON.'!$A$4:$D$50010,2,FALSE),IF($F34="SINAPI",IFERROR((VLOOKUP($E34,'comp. SINAPI DESON.'!$G$7:$L$50000,2,FALSE)),(VLOOKUP($E34,'ins. SINAPI DESON.'!$A$8:$E$15000,2,FALSE))),"-"))))))) -> - | H34: =IF(OR($F34="ANP",$F34="DAER",$F34="CONSULTORIA DNIT",$F34="PREGÃO ELETRÔNICO",$F34="DMLU",$F34="DMAE",$F34="EPTC"),VLOOKUP($E34,'Planilha Auxiliar'!$A$4:$L$1000,9,FALSE),IF($F34="INDEXADO",VLOOKUP($E34,'Index DESON.'!$A$9:$S$1305,4,FALSE),IF($F34="CCU",VLOOKUP($E34,'Resumo CCU DESON.'!$A$2:$D$202,3,FALSE),IF($F34="MERCADO",VLOOKUP('Modelo de Proposta'!$E34,'Planillha de cotações'!$B$7:$L$1143,7,FALSE),IF($F34="PLEO",VLOOKUP($E34,'PLEO DESON.'!$A$4:$D$14999,3,FALSE),IF($F34="SICRO",VLOOKUP($E34,'SICRO DESON.'!$A$4:$D$50010,3,FALSE),IF($F34="SINAPI",IFERROR((VLOOKUP($E34,'comp. SINAPI DESON.'!$G$7:$L$50000,3,FALSE)),(VLOOKUP($E34,'ins. SINAPI DESON.'!$A$8:$E$15000,3,FALSE))),"-"))))))) -> - | I34: ='Orçamento N_DESON.'!I34 -> 0 | M34: 0 | O34: 0 | P34: =IFERROR(TRUNC(TRUNC((J34*(1+$N34)),2)*$I34,2),0) -> 0 | Q34: 0 | R34: 0 | S34: 0
D35: ='Orçamento N_DESON.'!D35 -> 1.25 | E35: ='Orçamento N_DESON.'!E35 -> 0 | F35: ='Orçamento N_DESON.'!F35 -> 0 | G35: =IF(OR($F35="ANP",$F35="DAER",$F35="CONSULTORIA DNIT",$F35="PREGÃO ELETRÔNICO",$F35="DMLU",$F35="DMAE",$F35="EPTC"),VLOOKUP($E35,'Planilha Auxiliar'!$A$4:$L$1000,8,FALSE),IF($F35="INDEXADO",CONCATENATE(VLOOKUP($E35,'Index DESON.'!$A$9:$S$1305,3,FALSE)," (",VLOOKUP($E35,'Index DESON.'!$A$9:$S$1305,2,FALSE),")"),IF($F35="CCU",VLOOKUP($E35,'Resumo CCU DESON.'!$A$2:$D$202,2,FALSE),IF($F35="MERCADO",VLOOKUP($E35,'Planillha de cotações'!$B$7:$L$102,2,FALSE),IF($F35="PLEO",VLOOKUP($E35,'PLEO DESON.'!$A$4:$D$14999,2,FALSE),IF($F35="SICRO",VLOOKUP($E35,'SICRO DESON.'!$A$4:$D$50010,2,FALSE),IF($F35="SINAPI",IFERROR((VLOOKUP($E35,'comp. SINAPI DESON.'!$G$7:$L$50000,2,FALSE)),(VLOOKUP($E35,'ins. SINAPI DESON.'!$A$8:$E$15000,2,FALSE))),"-"))))))) -> - | H35: =IF(OR($F35="ANP",$F35="DAER",$F35="CONSULTORIA DNIT",$F35="PREGÃO ELETRÔNICO",$F35="DMLU",$F35="DMAE",$F35="EPTC"),VLOOKUP($E35,'Planilha Auxiliar'!$A$4:$L$1000,9,FALSE),IF($F35="INDEXADO",VLOOKUP($E35,'Index DESON.'!$A$9:$S$1305,4,FALSE),IF($F35="CCU",VLOOKUP($E35,'Resumo CCU DESON.'!$A$2:$D$202,3,FALSE),IF($F35="MERCADO",VLOOKUP('Modelo de Proposta'!$E35,'Planillha de cotações'!$B$7:$L$1143,7,FALSE),IF($F35="PLEO",VLOOKUP($E35,'PLEO DESON.'!$A$4:$D$14999,3,FALSE),IF($F35="SICRO",VLOOKUP($E35,'SICRO DESON.'!$A$4:$D$50010,3,FALSE),IF($F35="SINAPI",IFERROR((VLOOKUP($E35,'comp. SINAPI DESON.'!$G$7:$L$50000,3,FALSE)),(VLOOKUP($E35,'ins. SINAPI DESON.'!$A$8:$E$15000,3,FALSE))),"-"))))))) -> - | I35: ='Orçamento N_DESON.'!I35 -> 0 | M35: 0 | O35: 0 | P35: =IFERROR(TRUNC(TRUNC((J35*(1+$N35)),2)*$I35,2),0) -> 0 | Q35: 0 | R35: 0 | S35: 0
D36: ='Orçamento N_DESON.'!D36 -> 1.26 | E36: ='Orçamento N_DESON.'!E36 -> 0 | F36: ='Orçamento N_DESON.'!F36 -> 0 | G36: =IF(OR($F36="ANP",$F36="DAER",$F36="CONSULTORIA DNIT",$F36="PREGÃO ELETRÔNICO",$F36="DMLU",$F36="DMAE",$F36="EPTC"),VLOOKUP($E36,'Planilha Auxiliar'!$A$4:$L$1000,8,FALSE),IF($F36="INDEXADO",CONCATENATE(VLOOKUP($E36,'Index DESON.'!$A$9:$S$1305,3,FALSE)," (",VLOOKUP($E36,'Index DESON.'!$A$9:$S$1305,2,FALSE),")"),IF($F36="CCU",VLOOKUP($E36,'Resumo CCU DESON.'!$A$2:$D$202,2,FALSE),IF($F36="MERCADO",VLOOKUP($E36,'Planillha de cotações'!$B$7:$L$102,2,FALSE),IF($F36="PLEO",VLOOKUP($E36,'PLEO DESON.'!$A$4:$D$14999,2,FALSE),IF($F36="SICRO",VLOOKUP($E36,'SICRO DESON.'!$A$4:$D$50010,2,FALSE),IF($F36="SINAPI",IFERROR((VLOOKUP($E36,'comp. SINAPI DESON.'!$G$7:$L$50000,2,FALSE)),(VLOOKUP($E36,'ins. SINAPI DESON.'!$A$8:$E$15000,2,FALSE))),"-"))))))) -> - | H36: =IF(OR($F36="ANP",$F36="DAER",$F36="CONSULTORIA DNIT",$F36="PREGÃO ELETRÔNICO",$F36="DMLU",$F36="DMAE",$F36="EPTC"),VLOOKUP($E36,'Planilha Auxiliar'!$A$4:$L$1000,9,FALSE),IF($F36="INDEXADO",VLOOKUP($E36,'Index DESON.'!$A$9:$S$1305,4,FALSE),IF($F36="CCU",VLOOKUP($E36,'Resumo CCU DESON.'!$A$2:$D$202,3,FALSE),IF($F36="MERCADO",VLOOKUP('Modelo de Proposta'!$E36,'Planillha de cotações'!$B$7:$L$1143,7,FALSE),IF($F36="PLEO",VLOOKUP($E36,'PLEO DESON.'!$A$4:$D$14999,3,FALSE),IF($F36="SICRO",VLOOKUP($E36,'SICRO DESON.'!$A$4:$D$50010,3,FALSE),IF($F36="SINAPI",IFERROR((VLOOKUP($E36,'comp. SINAPI DESON.'!$G$7:$L$50000,3,FALSE)),(VLOOKUP($E36,'ins. SINAPI DESON.'!$A$8:$E$15000,3,FALSE))),"-"))))))) -> - | I36: ='Orçamento N_DESON.'!I36 -> 0 | M36: 0 | O36: 0 | P36: =IFERROR(TRUNC(TRUNC((J36*(1+$N36)),2)*$I36,2),0) -> 0 | Q36: 0 | R36: 0 | S36: 0
D37: ='Orçamento N_DESON.'!D37 -> 1.27 | E37: ='Orçamento N_DESON.'!E37 -> 0 | F37: ='Orçamento N_DESON.'!F37 -> 0 | G37: =IF(OR($F37="ANP",$F37="DAER",$F37="CONSULTORIA DNIT",$F37="PREGÃO ELETRÔNICO",$F37="DMLU",$F37="DMAE",$F37="EPTC"),VLOOKUP($E37,'Planilha Auxiliar'!$A$4:$L$1000,8,FALSE),IF($F37="INDEXADO",CONCATENATE(VLOOKUP($E37,'Index DESON.'!$A$9:$S$1305,3,FALSE)," (",VLOOKUP($E37,'Index DESON.'!$A$9:$S$1305,2,FALSE),")"),IF($F37="CCU",VLOOKUP($E37,'Resumo CCU DESON.'!$A$2:$D$202,2,FALSE),IF($F37="MERCADO",VLOOKUP($E37,'Planillha de cotações'!$B$7:$L$102,2,FALSE),IF($F37="PLEO",VLOOKUP($E37,'PLEO DESON.'!$A$4:$D$14999,2,FALSE),IF($F37="SICRO",VLOOKUP($E37,'SICRO DESON.'!$A$4:$D$50010,2,FALSE),IF($F37="SINAPI",IFERROR((VLOOKUP($E37,'comp. SINAPI DESON.'!$G$7:$L$50000,2,FALSE)),(VLOOKUP($E37,'ins. SINAPI DESON.'!$A$8:$E$15000,2,FALSE))),"-"))))))) -> - | H37: =IF(OR($F37="ANP",$F37="DAER",$F37="CONSULTORIA DNIT",$F37="PREGÃO ELETRÔNICO",$F37="DMLU",$F37="DMAE",$F37="EPTC"),VLOOKUP($E37,'Planilha Auxiliar'!$A$4:$L$1000,9,FALSE),IF($F37="INDEXADO",VLOOKUP($E37,'Index DESON.'!$A$9:$S$1305,4,FALSE),IF($F37="CCU",VLOOKUP($E37,'Resumo CCU DESON.'!$A$2:$D$202,3,FALSE),IF($F37="MERCADO",VLOOKUP('Modelo de Proposta'!$E37,'Planillha de cotações'!$B$7:$L$1143,7,FALSE),IF($F37="PLEO",VLOOKUP($E37,'PLEO DESON.'!$A$4:$D$14999,3,FALSE),IF($F37="SICRO",VLOOKUP($E37,'SICRO DESON.'!$A$4:$D$50010,3,FALSE),IF($F37="SINAPI",IFERROR((VLOOKUP($E37,'comp. SINAPI DESON.'!$G$7:$L$50000,3,FALSE)),(VLOOKUP($E37,'ins. SINAPI DESON.'!$A$8:$E$15000,3,FALSE))),"-"))))))) -> - | I37: ='Orçamento N_DESON.'!I37 -> 0 | M37: 0 | O37: 0 | P37: =IFERROR(TRUNC(TRUNC((J37*(1+$N37)),2)*$I37,2),0) -> 0 | Q37: 0 | R37: 0 | S37: 0
D38: ='Orçamento N_DESON.'!D38 -> 1.28 | E38: ='Orçamento N_DESON.'!E38 -> 0 | F38: ='Orçamento N_DESON.'!F38 -> 0 | G38: =IF(OR($F38="ANP",$F38="DAER",$F38="CONSULTORIA DNIT",$F38="PREGÃO ELETRÔNICO",$F38="DMLU",$F38="DMAE",$F38="EPTC"),VLOOKUP($E38,'Planilha Auxiliar'!$A$4:$L$1000,8,FALSE),IF($F38="INDEXADO",CONCATENATE(VLOOKUP($E38,'Index DESON.'!$A$9:$S$1305,3,FALSE)," (",VLOOKUP($E38,'Index DESON.'!$A$9:$S$1305,2,FALSE),")"),IF($F38="CCU",VLOOKUP($E38,'Resumo CCU DESON.'!$A$2:$D$202,2,FALSE),IF($F38="MERCADO",VLOOKUP($E38,'Planillha de cotações'!$B$7:$L$102,2,FALSE),IF($F38="PLEO",VLOOKUP($E38,'PLEO DESON.'!$A$4:$D$14999,2,FALSE),IF($F38="SICRO",VLOOKUP($E38,'SICRO DESON.'!$A$4:$D$50010,2,FALSE),IF($F38="SINAPI",IFERROR((VLOOKUP($E38,'comp. SINAPI DESON.'!$G$7:$L$50000,2,FALSE)),(VLOOKUP($E38,'ins. SINAPI DESON.'!$A$8:$E$15000,2,FALSE))),"-"))))))) -> - | H38: =IF(OR($F38="ANP",$F38="DAER",$F38="CONSULTORIA DNIT",$F38="PREGÃO ELETRÔNICO",$F38="DMLU",$F38="DMAE",$F38="EPTC"),VLOOKUP($E38,'Planilha Auxiliar'!$A$4:$L$1000,9,FALSE),IF($F38="INDEXADO",VLOOKUP($E38,'Index DESON.'!$A$9:$S$1305,4,FALSE),IF($F38="CCU",VLOOKUP($E38,'Resumo CCU DESON.'!$A$2:$D$202,3,FALSE),IF($F38="MERCADO",VLOOKUP('Modelo de Proposta'!$E38,'Planillha de cotações'!$B$7:$L$1143,7,FALSE),IF($F38="PLEO",VLOOKUP($E38,'PLEO DESON.'!$A$4:$D$14999,3,FALSE),IF($F38="SICRO",VLOOKUP($E38,'SICRO DESON.'!$A$4:$D$50010,3,FALSE),IF($F38="SINAPI",IFERROR((VLOOKUP($E38,'comp. SINAPI DESON.'!$G$7:$L$50000,3,FALSE)),(VLOOKUP($E38,'ins. SINAPI DESON.'!$A$8:$E$15000,3,FALSE))),"-"))))))) -> - | I38: ='Orçamento N_DESON.'!I38 -> 0 | M38: 0 | O38: 0 | P38: =IFERROR(TRUNC(TRUNC((J38*(1+$N38)),2)*$I38,2),0) -> 0 | Q38: 0 | R38: 0 | S38: 0
D39: ='Orçamento N_DESON.'!D39 -> 1.29 | E39: ='Orçamento N_DESON.'!E39 -> 0 | F39: ='Orçamento N_DESON.'!F39 -> 0 | G39: =IF(OR($F39="ANP",$F39="DAER",$F39="CONSULTORIA DNIT",$F39="PREGÃO ELETRÔNICO",$F39="DMLU",$F39="DMAE",$F39="EPTC"),VLOOKUP($E39,'Planilha Auxiliar'!$A$4:$L$1000,8,FALSE),IF($F39="INDEXADO",CONCATENATE(VLOOKUP($E39,'Index DESON.'!$A$9:$S$1305,3,FALSE)," (",VLOOKUP($E39,'Index DESON.'!$A$9:$S$1305,2,FALSE),")"),IF($F39="CCU",VLOOKUP($E39,'Resumo CCU DESON.'!$A$2:$D$202,2,FALSE),IF($F39="MERCADO",VLOOKUP($E39,'Planillha de cotações'!$B$7:$L$102,2,FALSE),IF($F39="PLEO",VLOOKUP($E39,'PLEO DESON.'!$A$4:$D$14999,2,FALSE),IF($F39="SICRO",VLOOKUP($E39,'SICRO DESON.'!$A$4:$D$50010,2,FALSE),IF($F39="SINAPI",IFERROR((VLOOKUP($E39,'comp. SINAPI DESON.'!$G$7:$L$50000,2,FALSE)),(VLOOKUP($E39,'ins. SINAPI DESON.'!$A$8:$E$15000,2,FALSE))),"-"))))))) -> - | H39: =IF(OR($F39="ANP",$F39="DAER",$F39="CONSULTORIA DNIT",$F39="PREGÃO ELETRÔNICO",$F39="DMLU",$F39="DMAE",$F39="EPTC"),VLOOKUP($E39,'Planilha Auxiliar'!$A$4:$L$1000,9,FALSE),IF($F39="INDEXADO",VLOOKUP($E39,'Index DESON.'!$A$9:$S$1305,4,FALSE),IF($F39="CCU",VLOOKUP($E39,'Resumo CCU DESON.'!$A$2:$D$202,3,FALSE),IF($F39="MERCADO",VLOOKUP('Modelo de Proposta'!$E39,'Planillha de cotações'!$B$7:$L$1143,7,FALSE),IF($F39="PLEO",VLOOKUP($E39,'PLEO DESON.'!$A$4:$D$14999,3,FALSE),IF($F39="SICRO",VLOOKUP($E39,'SICRO DESON.'!$A$4:$D$50010,3,FALSE),IF($F39="SINAPI",IFERROR((VLOOKUP($E39,'comp. SINAPI DESON.'!$G$7:$L$50000,3,FALSE)),(VLOOKUP($E39,'ins. SINAPI DESON.'!$A$8:$E$15000,3,FALSE))),"-"))))))) -> - | I39: ='Orçamento N_DESON.'!I39 -> 0 | M39: 0 | O39: 0 | P39: =IFERROR(TRUNC(TRUNC((J39*(1+$N39)),2)*$I39,2),0) -> 0 | Q39: 0 | R39: 0 | S39: 0
D40: ='Orçamento N_DESON.'!D40 -> 1.30 | E40: ='Orçamento N_DESON.'!E40 -> 0 | F40: ='Orçamento N_DESON.'!F40 -> 0 | G40: =IF(OR($F40="ANP",$F40="DAER",$F40="CONSULTORIA DNIT",$F40="PREGÃO ELETRÔNICO",$F40="DMLU",$F40="DMAE",$F40="EPTC"),VLOOKUP($E40,'Planilha Auxiliar'!$A$4:$L$1000,8,FALSE),IF($F40="INDEXADO",CONCATENATE(VLOOKUP($E40,'Index DESON.'!$A$9:$S$1305,3,FALSE)," (",VLOOKUP($E40,'Index DESON.'!$A$9:$S$1305,2,FALSE),")"),IF($F40="CCU",VLOOKUP($E40,'Resumo CCU DESON.'!$A$2:$D$202,2,FALSE),IF($F40="MERCADO",VLOOKUP($E40,'Planillha de cotações'!$B$7:$L$102,2,FALSE),IF($F40="PLEO",VLOOKUP($E40,'PLEO DESON.'!$A$4:$D$14999,2,FALSE),IF($F40="SICRO",VLOOKUP($E40,'SICRO DESON.'!$A$4:$D$50010,2,FALSE),IF($F40="SINAPI",IFERROR((VLOOKUP($E40,'comp. SINAPI DESON.'!$G$7:$L$50000,2,FALSE)),(VLOOKUP($E40,'ins. SINAPI DESON.'!$A$8:$E$15000,2,FALSE))),"-"))))))) -> - | H40: =IF(OR($F40="ANP",$F40="DAER",$F40="CONSULTORIA DNIT",$F40="PREGÃO ELETRÔNICO",$F40="DMLU",$F40="DMAE",$F40="EPTC"),VLOOKUP($E40,'Planilha Auxiliar'!$A$4:$L$1000,9,FALSE),IF($F40="INDEXADO",VLOOKUP($E40,'Index DESON.'!$A$9:$S$1305,4,FALSE),IF($F40="CCU",VLOOKUP($E40,'Resumo CCU DESON.'!$A$2:$D$202,3,FALSE),IF($F40="MERCADO",VLOOKUP('Modelo de Proposta'!$E40,'Planillha de cotações'!$B$7:$L$1143,7,FALSE),IF($F40="PLEO",VLOOKUP($E40,'PLEO DESON.'!$A$4:$D$14999,3,FALSE),IF($F40="SICRO",VLOOKUP($E40,'SICRO DESON.'!$A$4:$D$50010,3,FALSE),IF($F40="SINAPI",IFERROR((VLOOKUP($E40,'comp. SINAPI DESON.'!$G$7:$L$50000,3,FALSE)),(VLOOKUP($E40,'ins. SINAPI DESON.'!$A$8:$E$15000,3,FALSE))),"-"))))))) -> - | I40: ='Orçamento N_DESON.'!I40 -> 0 | M40: 0 | O40: 0 | P40: =IFERROR(TRUNC(TRUNC((J40*(1+$N40)),2)*$I40,2),0) -> 0 | Q40: 0 | R40: 0 | S40: 0
D41: ='Orçamento N_DESON.'!D41 -> 1.31 | E41: ='Orçamento N_DESON.'!E41 -> 0 | F41: ='Orçamento N_DESON.'!F41 -> 0 | G41: =IF(OR($F41="ANP",$F41="DAER",$F41="CONSULTORIA DNIT",$F41="PREGÃO ELETRÔNICO",$F41="DMLU",$F41="DMAE",$F41="EPTC"),VLOOKUP($E41,'Planilha Auxiliar'!$A$4:$L$1000,8,FALSE),IF($F41="INDEXADO",CONCATENATE(VLOOKUP($E41,'Index DESON.'!$A$9:$S$1305,3,FALSE)," (",VLOOKUP($E41,'Index DESON.'!$A$9:$S$1305,2,FALSE),")"),IF($F41="CCU",VLOOKUP($E41,'Resumo CCU DESON.'!$A$2:$D$202,2,FALSE),IF($F41="MERCADO",VLOOKUP($E41,'Planillha de cotações'!$B$7:$L$102,2,FALSE),IF($F41="PLEO",VLOOKUP($E41,'PLEO DESON.'!$A$4:$D$14999,2,FALSE),IF($F41="SICRO",VLOOKUP($E41,'SICRO DESON.'!$A$4:$D$50010,2,FALSE),IF($F41="SINAPI",IFERROR((VLOOKUP($E41,'comp. SINAPI DESON.'!$G$7:$L$50000,2,FALSE)),(VLOOKUP($E41,'ins. SINAPI DESON.'!$A$8:$E$15000,2,FALSE))),"-"))))))) -> - | H41: =IF(OR($F41="ANP",$F41="DAER",$F41="CONSULTORIA DNIT",$F41="PREGÃO ELETRÔNICO",$F41="DMLU",$F41="DMAE",$F41="EPTC"),VLOOKUP($E41,'Planilha Auxiliar'!$A$4:$L$1000,9,FALSE),IF($F41="INDEXADO",VLOOKUP($E41,'Index DESON.'!$A$9:$S$1305,4,FALSE),IF($F41="CCU",VLOOKUP($E41,'Resumo CCU DESON.'!$A$2:$D$202,3,FALSE),IF($F41="MERCADO",VLOOKUP('Modelo de Proposta'!$E41,'Planillha de cotações'!$B$7:$L$1143,7,FALSE),IF($F41="PLEO",VLOOKUP($E41,'PLEO DESON.'!$A$4:$D$14999,3,FALSE),IF($F41="SICRO",VLOOKUP($E41,'SICRO DESON.'!$A$4:$D$50010,3,FALSE),IF($F41="SINAPI",IFERROR((VLOOKUP($E41,'comp. SINAPI DESON.'!$G$7:$L$50000,3,FALSE)),(VLOOKUP($E41,'ins. SINAPI DESON.'!$A$8:$E$15000,3,FALSE))),"-"))))))) -> - | I41: ='Orçamento N_DESON.'!I41 -> 0 | M41: 0 | O41: 0 | P41: =IFERROR(TRUNC(TRUNC((J41*(1+$N41)),2)*$I41,2),0) -> 0 | Q41: 0 | R41: 0 | S41: 0
D42: ='Orçamento N_DESON.'!D42 -> 1.32 | E42: ='Orçamento N_DESON.'!E42 -> 0 | F42: ='Orçamento N_DESON.'!F42 -> 0 | G42: =IF(OR($F42="ANP",$F42="DAER",$F42="CONSULTORIA DNIT",$F42="PREGÃO ELETRÔNICO",$F42="DMLU",$F42="DMAE",$F42="EPTC"),VLOOKUP($E42,'Planilha Auxiliar'!$A$4:$L$1000,8,FALSE),IF($F42="INDEXADO",CONCATENATE(VLOOKUP($E42,'Index DESON.'!$A$9:$S$1305,3,FALSE)," (",VLOOKUP($E42,'Index DESON.'!$A$9:$S$1305,2,FALSE),")"),IF($F42="CCU",VLOOKUP($E42,'Resumo CCU DESON.'!$A$2:$D$202,2,FALSE),IF($F42="MERCADO",VLOOKUP($E42,'Planillha de cotações'!$B$7:$L$102,2,FALSE),IF($F42="PLEO",VLOOKUP($E42,'PLEO DESON.'!$A$4:$D$14999,2,FALSE),IF($F42="SICRO",VLOOKUP($E42,'SICRO DESON.'!$A$4:$D$50010,2,FALSE),IF($F42="SINAPI",IFERROR((VLOOKUP($E42,'comp. SINAPI DESON.'!$G$7:$L$50000,2,FALSE)),(VLOOKUP($E42,'ins. SINAPI DESON.'!$A$8:$E$15000,2,FALSE))),"-"))))))) -> - | H42: =IF(OR($F42="ANP",$F42="DAER",$F42="CONSULTORIA DNIT",$F42="PREGÃO ELETRÔNICO",$F42="DMLU",$F42="DMAE",$F42="EPTC"),VLOOKUP($E42,'Planilha Auxiliar'!$A$4:$L$1000,9,FALSE),IF($F42="INDEXADO",VLOOKUP($E42,'Index DESON.'!$A$9:$S$1305,4,FALSE),IF($F42="CCU",VLOOKUP($E42,'Resumo CCU DESON.'!$A$2:$D$202,3,FALSE),IF($F42="MERCADO",VLOOKUP('Modelo de Proposta'!$E42,'Planillha de cotações'!$B$7:$L$1143,7,FALSE),IF($F42="PLEO",VLOOKUP($E42,'PLEO DESON.'!$A$4:$D$14999,3,FALSE),IF($F42="SICRO",VLOOKUP($E42,'SICRO DESON.'!$A$4:$D$50010,3,FALSE),IF($F42="SINAPI",IFERROR((VLOOKUP($E42,'comp. SINAPI DESON.'!$G$7:$L$50000,3,FALSE)),(VLOOKUP($E42,'ins. SINAPI DESON.'!$A$8:$E$15000,3,FALSE))),"-"))))))) -> - | I42: ='Orçamento N_DESON.'!I42 -> 0 | M42: 0 | O42: 0 | P42: =IFERROR(TRUNC(TRUNC((J42*(1+$N42)),2)*$I42,2),0) -> 0 | Q42: 0 | R42: 0 | S42: 0
D43: ='Orçamento N_DESON.'!D43 -> 1.33 | E43: ='Orçamento N_DESON.'!E43 -> 0 | F43: ='Orçamento N_DESON.'!F43 -> 0 | G43: =IF(OR($F43="ANP",$F43="DAER",$F43="CONSULTORIA DNIT",$F43="PREGÃO ELETRÔNICO",$F43="DMLU",$F43="DMAE",$F43="EPTC"),VLOOKUP($E43,'Planilha Auxiliar'!$A$4:$L$1000,8,FALSE),IF($F43="INDEXADO",CONCATENATE(VLOOKUP($E43,'Index DESON.'!$A$9:$S$1305,3,FALSE)," (",VLOOKUP($E43,'Index DESON.'!$A$9:$S$1305,2,FALSE),")"),IF($F43="CCU",VLOOKUP($E43,'Resumo CCU DESON.'!$A$2:$D$202,2,FALSE),IF($F43="MERCADO",VLOOKUP($E43,'Planillha de cotações'!$B$7:$L$102,2,FALSE),IF($F43="PLEO",VLOOKUP($E43,'PLEO DESON.'!$A$4:$D$14999,2,FALSE),IF($F43="SICRO",VLOOKUP($E43,'SICRO DESON.'!$A$4:$D$50010,2,FALSE),IF($F43="SINAPI",IFERROR((VLOOKUP($E43,'comp. SINAPI DESON.'!$G$7:$L$50000,2,FALSE)),(VLOOKUP($E43,'ins. SINAPI DESON.'!$A$8:$E$15000,2,FALSE))),"-"))))))) -> - | H43: =IF(OR($F43="ANP",$F43="DAER",$F43="CONSULTORIA DNIT",$F43="PREGÃO ELETRÔNICO",$F43="DMLU",$F43="DMAE",$F43="EPTC"),VLOOKUP($E43,'Planilha Auxiliar'!$A$4:$L$1000,9,FALSE),IF($F43="INDEXADO",VLOOKUP($E43,'Index DESON.'!$A$9:$S$1305,4,FALSE),IF($F43="CCU",VLOOKUP($E43,'Resumo CCU DESON.'!$A$2:$D$202,3,FALSE),IF($F43="MERCADO",VLOOKUP('Modelo de Proposta'!$E43,'Planillha de cotações'!$B$7:$L$1143,7,FALSE),IF($F43="PLEO",VLOOKUP($E43,'PLEO DESON.'!$A$4:$D$14999,3,FALSE),IF($F43="SICRO",VLOOKUP($E43,'SICRO DESON.'!$A$4:$D$50010,3,FALSE),IF($F43="SINAPI",IFERROR((VLOOKUP($E43,'comp. SINAPI DESON.'!$G$7:$L$50000,3,FALSE)),(VLOOKUP($E43,'ins. SINAPI DESON.'!$A$8:$E$15000,3,FALSE))),"-"))))))) -> - | I43: ='Orçamento N_DESON.'!I43 -> 0 | M43: 0 | O43: 0 | P43: =IFERROR(TRUNC(TRUNC((J43*(1+$N43)),2)*$I43,2),0) -> 0 | Q43: 0 | R43: 0 | S43: 0
D44: ='Orçamento N_DESON.'!D44 -> 1.34 | E44: ='Orçamento N_DESON.'!E44 -> 0 | F44: ='Orçamento N_DESON.'!F44 -> 0 | G44: =IF(OR($F44="ANP",$F44="DAER",$F44="CONSULTORIA DNIT",$F44="PREGÃO ELETRÔNICO",$F44="DMLU",$F44="DMAE",$F44="EPTC"),VLOOKUP($E44,'Planilha Auxiliar'!$A$4:$L$1000,8,FALSE),IF($F44="INDEXADO",CONCATENATE(VLOOKUP($E44,'Index DESON.'!$A$9:$S$1305,3,FALSE)," (",VLOOKUP($E44,'Index DESON.'!$A$9:$S$1305,2,FALSE),")"),IF($F44="CCU",VLOOKUP($E44,'Resumo CCU DESON.'!$A$2:$D$202,2,FALSE),IF($F44="MERCADO",VLOOKUP($E44,'Planillha de cotações'!$B$7:$L$102,2,FALSE),IF($F44="PLEO",VLOOKUP($E44,'PLEO DESON.'!$A$4:$D$14999,2,FALSE),IF($F44="SICRO",VLOOKUP($E44,'SICRO DESON.'!$A$4:$D$50010,2,FALSE),IF($F44="SINAPI",IFERROR((VLOOKUP($E44,'comp. SINAPI DESON.'!$G$7:$L$50000,2,FALSE)),(VLOOKUP($E44,'ins. SINAPI DESON.'!$A$8:$E$15000,2,FALSE))),"-"))))))) -> - | H44: =IF(OR($F44="ANP",$F44="DAER",$F44="CONSULTORIA DNIT",$F44="PREGÃO ELETRÔNICO",$F44="DMLU",$F44="DMAE",$F44="EPTC"),VLOOKUP($E44,'Planilha Auxiliar'!$A$4:$L$1000,9,FALSE),IF($F44="INDEXADO",VLOOKUP($E44,'Index DESON.'!$A$9:$S$1305,4,FALSE),IF($F44="CCU",VLOOKUP($E44,'Resumo CCU DESON.'!$A$2:$D$202,3,FALSE),IF($F44="MERCADO",VLOOKUP('Modelo de Proposta'!$E44,'Planillha de cotações'!$B$7:$L$1143,7,FALSE),IF($F44="PLEO",VLOOKUP($E44,'PLEO DESON.'!$A$4:$D$14999,3,FALSE),IF($F44="SICRO",VLOOKUP($E44,'SICRO DESON.'!$A$4:$D$50010,3,FALSE),IF($F44="SINAPI",IFERROR((VLOOKUP($E44,'comp. SINAPI DESON.'!$G$7:$L$50000,3,FALSE)),(VLOOKUP($E44,'ins. SINAPI DESON.'!$A$8:$E$15000,3,FALSE))),"-"))))))) -> - | I44: ='Orçamento N_DESON.'!I44 -> 0 | M44: 0 | O44: 0 | P44: =IFERROR(TRUNC(TRUNC((J44*(1+$N44)),2)*$I44,2),0) -> 0 | Q44: 0 | R44: 0 | S44: 0
D45: ='Orçamento N_DESON.'!D45 -> 1.35 | E45: ='Orçamento N_DESON.'!E45 -> 0 | F45: ='Orçamento N_DESON.'!F45 -> 0 | G45: =IF(OR($F45="ANP",$F45="DAER",$F45="CONSULTORIA DNIT",$F45="PREGÃO ELETRÔNICO",$F45="DMLU",$F45="DMAE",$F45="EPTC"),VLOOKUP($E45,'Planilha Auxiliar'!$A$4:$L$1000,8,FALSE),IF($F45="INDEXADO",CONCATENATE(VLOOKUP($E45,'Index DESON.'!$A$9:$S$1305,3,FALSE)," (",VLOOKUP($E45,'Index DESON.'!$A$9:$S$1305,2,FALSE),")"),IF($F45="CCU",VLOOKUP($E45,'Resumo CCU DESON.'!$A$2:$D$202,2,FALSE),IF($F45="MERCADO",VLOOKUP($E45,'Planillha de cotações'!$B$7:$L$102,2,FALSE),IF($F45="PLEO",VLOOKUP($E45,'PLEO DESON.'!$A$4:$D$14999,2,FALSE),IF($F45="SICRO",VLOOKUP($E45,'SICRO DESON.'!$A$4:$D$50010,2,FALSE),IF($F45="SINAPI",IFERROR((VLOOKUP($E45,'comp. SINAPI DESON.'!$G$7:$L$50000,2,FALSE)),(VLOOKUP($E45,'ins. SINAPI DESON.'!$A$8:$E$15000,2,FALSE))),"-"))))))) -> - | H45: =IF(OR($F45="ANP",$F45="DAER",$F45="CONSULTORIA DNIT",$F45="PREGÃO ELETRÔNICO",$F45="DMLU",$F45="DMAE",$F45="EPTC"),VLOOKUP($E45,'Planilha Auxiliar'!$A$4:$L$1000,9,FALSE),IF($F45="INDEXADO",VLOOKUP($E45,'Index DESON.'!$A$9:$S$1305,4,FALSE),IF($F45="CCU",VLOOKUP($E45,'Resumo CCU DESON.'!$A$2:$D$202,3,FALSE),IF($F45="MERCADO",VLOOKUP('Modelo de Proposta'!$E45,'Planillha de cotações'!$B$7:$L$1143,7,FALSE),IF($F45="PLEO",VLOOKUP($E45,'PLEO DESON.'!$A$4:$D$14999,3,FALSE),IF($F45="SICRO",VLOOKUP($E45,'SICRO DESON.'!$A$4:$D$50010,3,FALSE),IF($F45="SINAPI",IFERROR((VLOOKUP($E45,'comp. SINAPI DESON.'!$G$7:$L$50000,3,FALSE)),(VLOOKUP($E45,'ins. SINAPI DESON.'!$A$8:$E$15000,3,FALSE))),"-"))))))) -> - | I45: ='Orçamento N_DESON.'!I45 -> 0 | M45: 0 | O45: 0 | P45: =IFERROR(TRUNC(TRUNC((J45*(1+$N45)),2)*$I45,2),0) -> 0 | Q45: 0 | R45: 0 | S45: 0
D46: ='Orçamento N_DESON.'!D46 -> 1.36 | E46: ='Orçamento N_DESON.'!E46 -> 0 | F46: ='Orçamento N_DESON.'!F46 -> 0 | G46: =IF(OR($F46="ANP",$F46="DAER",$F46="CONSULTORIA DNIT",$F46="PREGÃO ELETRÔNICO",$F46="DMLU",$F46="DMAE",$F46="EPTC"),VLOOKUP($E46,'Planilha Auxiliar'!$A$4:$L$1000,8,FALSE),IF($F46="INDEXADO",CONCATENATE(VLOOKUP($E46,'Index DESON.'!$A$9:$S$1305,3,FALSE)," (",VLOOKUP($E46,'Index DESON.'!$A$9:$S$1305,2,FALSE),")"),IF($F46="CCU",VLOOKUP($E46,'Resumo CCU DESON.'!$A$2:$D$202,2,FALSE),IF($F46="MERCADO",VLOOKUP($E46,'Planillha de cotações'!$B$7:$L$102,2,FALSE),IF($F46="PLEO",VLOOKUP($E46,'PLEO DESON.'!$A$4:$D$14999,2,FALSE),IF($F46="SICRO",VLOOKUP($E46,'SICRO DESON.'!$A$4:$D$50010,2,FALSE),IF($F46="SINAPI",IFERROR((VLOOKUP($E46,'comp. SINAPI DESON.'!$G$7:$L$50000,2,FALSE)),(VLOOKUP($E46,'ins. SINAPI DESON.'!$A$8:$E$15000,2,FALSE))),"-"))))))) -> - | H46: =IF(OR($F46="ANP",$F46="DAER",$F46="CONSULTORIA DNIT",$F46="PREGÃO ELETRÔNICO",$F46="DMLU",$F46="DMAE",$F46="EPTC"),VLOOKUP($E46,'Planilha Auxiliar'!$A$4:$L$1000,9,FALSE),IF($F46="INDEXADO",VLOOKUP($E46,'Index DESON.'!$A$9:$S$1305,4,FALSE),IF($F46="CCU",VLOOKUP($E46,'Resumo CCU DESON.'!$A$2:$D$202,3,FALSE),IF($F46="MERCADO",VLOOKUP('Modelo de Proposta'!$E46,'Planillha de cotações'!$B$7:$L$1143,7,FALSE),IF($F46="PLEO",VLOOKUP($E46,'PLEO DESON.'!$A$4:$D$14999,3,FALSE),IF($F46="SICRO",VLOOKUP($E46,'SICRO DESON.'!$A$4:$D$50010,3,FALSE),IF($F46="SINAPI",IFERROR((VLOOKUP($E46,'comp. SINAPI DESON.'!$G$7:$L$50000,3,FALSE)),(VLOOKUP($E46,'ins. SINAPI DESON.'!$A$8:$E$15000,3,FALSE))),"-"))))))) -> - | I46: ='Orçamento N_DESON.'!I46 -> 0 | M46: 0 | O46: 0 | P46: =IFERROR(TRUNC(TRUNC((J46*(1+$N46)),2)*$I46,2),0) -> 0 | Q46: 0 | R46: 0 | S46: 0
D47: ='Orçamento N_DESON.'!D47 -> 1.37 | E47: ='Orçamento N_DESON.'!E47 -> 0 | F47: ='Orçamento N_DESON.'!F47 -> 0 | G47: =IF(OR($F47="ANP",$F47="DAER",$F47="CONSULTORIA DNIT",$F47="PREGÃO ELETRÔNICO",$F47="DMLU",$F47="DMAE",$F47="EPTC"),VLOOKUP($E47,'Planilha Auxiliar'!$A$4:$L$1000,8,FALSE),IF($F47="INDEXADO",CONCATENATE(VLOOKUP($E47,'Index DESON.'!$A$9:$S$1305,3,FALSE)," (",VLOOKUP($E47,'Index DESON.'!$A$9:$S$1305,2,FALSE),")"),IF($F47="CCU",VLOOKUP($E47,'Resumo CCU DESON.'!$A$2:$D$202,2,FALSE),IF($F47="MERCADO",VLOOKUP($E47,'Planillha de cotações'!$B$7:$L$102,2,FALSE),IF($F47="PLEO",VLOOKUP($E47,'PLEO DESON.'!$A$4:$D$14999,2,FALSE),IF($F47="SICRO",VLOOKUP($E47,'SICRO DESON.'!$A$4:$D$50010,2,FALSE),IF($F47="SINAPI",IFERROR((VLOOKUP($E47,'comp. SINAPI DESON.'!$G$7:$L$50000,2,FALSE)),(VLOOKUP($E47,'ins. SINAPI DESON.'!$A$8:$E$15000,2,FALSE))),"-"))))))) -> - | H47: =IF(OR($F47="ANP",$F47="DAER",$F47="CONSULTORIA DNIT",$F47="PREGÃO ELETRÔNICO",$F47="DMLU",$F47="DMAE",$F47="EPTC"),VLOOKUP($E47,'Planilha Auxiliar'!$A$4:$L$1000,9,FALSE),IF($F47="INDEXADO",VLOOKUP($E47,'Index DESON.'!$A$9:$S$1305,4,FALSE),IF($F47="CCU",VLOOKUP($E47,'Resumo CCU DESON.'!$A$2:$D$202,3,FALSE),IF($F47="MERCADO",VLOOKUP('Modelo de Proposta'!$E47,'Planillha de cotações'!$B$7:$L$1143,7,FALSE),IF($F47="PLEO",VLOOKUP($E47,'PLEO DESON.'!$A$4:$D$14999,3,FALSE),IF($F47="SICRO",VLOOKUP($E47,'SICRO DESON.'!$A$4:$D$50010,3,FALSE),IF($F47="SINAPI",IFERROR((VLOOKUP($E47,'comp. SINAPI DESON.'!$G$7:$L$50000,3,FALSE)),(VLOOKUP($E47,'ins. SINAPI DESON.'!$A$8:$E$15000,3,FALSE))),"-"))))))) -> - | I47: ='Orçamento N_DESON.'!I47 -> 0 | M47: 0 | O47: 0 | P47: =IFERROR(TRUNC(TRUNC((J47*(1+$N47)),2)*$I47,2),0) -> 0 | Q47: 0 | R47: 0 | S47: 0
D48: ='Orçamento N_DESON.'!D48 -> 1.38 | E48: ='Orçamento N_DESON.'!E48 -> 0 | F48: ='Orçamento N_DESON.'!F48 -> 0 | G48: =IF(OR($F48="ANP",$F48="DAER",$F48="CONSULTORIA DNIT",$F48="PREGÃO ELETRÔNICO",$F48="DMLU",$F48="DMAE",$F48="EPTC"),VLOOKUP($E48,'Planilha Auxiliar'!$A$4:$L$1000,8,FALSE),IF($F48="INDEXADO",CONCATENATE(VLOOKUP($E48,'Index DESON.'!$A$9:$S$1305,3,FALSE)," (",VLOOKUP($E48,'Index DESON.'!$A$9:$S$1305,2,FALSE),")"),IF($F48="CCU",VLOOKUP($E48,'Resumo CCU DESON.'!$A$2:$D$202,2,FALSE),IF($F48="MERCADO",VLOOKUP($E48,'Planillha de cotações'!$B$7:$L$102,2,FALSE),IF($F48="PLEO",VLOOKUP($E48,'PLEO DESON.'!$A$4:$D$14999,2,FALSE),IF($F48="SICRO",VLOOKUP($E48,'SICRO DESON.'!$A$4:$D$50010,2,FALSE),IF($F48="SINAPI",IFERROR((VLOOKUP($E48,'comp. SINAPI DESON.'!$G$7:$L$50000,2,FALSE)),(VLOOKUP($E48,'ins. SINAPI DESON.'!$A$8:$E$15000,2,FALSE))),"-"))))))) -> - | H48: =IF(OR($F48="ANP",$F48="DAER",$F48="CONSULTORIA DNIT",$F48="PREGÃO ELETRÔNICO",$F48="DMLU",$F48="DMAE",$F48="EPTC"),VLOOKUP($E48,'Planilha Auxiliar'!$A$4:$L$1000,9,FALSE),IF($F48="INDEXADO",VLOOKUP($E48,'Index DESON.'!$A$9:$S$1305,4,FALSE),IF($F48="CCU",VLOOKUP($E48,'Resumo CCU DESON.'!$A$2:$D$202,3,FALSE),IF($F48="MERCADO",VLOOKUP('Modelo de Proposta'!$E48,'Planillha de cotações'!$B$7:$L$1143,7,FALSE),IF($F48="PLEO",VLOOKUP($E48,'PLEO DESON.'!$A$4:$D$14999,3,FALSE),IF($F48="SICRO",VLOOKUP($E48,'SICRO DESON.'!$A$4:$D$50010,3,FALSE),IF($F48="SINAPI",IFERROR((VLOOKUP($E48,'comp. SINAPI DESON.'!$G$7:$L$50000,3,FALSE)),(VLOOKUP($E48,'ins. SINAPI DESON.'!$A$8:$E$15000,3,FALSE))),"-"))))))) -> - | I48: ='Orçamento N_DESON.'!I48 -> 0 | M48: 0 | O48: 0 | P48: =IFERROR(TRUNC(TRUNC((J48*(1+$N48)),2)*$I48,2),0) -> 0 | Q48: 0 | R48: 0 | S48: 0
D49: ='Orçamento N_DESON.'!D49 -> 1.39 | E49: ='Orçamento N_DESON.'!E49 -> 0 | F49: ='Orçamento N_DESON.'!F49 -> 0 | G49: =IF(OR($F49="ANP",$F49="DAER",$F49="CONSULTORIA DNIT",$F49="PREGÃO ELETRÔNICO",$F49="DMLU",$F49="DMAE",$F49="EPTC"),VLOOKUP($E49,'Planilha Auxiliar'!$A$4:$L$1000,8,FALSE),IF($F49="INDEXADO",CONCATENATE(VLOOKUP($E49,'Index DESON.'!$A$9:$S$1305,3,FALSE)," (",VLOOKUP($E49,'Index DESON.'!$A$9:$S$1305,2,FALSE),")"),IF($F49="CCU",VLOOKUP($E49,'Resumo CCU DESON.'!$A$2:$D$202,2,FALSE),IF($F49="MERCADO",VLOOKUP($E49,'Planillha de cotações'!$B$7:$L$102,2,FALSE),IF($F49="PLEO",VLOOKUP($E49,'PLEO DESON.'!$A$4:$D$14999,2,FALSE),IF($F49="SICRO",VLOOKUP($E49,'SICRO DESON.'!$A$4:$D$50010,2,FALSE),IF($F49="SINAPI",IFERROR((VLOOKUP($E49,'comp. SINAPI DESON.'!$G$7:$L$50000,2,FALSE)),(VLOOKUP($E49,'ins. SINAPI DESON.'!$A$8:$E$15000,2,FALSE))),"-"))))))) -> - | H49: =IF(OR($F49="ANP",$F49="DAER",$F49="CONSULTORIA DNIT",$F49="PREGÃO ELETRÔNICO",$F49="DMLU",$F49="DMAE",$F49="EPTC"),VLOOKUP($E49,'Planilha Auxiliar'!$A$4:$L$1000,9,FALSE),IF($F49="INDEXADO",VLOOKUP($E49,'Index DESON.'!$A$9:$S$1305,4,FALSE),IF($F49="CCU",VLOOKUP($E49,'Resumo CCU DESON.'!$A$2:$D$202,3,FALSE),IF($F49="MERCADO",VLOOKUP('Modelo de Proposta'!$E49,'Planillha de cotações'!$B$7:$L$1143,7,FALSE),IF($F49="PLEO",VLOOKUP($E49,'PLEO DESON.'!$A$4:$D$14999,3,FALSE),IF($F49="SICRO",VLOOKUP($E49,'SICRO DESON.'!$A$4:$D$50010,3,FALSE),IF($F49="SINAPI",IFERROR((VLOOKUP($E49,'comp. SINAPI DESON.'!$G$7:$L$50000,3,FALSE)),(VLOOKUP($E49,'ins. SINAPI DESON.'!$A$8:$E$15000,3,FALSE))),"-"))))))) -> - | I49: ='Orçamento N_DESON.'!I49 -> 0 | M49: 0 | O49: 0 | P49: =IFERROR(TRUNC(TRUNC((J49*(1+$N49)),2)*$I49,2),0) -> 0 | Q49: 0 | R49: 0 | S49: 0
D50: ='Orçamento N_DESON.'!D50 -> 1.40 | E50: ='Orçamento N_DESON.'!E50 -> 0 | F50: ='Orçamento N_DESON.'!F50 -> 0 | G50: =IF(OR($F50="ANP",$F50="DAER",$F50="CONSULTORIA DNIT",$F50="PREGÃO ELETRÔNICO",$F50="DMLU",$F50="DMAE",$F50="EPTC"),VLOOKUP($E50,'Planilha Auxiliar'!$A$4:$L$1000,8,FALSE),IF($F50="INDEXADO",CONCATENATE(VLOOKUP($E50,'Index DESON.'!$A$9:$S$1305,3,FALSE)," (",VLOOKUP($E50,'Index DESON.'!$A$9:$S$1305,2,FALSE),")"),IF($F50="CCU",VLOOKUP($E50,'Resumo CCU DESON.'!$A$2:$D$202,2,FALSE),IF($F50="MERCADO",VLOOKUP($E50,'Planillha de cotações'!$B$7:$L$102,2,FALSE),IF($F50="PLEO",VLOOKUP($E50,'PLEO DESON.'!$A$4:$D$14999,2,FALSE),IF($F50="SICRO",VLOOKUP($E50,'SICRO DESON.'!$A$4:$D$50010,2,FALSE),IF($F50="SINAPI",IFERROR((VLOOKUP($E50,'comp. SINAPI DESON.'!$G$7:$L$50000,2,FALSE)),(VLOOKUP($E50,'ins. SINAPI DESON.'!$A$8:$E$15000,2,FALSE))),"-"))))))) -> - | H50: =IF(OR($F50="ANP",$F50="DAER",$F50="CONSULTORIA DNIT",$F50="PREGÃO ELETRÔNICO",$F50="DMLU",$F50="DMAE",$F50="EPTC"),VLOOKUP($E50,'Planilha Auxiliar'!$A$4:$L$1000,9,FALSE),IF($F50="INDEXADO",VLOOKUP($E50,'Index DESON.'!$A$9:$S$1305,4,FALSE),IF($F50="CCU",VLOOKUP($E50,'Resumo CCU DESON.'!$A$2:$D$202,3,FALSE),IF($F50="MERCADO",VLOOKUP('Modelo de Proposta'!$E50,'Planillha de cotações'!$B$7:$L$1143,7,FALSE),IF($F50="PLEO",VLOOKUP($E50,'PLEO DESON.'!$A$4:$D$14999,3,FALSE),IF($F50="SICRO",VLOOKUP($E50,'SICRO DESON.'!$A$4:$D$50010,3,FALSE),IF($F50="SINAPI",IFERROR((VLOOKUP($E50,'comp. SINAPI DESON.'!$G$7:$L$50000,3,FALSE)),(VLOOKUP($E50,'ins. SINAPI DESON.'!$A$8:$E$15000,3,FALSE))),"-"))))))) -> - | I50: ='Orçamento N_DESON.'!I50 -> 0 | M50: 0 | O50: 0 | P50: =IFERROR(TRUNC(TRUNC((J50*(1+$N50)),2)*$I50,2),0) -> 0 | Q50: 0 | R50: 0 | S50: 0
D51: ='Orçamento N_DESON.'!D51 -> 1.41 | E51: ='Orçamento N_DESON.'!E51 -> 0 | F51: ='Orçamento N_DESON.'!F51 -> 0 | G51: =IF(OR($F51="ANP",$F51="DAER",$F51="CONSULTORIA DNIT",$F51="PREGÃO ELETRÔNICO",$F51="DMLU",$F51="DMAE",$F51="EPTC"),VLOOKUP($E51,'Planilha Auxiliar'!$A$4:$L$1000,8,FALSE),IF($F51="INDEXADO",CONCATENATE(VLOOKUP($E51,'Index DESON.'!$A$9:$S$1305,3,FALSE)," (",VLOOKUP($E51,'Index DESON.'!$A$9:$S$1305,2,FALSE),")"),IF($F51="CCU",VLOOKUP($E51,'Resumo CCU DESON.'!$A$2:$D$202,2,FALSE),IF($F51="MERCADO",VLOOKUP($E51,'Planillha de cotações'!$B$7:$L$102,2,FALSE),IF($F51="PLEO",VLOOKUP($E51,'PLEO DESON.'!$A$4:$D$14999,2,FALSE),IF($F51="SICRO",VLOOKUP($E51,'SICRO DESON.'!$A$4:$D$50010,2,FALSE),IF($F51="SINAPI",IFERROR((VLOOKUP($E51,'comp. SINAPI DESON.'!$G$7:$L$50000,2,FALSE)),(VLOOKUP($E51,'ins. SINAPI DESON.'!$A$8:$E$15000,2,FALSE))),"-"))))))) -> - | H51: =IF(OR($F51="ANP",$F51="DAER",$F51="CONSULTORIA DNIT",$F51="PREGÃO ELETRÔNICO",$F51="DMLU",$F51="DMAE",$F51="EPTC"),VLOOKUP($E51,'Planilha Auxiliar'!$A$4:$L$1000,9,FALSE),IF($F51="INDEXADO",VLOOKUP($E51,'Index DESON.'!$A$9:$S$1305,4,FALSE),IF($F51="CCU",VLOOKUP($E51,'Resumo CCU DESON.'!$A$2:$D$202,3,FALSE),IF($F51="MERCADO",VLOOKUP('Modelo de Proposta'!$E51,'Planillha de cotações'!$B$7:$L$1143,7,FALSE),IF($F51="PLEO",VLOOKUP($E51,'PLEO DESON.'!$A$4:$D$14999,3,FALSE),IF($F51="SICRO",VLOOKUP($E51,'SICRO DESON.'!$A$4:$D$50010,3,FALSE),IF($F51="SINAPI",IFERROR((VLOOKUP($E51,'comp. SINAPI DESON.'!$G$7:$L$50000,3,FALSE)),(VLOOKUP($E51,'ins. SINAPI DESON.'!$A$8:$E$15000,3,FALSE))),"-"))))))) -> - | I51: ='Orçamento N_DESON.'!I51 -> 0 | M51: 0 | O51: 0 | P51: =IFERROR(TRUNC(TRUNC((J51*(1+$N51)),2)*$I51,2),0) -> 0 | Q51: 0 | R51: 0 | S51: 0
D52: ='Orçamento N_DESON.'!D52 -> 1.42 | E52: ='Orçamento N_DESON.'!E52 -> 0 | F52: ='Orçamento N_DESON.'!F52 -> 0 | G52: =IF(OR($F52="ANP",$F52="DAER",$F52="CONSULTORIA DNIT",$F52="PREGÃO ELETRÔNICO",$F52="DMLU",$F52="DMAE",$F52="EPTC"),VLOOKUP($E52,'Planilha Auxiliar'!$A$4:$L$1000,8,FALSE),IF($F52="INDEXADO",CONCATENATE(VLOOKUP($E52,'Index DESON.'!$A$9:$S$1305,3,FALSE)," (",VLOOKUP($E52,'Index DESON.'!$A$9:$S$1305,2,FALSE),")"),IF($F52="CCU",VLOOKUP($E52,'Resumo CCU DESON.'!$A$2:$D$202,2,FALSE),IF($F52="MERCADO",VLOOKUP($E52,'Planillha de cotações'!$B$7:$L$102,2,FALSE),IF($F52="PLEO",VLOOKUP($E52,'PLEO DESON.'!$A$4:$D$14999,2,FALSE),IF($F52="SICRO",VLOOKUP($E52,'SICRO DESON.'!$A$4:$D$50010,2,FALSE),IF($F52="SINAPI",IFERROR((VLOOKUP($E52,'comp. SINAPI DESON.'!$G$7:$L$50000,2,FALSE)),(VLOOKUP($E52,'ins. SINAPI DESON.'!$A$8:$E$15000,2,FALSE))),"-"))))))) -> - | H52: =IF(OR($F52="ANP",$F52="DAER",$F52="CONSULTORIA DNIT",$F52="PREGÃO ELETRÔNICO",$F52="DMLU",$F52="DMAE",$F52="EPTC"),VLOOKUP($E52,'Planilha Auxiliar'!$A$4:$L$1000,9,FALSE),IF($F52="INDEXADO",VLOOKUP($E52,'Index DESON.'!$A$9:$S$1305,4,FALSE),IF($F52="CCU",VLOOKUP($E52,'Resumo CCU DESON.'!$A$2:$D$202,3,FALSE),IF($F52="MERCADO",VLOOKUP('Modelo de Proposta'!$E52,'Planillha de cotações'!$B$7:$L$1143,7,FALSE),IF($F52="PLEO",VLOOKUP($E52,'PLEO DESON.'!$A$4:$D$14999,3,FALSE),IF($F52="SICRO",VLOOKUP($E52,'SICRO DESON.'!$A$4:$D$50010,3,FALSE),IF($F52="SINAPI",IFERROR((VLOOKUP($E52,'comp. SINAPI DESON.'!$G$7:$L$50000,3,FALSE)),(VLOOKUP($E52,'ins. SINAPI DESON.'!$A$8:$E$15000,3,FALSE))),"-"))))))) -> - | I52: ='Orçamento N_DESON.'!I52 -> 0 | M52: 0 | O52: 0 | P52: =IFERROR(TRUNC(TRUNC((J52*(1+$N52)),2)*$I52,2),0) -> 0 | Q52: 0 | R52: 0 | S52: 0
D53: ='Orçamento N_DESON.'!D53 -> 1.43 | E53: ='Orçamento N_DESON.'!E53 -> 0 | F53: ='Orçamento N_DESON.'!F53 -> 0 | G53: =IF(OR($F53="ANP",$F53="DAER",$F53="CONSULTORIA DNIT",$F53="PREGÃO ELETRÔNICO",$F53="DMLU",$F53="DMAE",$F53="EPTC"),VLOOKUP($E53,'Planilha Auxiliar'!$A$4:$L$1000,8,FALSE),IF($F53="INDEXADO",CONCATENATE(VLOOKUP($E53,'Index DESON.'!$A$9:$S$1305,3,FALSE)," (",VLOOKUP($E53,'Index DESON.'!$A$9:$S$1305,2,FALSE),")"),IF($F53="CCU",VLOOKUP($E53,'Resumo CCU DESON.'!$A$2:$D$202,2,FALSE),IF($F53="MERCADO",VLOOKUP($E53,'Planillha de cotações'!$B$7:$L$102,2,FALSE),IF($F53="PLEO",VLOOKUP($E53,'PLEO DESON.'!$A$4:$D$14999,2,FALSE),IF($F53="SICRO",VLOOKUP($E53,'SICRO DESON.'!$A$4:$D$50010,2,FALSE),IF($F53="SINAPI",IFERROR((VLOOKUP($E53,'comp. SINAPI DESON.'!$G$7:$L$50000,2,FALSE)),(VLOOKUP($E53,'ins. SINAPI DESON.'!$A$8:$E$15000,2,FALSE))),"-"))))))) -> - | H53: =IF(OR($F53="ANP",$F53="DAER",$F53="CONSULTORIA DNIT",$F53="PREGÃO ELETRÔNICO",$F53="DMLU",$F53="DMAE",$F53="EPTC"),VLOOKUP($E53,'Planilha Auxiliar'!$A$4:$L$1000,9,FALSE),IF($F53="INDEXADO",VLOOKUP($E53,'Index DESON.'!$A$9:$S$1305,4,FALSE),IF($F53="CCU",VLOOKUP($E53,'Resumo CCU DESON.'!$A$2:$D$202,3,FALSE),IF($F53="MERCADO",VLOOKUP('Modelo de Proposta'!$E53,'Planillha de cotações'!$B$7:$L$1143,7,FALSE),IF($F53="PLEO",VLOOKUP($E53,'PLEO DESON.'!$A$4:$D$14999,3,FALSE),IF($F53="SICRO",VLOOKUP($E53,'SICRO DESON.'!$A$4:$D$50010,3,FALSE),IF($F53="SINAPI",IFERROR((VLOOKUP($E53,'comp. SINAPI DESON.'!$G$7:$L$50000,3,FALSE)),(VLOOKUP($E53,'ins. SINAPI DESON.'!$A$8:$E$15000,3,FALSE))),"-"))))))) -> - | I53: ='Orçamento N_DESON.'!I53 -> 0 | M53: 0 | O53: 0 | P53: =IFERROR(TRUNC(TRUNC((J53*(1+$N53)),2)*$I53,2),0) -> 0 | Q53: 0 | R53: 0 | S53: 0
D54: ='Orçamento N_DESON.'!D54 -> 1.44 | E54: ='Orçamento N_DESON.'!E54 -> 0 | F54: ='Orçamento N_DESON.'!F54 -> 0 | G54: =IF(OR($F54="ANP",$F54="DAER",$F54="CONSULTORIA DNIT",$F54="PREGÃO ELETRÔNICO",$F54="DMLU",$F54="DMAE",$F54="EPTC"),VLOOKUP($E54,'Planilha Auxiliar'!$A$4:$L$1000,8,FALSE),IF($F54="INDEXADO",CONCATENATE(VLOOKUP($E54,'Index DESON.'!$A$9:$S$1305,3,FALSE)," (",VLOOKUP($E54,'Index DESON.'!$A$9:$S$1305,2,FALSE),")"),IF($F54="CCU",VLOOKUP($E54,'Resumo CCU DESON.'!$A$2:$D$202,2,FALSE),IF($F54="MERCADO",VLOOKUP($E54,'Planillha de cotações'!$B$7:$L$102,2,FALSE),IF($F54="PLEO",VLOOKUP($E54,'PLEO DESON.'!$A$4:$D$14999,2,FALSE),IF($F54="SICRO",VLOOKUP($E54,'SICRO DESON.'!$A$4:$D$50010,2,FALSE),IF($F54="SINAPI",IFERROR((VLOOKUP($E54,'comp. SINAPI DESON.'!$G$7:$L$50000,2,FALSE)),(VLOOKUP($E54,'ins. SINAPI DESON.'!$A$8:$E$15000,2,FALSE))),"-"))))))) -> - | H54: =IF(OR($F54="ANP",$F54="DAER",$F54="CONSULTORIA DNIT",$F54="PREGÃO ELETRÔNICO",$F54="DMLU",$F54="DMAE",$F54="EPTC"),VLOOKUP($E54,'Planilha Auxiliar'!$A$4:$L$1000,9,FALSE),IF($F54="INDEXADO",VLOOKUP($E54,'Index DESON.'!$A$9:$S$1305,4,FALSE),IF($F54="CCU",VLOOKUP($E54,'Resumo CCU DESON.'!$A$2:$D$202,3,FALSE),IF($F54="MERCADO",VLOOKUP('Modelo de Proposta'!$E54,'Planillha de cotações'!$B$7:$L$1143,7,FALSE),IF($F54="PLEO",VLOOKUP($E54,'PLEO DESON.'!$A$4:$D$14999,3,FALSE),IF($F54="SICRO",VLOOKUP($E54,'SICRO DESON.'!$A$4:$D$50010,3,FALSE),IF($F54="SINAPI",IFERROR((VLOOKUP($E54,'comp. SINAPI DESON.'!$G$7:$L$50000,3,FALSE)),(VLOOKUP($E54,'ins. SINAPI DESON.'!$A$8:$E$15000,3,FALSE))),"-"))))))) -> - | I54: ='Orçamento N_DESON.'!I54 -> 0 | M54: 0 | O54: 0 | P54: =IFERROR(TRUNC(TRUNC((J54*(1+$N54)),2)*$I54,2),0) -> 0 | Q54: 0 | R54: 0 | S54: 0
D55: ='Orçamento N_DESON.'!D55 -> 1.45 | E55: ='Orçamento N_DESON.'!E55 -> 0 | F55: ='Orçamento N_DESON.'!F55 -> 0 | G55: =IF(OR($F55="ANP",$F55="DAER",$F55="CONSULTORIA DNIT",$F55="PREGÃO ELETRÔNICO",$F55="DMLU",$F55="DMAE",$F55="EPTC"),VLOOKUP($E55,'Planilha Auxiliar'!$A$4:$L$1000,8,FALSE),IF($F55="INDEXADO",CONCATENATE(VLOOKUP($E55,'Index DESON.'!$A$9:$S$1305,3,FALSE)," (",VLOOKUP($E55,'Index DESON.'!$A$9:$S$1305,2,FALSE),")"),IF($F55="CCU",VLOOKUP($E55,'Resumo CCU DESON.'!$A$2:$D$202,2,FALSE),IF($F55="MERCADO",VLOOKUP($E55,'Planillha de cotações'!$B$7:$L$102,2,FALSE),IF($F55="PLEO",VLOOKUP($E55,'PLEO DESON.'!$A$4:$D$14999,2,FALSE),IF($F55="SICRO",VLOOKUP($E55,'SICRO DESON.'!$A$4:$D$50010,2,FALSE),IF($F55="SINAPI",IFERROR((VLOOKUP($E55,'comp. SINAPI DESON.'!$G$7:$L$50000,2,FALSE)),(VLOOKUP($E55,'ins. SINAPI DESON.'!$A$8:$E$15000,2,FALSE))),"-"))))))) -> - | H55: =IF(OR($F55="ANP",$F55="DAER",$F55="CONSULTORIA DNIT",$F55="PREGÃO ELETRÔNICO",$F55="DMLU",$F55="DMAE",$F55="EPTC"),VLOOKUP($E55,'Planilha Auxiliar'!$A$4:$L$1000,9,FALSE),IF($F55="INDEXADO",VLOOKUP($E55,'Index DESON.'!$A$9:$S$1305,4,FALSE),IF($F55="CCU",VLOOKUP($E55,'Resumo CCU DESON.'!$A$2:$D$202,3,FALSE),IF($F55="MERCADO",VLOOKUP('Modelo de Proposta'!$E55,'Planillha de cotações'!$B$7:$L$1143,7,FALSE),IF($F55="PLEO",VLOOKUP($E55,'PLEO DESON.'!$A$4:$D$14999,3,FALSE),IF($F55="SICRO",VLOOKUP($E55,'SICRO DESON.'!$A$4:$D$50010,3,FALSE),IF($F55="SINAPI",IFERROR((VLOOKUP($E55,'comp. SINAPI DESON.'!$G$7:$L$50000,3,FALSE)),(VLOOKUP($E55,'ins. SINAPI DESON.'!$A$8:$E$15000,3,FALSE))),"-"))))))) -> - | I55: ='Orçamento N_DESON.'!I55 -> 0 | M55: 0 | O55: 0 | P55: =IFERROR(TRUNC(TRUNC((J55*(1+$N55)),2)*$I55,2),0) -> 0 | Q55: 0 | R55: 0 | S55: 0
D56: ='Orçamento N_DESON.'!D56 -> 1.46 | E56: ='Orçamento N_DESON.'!E56 -> 0 | F56: ='Orçamento N_DESON.'!F56 -> 0 | G56: =IF(OR($F56="ANP",$F56="DAER",$F56="CONSULTORIA DNIT",$F56="PREGÃO ELETRÔNICO",$F56="DMLU",$F56="DMAE",$F56="EPTC"),VLOOKUP($E56,'Planilha Auxiliar'!$A$4:$L$1000,8,FALSE),IF($F56="INDEXADO",CONCATENATE(VLOOKUP($E56,'Index DESON.'!$A$9:$S$1305,3,FALSE)," (",VLOOKUP($E56,'Index DESON.'!$A$9:$S$1305,2,FALSE),")"),IF($F56="CCU",VLOOKUP($E56,'Resumo CCU DESON.'!$A$2:$D$202,2,FALSE),IF($F56="MERCADO",VLOOKUP($E56,'Planillha de cotações'!$B$7:$L$102,2,FALSE),IF($F56="PLEO",VLOOKUP($E56,'PLEO DESON.'!$A$4:$D$14999,2,FALSE),IF($F56="SICRO",VLOOKUP($E56,'SICRO DESON.'!$A$4:$D$50010,2,FALSE),IF($F56="SINAPI",IFERROR((VLOOKUP($E56,'comp. SINAPI DESON.'!$G$7:$L$50000,2,FALSE)),(VLOOKUP($E56,'ins. SINAPI DESON.'!$A$8:$E$15000,2,FALSE))),"-"))))))) -> - | H56: =IF(OR($F56="ANP",$F56="DAER",$F56="CONSULTORIA DNIT",$F56="PREGÃO ELETRÔNICO",$F56="DMLU",$F56="DMAE",$F56="EPTC"),VLOOKUP($E56,'Planilha Auxiliar'!$A$4:$L$1000,9,FALSE),IF($F56="INDEXADO",VLOOKUP($E56,'Index DESON.'!$A$9:$S$1305,4,FALSE),IF($F56="CCU",VLOOKUP($E56,'Resumo CCU DESON.'!$A$2:$D$202,3,FALSE),IF($F56="MERCADO",VLOOKUP('Modelo de Proposta'!$E56,'Planillha de cotações'!$B$7:$L$1143,7,FALSE),IF($F56="PLEO",VLOOKUP($E56,'PLEO DESON.'!$A$4:$D$14999,3,FALSE),IF($F56="SICRO",VLOOKUP($E56,'SICRO DESON.'!$A$4:$D$50010,3,FALSE),IF($F56="SINAPI",IFERROR((VLOOKUP($E56,'comp. SINAPI DESON.'!$G$7:$L$50000,3,FALSE)),(VLOOKUP($E56,'ins. SINAPI DESON.'!$A$8:$E$15000,3,FALSE))),"-"))))))) -> - | I56: ='Orçamento N_DESON.'!I56 -> 0 | M56: 0 | O56: 0 | P56: =IFERROR(TRUNC(TRUNC((J56*(1+$N56)),2)*$I56,2),0) -> 0 | Q56: 0 | R56: 0 | S56: 0
D57: ='Orçamento N_DESON.'!D57 -> 1.47 | E57: ='Orçamento N_DESON.'!E57 -> 0 | F57: ='Orçamento N_DESON.'!F57 -> 0 | G57: =IF(OR($F57="ANP",$F57="DAER",$F57="CONSULTORIA DNIT",$F57="PREGÃO ELETRÔNICO",$F57="DMLU",$F57="DMAE",$F57="EPTC"),VLOOKUP($E57,'Planilha Auxiliar'!$A$4:$L$1000,8,FALSE),IF($F57="INDEXADO",CONCATENATE(VLOOKUP($E57,'Index DESON.'!$A$9:$S$1305,3,FALSE)," (",VLOOKUP($E57,'Index DESON.'!$A$9:$S$1305,2,FALSE),")"),IF($F57="CCU",VLOOKUP($E57,'Resumo CCU DESON.'!$A$2:$D$202,2,FALSE),IF($F57="MERCADO",VLOOKUP($E57,'Planillha de cotações'!$B$7:$L$102,2,FALSE),IF($F57="PLEO",VLOOKUP($E57,'PLEO DESON.'!$A$4:$D$14999,2,FALSE),IF($F57="SICRO",VLOOKUP($E57,'SICRO DESON.'!$A$4:$D$50010,2,FALSE),IF($F57="SINAPI",IFERROR((VLOOKUP($E57,'comp. SINAPI DESON.'!$G$7:$L$50000,2,FALSE)),(VLOOKUP($E57,'ins. SINAPI DESON.'!$A$8:$E$15000,2,FALSE))),"-"))))))) -> - | H57: =IF(OR($F57="ANP",$F57="DAER",$F57="CONSULTORIA DNIT",$F57="PREGÃO ELETRÔNICO",$F57="DMLU",$F57="DMAE",$F57="EPTC"),VLOOKUP($E57,'Planilha Auxiliar'!$A$4:$L$1000,9,FALSE),IF($F57="INDEXADO",VLOOKUP($E57,'Index DESON.'!$A$9:$S$1305,4,FALSE),IF($F57="CCU",VLOOKUP($E57,'Resumo CCU DESON.'!$A$2:$D$202,3,FALSE),IF($F57="MERCADO",VLOOKUP('Modelo de Proposta'!$E57,'Planillha de cotações'!$B$7:$L$1143,7,FALSE),IF($F57="PLEO",VLOOKUP($E57,'PLEO DESON.'!$A$4:$D$14999,3,FALSE),IF($F57="SICRO",VLOOKUP($E57,'SICRO DESON.'!$A$4:$D$50010,3,FALSE),IF($F57="SINAPI",IFERROR((VLOOKUP($E57,'comp. SINAPI DESON.'!$G$7:$L$50000,3,FALSE)),(VLOOKUP($E57,'ins. SINAPI DESON.'!$A$8:$E$15000,3,FALSE))),"-"))))))) -> - | I57: ='Orçamento N_DESON.'!I57 -> 0 | M57: 0 | O57: 0 | P57: =IFERROR(TRUNC(TRUNC((J57*(1+$N57)),2)*$I57,2),0) -> 0 | Q57: 0 | R57: 0 | S57: 0
D58: ='Orçamento N_DESON.'!D58 -> 1.48 | E58: ='Orçamento N_DESON.'!E58 -> 0 | F58: ='Orçamento N_DESON.'!F58 -> 0 | G58: =IF(OR($F58="ANP",$F58="DAER",$F58="CONSULTORIA DNIT",$F58="PREGÃO ELETRÔNICO",$F58="DMLU",$F58="DMAE",$F58="EPTC"),VLOOKUP($E58,'Planilha Auxiliar'!$A$4:$L$1000,8,FALSE),IF($F58="INDEXADO",CONCATENATE(VLOOKUP($E58,'Index DESON.'!$A$9:$S$1305,3,FALSE)," (",VLOOKUP($E58,'Index DESON.'!$A$9:$S$1305,2,FALSE),")"),IF($F58="CCU",VLOOKUP($E58,'Resumo CCU DESON.'!$A$2:$D$202,2,FALSE),IF($F58="MERCADO",VLOOKUP($E58,'Planillha de cotações'!$B$7:$L$102,2,FALSE),IF($F58="PLEO",VLOOKUP($E58,'PLEO DESON.'!$A$4:$D$14999,2,FALSE),IF($F58="SICRO",VLOOKUP($E58,'SICRO DESON.'!$A$4:$D$50010,2,FALSE),IF($F58="SINAPI",IFERROR((VLOOKUP($E58,'comp. SINAPI DESON.'!$G$7:$L$50000,2,FALSE)),(VLOOKUP($E58,'ins. SINAPI DESON.'!$A$8:$E$15000,2,FALSE))),"-"))))))) -> - | H58: =IF(OR($F58="ANP",$F58="DAER",$F58="CONSULTORIA DNIT",$F58="PREGÃO ELETRÔNICO",$F58="DMLU",$F58="DMAE",$F58="EPTC"),VLOOKUP($E58,'Planilha Auxiliar'!$A$4:$L$1000,9,FALSE),IF($F58="INDEXADO",VLOOKUP($E58,'Index DESON.'!$A$9:$S$1305,4,FALSE),IF($F58="CCU",VLOOKUP($E58,'Resumo CCU DESON.'!$A$2:$D$202,3,FALSE),IF($F58="MERCADO",VLOOKUP('Modelo de Proposta'!$E58,'Planillha de cotações'!$B$7:$L$1143,7,FALSE),IF($F58="PLEO",VLOOKUP($E58,'PLEO DESON.'!$A$4:$D$14999,3,FALSE),IF($F58="SICRO",VLOOKUP($E58,'SICRO DESON.'!$A$4:$D$50010,3,FALSE),IF($F58="SINAPI",IFERROR((VLOOKUP($E58,'comp. SINAPI DESON.'!$G$7:$L$50000,3,FALSE)),(VLOOKUP($E58,'ins. SINAPI DESON.'!$A$8:$E$15000,3,FALSE))),"-"))))))) -> - | I58: ='Orçamento N_DESON.'!I58 -> 0 | M58: 0 | O58: 0 | P58: =IFERROR(TRUNC(TRUNC((J58*(1+$N58)),2)*$I58,2),0) -> 0 | Q58: 0 | R58: 0 | S58: 0
D59: ='Orçamento N_DESON.'!D59 -> 1.49 | E59: ='Orçamento N_DESON.'!E59 -> 0 | F59: ='Orçamento N_DESON.'!F59 -> 0 | G59: =IF(OR($F59="ANP",$F59="DAER",$F59="CONSULTORIA DNIT",$F59="PREGÃO ELETRÔNICO",$F59="DMLU",$F59="DMAE",$F59="EPTC"),VLOOKUP($E59,'Planilha Auxiliar'!$A$4:$L$1000,8,FALSE),IF($F59="INDEXADO",CONCATENATE(VLOOKUP($E59,'Index DESON.'!$A$9:$S$1305,3,FALSE)," (",VLOOKUP($E59,'Index DESON.'!$A$9:$S$1305,2,FALSE),")"),IF($F59="CCU",VLOOKUP($E59,'Resumo CCU DESON.'!$A$2:$D$202,2,FALSE),IF($F59="MERCADO",VLOOKUP($E59,'Planillha de cotações'!$B$7:$L$102,2,FALSE),IF($F59="PLEO",VLOOKUP($E59,'PLEO DESON.'!$A$4:$D$14999,2,FALSE),IF($F59="SICRO",VLOOKUP($E59,'SICRO DESON.'!$A$4:$D$50010,2,FALSE),IF($F59="SINAPI",IFERROR((VLOOKUP($E59,'comp. SINAPI DESON.'!$G$7:$L$50000,2,FALSE)),(VLOOKUP($E59,'ins. SINAPI DESON.'!$A$8:$E$15000,2,FALSE))),"-"))))))) -> - | H59: =IF(OR($F59="ANP",$F59="DAER",$F59="CONSULTORIA DNIT",$F59="PREGÃO ELETRÔNICO",$F59="DMLU",$F59="DMAE",$F59="EPTC"),VLOOKUP($E59,'Planilha Auxiliar'!$A$4:$L$1000,9,FALSE),IF($F59="INDEXADO",VLOOKUP($E59,'Index DESON.'!$A$9:$S$1305,4,FALSE),IF($F59="CCU",VLOOKUP($E59,'Resumo CCU DESON.'!$A$2:$D$202,3,FALSE),IF($F59="MERCADO",VLOOKUP('Modelo de Proposta'!$E59,'Planillha de cotações'!$B$7:$L$1143,7,FALSE),IF($F59="PLEO",VLOOKUP($E59,'PLEO DESON.'!$A$4:$D$14999,3,FALSE),IF($F59="SICRO",VLOOKUP($E59,'SICRO DESON.'!$A$4:$D$50010,3,FALSE),IF($F59="SINAPI",IFERROR((VLOOKUP($E59,'comp. SINAPI DESON.'!$G$7:$L$50000,3,FALSE)),(VLOOKUP($E59,'ins. SINAPI DESON.'!$A$8:$E$15000,3,FALSE))),"-"))))))) -> - | I59: ='Orçamento N_DESON.'!I59 -> 0 | M59: 0 | O59: 0 | P59: =IFERROR(TRUNC(TRUNC((J59*(1+$N59)),2)*$I59,2),0) -> 0 | Q59: 0 | R59: 0 | S59: 0
D60: ='Orçamento N_DESON.'!D60 -> 1.50 | E60: ='Orçamento N_DESON.'!E60 -> 0 | F60: ='Orçamento N_DESON.'!F60 -> 0 | G60: =IF(OR($F60="ANP",$F60="DAER",$F60="CONSULTORIA DNIT",$F60="PREGÃO ELETRÔNICO",$F60="DMLU",$F60="DMAE",$F60="EPTC"),VLOOKUP($E60,'Planilha Auxiliar'!$A$4:$L$1000,8,FALSE),IF($F60="INDEXADO",CONCATENATE(VLOOKUP($E60,'Index DESON.'!$A$9:$S$1305,3,FALSE)," (",VLOOKUP($E60,'Index DESON.'!$A$9:$S$1305,2,FALSE),")"),IF($F60="CCU",VLOOKUP($E60,'Resumo CCU DESON.'!$A$2:$D$202,2,FALSE),IF($F60="MERCADO",VLOOKUP($E60,'Planillha de cotações'!$B$7:$L$102,2,FALSE),IF($F60="PLEO",VLOOKUP($E60,'PLEO DESON.'!$A$4:$D$14999,2,FALSE),IF($F60="SICRO",VLOOKUP($E60,'SICRO DESON.'!$A$4:$D$50010,2,FALSE),IF($F60="SINAPI",IFERROR((VLOOKUP($E60,'comp. SINAPI DESON.'!$G$7:$L$50000,2,FALSE)),(VLOOKUP($E60,'ins. SINAPI DESON.'!$A$8:$E$15000,2,FALSE))),"-"))))))) -> - | H60: =IF(OR($F60="ANP",$F60="DAER",$F60="CONSULTORIA DNIT",$F60="PREGÃO ELETRÔNICO",$F60="DMLU",$F60="DMAE",$F60="EPTC"),VLOOKUP($E60,'Planilha Auxiliar'!$A$4:$L$1000,9,FALSE),IF($F60="INDEXADO",VLOOKUP($E60,'Index DESON.'!$A$9:$S$1305,4,FALSE),IF($F60="CCU",VLOOKUP($E60,'Resumo CCU DESON.'!$A$2:$D$202,3,FALSE),IF($F60="MERCADO",VLOOKUP('Modelo de Proposta'!$E60,'Planillha de cotações'!$B$7:$L$1143,7,FALSE),IF($F60="PLEO",VLOOKUP($E60,'PLEO DESON.'!$A$4:$D$14999,3,FALSE),IF($F60="SICRO",VLOOKUP($E60,'SICRO DESON.'!$A$4:$D$50010,3,FALSE),IF($F60="SINAPI",IFERROR((VLOOKUP($E60,'comp. SINAPI DESON.'!$G$7:$L$50000,3,FALSE)),(VLOOKUP($E60,'ins. SINAPI DESON.'!$A$8:$E$15000,3,FALSE))),"-"))))))) -> - | I60: ='Orçamento N_DESON.'!I60 -> 0 | M60: 0 | O60: 0 | P60: =IFERROR(TRUNC(TRUNC((J60*(1+$N60)),2)*$I60,2),0) -> 0 | Q60: 0 | R60: 0 | S60: 0
O62: =CONCATENATE("Subtotal ",G10) -> Subtotal SERVIÇOS PRELIMINARES | P62: =SUM(P11:P61) -> 0 | Q62: 0 | R62: 0 | S62: 0 | U62: 1
D64: ='Orçamento N_DESON.'!D64 -> 2 | G64: ='Orçamento N_DESON.'!G64 -> DESPESAS LEGAIS, LICENÇAS, TAXAS, CONTRIBUIÇÕES | S64: =S116 -> 0
B65: =S65/$S$1150 ->  | D65: ='Orçamento N_DESON.'!D65 -> 2.1 | E65: ='Orçamento N_DESON.'!E65 -> CCU-03 | F65: ='Orçamento N_DESON.'!F65 -> CCU | G65: ='Orçamento N_DESON.'!G65 -> ART (ANOTAÇÃO DE RESPONSABILIDADE TÉCNICA PELA EXECUÇÃO TOTAL DO OBJETO) | H65: ='Orçamento N_DESON.'!H65 -> UN | I65: ='Orçamento N_DESON.'!I65 -> 1 | M65: =SUM(J65:L65) -> 0 | O65: =IF(N65="-",M65,TRUNC(M65*(1+N65),2)) -> 0 | P65: =IFERROR(TRUNC(TRUNC((J65*(1+$N65)),2)*$I65,2),0) -> 0 | Q65: 0 | R65: =S65-Q65-P65 -> 0 | S65: =IFERROR(TRUNC(O65*I65,2),0) -> 0
D66: ='Orçamento N_DESON.'!D66 -> 2.2 | E66: ='Orçamento N_DESON.'!E66 -> 0 | F66: ='Orçamento N_DESON.'!F66 -> 0 | G66: ='Orçamento N_DESON.'!G66 -> - | H66: ='Orçamento N_DESON.'!H66 -> - | I66: ='Orçamento N_DESON.'!I66 -> 0 | M66: 0 | O66: 0 | P66: =IFERROR(TRUNC(TRUNC((J66*(1+$N66)),2)*$I66,2),0) -> 0 | Q66: 0 | R66: 0 | S66: 0
D67: ='Orçamento N_DESON.'!D67 -> 2.3 | E67: ='Orçamento N_DESON.'!E67 -> 0 | F67: ='Orçamento N_DESON.'!F67 -> 0 | G67: ='Orçamento N_DESON.'!G67 -> - | H67: ='Orçamento N_DESON.'!H67 -> - | I67: ='Orçamento N_DESON.'!I67 -> 0 | M67: 0 | O67: 0 | P67: =IFERROR(TRUNC(TRUNC((J67*(1+$N67)),2)*$I67,2),0) -> 0 | Q67: 0 | R67: 0 | S67: 0
D68: ='Orçamento N_DESON.'!D68 -> 2.4 | E68: ='Orçamento N_DESON.'!E68 -> 0 | F68: ='Orçamento N_DESON.'!F68 -> 0 | G68: ='Orçamento N_DESON.'!G68 -> - | H68: ='Orçamento N_DESON.'!H68 -> - | I68: ='Orçamento N_DESON.'!I68 -> 0 | M68: 0 | O68: 0 | P68: =IFERROR(TRUNC(TRUNC((J68*(1+$N68)),2)*$I68,2),0) -> 0 | Q68: 0 | R68: 0 | S68: 0
D69: ='Orçamento N_DESON.'!D69 -> 2.5 | E69: ='Orçamento N_DESON.'!E69 -> 0 | F69: ='Orçamento N_DESON.'!F69 -> 0 | G69: ='Orçamento N_DESON.'!G69 -> - | H69: ='Orçamento N_DESON.'!H69 -> - | I69: ='Orçamento N_DESON.'!I69 -> 0 | M69: 0 | O69: 0 | P69: =IFERROR(TRUNC(TRUNC((J69*(1+$N69)),2)*$I69,2),0) -> 0 | Q69: 0 | R69: 0 | S69: 0
D70: ='Orçamento N_DESON.'!D70 -> 2.6 | E70: ='Orçamento N_DESON.'!E70 -> 0 | F70: ='Orçamento N_DESON.'!F70 -> 0 | G70: ='Orçamento N_DESON.'!G70 -> - | H70: ='Orçamento N_DESON.'!H70 -> - | I70: ='Orçamento N_DESON.'!I70 -> 0 | M70: 0 | O70: 0 | P70: =IFERROR(TRUNC(TRUNC((J70*(1+$N70)),2)*$I70,2),0) -> 0 | Q70: 0 | R70: 0 | S70: 0
D71: ='Orçamento N_DESON.'!D71 -> 2.7 | E71: ='Orçamento N_DESON.'!E71 -> 0 | F71: ='Orçamento N_DESON.'!F71 -> 0 | G71: ='Orçamento N_DESON.'!G71 -> - | H71: ='Orçamento N_DESON.'!H71 -> - | I71: ='Orçamento N_DESON.'!I71 -> 0 | M71: 0 | O71: 0 | P71: =IFERROR(TRUNC(TRUNC((J71*(1+$N71)),2)*$I71,2),0) -> 0 | Q71: 0 | R71: 0 | S71: 0
D72: ='Orçamento N_DESON.'!D72 -> 2.8 | E72: ='Orçamento N_DESON.'!E72 -> 0 | F72: ='Orçamento N_DESON.'!F72 -> 0 | G72: ='Orçamento N_DESON.'!G72 -> - | H72: ='Orçamento N_DESON.'!H72 -> - | I72: ='Orçamento N_DESON.'!I72 -> 0 | M72: 0 | O72: 0 | P72: =IFERROR(TRUNC(TRUNC((J72*(1+$N72)),2)*$I72,2),0) -> 0 | Q72: 0 | R72: 0 | S72: 0
D73: ='Orçamento N_DESON.'!D73 -> 2.9 | E73: ='Orçamento N_DESON.'!E73 -> 0 | F73: ='Orçamento N_DESON.'!F73 -> 0 | G73: ='Orçamento N_DESON.'!G73 -> - | H73: ='Orçamento N_DESON.'!H73 -> - | I73: ='Orçamento N_DESON.'!I73 -> 0 | M73: 0 | O73: 0 | P73: =IFERROR(TRUNC(TRUNC((J73*(1+$N73)),2)*$I73,2),0) -> 0 | Q73: 0 | R73: 0 | S73: 0
D74: ='Orçamento N_DESON.'!D74 -> 2.10 | E74: ='Orçamento N_DESON.'!E74 -> 0 | F74: ='Orçamento N_DESON.'!F74 -> 0 | G74: ='Orçamento N_DESON.'!G74 -> - | H74: ='Orçamento N_DESON.'!H74 -> - | I74: ='Orçamento N_DESON.'!I74 -> 0 | M74: 0 | O74: 0 | P74: =IFERROR(TRUNC(TRUNC((J74*(1+$N74)),2)*$I74,2),0) -> 0 | Q74: 0 | R74: 0 | S74: 0
D75: ='Orçamento N_DESON.'!D75 -> 2.11 | E75: ='Orçamento N_DESON.'!E75 -> 0 | F75: ='Orçamento N_DESON.'!F75 -> 0 | G75: ='Orçamento N_DESON.'!G75 -> - | H75: ='Orçamento N_DESON.'!H75 -> - | I75: ='Orçamento N_DESON.'!I75 -> 0 | M75: 0 | O75: 0 | P75: =IFERROR(TRUNC(TRUNC((J75*(1+$N75)),2)*$I75,2),0) -> 0 | Q75: 0 | R75: 0 | S75: 0
D76: ='Orçamento N_DESON.'!D76 -> 2.12 | E76: ='Orçamento N_DESON.'!E76 -> 0 | F76: ='Orçamento N_DESON.'!F76 -> 0 | G76: ='Orçamento N_DESON.'!G76 -> - | H76: ='Orçamento N_DESON.'!H76 -> - | I76: ='Orçamento N_DESON.'!I76 -> 0 | M76: 0 | O76: 0 | P76: =IFERROR(TRUNC(TRUNC((J76*(1+$N76)),2)*$I76,2),0) -> 0 | Q76: 0 | R76: 0 | S76: 0
D77: ='Orçamento N_DESON.'!D77 -> 2.13 | E77: ='Orçamento N_DESON.'!E77 -> 0 | F77: ='Orçamento N_DESON.'!F77 -> 0 | G77: ='Orçamento N_DESON.'!G77 -> - | H77: ='Orçamento N_DESON.'!H77 -> - | I77: ='Orçamento N_DESON.'!I77 -> 0 | M77: 0 | O77: 0 | P77: =IFERROR(TRUNC(TRUNC((J77*(1+$N77)),2)*$I77,2),0) -> 0 | Q77: 0 | R77: 0 | S77: 0
D78: ='Orçamento N_DESON.'!D78 -> 2.14 | E78: ='Orçamento N_DESON.'!E78 -> 0 | F78: ='Orçamento N_DESON.'!F78 -> 0 | G78: ='Orçamento N_DESON.'!G78 -> - | H78: ='Orçamento N_DESON.'!H78 -> - | I78: ='Orçamento N_DESON.'!I78 -> 0 | M78: 0 | O78: 0 | P78: =IFERROR(TRUNC(TRUNC((J78*(1+$N78)),2)*$I78,2),0) -> 0 | Q78: 0 | R78: 0 | S78: 0
D79: ='Orçamento N_DESON.'!D79 -> 2.15 | E79: ='Orçamento N_DESON.'!E79 -> 0 | F79: ='Orçamento N_DESON.'!F79 -> 0 | G79: ='Orçamento N_DESON.'!G79 -> - | H79: ='Orçamento N_DESON.'!H79 -> - | I79: ='Orçamento N_DESON.'!I79 -> 0 | M79: 0 | O79: 0 | P79: =IFERROR(TRUNC(TRUNC((J79*(1+$N79)),2)*$I79,2),0) -> 0 | Q79: 0 | R79: 0 | S79: 0
D80: ='Orçamento N_DESON.'!D80 -> 2.16 | E80: ='Orçamento N_DESON.'!E80 -> 0 | F80: ='Orçamento N_DESON.'!F80 -> 0 | G80: ='Orçamento N_DESON.'!G80 -> - | H80: ='Orçamento N_DESON.'!H80 -> - | I80: ='Orçamento N_DESON.'!I80 -> 0 | M80: 0 | O80: 0 | P80: =IFERROR(TRUNC(TRUNC((J80*(1+$N80)),2)*$I80,2),0) -> 0 | Q80: 0 | R80: 0 | S80: 0
D81: ='Orçamento N_DESON.'!D81 -> 2.17 | E81: ='Orçamento N_DESON.'!E81 -> 0 | F81: ='Orçamento N_DESON.'!F81 -> 0 | G81: ='Orçamento N_DESON.'!G81 -> - | H81: ='Orçamento N_DESON.'!H81 -> - | I81: ='Orçamento N_DESON.'!I81 -> 0 | M81: 0 | O81: 0 | P81: =IFERROR(TRUNC(TRUNC((J81*(1+$N81)),2)*$I81,2),0) -> 0 | Q81: 0 | R81: 0 | S81: 0
D82: ='Orçamento N_DESON.'!D82 -> 2.18 | E82: ='Orçamento N_DESON.'!E82 -> 0 | F82: ='Orçamento N_DESON.'!F82 -> 0 | G82: ='Orçamento N_DESON.'!G82 -> - | H82: ='Orçamento N_DESON.'!H82 -> - | I82: ='Orçamento N_DESON.'!I82 -> 0 | M82: 0 | O82: 0 | P82: =IFERROR(TRUNC(TRUNC((J82*(1+$N82)),2)*$I82,2),0) -> 0 | Q82: 0 | R82: 0 | S82: 0
D83: ='Orçamento N_DESON.'!D83 -> 2.19 | E83: ='Orçamento N_DESON.'!E83 -> 0 | F83: ='Orçamento N_DESON.'!F83 -> 0 | G83: ='Orçamento N_DESON.'!G83 -> - | H83: ='Orçamento N_DESON.'!H83 -> - | I83: ='Orçamento N_DESON.'!I83 -> 0 | M83: 0 | O83: 0 | P83: =IFERROR(TRUNC(TRUNC((J83*(1+$N83)),2)*$I83,2),0) -> 0 | Q83: 0 | R83: 0 | S83: 0
D84: ='Orçamento N_DESON.'!D84 -> 2.20 | E84: ='Orçamento N_DESON.'!E84 -> 0 | F84: ='Orçamento N_DESON.'!F84 -> 0 | G84: ='Orçamento N_DESON.'!G84 -> - | H84: ='Orçamento N_DESON.'!H84 -> - | I84: ='Orçamento N_DESON.'!I84 -> 0 | M84: 0 | O84: 0 | P84: =IFERROR(TRUNC(TRUNC((J84*(1+$N84)),2)*$I84,2),0) -> 0 | Q84: 0 | R84: 0 | S84: 0
D85: ='Orçamento N_DESON.'!D85 -> 2.21 | E85: ='Orçamento N_DESON.'!E85 -> 0 | F85: ='Orçamento N_DESON.'!F85 -> 0 | G85: ='Orçamento N_DESON.'!G85 -> - | H85: ='Orçamento N_DESON.'!H85 -> - | I85: ='Orçamento N_DESON.'!I85 -> 0 | M85: 0 | O85: 0 | P85: =IFERROR(TRUNC(TRUNC((J85*(1+$N85)),2)*$I85,2),0) -> 0 | Q85: 0 | R85: 0 | S85: 0
D86: ='Orçamento N_DESON.'!D86 -> 2.22 | E86: ='Orçamento N_DESON.'!E86 -> 0 | F86: ='Orçamento N_DESON.'!F86 -> 0 | G86: ='Orçamento N_DESON.'!G86 -> - | H86: ='Orçamento N_DESON.'!H86 -> - | I86: ='Orçamento N_DESON.'!I86 -> 0 | M86: 0 | O86: 0 | P86: =IFERROR(TRUNC(TRUNC((J86*(1+$N86)),2)*$I86,2),0) -> 0 | Q86: 0 | R86: 0 | S86: 0
D87: ='Orçamento N_DESON.'!D87 -> 2.23 | E87: ='Orçamento N_DESON.'!E87 -> 0 | F87: ='Orçamento N_DESON.'!F87 -> 0 | G87: ='Orçamento N_DESON.'!G87 -> - | H87: ='Orçamento N_DESON.'!H87 -> - | I87: ='Orçamento N_DESON.'!I87 -> 0 | M87: 0 | O87: 0 | P87: =IFERROR(TRUNC(TRUNC((J87*(1+$N87)),2)*$I87,2),0) -> 0 | Q87: 0 | R87: 0 | S87: 0
D88: ='Orçamento N_DESON.'!D88 -> 2.24 | E88: ='Orçamento N_DESON.'!E88 -> 0 | F88: ='Orçamento N_DESON.'!F88 -> 0 | G88: ='Orçamento N_DESON.'!G88 -> - | H88: ='Orçamento N_DESON.'!H88 -> - | I88: ='Orçamento N_DESON.'!I88 -> 0 | M88: 0 | O88: 0 | P88: =IFERROR(TRUNC(TRUNC((J88*(1+$N88)),2)*$I88,2),0) -> 0 | Q88: 0 | R88: 0 | S88: 0
D89: ='Orçamento N_DESON.'!D89 -> 2.25 | E89: ='Orçamento N_DESON.'!E89 -> 0 | F89: ='Orçamento N_DESON.'!F89 -> 0 | G89: ='Orçamento N_DESON.'!G89 -> - | H89: ='Orçamento N_DESON.'!H89 -> - | I89: ='Orçamento N_DESON.'!I89 -> 0 | M89: 0 | O89: 0 | P89: =IFERROR(TRUNC(TRUNC((J89*(1+$N89)),2)*$I89,2),0) -> 0 | Q89: 0 | R89: 0 | S89: 0
D90: ='Orçamento N_DESON.'!D90 -> 2.26 | E90: ='Orçamento N_DESON.'!E90 -> 0 | F90: ='Orçamento N_DESON.'!F90 -> 0 | G90: ='Orçamento N_DESON.'!G90 -> - | H90: ='Orçamento N_DESON.'!H90 -> - | I90: ='Orçamento N_DESON.'!I90 -> 0 | M90: 0 | O90: 0 | P90: =IFERROR(TRUNC(TRUNC((J90*(1+$N90)),2)*$I90,2),0) -> 0 | Q90: 0 | R90: 0 | S90: 0
D91: ='Orçamento N_DESON.'!D91 -> 2.27 | E91: ='Orçamento N_DESON.'!E91 -> 0 | F91: ='Orçamento N_DESON.'!F91 -> 0 | G91: ='Orçamento N_DESON.'!G91 -> - | H91: ='Orçamento N_DESON.'!H91 -> - | I91: ='Orçamento N_DESON.'!I91 -> 0 | M91: 0 | O91: 0 | P91: =IFERROR(TRUNC(TRUNC((J91*(1+$N91)),2)*$I91,2),0) -> 0 | Q91: 0 | R91: 0 | S91: 0
D92: ='Orçamento N_DESON.'!D92 -> 2.28 | E92: ='Orçamento N_DESON.'!E92 -> 0 | F92: ='Orçamento N_DESON.'!F92 -> 0 | G92: ='Orçamento N_DESON.'!G92 -> - | H92: ='Orçamento N_DESON.'!H92 -> - | I92: ='Orçamento N_DESON.'!I92 -> 0 | M92: 0 | O92: 0 | P92: =IFERROR(TRUNC(TRUNC((J92*(1+$N92)),2)*$I92,2),0) -> 0 | Q92: 0 | R92: 0 | S92: 0
D93: ='Orçamento N_DESON.'!D93 -> 2.29 | E93: ='Orçamento N_DESON.'!E93 -> 0 | F93: ='Orçamento N_DESON.'!F93 -> 0 | G93: ='Orçamento N_DESON.'!G93 -> - | H93: ='Orçamento N_DESON.'!H93 -> - | I93: ='Orçamento N_DESON.'!I93 -> 0 | M93: 0 | O93: 0 | P93: =IFERROR(TRUNC(TRUNC((J93*(1+$N93)),2)*$I93,2),0) -> 0 | Q93: 0 | R93: 0 | S93: 0
D94: ='Orçamento N_DESON.'!D94 -> 2.30 | E94: ='Orçamento N_DESON.'!E94 -> 0 | F94: ='Orçamento N_DESON.'!F94 -> 0 | G94: ='Orçamento N_DESON.'!G94 -> - | H94: ='Orçamento N_DESON.'!H94 -> - | I94: ='Orçamento N_DESON.'!I94 -> 0 | M94: 0 | O94: 0 | P94: =IFERROR(TRUNC(TRUNC((J94*(1+$N94)),2)*$I94,2),0) -> 0 | Q94: 0 | R94: 0 | S94: 0
D95: ='Orçamento N_DESON.'!D95 -> 2.31 | E95: ='Orçamento N_DESON.'!E95 -> 0 | F95: ='Orçamento N_DESON.'!F95 -> 0 | G95: ='Orçamento N_DESON.'!G95 -> - | H95: ='Orçamento N_DESON.'!H95 -> - | I95: ='Orçamento N_DESON.'!I95 -> 0 | M95: 0 | O95: 0 | P95: =IFERROR(TRUNC(TRUNC((J95*(1+$N95)),2)*$I95,2),0) -> 0 | Q95: 0 | R95: 0 | S95: 0
D96: ='Orçamento N_DESON.'!D96 -> 2.32 | E96: ='Orçamento N_DESON.'!E96 -> 0 | F96: ='Orçamento N_DESON.'!F96 -> 0 | G96: ='Orçamento N_DESON.'!G96 -> - | H96: ='Orçamento N_DESON.'!H96 -> - | I96: ='Orçamento N_DESON.'!I96 -> 0 | M96: 0 | O96: 0 | P96: =IFERROR(TRUNC(TRUNC((J96*(1+$N96)),2)*$I96,2),0) -> 0 | Q96: 0 | R96: 0 | S96: 0
D97: ='Orçamento N_DESON.'!D97 -> 2.33 | E97: ='Orçamento N_DESON.'!E97 -> 0 | F97: ='Orçamento N_DESON.'!F97 -> 0 | G97: ='Orçamento N_DESON.'!G97 -> - | H97: ='Orçamento N_DESON.'!H97 -> - | I97: ='Orçamento N_DESON.'!I97 -> 0 | M97: 0 | O97: 0 | P97: =IFERROR(TRUNC(TRUNC((J97*(1+$N97)),2)*$I97,2),0) -> 0 | Q97: 0 | R97: 0 | S97: 0
D98: ='Orçamento N_DESON.'!D98 -> 2.34 | E98: ='Orçamento N_DESON.'!E98 -> 0 | F98: ='Orçamento N_DESON.'!F98 -> 0 | G98: ='Orçamento N_DESON.'!G98 -> - | H98: ='Orçamento N_DESON.'!H98 -> - | I98: ='Orçamento N_DESON.'!I98 -> 0 | M98: 0 | O98: 0 | P98: =IFERROR(TRUNC(TRUNC((J98*(1+$N98)),2)*$I98,2),0) -> 0 | Q98: 0 | R98: 0 | S98: 0
D99: ='Orçamento N_DESON.'!D99 -> 2.35 | E99: ='Orçamento N_DESON.'!E99 -> 0 | F99: ='Orçamento N_DESON.'!F99 -> 0 | G99: ='Orçamento N_DESON.'!G99 -> - | H99: ='Orçamento N_DESON.'!H99 -> - | I99: ='Orçamento N_DESON.'!I99 -> 0 | M99: 0 | O99: 0 | P99: =IFERROR(TRUNC(TRUNC((J99*(1+$N99)),2)*$I99,2),0) -> 0 | Q99: 0 | R99: 0 | S99: 0
D100: ='Orçamento N_DESON.'!D100 -> 2.36 | E100: ='Orçamento N_DESON.'!E100 -> 0 | F100: ='Orçamento N_DESON.'!F100 -> 0 | G100: ='Orçamento N_DESON.'!G100 -> - | H100: ='Orçamento N_DESON.'!H100 -> - | I100: ='Orçamento N_DESON.'!I100 -> 0 | M100: 0 | O100: 0 | P100: =IFERROR(TRUNC(TRUNC((J100*(1+$N100)),2)*$I100,2),0) -> 0 | Q100: 0 | R100: 0 | S100: 0
D101: ='Orçamento N_DESON.'!D101 -> 2.37 | E101: ='Orçamento N_DESON.'!E101 -> 0 | F101: ='Orçamento N_DESON.'!F101 -> 0 | G101: ='Orçamento N_DESON.'!G101 -> - | H101: ='Orçamento N_DESON.'!H101 -> - | I101: ='Orçamento N_DESON.'!I101 -> 0 | M101: 0 | O101: 0 | P101: =IFERROR(TRUNC(TRUNC((J101*(1+$N101)),2)*$I101,2),0) -> 0 | Q101: 0 | R101: 0 | S101: 0
D102: ='Orçamento N_DESON.'!D102 -> 2.38 | E102: ='Orçamento N_DESON.'!E102 -> 0 | F102: ='Orçamento N_DESON.'!F102 -> 0 | G102: ='Orçamento N_DESON.'!G102 -> - | H102: ='Orçamento N_DESON.'!H102 -> - | I102: ='Orçamento N_DESON.'!I102 -> 0 | M102: 0 | O102: 0 | P102: =IFERROR(TRUNC(TRUNC((J102*(1+$N102)),2)*$I102,2),0) -> 0 | Q102: 0 | R102: 0 | S102: 0
D103: ='Orçamento N_DESON.'!D103 -> 2.39 | E103: ='Orçamento N_DESON.'!E103 -> 0 | F103: ='Orçamento N_DESON.'!F103 -> 0 | G103: ='Orçamento N_DESON.'!G103 -> - | H103: ='Orçamento N_DESON.'!H103 -> - | I103: ='Orçamento N_DESON.'!I103 -> 0 | M103: 0 | O103: 0 | P103: =IFERROR(TRUNC(TRUNC((J103*(1+$N103)),2)*$I103,2),0) -> 0 | Q103: 0 | R103: 0 | S103: 0
D104: ='Orçamento N_DESON.'!D104 -> 2.40 | E104: ='Orçamento N_DESON.'!E104 -> 0 | F104: ='Orçamento N_DESON.'!F104 -> 0 | G104: ='Orçamento N_DESON.'!G104 -> - | H104: ='Orçamento N_DESON.'!H104 -> - | I104: ='Orçamento N_DESON.'!I104 -> 0 | M104: 0 | O104: 0 | P104: =IFERROR(TRUNC(TRUNC((J104*(1+$N104)),2)*$I104,2),0) -> 0 | Q104: 0 | R104: 0 | S104: 0
D105: ='Orçamento N_DESON.'!D105 -> 2.41 | E105: ='Orçamento N_DESON.'!E105 -> 0 | F105: ='Orçamento N_DESON.'!F105 -> 0 | G105: ='Orçamento N_DESON.'!G105 -> - | H105: ='Orçamento N_DESON.'!H105 -> - | I105: ='Orçamento N_DESON.'!I105 -> 0 | M105: 0 | O105: 0 | P105: =IFERROR(TRUNC(TRUNC((J105*(1+$N105)),2)*$I105,2),0) -> 0 | Q105: 0 | R105: 0 | S105: 0
D106: ='Orçamento N_DESON.'!D106 -> 2.42 | E106: ='Orçamento N_DESON.'!E106 -> 0 | F106: ='Orçamento N_DESON.'!F106 -> 0 | G106: ='Orçamento N_DESON.'!G106 -> - | H106: ='Orçamento N_DESON.'!H106 -> - | I106: ='Orçamento N_DESON.'!I106 -> 0 | M106: 0 | O106: 0 | P106: =IFERROR(TRUNC(TRUNC((J106*(1+$N106)),2)*$I106,2),0) -> 0 | Q106: 0 | R106: 0 | S106: 0
D107: ='Orçamento N_DESON.'!D107 -> 2.43 | E107: ='Orçamento N_DESON.'!E107 -> 0 | F107: ='Orçamento N_DESON.'!F107 -> 0 | G107: ='Orçamento N_DESON.'!G107 -> - | H107: ='Orçamento N_DESON.'!H107 -> - | I107: ='Orçamento N_DESON.'!I107 -> 0 | M107: 0 | O107: 0 | P107: =IFERROR(TRUNC(TRUNC((J107*(1+$N107)),2)*$I107,2),0) -> 0 | Q107: 0 | R107: 0 | S107: 0
D108: ='Orçamento N_DESON.'!D108 -> 2.44 | E108: ='Orçamento N_DESON.'!E108 -> 0 | F108: ='Orçamento N_DESON.'!F108 -> 0 | G108: ='Orçamento N_DESON.'!G108 -> - | H108: ='Orçamento N_DESON.'!H108 -> - | I108: ='Orçamento N_DESON.'!I108 -> 0 | M108: 0 | O108: 0 | P108: =IFERROR(TRUNC(TRUNC((J108*(1+$N108)),2)*$I108,2),0) -> 0 | Q108: 0 | R108: 0 | S108: 0
D109: ='Orçamento N_DESON.'!D109 -> 2.45 | E109: ='Orçamento N_DESON.'!E109 -> 0 | F109: ='Orçamento N_DESON.'!F109 -> 0 | G109: ='Orçamento N_DESON.'!G109 -> - | H109: ='Orçamento N_DESON.'!H109 -> - | I109: ='Orçamento N_DESON.'!I109 -> 0 | M109: 0 | O109: 0 | P109: =IFERROR(TRUNC(TRUNC((J109*(1+$N109)),2)*$I109,2),0) -> 0 | Q109: 0 | R109: 0 | S109: 0
D110: ='Orçamento N_DESON.'!D110 -> 2.46 | E110: ='Orçamento N_DESON.'!E110 -> 0 | F110: ='Orçamento N_DESON.'!F110 -> 0 | G110: ='Orçamento N_DESON.'!G110 -> - | H110: ='Orçamento N_DESON.'!H110 -> - | I110: ='Orçamento N_DESON.'!I110 -> 0 | M110: 0 | O110: 0 | P110: =IFERROR(TRUNC(TRUNC((J110*(1+$N110)),2)*$I110,2),0) -> 0 | Q110: 0 | R110: 0 | S110: 0
D111: ='Orçamento N_DESON.'!D111 -> 2.47 | E111: ='Orçamento N_DESON.'!E111 -> 0 | F111: ='Orçamento N_DESON.'!F111 -> 0 | G111: ='Orçamento N_DESON.'!G111 -> - | H111: ='Orçamento N_DESON.'!H111 -> - | I111: ='Orçamento N_DESON.'!I111 -> 0 | M111: 0 | O111: 0 | P111: =IFERROR(TRUNC(TRUNC((J111*(1+$N111)),2)*$I111,2),0) -> 0 | Q111: 0 | R111: 0 | S111: 0
D112: ='Orçamento N_DESON.'!D112 -> 2.48 | E112: ='Orçamento N_DESON.'!E112 -> 0 | F112: ='Orçamento N_DESON.'!F112 -> 0 | G112: ='Orçamento N_DESON.'!G112 -> - | H112: ='Orçamento N_DESON.'!H112 -> - | I112: ='Orçamento N_DESON.'!I112 -> 0 | M112: 0 | O112: 0 | P112: =IFERROR(TRUNC(TRUNC((J112*(1+$N112)),2)*$I112,2),0) -> 0 | Q112: 0 | R112: 0 | S112: 0
D113: ='Orçamento N_DESON.'!D113 -> 2.49 | E113: ='Orçamento N_DESON.'!E113 -> 0 | F113: ='Orçamento N_DESON.'!F113 -> 0 | G113: ='Orçamento N_DESON.'!G113 -> - | H113: ='Orçamento N_DESON.'!H113 -> - | I113: ='Orçamento N_DESON.'!I113 -> 0 | M113: 0 | O113: 0 | P113: =IFERROR(TRUNC(TRUNC((J113*(1+$N113)),2)*$I113,2),0) -> 0 | Q113: 0 | R113: 0 | S113: 0
D114: ='Orçamento N_DESON.'!D114 -> 2.50 | E114: ='Orçamento N_DESON.'!E114 -> 0 | F114: ='Orçamento N_DESON.'!F114 -> 0 | G114: ='Orçamento N_DESON.'!G114 -> - | H114: ='Orçamento N_DESON.'!H114 -> - | I114: ='Orçamento N_DESON.'!I114 -> 0 | M114: 0 | O114: 0 | P114: =IFERROR(TRUNC(TRUNC((J114*(1+$N114)),2)*$I114,2),0) -> 0 | Q114: 0 | R114: 0 | S114: 0
O116: =CONCATENATE("Subtotal ",G64) -> Subtotal DESPESAS LEGAIS, LICENÇAS, TAXAS, CONTRIBUIÇÕES | P116: =SUM(P65:P115) -> 0 | Q116: 0 | R116: 0 | S116: 0 | U116: 1
D118: ='Orçamento N_DESON.'!D118 -> 3 | G118: ='Orçamento N_DESON.'!G118 -> INSTALAÇÕES PROVISÓRIAS | S118: =S190 -> 0
B119: =S119/$S$1150 ->  | D119: ='Orçamento N_DESON.'!D119 -> 3.1 | E119: ='Orçamento N_DESON.'!E119 -> CCU-04 | F119: ='Orçamento N_DESON.'!F119 -> CCU | G119: ='Orçamento N_DESON.'!G119 -> TAPUME EM CHAPA DE COMPENSADO RESINADO | H119: ='Orçamento N_DESON.'!H119 -> M2 | I119: ='Orçamento N_DESON.'!I119 -> 88 | M119: =SUM(J119:L119) -> 0 | O119: =IF(N119="-",M119,TRUNC(M119*(1+N119),2)) -> 0 | P119: =IFERROR(TRUNC(TRUNC((J119*(1+$N119)),2)*$I119,2),0) -> 0 | Q119: 0 | R119: =S119-Q119-P119 -> 0 | S119: =IFERROR(TRUNC(O119*I119,2),0) -> 0
D120: ='Orçamento N_DESON.'!D120 -> 3.2 | E120: ='Orçamento N_DESON.'!E120 -> CCU-05 | F120: ='Orçamento N_DESON.'!F120 -> CCU | G120: ='Orçamento N_DESON.'!G120 -> LOCAÇÃO DE BANHEIRO QUÍMICO | H120: ='Orçamento N_DESON.'!H120 -> CENTO | I120: ='Orçamento N_DESON.'!I120 -> 100 | M120: 0 | O120: 0 | P120: =IFERROR(TRUNC(TRUNC((J120*(1+$N120)),2)*$I120,2),0) -> 0 | Q120: 0 | R120: 0 | S120: 0
D121: ='Orçamento N_DESON.'!D121 -> 3.3 | E121: ='Orçamento N_DESON.'!E121 -> CCU-06 | F121: ='Orçamento N_DESON.'!F121 -> CCU | G121: ='Orçamento N_DESON.'!G121 -> FRETE P/ BANHEIRO QUÍMICO (IDA E VOLTA) | H121: ='Orçamento N_DESON.'!H121 -> CJ | I121: ='Orçamento N_DESON.'!I121 -> 1 | M121: 0 | O121: 0 | P121: =IFERROR(TRUNC(TRUNC((J121*(1+$N121)),2)*$I121,2),0) -> 0 | Q121: 0 | R121: 0 | S121: 0
D122: ='Orçamento N_DESON.'!D122 -> 3.4 | E122: ='Orçamento N_DESON.'!E122 -> CCU-07 | F122: ='Orçamento N_DESON.'!F122 -> CCU | G122: ='Orçamento N_DESON.'!G122 -> INSTALAÇÃO PROVISÓRIA DE ENERGIA, AÉREA, TRIFASICA, COM CAIXA DE EMBUTIR C/ POSTE H=9,00M | H122: ='Orçamento N_DESON.'!H122 -> PT | I122: ='Orçamento N_DESON.'!I122 -> 1 | M122: 0 | O122: 0 | P122: =IFERROR(TRUNC(TRUNC((J122*(1+$N122)),2)*$I122,2),0) -> 0 | Q122: 0 | R122: 0 | S122: 0
D123: ='Orçamento N_DESON.'!D123 -> 3.5 | E123: ='Orçamento N_DESON.'!E123 -> CCU-08 | F123: ='Orçamento N_DESON.'!F123 -> CCU | G123: ='Orçamento N_DESON.'!G123 -> INSTALAÇÃO PROVISÓRIA DE ÁGUA | H123: ='Orçamento N_DESON.'!H123 -> PT | I123: ='Orçamento N_DESON.'!I123 -> 1 | M123: 0 | O123: 0 | P123: =IFERROR(TRUNC(TRUNC((J123*(1+$N123)),2)*$I123,2),0) -> 0 | Q123: 0 | R123: 0 | S123: 0
D124: ='Orçamento N_DESON.'!D124 -> 3.6 | E124: ='Orçamento N_DESON.'!E124 -> CCU-09 | F124: ='Orçamento N_DESON.'!F124 -> CCU | G124: ='Orçamento N_DESON.'!G124 -> PLACA DE OBRA EM CHAPA GALVANIZADA | H124: ='Orçamento N_DESON.'!H124 -> M2 | I124: ='Orçamento N_DESON.'!I124 -> 3 | M124: 0 | O124: 0 | P124: =IFERROR(TRUNC(TRUNC((J124*(1+$N124)),2)*$I124,2),0) -> 0 | Q124: 0 | R124: 0 | S124: 0
D125: ='Orçamento N_DESON.'!D125 -> 3.7 | E125: ='Orçamento N_DESON.'!E125 -> CCU-10 | F125: ='Orçamento N_DESON.'!F125 -> CCU | G125: ='Orçamento N_DESON.'!G125 -> SINALIZAÇÃO COM TELA PLÁSTICA LARANJA FIXADA EM CONE PLÁSTICO | H125: ='Orçamento N_DESON.'!H125 -> M | I125: ='Orçamento N_DESON.'!I125 -> 97.5 | M125: 0 | O125: 0 | P125: =IFERROR(TRUNC(TRUNC((J125*(1+$N125)),2)*$I125,2),0) -> 0 | Q125: 0 | R125: 0 | S125: 0
... 147 more rows

Sheet Comparativo
A2: Tipo de Orçamento | B2: Valor
A3: orçamento não desonerado | B3: ='Orçamento N_DESON.'!$S$1151 -> 193970.27 | C3: =A3 -> orçamento não desonerado | E3: Tabela Não Desonerada
A4: orçamento desonerado | B4: ='Orçamento DESON.'!$S$1150 -> 196914.9 | C4: orçamento desonerado | E4: Tabela Desonerada
A6: =CONCATENATE("Valor adotado: ",VLOOKUP(B6,B3:C4,2,FALSE)) -> Valor adotado: orçamento não desonerado | B6: =SMALL(B3:B4,1) -> 193970.27 | E6: =VLOOKUP(B6,B3:E4,4,FALSE) -> Tabela Não Desonerada

Sheet BDI 2 (hidden)
B2: =HYPERLINK("https://leismunicipais.com.br/a1/rs/p/porto-alegre/decreto/2006/1542/15416/decreto-n-15416-2006-regulamenta-a-lei-complementar-n-7-de-07-de-dezembro-de-1973-no-que-diz-respeito-ao-issqn-e-da-outras-providencias-2013-07-12-versao-consolidada","Link decreto nº 15.416/2006") -> Link decreto nº 15.416/2006
B4: =HYPERLINK("http://www2.portoalegre.rs.gov.br/netahtml/sirel/atos/Decreto%2019224","Link decreto BDI") -> Link decreto BDI
B6: TIPO DE OBRA | C6: BDI para contratação de obras e serviços | E6: BDI Diferenciado para fornecimento de materiais e equipamentos | H6: TIPO DE OBRA | I6: BDI para Projetos e Serviços Técnicos de Engenharia relativos às atividades 7.03, 7.19 e 7.20 (Decreto 16.869/2010) | J6: BDI para Consultorias e Serviços de Apoio Técnico relativos às atividades 7.01, 17.01, 17.03, 17.09 e 17.16 (Decreto 15.416/2006)
C7: EDIFICAÇÕES residenciais, comerciais e mistas e seus respectivos serviços de conservação e manutenção | D7: INFRAESTRUTURA, incluindo pavimentação, iluminação pública, praças, saneamento, sistemas de água, esgoto cloacal e pluvial e seus respectivos serviços de conservação e manutenção | E7: EDIFICAÇÕES residenciais, comerciais e mistas e seus respectivos serviços de conservação e manutenção | F7: INFRAESTRUTURA, incluindo pavimentação, iluminação pública, praças, saneamento, sistemas de água, esgoto cloacal e pluvial e seus respectivos serviços de conservação e manutenção
B8: Parcelas | H8: Parcelas
B9: (AC) - Administraçã o Central | C9: 0.0403 | D9: 0.0403 | E9: 0.01 | F9: 0.01 | H9: (AC) - Administraçã o Central | I9: 0.01 | J9: 0.01
B10: (S) + (G) - Seguro e Garantia | C10: 0.0065 | D10: 0.0065 | E10: 0 | F10: 0 | H10: (S) + (G) - Seguro e Garantia | I10: 0.0028 | J10: 0.0028
B11: (R) - Risco | C11: 0.0133 | D11: 0.0133 | E11: 0.005 | F11: 0.005 | H11: (R) - Risco | I11: 0 | J11: 0
B12: (DF) - Despesas Financeiras | C12: 0.0152 | D12: 0.0152 | E12: 0.0152 | F12: 0.0152 | H12: (DF) - Despesas Financeiras | I12: 0.0125 | J12: 0.0125
B13: (L) - Lucro | C13: 0.08 | D13: 0.08 | E13: 0.05 | F13: 0.05 | H13: (L) - Lucro | I13: 0.0616 | J13: 0.0616
B14: Impostos (I= I1+I2+I3+I4): | H14: Impostos (I= I1+I2+I3):
B15: (I1) - PIS | C15: 0.0065 | D15: 0.0065 | E15: 0.0065 | F15: 0.0065 | H15: (I1) - PIS | I15: 0.0065 | J15: 0.0065
B16: (I2 ) - COFINS | C16: 0.03 | D16: 0.03 | E16: 0.03 | F16: 0.03 | H16: (I2 ) - COFINS | I16: 0.03 | J16: 0.03
B17: (I3 ) - ISSQN | C17: 0.016 | D17: 0.012 | E17: 0.016 | F17: 0.012 | H17: (I3 ) - ISSQN | I17: 0.02 | J17: 0.05
B18: (I4 ) - Contribuição Previdenciária (CPRB) | C18: 0.045 | D18: 0.045 | E18: 0.045 | F18: 0.045 | H18: BDI | I18: 0.1538 | J18: 0.1917
B19: BDI com Desoneração (incluindo I4) | C19: 0.2878 | D19: 0.2821 | E19: 0.1988 | F19: 0.1935
B20: BDI sem Desoneração (desconsiderando I4) | C20: 0.2267 | D20: 0.2215 | E20: 0.1418 | F20: 0.137
C24: Desonerado | D24: Não desonerado
C25: =C19 -> 0.2878 | D25: =C20 -> 0.2267
C26: =D19 -> 0.2821 | D26: =D20 -> 0.2215
C27: =E19 -> 0.1988 | D27: =E20 -> 0.1418
C28: =F19 -> 0.1935 | D28: =F20 -> 0.137
C29: =I18 -> 0.1538 | D29: =C29 -> 0.1538
C30: =J18 -> 0.1917 | D30: 0.1917
C31: - | D31: -

Sheet Identificação-TCE (hidden)
A1: IDENTIFICAÇÃO
A2: Modalidade* | D2: N° * | F2: Ano *
A3: Descrição do Objeto | B3: =Dados!C5 -> OBRA DE REVITALIZAÇÃO PRAÇA ESTÁDIO ALIM PEDRO - ACADEMIA AO AR LIVRE
A4: Órgão | B4: =Dados!C3 -> SECRETARIA MUNICIPAL DO MEIO AMBIENTE, URBANISMO E SUSTENTABILIDADE | F4: CNPJ *
A5: Tipo de Objeto* | C5: N° CENTRAL DE COMPRAS
A6: Preço Total Estimado | B6: =Comparativo!B6 -> 193970.27
A7: Preço Total Proposto | B7: ='Proposta-TCE'!C6 -> 0
A8: Qtd. Itens Orçamento | B8: =COUNTIF('Orçamento-TCE'!$H$12:$H$1071,"<>0") -> 33
A9: Atenção! Para incluir mais de 50 lotes, selecione as células A62 a G62 e arraste as fórmulas para baixo, de acordo com o número de lotes necessário.
A10: *Campos de preenchimento obrigatório | C10: **Campos de preenchimento obrigatório para licitação composta por lotes
A11: Nº do lote** | B11: Descrição do Lote** | C11: Estimativa | G11: Proposta
C12: Valor do lote (R$) | G12: Valor do lote (R$)
C13: 0 | G13: 0
C14: 0 | G14: 0
C15: 0 | G15: 0
C16: 0 | G16: 0
C17: 0 | G17: 0
C18: 0 | G18: 0
C19: 0 | G19: 0
C20: 0 | G20: 0
C21: 0 | G21: 0
C22: 0 | G22: 0
C23: 0 | G23: 0
C24: 0 | G24: 0
C25: 0 | G25: 0
C26: 0 | G26: 0
C27: 0 | G27: 0
C28: 0 | G28: 0
C29: 0 | G29: 0
C30: 0 | G30: 0
C31: 0 | G31: 0
C32: 0 | G32: 0
C33: 0 | G33: 0
C34: 0 | G34: 0
C35: 0 | G35: 0
C36: 0 | G36: 0
C37: 0 | G37: 0
C38: 0 | G38: 0
C39: 0 | G39: 0
C40: 0 | G40: 0
C41: 0 | G41: 0
C42: 0 | G42: 0
C43: 0 | G43: 0
C44: 0 | G44: 0
C45: 0 | G45: 0
C46: 0 | G46: 0
C47: 0 | G47: 0
C48: 0 | G48: 0
C49: 0 | G49: 0
C50: 0 | G50: 0
C51: 0 | G51: 0
C52: 0 | G52: 0
C53: 0 | G53: 0
C54: 0 | G54: 0
C55: 0 | G55: 0
C56: 0 | G56: 0
C57: 0 | G57: 0
C58: 0 | G58: 0
C59: 0 | G59: 0
C60: 0 | G60: 0
C61: 0 | G61: 0
C62: 0 | G62: 0

Sheet Orçamento-TCE (hidden)
A1: ORÇAMENTO
A2: Modalidade | H2: N° | J2: Ano
A3: Descrição do Objeto | C3: =Dados!C5 -> OBRA DE REVITALIZAÇÃO PRAÇA ESTÁDIO ALIM PEDRO - ACADEMIA AO AR LIVRE
A4: Órgão | C4: =Dados!C3 -> SECRETARIA MUNICIPAL DO MEIO AMBIENTE, URBANISMO E SUSTENTABILIDADE | J4: CNPJ
A5: Tipo de Objeto
A6: Preço T. Estimado | C6: =Comparativo!B6 -> 193970.27
A8: Atenção! Para incluir mais de 100 linhas de itens, selecione as células A113 a R113 e arraste as fórmulas para baixo, de acordo com o número de itens necessário.
A9: *Preenchimento obrigatório | F9: **Obrigatório só para Obras e Serviços de Engenharia | H9: ***Obrigatório só para licitação composta por Lotes
A10: Nº do Lote*** | B10: N° Ordem | C10: Nº Item* | D10: Fonte de Referência** | E10: Código de Referência** | F10: Data de Referência** | G10: Descrição do item* | H10: Estimativa | N10: Família | P10: Subfamília | R10: Tipo de Orçamento | S10: Pr. Unit. Material | T10: Pr. Unit. Mão de obra
H11: Qtd.* | I11: Unid.* | J11: Preço unitário (R$)* | K11: Preço Total (R$) | L11: % BDI** | M11: % Encargos Sociais** | N11: Código | O11: Descrição | P11: Código | Q11: Descrição
C12: ='Orçamento N_DESON.'!D11 -> 1.1 | D12: =IF(VLOOKUP($C12,'Orçamento N_DESON.'!$D$11:$G$1596,3,FALSE)="INDEXADO",VLOOKUP(VLOOKUP($C12,'Orçamento N_DESON.'!$D$11:$G$1596,2,FALSE),'Index N_DESON.'!$A$9:$B$604,2),VLOOKUP($C12,'Orçamento N_DESON.'!$D$11:$G$1596,3,FALSE)) -> CCU | E12: =VLOOKUP($C12,'Orçamento N_DESON.'!$D$11:$S$1153,2,FALSE) -> CCU-01 | F12: =Dados!$C$7 -> 2021-10-01 | G12: =VLOOKUP($C12,'Orçamento N_DESON.'!$D$11:$S$1153,4,FALSE) -> REMOÇÃO DE PASSEIOS - SEM REMOÇÃO DE ENTULHOS | H12: =VLOOKUP($C12,'Orçamento N_DESON.'!$D$11:$S$1153,6,FALSE) -> 3.48 | I12: =VLOOKUP($C12,'Orçamento N_DESON.'!$D$11:$S$1153,5,FALSE) -> M2 | J12: =IF(Comparativo!$E$6="Tabela Não Desonerada",VLOOKUP($C12,'Orçamento N_DESON.'!$D$11:$S$1153,12,FALSE),VLOOKUP($C12,'Orçamento DESON.'!$D$11:$S$1152,12,FALSE)) -> 10.89 | K12: =IF(Comparativo!$E$6="Tabela Não Desonerada",VLOOKUP($C12,'Orçamento N_DESON.'!$D$11:$S$1153,16,FALSE),VLOOKUP($C12,'Orçamento DESON.'!$D$11:$S$1152,16,FALSE)) -> 37.89 | L12: =IF(Comparativo!$E$6="Tabela Não Desonerada",VLOOKUP($C12,'Orçamento N_DESON.'!$D$11:$S$1153,11,FALSE),VLOOKUP($C12,'Orçamento DESON.'!$D$11:$S$1152,11,FALSE)) -> 0.2215 | M12: =IF(Comparativo!$E$6="Tabela Não Desonerada",Encargos!$F$44,Encargos!$D$44) -> 1.111
C13: ='Orçamento N_DESON.'!D12 -> 1.2 | D13: =IF(VLOOKUP($C13,'Orçamento N_DESON.'!$D$11:$G$1596,3,FALSE)="INDEXADO",VLOOKUP(VLOOKUP($C13,'Orçamento N_DESON.'!$D$11:$G$1596,2,FALSE),'Index N_DESON.'!$A$9:$B$604,2),VLOOKUP($C13,'Orçamento N_DESON.'!$D$11:$G$1596,3,FALSE)) -> CCU | E13: =VLOOKUP($C13,'Orçamento N_DESON.'!$D$11:$S$1153,2,FALSE) -> CCU-02 | F13: =Dados!$C$7 -> 2021-10-01 | G13: =VLOOKUP($C13,'Orçamento N_DESON.'!$D$11:$S$1153,4,FALSE) -> REMOÇÃO DE ENTULHO C/CAÇAMBA | H13: =VLOOKUP($C13,'Orçamento N_DESON.'!$D$11:$S$1153,6,FALSE) -> 20.35 | I13: =VLOOKUP($C13,'Orçamento N_DESON.'!$D$11:$S$1153,5,FALSE) -> M3 | J13: =IF(Comparativo!$E$6="Tabela Não Desonerada",VLOOKUP($C13,'Orçamento N_DESON.'!$D$11:$S$1153,12,FALSE),VLOOKUP($C13,'Orçamento DESON.'!$D$11:$S$1152,12,FALSE)) -> 151.47 | K13: =IF(Comparativo!$E$6="Tabela Não Desonerada",VLOOKUP($C13,'Orçamento N_DESON.'!$D$11:$S$1153,16,FALSE),VLOOKUP($C13,'Orçamento DESON.'!$D$11:$S$1152,16,FALSE)) -> 3082.41 | L13: =IF(Comparativo!$E$6="Tabela Não Desonerada",VLOOKUP($C13,'Orçamento N_DESON.'!$D$11:$S$1153,11,FALSE),VLOOKUP($C13,'Orçamento DESON.'!$D$11:$S$1152,11,FALSE)) -> 0.2215 | M13: =IF(Comparativo!$E$6="Tabela Não Desonerada",Encargos!$F$44,Encargos!$D$44) -> 1.111
B14: =IF(AND(G14<>"",H14>0,I14<>"",J14<>0,K14<>0),COUNT($B$11:B13)+1,"") ->  | C14: ='Orçamento N_DESON.'!D13 -> 1.3 | D14: =IF(VLOOKUP($C14,'Orçamento N_DESON.'!$D$11:$G$1596,3,FALSE)="INDEXADO",VLOOKUP(VLOOKUP($C14,'Orçamento N_DESON.'!$D$11:$G$1596,2,FALSE),'Index N_DESON.'!$A$9:$B$604,2),VLOOKUP($C14,'Orçamento N_DESON.'!$D$11:$G$1596,3,FALSE)) -> 0 | E14: =VLOOKUP($C14,'Orçamento N_DESON.'!$D$11:$S$1153,2,FALSE) -> 0 | F14: =Dados!$C$7 -> 2021-10-01 | G14: =VLOOKUP($C14,'Orçamento N_DESON.'!$D$11:$S$1153,4,FALSE) -> - | H14: =VLOOKUP($C14,'Orçamento N_DESON.'!$D$11:$S$1153,6,FALSE) -> 0 | I14: =VLOOKUP($C14,'Orçamento N_DESON.'!$D$11:$S$1153,5,FALSE) -> - | J14: =IF(Comparativo!$E$6="Tabela Não Desonerada",VLOOKUP($C14,'Orçamento N_DESON.'!$D$11:$S$1153,12,FALSE),VLOOKUP($C14,'Orçamento DESON.'!$D$11:$S$1152,12,FALSE)) -> - | K14: =IF(Comparativo!$E$6="Tabela Não Desonerada",VLOOKUP($C14,'Orçamento N_DESON.'!$D$11:$S$1153,16,FALSE),VLOOKUP($C14,'Orçamento DESON.'!$D$11:$S$1152,16,FALSE)) -> 0 | L14: =IF(Comparativo!$E$6="Tabela Não Desonerada",VLOOKUP($C14,'Orçamento N_DESON.'!$D$11:$S$1153,11,FALSE),VLOOKUP($C14,'Orçamento DESON.'!$D$11:$S$1152,11,FALSE)) -> - | M14: =IF(Comparativo!$E$6="Tabela Não Desonerada",Encargos!$F$44,Encargos!$D$44) -> 1.111
B15: =IF(AND(G15<>"",H15>0,I15<>"",J15<>0,K15<>0),COUNT($B$11:B14)+1,"") ->  | C15: ='Orçamento N_DESON.'!D14 -> 1.4 | D15: =IF(VLOOKUP($C15,'Orçamento N_DESON.'!$D$11:$G$1596,3,FALSE)="INDEXADO",VLOOKUP(VLOOKUP($C15,'Orçamento N_DESON.'!$D$11:$G$1596,2,FALSE),'Index N_DESON.'!$A$9:$B$604,2),VLOOKUP($C15,'Orçamento N_DESON.'!$D$11:$G$1596,3,FALSE)) -> 0 | E15: =VLOOKUP($C15,'Orçamento N_DESON.'!$D$11:$S$1153,2,FALSE) -> 0 | F15: =Dados!$C$7 -> 2021-10-01 | G15: =VLOOKUP($C15,'Orçamento N_DESON.'!$D$11:$S$1153,4,FALSE) -> - | H15: =VLOOKUP($C15,'Orçamento N_DESON.'!$D$11:$S$1153,6,FALSE) -> 0 | I15: =VLOOKUP($C15,'Orçamento N_DESON.'!$D$11:$S$1153,5,FALSE) -> - | J15: =IF(Comparativo!$E$6="Tabela Não Desonerada",VLOOKUP($C15,'Orçamento N_DESON.'!$D$11:$S$1153,12,FALSE),VLOOKUP($C15,'Orçamento DESON.'!$D$11:$S$1152,12,FALSE)) -> - | K15: =IF(Comparativo!$E$6="Tabela Não Desonerada",VLOOKUP($C15,'Orçamento N_DESON.'!$D$11:$S$1153,16,FALSE),VLOOKUP($C15,'Orçamento DESON.'!$D$11:$S$1152,16,FALSE)) -> 0 | L15: =IF(Comparativo!$E$6="Tabela Não Desonerada",VLOOKUP($C15,'Orçamento N_DESON.'!$D$11:$S$1153,11,FALSE),VLOOKUP($C15,'Orçamento DESON.'!$D$11:$S$1152,11,FALSE)) -> - | M15: =IF(Comparativo!$E$6="Tabela Não Desonerada",Encargos!$F$44,Encargos!$D$44) -> 1.111
B16: =IF(AND(G16<>"",H16>0,I16<>"",J16<>0,K16<>0),COUNT($B$11:B15)+1,"") ->  | C16: ='Orçamento N_DESON.'!D15 -> 1.5 | D16: =IF(VLOOKUP($C16,'Orçamento N_DESON.'!$D$11:$G$1596,3,FALSE)="INDEXADO",VLOOKUP(VLOOKUP($C16,'Orçamento N_DESON.'!$D$11:$G$1596,2,FALSE),'Index N_DESON.'!$A$9:$B$604,2),VLOOKUP($C16,'Orçamento N_DESON.'!$D$11:$G$1596,3,FALSE)) -> 0 | E16: =VLOOKUP($C16,'Orçamento N_DESON.'!$D$11:$S$1153,2,FALSE) -> 0 | F16: =Dados!$C$7 -> 2021-10-01 | G16: =VLOOKUP($C16,'Orçamento N_DESON.'!$D$11:$S$1153,4,FALSE) -> - | H16: =VLOOKUP($C16,'Orçamento N_DESON.'!$D$11:$S$1153,6,FALSE) -> 0 | I16: =VLOOKUP($C16,'Orçamento N_DESON.'!$D$11:$S$1153,5,FALSE) -> - | J16: =IF(Comparativo!$E$6="Tabela Não Desonerada",VLOOKUP($C16,'Orçamento N_DESON.'!$D$11:$S$1153,12,FALSE),VLOOKUP($C16,'Orçamento DESON.'!$D$11:$S$1152,12,FALSE)) -> - | K16: =IF(Comparativo!$E$6="Tabela Não Desonerada",VLOOKUP($C16,'Orçamento N_DESON.'!$D$11:$S$1153,16,FALSE),VLOOKUP($C16,'Orçamento DESON.'!$D$11:$S$1152,16,FALSE)) -> 0 | L16: =IF(Comparativo!$E$6="Tabela Não Desonerada",VLOOKUP($C16,'Orçamento N_DESON.'!$D$11:$S$1153,11,FALSE),VLOOKUP($C16,'Orçamento DESON.'!$D$11:$S$1152,11,FALSE)) -> - | M16: =IF(Comparativo!$E$6="Tabela Não Desonerada",Encargos!$F$44,Encargos!$D$44) -> 1.111
B17: =IF(AND(G17<>"",H17>0,I17<>"",J17<>0,K17<>0),COUNT($B$11:B16)+1,"") ->  | C17: ='Orçamento N_DESON.'!D16 -> 1.6 | D17: =IF(VLOOKUP($C17,'Orçamento N_DESON.'!$D$11:$G$1596,3,FALSE)="INDEXADO",VLOOKUP(VLOOKUP($C17,'Orçamento N_DESON.'!$D$11:$G$1596,2,FALSE),'Index N_DESON.'!$A$9:$B$604,2),VLOOKUP($C17,'Orçamento N_DESON.'!$D$11:$G$1596,3,FALSE)) -> 0 | E17: =VLOOKUP($C17,'Orçamento N_DESON.'!$D$11:$S$1153,2,FALSE) -> 0 | F17: =Dados!$C$7 -> 2021-10-01 | G17: =VLOOKUP($C17,'Orçamento N_DESON.'!$D$11:$S$1153,4,FALSE) -> - | H17: =VLOOKUP($C17,'Orçamento N_DESON.'!$D$11:$S$1153,6,FALSE) -> 0 | I17: =VLOOKUP($C17,'Orçamento N_DESON.'!$D$11:$S$1153,5,FALSE) -> - | J17: =IF(Comparativo!$E$6="Tabela Não Desonerada",VLOOKUP($C17,'Orçamento N_DESON.'!$D$11:$S$1153,12,FALSE),VLOOKUP($C17,'Orçamento DESON.'!$D$11:$S$1152,12,FALSE)) -> - | K17: =IF(Comparativo!$E$6="Tabela Não Desonerada",VLOOKUP($C17,'Orçamento N_DESON.'!$D$11:$S$1153,16,FALSE),VLOOKUP($C17,'Orçamento DESON.'!$D$11:$S$1152,16,FALSE)) -> 0 | L17: =IF(Comparativo!$E$6="Tabela Não Desonerada",VLOOKUP($C17,'Orçamento N_DESON.'!$D$11:$S$1153,11,FALSE),VLOOKUP($C17,'Orçamento DESON.'!$D$11:$S$1152,11,FALSE)) -> - | M17: =IF(Comparativo!$E$6="Tabela Não Desonerada",Encargos!$F$44,Encargos!$D$44) -> 1.111
B18: =IF(AND(G18<>"",H18>0,I18<>"",J18<>0,K18<>0),COUNT($B$11:B17)+1,"") ->  | C18: ='Orçamento N_DESON.'!D17 -> 1.7 | D18: =IF(VLOOKUP($C18,'Orçamento N_DESON.'!$D$11:$G$1596,3,FALSE)="INDEXADO",VLOOKUP(VLOOKUP($C18,'Orçamento N_DESON.'!$D$11:$G$1596,2,FALSE),'Index N_DESON.'!$A$9:$B$604,2),VLOOKUP($C18,'Orçamento N_DESON.'!$D$11:$G$1596,3,FALSE)) -> 0 | E18: =VLOOKUP($C18,'Orçamento N_DESON.'!$D$11:$S$1153,2,FALSE) -> 0 | F18: =Dados!$C$7 -> 2021-10-01 | G18: =VLOOKUP($C18,'Orçamento N_DESON.'!$D$11:$S$1153,4,FALSE) -> - | H18: =VLOOKUP($C18,'Orçamento N_DESON.'!$D$11:$S$1153,6,FALSE) -> 0 | I18: =VLOOKUP($C18,'Orçamento N_DESON.'!$D$11:$S$1153,5,FALSE) -> - | J18: =IF(Comparativo!$E$6="Tabela Não Desonerada",VLOOKUP($C18,'Orçamento N_DESON.'!$D$11:$S$1153,12,FALSE),VLOOKUP($C18,'Orçamento DESON.'!$D$11:$S$1152,12,FALSE)) -> - | K18: =IF(Comparativo!$E$6="Tabela Não Desonerada",VLOOKUP($C18,'Orçamento N_DESON.'!$D$11:$S$1153,16,FALSE),VLOOKUP($C18,'Orçamento DESON.'!$D$11:$S$1152,16,FALSE)) -> 0 | L18: =IF(Comparativo!$E$6="Tabela Não Desonerada",VLOOKUP($C18,'Orçamento N_DESON.'!$D$11:$S$1153,11,FALSE),VLOOKUP($C18,'Orçamento DESON.'!$D$11:$S$1152,11,FALSE)) -> - | M18: =IF(Comparativo!$E$6="Tabela Não Desonerada",Encargos!$F$44,Encargos!$D$44) -> 1.111
B19: =IF(AND(G19<>"",H19>0,I19<>"",J19<>0,K19<>0),COUNT($B$11:B18)+1,"") ->  | C19: ='Orçamento N_DESON.'!D18 -> 1.8 | D19: =IF(VLOOKUP($C19,'Orçamento N_DESON.'!$D$11:$G$1596,3,FALSE)="INDEXADO",VLOOKUP(VLOOKUP($C19,'Orçamento N_DESON.'!$D$11:$G$1596,2,FALSE),'Index N_DESON.'!$A$9:$B$604,2),VLOOKUP($C19,'Orçamento N_DESON.'!$D$11:$G$1596,3,FALSE)) -> 0 | E19: =VLOOKUP($C19,'Orçamento N_DESON.'!$D$11:$S$1153,2,FALSE) -> 0 | F19: =Dados!$C$7 -> 2021-10-01 | G19: =VLOOKUP($C19,'Orçamento N_DESON.'!$D$11:$S$1153,4,FALSE) -> - | H19: =VLOOKUP($C19,'Orçamento N_DESON.'!$D$11:$S$1153,6,FALSE) -> 0 | I19: =VLOOKUP($C19,'Orçamento N_DESON.'!$D$11:$S$1153,5,FALSE) -> - | J19: =IF(Comparativo!$E$6="Tabela Não Desonerada",VLOOKUP($C19,'Orçamento N_DESON.'!$D$11:$S$1153,12,FALSE),VLOOKUP($C19,'Orçamento DESON.'!$D$11:$S$1152,12,FALSE)) -> - | K19: =IF(Comparativo!$E$6="Tabela Não Desonerada",VLOOKUP($C19,'Orçamento N_DESON.'!$D$11:$S$1153,16,FALSE),VLOOKUP($C19,'Orçamento DESON.'!$D$11:$S$1152,16,FALSE)) -> 0 | L19: =IF(Comparativo!$E$6="Tabela Não Desonerada",VLOOKUP($C19,'Orçamento N_DESON.'!$D$11:$S$1153,11,FALSE),VLOOKUP($C19,'Orçamento DESON.'!$D$11:$S$1152,11,FALSE)) -> - | M19: =IF(Comparativo!$E$6="Tabela Não Desonerada",Encargos!$F$44,Encargos!$D$44) -> 1.111
B20: =IF(AND(G20<>"",H20>0,I20<>"",J20<>0,K20<>0),COUNT($B$11:B19)+1,"") ->  | C20: ='Orçamento N_DESON.'!D19 -> 1.9 | D20: =IF(VLOOKUP($C20,'Orçamento N_DESON.'!$D$11:$G$1596,3,FALSE)="INDEXADO",VLOOKUP(VLOOKUP($C20,'Orçamento N_DESON.'!$D$11:$G$1596,2,FALSE),'Index N_DESON.'!$A$9:$B$604,2),VLOOKUP($C20,'Orçamento N_DESON.'!$D$11:$G$1596,3,FALSE)) -> 0 | E20: =VLOOKUP($C20,'Orçamento N_DESON.'!$D$11:$S$1153,2,FALSE) -> 0 | F20: =Dados!$C$7 -> 2021-10-01 | G20: =VLOOKUP($C20,'Orçamento N_DESON.'!$D$11:$S$1153,4,FALSE) -> - | H20: =VLOOKUP($C20,'Orçamento N_DESON.'!$D$11:$S$1153,6,FALSE) -> 0 | I20: =VLOOKUP($C20,'Orçamento N_DESON.'!$D$11:$S$1153,5,FALSE) -> - | J20: =IF(Comparativo!$E$6="Tabela Não Desonerada",VLOOKUP($C20,'Orçamento N_DESON.'!$D$11:$S$1153,12,FALSE),VLOOKUP($C20,'Orçamento DESON.'!$D$11:$S$1152,12,FALSE)) -> - | K20: =IF(Comparativo!$E$6="Tabela Não Desonerada",VLOOKUP($C20,'Orçamento N_DESON.'!$D$11:$S$1153,16,FALSE),VLOOKUP($C20,'Orçamento DESON.'!$D$11:$S$1152,16,FALSE)) -> 0 | L20: =IF(Comparativo!$E$6="Tabela Não Desonerada",VLOOKUP($C20,'Orçamento N_DESON.'!$D$11:$S$1153,11,FALSE),VLOOKUP($C20,'Orçamento DESON.'!$D$11:$S$1152,11,FALSE)) -> - | M20: =IF(Comparativo!$E$6="Tabela Não Desonerada",Encargos!$F$44,Encargos!$D$44) -> 1.111
B21: =IF(AND(G21<>"",H21>0,I21<>"",J21<>0,K21<>0),COUNT($B$11:B20)+1,"") ->  | C21: ='Orçamento N_DESON.'!D20 -> 1.10 | D21: =IF(VLOOKUP($C21,'Orçamento N_DESON.'!$D$11:$G$1596,3,FALSE)="INDEXADO",VLOOKUP(VLOOKUP($C21,'Orçamento N_DESON.'!$D$11:$G$1596,2,FALSE),'Index N_DESON.'!$A$9:$B$604,2),VLOOKUP($C21,'Orçamento N_DESON.'!$D$11:$G$1596,3,FALSE)) -> 0 | E21: =VLOOKUP($C21,'Orçamento N_DESON.'!$D$11:$S$1153,2,FALSE) -> 0 | F21: =Dados!$C$7 -> 2021-10-01 | G21: =VLOOKUP($C21,'Orçamento N_DESON.'!$D$11:$S$1153,4,FALSE) -> - | H21: =VLOOKUP($C21,'Orçamento N_DESON.'!$D$11:$S$1153,6,FALSE) -> 0 | I21: =VLOOKUP($C21,'Orçamento N_DESON.'!$D$11:$S$1153,5,FALSE) -> - | J21: =IF(Comparativo!$E$6="Tabela Não Desonerada",VLOOKUP($C21,'Orçamento N_DESON.'!$D$11:$S$1153,12,FALSE),VLOOKUP($C21,'Orçamento DESON.'!$D$11:$S$1152,12,FALSE)) -> - | K21: =IF(Comparativo!$E$6="Tabela Não Desonerada",VLOOKUP($C21,'Orçamento N_DESON.'!$D$11:$S$1153,16,FALSE),VLOOKUP($C21,'Orçamento DESON.'!$D$11:$S$1152,16,FALSE)) -> 0 | L21: =IF(Comparativo!$E$6="Tabela Não Desonerada",VLOOKUP($C21,'Orçamento N_DESON.'!$D$11:$S$1153,11,FALSE),VLOOKUP($C21,'Orçamento DESON.'!$D$11:$S$1152,11,FALSE)) -> - | M21: =IF(Comparativo!$E$6="Tabela Não Desonerada",Encargos!$F$44,Encargos!$D$44) -> 1.111
B22: =IF(AND(G22<>"",H22>0,I22<>"",J22<>0,K22<>0),COUNT($B$11:B21)+1,"") ->  | C22: ='Orçamento N_DESON.'!D21 -> 1.11 | D22: =IF(VLOOKUP($C22,'Orçamento N_DESON.'!$D$11:$G$1596,3,FALSE)="INDEXADO",VLOOKUP(VLOOKUP($C22,'Orçamento N_DESON.'!$D$11:$G$1596,2,FALSE),'Index N_DESON.'!$A$9:$B$604,2),VLOOKUP($C22,'Orçamento N_DESON.'!$D$11:$G$1596,3,FALSE)) -> 0 | E22: =VLOOKUP($C22,'Orçamento N_DESON.'!$D$11:$S$1153,2,FALSE) -> 0 | F22: =Dados!$C$7 -> 2021-10-01 | G22: =VLOOKUP($C22,'Orçamento N_DESON.'!$D$11:$S$1153,4,FALSE) -> - | H22: =VLOOKUP($C22,'Orçamento N_DESON.'!$D$11:$S$1153,6,FALSE) -> 0 | I22: =VLOOKUP($C22,'Orçamento N_DESON.'!$D$11:$S$1153,5,FALSE) -> - | J22: =IF(Comparativo!$E$6="Tabela Não Desonerada",VLOOKUP($C22,'Orçamento N_DESON.'!$D$11:$S$1153,12,FALSE),VLOOKUP($C22,'Orçamento DESON.'!$D$11:$S$1152,12,FALSE)) -> - | K22: =IF(Comparativo!$E$6="Tabela Não Desonerada",VLOOKUP($C22,'Orçamento N_DESON.'!$D$11:$S$1153,16,FALSE),VLOOKUP($C22,'Orçamento DESON.'!$D$11:$S$1152,16,FALSE)) -> 0 | L22: =IF(Comparativo!$E$6="Tabela Não Desonerada",VLOOKUP($C22,'Orçamento N_DESON.'!$D$11:$S$1153,11,FALSE),VLOOKUP($C22,'Orçamento DESON.'!$D$11:$S$1152,11,FALSE)) -> - | M22: =IF(Comparativo!$E$6="Tabela Não Desonerada",Encargos!$F$44,Encargos!$D$44) -> 1.111
B23: =IF(AND(G23<>"",H23>0,I23<>"",J23<>0,K23<>0),COUNT($B$11:B22)+1,"") ->  | C23: ='Orçamento N_DESON.'!D22 -> 1.12 | D23: =IF(VLOOKUP($C23,'Orçamento N_DESON.'!$D$11:$G$1596,3,FALSE)="INDEXADO",VLOOKUP(VLOOKUP($C23,'Orçamento N_DESON.'!$D$11:$G$1596,2,FALSE),'Index N_DESON.'!$A$9:$B$604,2),VLOOKUP($C23,'Orçamento N_DESON.'!$D$11:$G$1596,3,FALSE)) -> 0 | E23: =VLOOKUP($C23,'Orçamento N_DESON.'!$D$11:$S$1153,2,FALSE) -> 0 | F23: =Dados!$C$7 -> 2021-10-01 | G23: =VLOOKUP($C23,'Orçamento N_DESON.'!$D$11:$S$1153,4,FALSE) -> - | H23: =VLOOKUP($C23,'Orçamento N_DESON.'!$D$11:$S$1153,6,FALSE) -> 0 | I23: =VLOOKUP($C23,'Orçamento N_DESON.'!$D$11:$S$1153,5,FALSE) -> - | J23: =IF(Comparativo!$E$6="Tabela Não Desonerada",VLOOKUP($C23,'Orçamento N_DESON.'!$D$11:$S$1153,12,FALSE),VLOOKUP($C23,'Orçamento DESON.'!$D$11:$S$1152,12,FALSE)) -> - | K23: =IF(Comparativo!$E$6="Tabela Não Desonerada",VLOOKUP($C23,'Orçamento N_DESON.'!$D$11:$S$1153,16,FALSE),VLOOKUP($C23,'Orçamento DESON.'!$D$11:$S$1152,16,FALSE)) -> 0 | L23: =IF(Comparativo!$E$6="Tabela Não Desonerada",VLOOKUP($C23,'Orçamento N_DESON.'!$D$11:$S$1153,11,FALSE),VLOOKUP($C23,'Orçamento DESON.'!$D$11:$S$1152,11,FALSE)) -> - | M23: =IF(Comparativo!$E$6="Tabela Não Desonerada",Encargos!$F$44,Encargos!$D$44) -> 1.111
B24: =IF(AND(G24<>"",H24>0,I24<>"",J24<>0,K24<>0),COUNT($B$11:B23)+1,"") ->  | C24: ='Orçamento N_DESON.'!D23 -> 1.13 | D24: =IF(VLOOKUP($C24,'Orçamento N_DESON.'!$D$11:$G$1596,3,FALSE)="INDEXADO",VLOOKUP(VLOOKUP($C24,'Orçamento N_DESON.'!$D$11:$G$1596,2,FALSE),'Index N_DESON.'!$A$9:$B$604,2),VLOOKUP($C24,'Orçamento N_DESON.'!$D$11:$G$1596,3,FALSE)) -> 0 | E24: =VLOOKUP($C24,'Orçamento N_DESON.'!$D$11:$S$1153,2,FALSE) -> 0 | F24: =Dados!$C$7 -> 2021-10-01 | G24: =VLOOKUP($C24,'Orçamento N_DESON.'!$D$11:$S$1153,4,FALSE) -> - | H24: =VLOOKUP($C24,'Orçamento N_DESON.'!$D$11:$S$1153,6,FALSE) -> 0 | I24: =VLOOKUP($C24,'Orçamento N_DESON.'!$D$11:$S$1153,5,FALSE) -> - | J24: =IF(Comparativo!$E$6="Tabela Não Desonerada",VLOOKUP($C24,'Orçamento N_DESON.'!$D$11:$S$1153,12,FALSE),VLOOKUP($C24,'Orçamento DESON.'!$D$11:$S$1152,12,FALSE)) -> - | K24: =IF(Comparativo!$E$6="Tabela Não Desonerada",VLOOKUP($C24,'Orçamento N_DESON.'!$D$11:$S$1153,16,FALSE),VLOOKUP($C24,'Orçamento DESON.'!$D$11:$S$1152,16,FALSE)) -> 0 | L24: =IF(Comparativo!$E$6="Tabela Não Desonerada",VLOOKUP($C24,'Orçamento N_DESON.'!$D$11:$S$1153,11,FALSE),VLOOKUP($C24,'Orçamento DESON.'!$D$11:$S$1152,11,FALSE)) -> - | M24: =IF(Comparativo!$E$6="Tabela Não Desonerada",Encargos!$F$44,Encargos!$D$44) -> 1.111
B25: =IF(AND(G25<>"",H25>0,I25<>"",J25<>0,K25<>0),COUNT($B$11:B24)+1,"") ->  | C25: ='Orçamento N_DESON.'!D24 -> 1.14 | D25: =IF(VLOOKUP($C25,'Orçamento N_DESON.'!$D$11:$G$1596,3,FALSE)="INDEXADO",VLOOKUP(VLOOKUP($C25,'Orçamento N_DESON.'!$D$11:$G$1596,2,FALSE),'Index N_DESON.'!$A$9:$B$604,2),VLOOKUP($C25,'Orçamento N_DESON.'!$D$11:$G$1596,3,FALSE)) -> 0 | E25: =VLOOKUP($C25,'Orçamento N_DESON.'!$D$11:$S$1153,2,FALSE) -> 0 | F25: =Dados!$C$7 -> 2021-10-01 | G25: =VLOOKUP($C25,'Orçamento N_DESON.'!$D$11:$S$1153,4,FALSE) -> - | H25: =VLOOKUP($C25,'Orçamento N_DESON.'!$D$11:$S$1153,6,FALSE) -> 0 | I25: =VLOOKUP($C25,'Orçamento N_DESON.'!$D$11:$S$1153,5,FALSE) -> - | J25: =IF(Comparativo!$E$6="Tabela Não Desonerada",VLOOKUP($C25,'Orçamento N_DESON.'!$D$11:$S$1153,12,FALSE),VLOOKUP($C25,'Orçamento DESON.'!$D$11:$S$1152,12,FALSE)) -> - | K25: =IF(Comparativo!$E$6="Tabela Não Desonerada",VLOOKUP($C25,'Orçamento N_DESON.'!$D$11:$S$1153,16,FALSE),VLOOKUP($C25,'Orçamento DESON.'!$D$11:$S$1152,16,FALSE)) -> 0 | L25: =IF(Comparativo!$E$6="Tabela Não Desonerada",VLOOKUP($C25,'Orçamento N_DESON.'!$D$11:$S$1153,11,FALSE),VLOOKUP($C25,'Orçamento DESON.'!$D$11:$S$1152,11,FALSE)) -> - | M25: =IF(Comparativo!$E$6="Tabela Não Desonerada",Encargos!$F$44,Encargos!$D$44) -> 1.111
B26: =IF(AND(G26<>"",H26>0,I26<>"",J26<>0,K26<>0),COUNT($B$11:B25)+1,"") ->  | C26: ='Orçamento N_DESON.'!D25 -> 1.15 | D26: =IF(VLOOKUP($C26,'Orçamento N_DESON.'!$D$11:$G$1596,3,FALSE)="INDEXADO",VLOOKUP(VLOOKUP($C26,'Orçamento N_DESON.'!$D$11:$G$1596,2,FALSE),'Index N_DESON.'!$A$9:$B$604,2),VLOOKUP($C26,'Orçamento N_DESON.'!$D$11:$G$1596,3,FALSE)) -> 0 | E26: =VLOOKUP($C26,'Orçamento N_DESON.'!$D$11:$S$1153,2,FALSE) -> 0 | F26: =Dados!$C$7 -> 2021-10-01 | G26: =VLOOKUP($C26,'Orçamento N_DESON.'!$D$11:$S$1153,4,FALSE) -> - | H26: =VLOOKUP($C26,'Orçamento N_DESON.'!$D$11:$S$1153,6,FALSE) -> 0 | I26: =VLOOKUP($C26,'Orçamento N_DESON.'!$D$11:$S$1153,5,FALSE) -> - | J26: =IF(Comparativo!$E$6="Tabela Não Desonerada",VLOOKUP($C26,'Orçamento N_DESON.'!$D$11:$S$1153,12,FALSE),VLOOKUP($C26,'Orçamento DESON.'!$D$11:$S$1152,12,FALSE)) -> - | K26: =IF(Comparativo!$E$6="Tabela Não Desonerada",VLOOKUP($C26,'Orçamento N_DESON.'!$D$11:$S$1153,16,FALSE),VLOOKUP($C26,'Orçamento DESON.'!$D$11:$S$1152,16,FALSE)) -> 0 | L26: =IF(Comparativo!$E$6="Tabela Não Desonerada",VLOOKUP($C26,'Orçamento N_DESON.'!$D$11:$S$1153,11,FALSE),VLOOKUP($C26,'Orçamento DESON.'!$D$11:$S$1152,11,FALSE)) -> - | M26: =IF(Comparativo!$E$6="Tabela Não Desonerada",Encargos!$F$44,Encargos!$D$44) -> 1.111
B27: =IF(AND(G27<>"",H27>0,I27<>"",J27<>0,K27<>0),COUNT($B$11:B26)+1,"") ->  | C27: ='Orçamento N_DESON.'!D26 -> 1.16 | D27: =IF(VLOOKUP($C27,'Orçamento N_DESON.'!$D$11:$G$1596,3,FALSE)="INDEXADO",VLOOKUP(VLOOKUP($C27,'Orçamento N_DESON.'!$D$11:$G$1596,2,FALSE),'Index N_DESON.'!$A$9:$B$604,2),VLOOKUP($C27,'Orçamento N_DESON.'!$D$11:$G$1596,3,FALSE)) -> 0 | E27: =VLOOKUP($C27,'Orçamento N_DESON.'!$D$11:$S$1153,2,FALSE) -> 0 | F27: =Dados!$C$7 -> 2021-10-01 | G27: =VLOOKUP($C27,'Orçamento N_DESON.'!$D$11:$S$1153,4,FALSE) -> - | H27: =VLOOKUP($C27,'Orçamento N_DESON.'!$D$11:$S$1153,6,FALSE) -> 0 | I27: =VLOOKUP($C27,'Orçamento N_DESON.'!$D$11:$S$1153,5,FALSE) -> - | J27: =IF(Comparativo!$E$6="Tabela Não Desonerada",VLOOKUP($C27,'Orçamento N_DESON.'!$D$11:$S$1153,12,FALSE),VLOOKUP($C27,'Orçamento DESON.'!$D$11:$S$1152,12,FALSE)) -> - | K27: =IF(Comparativo!$E$6="Tabela Não Desonerada",VLOOKUP($C27,'Orçamento N_DESON.'!$D$11:$S$1153,16,FALSE),VLOOKUP($C27,'Orçamento DESON.'!$D$11:$S$1152,16,FALSE)) -> 0 | L27: =IF(Comparativo!$E$6="Tabela Não Desonerada",VLOOKUP($C27,'Orçamento N_DESON.'!$D$11:$S$1153,11,FALSE),VLOOKUP($C27,'Orçamento DESON.'!$D$11:$S$1152,11,FALSE)) -> - | M27: =IF(Comparativo!$E$6="Tabela Não Desonerada",Encargos!$F$44,Encargos!$D$44) -> 1.111
B28: =IF(AND(G28<>"",H28>0,I28<>"",J28<>0,K28<>0),COUNT($B$11:B27)+1,"") ->  | C28: ='Orçamento N_DESON.'!D27 -> 1.17 | D28: =IF(VLOOKUP($C28,'Orçamento N_DESON.'!$D$11:$G$1596,3,FALSE)="INDEXADO",VLOOKUP(VLOOKUP($C28,'Orçamento N_DESON.'!$D$11:$G$1596,2,FALSE),'Index N_DESON.'!$A$9:$B$604,2),VLOOKUP($C28,'Orçamento N_DESON.'!$D$11:$G$1596,3,FALSE)) -> 0 | E28: =VLOOKUP($C28,'Orçamento N_DESON.'!$D$11:$S$1153,2,FALSE) -> 0 | F28: =Dados!$C$7 -> 2021-10-01 | G28: =VLOOKUP($C28,'Orçamento N_DESON.'!$D$11:$S$1153,4,FALSE) -> - | H28: =VLOOKUP($C28,'Orçamento N_DESON.'!$D$11:$S$1153,6,FALSE) -> 0 | I28: =VLOOKUP($C28,'Orçamento N_DESON.'!$D$11:$S$1153,5,FALSE) -> - | J28: =IF(Comparativo!$E$6="Tabela Não Desonerada",VLOOKUP($C28,'Orçamento N_DESON.'!$D$11:$S$1153,12,FALSE),VLOOKUP($C28,'Orçamento DESON.'!$D$11:$S$1152,12,FALSE)) -> - | K28: =IF(Comparativo!$E$6="Tabela Não Desonerada",VLOOKUP($C28,'Orçamento N_DESON.'!$D$11:$S$1153,16,FALSE),VLOOKUP($C28,'Orçamento DESON.'!$D$11:$S$1152,16,FALSE)) -> 0 | L28: =IF(Comparativo!$E$6="Tabela Não Desonerada",VLOOKUP($C28,'Orçamento N_DESON.'!$D$11:$S$1153,11,FALSE),VLOOKUP($C28,'Orçamento DESON.'!$D$11:$S$1152,11,FALSE)) -> - | M28: =IF(Comparativo!$E$6="Tabela Não Desonerada",Encargos!$F$44,Encargos!$D$44) -> 1.111
B29: =IF(AND(G29<>"",H29>0,I29<>"",J29<>0,K29<>0),COUNT($B$11:B28)+1,"") ->  | C29: ='Orçamento N_DESON.'!D28 -> 1.18 | D29: =IF(VLOOKUP($C29,'Orçamento N_DESON.'!$D$11:$G$1596,3,FALSE)="INDEXADO",VLOOKUP(VLOOKUP($C29,'Orçamento N_DESON.'!$D$11:$G$1596,2,FALSE),'Index N_DESON.'!$A$9:$B$604,2),VLOOKUP($C29,'Orçamento N_DESON.'!$D$11:$G$1596,3,FALSE)) -> 0 | E29: =VLOOKUP($C29,'Orçamento N_DESON.'!$D$11:$S$1153,2,FALSE) -> 0 | F29: =Dados!$C$7 -> 2021-10-01 | G29: =VLOOKUP($C29,'Orçamento N_DESON.'!$D$11:$S$1153,4,FALSE) -> - | H29: =VLOOKUP($C29,'Orçamento N_DESON.'!$D$11:$S$1153,6,FALSE) -> 0 | I29: =VLOOKUP($C29,'Orçamento N_DESON.'!$D$11:$S$1153,5,FALSE) -> - | J29: =IF(Comparativo!$E$6="Tabela Não Desonerada",VLOOKUP($C29,'Orçamento N_DESON.'!$D$11:$S$1153,12,FALSE),VLOOKUP($C29,'Orçamento DESON.'!$D$11:$S$1152,12,FALSE)) -> - | K29: =IF(Comparativo!$E$6="Tabela Não Desonerada",VLOOKUP($C29,'Orçamento N_DESON.'!$D$11:$S$1153,16,FALSE),VLOOKUP($C29,'Orçamento DESON.'!$D$11:$S$1152,16,FALSE)) -> 0 | L29: =IF(Comparativo!$E$6="Tabela Não Desonerada",VLOOKUP($C29,'Orçamento N_DESON.'!$D$11:$S$1153,11,FALSE),VLOOKUP($C29,'Orçamento DESON.'!$D$11:$S$1152,11,FALSE)) -> - | M29: =IF(Comparativo!$E$6="Tabela Não Desonerada",Encargos!$F$44,Encargos!$D$44) -> 1.111
B30: =IF(AND(G30<>"",H30>0,I30<>"",J30<>0,K30<>0),COUNT($B$11:B29)+1,"") ->  | C30: ='Orçamento N_DESON.'!D29 -> 1.19 | D30: =IF(VLOOKUP($C30,'Orçamento N_DESON.'!$D$11:$G$1596,3,FALSE)="INDEXADO",VLOOKUP(VLOOKUP($C30,'Orçamento N_DESON.'!$D$11:$G$1596,2,FALSE),'Index N_DESON.'!$A$9:$B$604,2),VLOOKUP($C30,'Orçamento N_DESON.'!$D$11:$G$1596,3,FALSE)) -> 0 | E30: =VLOOKUP($C30,'Orçamento N_DESON.'!$D$11:$S$1153,2,FALSE) -> 0 | F30: =Dados!$C$7 -> 2021-10-01 | G30: =VLOOKUP($C30,'Orçamento N_DESON.'!$D$11:$S$1153,4,FALSE) -> - | H30: =VLOOKUP($C30,'Orçamento N_DESON.'!$D$11:$S$1153,6,FALSE) -> 0 | I30: =VLOOKUP($C30,'Orçamento N_DESON.'!$D$11:$S$1153,5,FALSE) -> - | J30: =IF(Comparativo!$E$6="Tabela Não Desonerada",VLOOKUP($C30,'Orçamento N_DESON.'!$D$11:$S$1153,12,FALSE),VLOOKUP($C30,'Orçamento DESON.'!$D$11:$S$1152,12,FALSE)) -> - | K30: =IF(Comparativo!$E$6="Tabela Não Desonerada",VLOOKUP($C30,'Orçamento N_DESON.'!$D$11:$S$1153,16,FALSE),VLOOKUP($C30,'Orçamento DESON.'!$D$11:$S$1152,16,FALSE)) -> 0 | L30: =IF(Comparativo!$E$6="Tabela Não Desonerada",VLOOKUP($C30,'Orçamento N_DESON.'!$D$11:$S$1153,11,FALSE),VLOOKUP($C30,'Orçamento DESON.'!$D$11:$S$1152,11,FALSE)) -> - | M30: =IF(Comparativo!$E$6="Tabela Não Desonerada",Encargos!$F$44,Encargos!$D$44) -> 1.111
B31: =IF(AND(G31<>"",H31>0,I31<>"",J31<>0,K31<>0),COUNT($B$11:B30)+1,"") ->  | C31: ='Orçamento N_DESON.'!D30 -> 1.20 | D31: =IF(VLOOKUP($C31,'Orçamento N_DESON.'!$D$11:$G$1596,3,FALSE)="INDEXADO",VLOOKUP(VLOOKUP($C31,'Orçamento N_DESON.'!$D$11:$G$1596,2,FALSE),'Index N_DESON.'!$A$9:$B$604,2),VLOOKUP($C31,'Orçamento N_DESON.'!$D$11:$G$1596,3,FALSE)) -> 0 | E31: =VLOOKUP($C31,'Orçamento N_DESON.'!$D$11:$S$1153,2,FALSE) -> 0 | F31: =Dados!$C$7 -> 2021-10-01 | G31: =VLOOKUP($C31,'Orçamento N_DESON.'!$D$11:$S$1153,4,FALSE) -> - | H31: =VLOOKUP($C31,'Orçamento N_DESON.'!$D$11:$S$1153,6,FALSE) -> 0 | I31: =VLOOKUP($C31,'Orçamento N_DESON.'!$D$11:$S$1153,5,FALSE) -> - | J31: =IF(Comparativo!$E$6="Tabela Não Desonerada",VLOOKUP($C31,'Orçamento N_DESON.'!$D$11:$S$1153,12,FALSE),VLOOKUP($C31,'Orçamento DESON.'!$D$11:$S$1152,12,FALSE)) -> - | K31: =IF(Comparativo!$E$6="Tabela Não Desonerada",VLOOKUP($C31,'Orçamento N_DESON.'!$D$11:$S$1153,16,FALSE),VLOOKUP($C31,'Orçamento DESON.'!$D$11:$S$1152,16,FALSE)) -> 0 | L31: =IF(Comparativo!$E$6="Tabela Não Desonerada",VLOOKUP($C31,'Orçamento N_DESON.'!$D$11:$S$1153,11,FALSE),VLOOKUP($C31,'Orçamento DESON.'!$D$11:$S$1152,11,FALSE)) -> - | M31: =IF(Comparativo!$E$6="Tabela Não Desonerada",Encargos!$F$44,Encargos!$D$44) -> 1.111
B32: =IF(AND(G32<>"",H32>0,I32<>"",J32<>0,K32<>0),COUNT($B$11:B31)+1,"") ->  | C32: ='Orçamento N_DESON.'!D31 -> 1.21 | D32: =IF(VLOOKUP($C32,'Orçamento N_DESON.'!$D$11:$G$1596,3,FALSE)="INDEXADO",VLOOKUP(VLOOKUP($C32,'Orçamento N_DESON.'!$D$11:$G$1596,2,FALSE),'Index N_DESON.'!$A$9:$B$604,2),VLOOKUP($C32,'Orçamento N_DESON.'!$D$11:$G$1596,3,FALSE)) -> 0 | E32: =VLOOKUP($C32,'Orçamento N_DESON.'!$D$11:$S$1153,2,FALSE) -> 0 | F32: =Dados!$C$7 -> 2021-10-01 | G32: =VLOOKUP($C32,'Orçamento N_DESON.'!$D$11:$S$1153,4,FALSE) -> - | H32: =VLOOKUP($C32,'Orçamento N_DESON.'!$D$11:$S$1153,6,FALSE) -> 0 | I32: =VLOOKUP($C32,'Orçamento N_DESON.'!$D$11:$S$1153,5,FALSE) -> - | J32: =IF(Comparativo!$E$6="Tabela Não Desonerada",VLOOKUP($C32,'Orçamento N_DESON.'!$D$11:$S$1153,12,FALSE),VLOOKUP($C32,'Orçamento DESON.'!$D$11:$S$1152,12,FALSE)) -> - | K32: =IF(Comparativo!$E$6="Tabela Não Desonerada",VLOOKUP($C32,'Orçamento N_DESON.'!$D$11:$S$1153,16,FALSE),VLOOKUP($C32,'Orçamento DESON.'!$D$11:$S$1152,16,FALSE)) -> 0 | L32: =IF(Comparativo!$E$6="Tabela Não Desonerada",VLOOKUP($C32,'Orçamento N_DESON.'!$D$11:$S$1153,11,FALSE),VLOOKUP($C32,'Orçamento DESON.'!$D$11:$S$1152,11,FALSE)) -> - | M32: =IF(Comparativo!$E$6="Tabela Não Desonerada",Encargos!$F$44,Encargos!$D$44) -> 1.111
B33: =IF(AND(G33<>"",H33>0,I33<>"",J33<>0,K33<>0),COUNT($B$11:B32)+1,"") ->  | C33: ='Orçamento N_DESON.'!D32 -> 1.22 | D33: =IF(VLOOKUP($C33,'Orçamento N_DESON.'!$D$11:$G$1596,3,FALSE)="INDEXADO",VLOOKUP(VLOOKUP($C33,'Orçamento N_DESON.'!$D$11:$G$1596,2,FALSE),'Index N_DESON.'!$A$9:$B$604,2),VLOOKUP($C33,'Orçamento N_DESON.'!$D$11:$G$1596,3,FALSE)) -> 0 | E33: =VLOOKUP($C33,'Orçamento N_DESON.'!$D$11:$S$1153,2,FALSE) -> 0 | F33: =Dados!$C$7 -> 2021-10-01 | G33: =VLOOKUP($C33,'Orçamento N_DESON.'!$D$11:$S$1153,4,FALSE) -> - | H33: =VLOOKUP($C33,'Orçamento N_DESON.'!$D$11:$S$1153,6,FALSE) -> 0 | I33: =VLOOKUP($C33,'Orçamento N_DESON.'!$D$11:$S$1153,5,FALSE) -> - | J33: =IF(Comparativo!$E$6="Tabela Não Desonerada",VLOOKUP($C33,'Orçamento N_DESON.'!$D$11:$S$1153,12,FALSE),VLOOKUP($C33,'Orçamento DESON.'!$D$11:$S$1152,12,FALSE)) -> - | K33: =IF(Comparativo!$E$6="Tabela Não Desonerada",VLOOKUP($C33,'Orçamento N_DESON.'!$D$11:$S$1153,16,FALSE),VLOOKUP($C33,'Orçamento DESON.'!$D$11:$S$1152,16,FALSE)) -> 0 | L33: =IF(Comparativo!$E$6="Tabela Não Desonerada",VLOOKUP($C33,'Orçamento N_DESON.'!$D$11:$S$1153,11,FALSE),VLOOKUP($C33,'Orçamento DESON.'!$D$11:$S$1152,11,FALSE)) -> - | M33: =IF(Comparativo!$E$6="Tabela Não Desonerada",Encargos!$F$44,Encargos!$D$44) -> 1.111
B34: =IF(AND(G34<>"",H34>0,I34<>"",J34<>0,K34<>0),COUNT($B$11:B33)+1,"") ->  | C34: ='Orçamento N_DESON.'!D33 -> 1.23 | D34: =IF(VLOOKUP($C34,'Orçamento N_DESON.'!$D$11:$G$1596,3,FALSE)="INDEXADO",VLOOKUP(VLOOKUP($C34,'Orçamento N_DESON.'!$D$11:$G$1596,2,FALSE),'Index N_DESON.'!$A$9:$B$604,2),VLOOKUP($C34,'Orçamento N_DESON.'!$D$11:$G$1596,3,FALSE)) -> 0 | E34: =VLOOKUP($C34,'Orçamento N_DESON.'!$D$11:$S$1153,2,FALSE) -> 0 | F34: =Dados!$C$7 -> 2021-10-01 | G34: =VLOOKUP($C34,'Orçamento N_DESON.'!$D$11:$S$1153,4,FALSE) -> - | H34: =VLOOKUP($C34,'Orçamento N_DESON.'!$D$11:$S$1153,6,FALSE) -> 0 | I34: =VLOOKUP($C34,'Orçamento N_DESON.'!$D$11:$S$1153,5,FALSE) -> - | J34: =IF(Comparativo!$E$6="Tabela Não Desonerada",VLOOKUP($C34,'Orçamento N_DESON.'!$D$11:$S$1153,12,FALSE),VLOOKUP($C34,'Orçamento DESON.'!$D$11:$S$1152,12,FALSE)) -> - | K34: =IF(Comparativo!$E$6="Tabela Não Desonerada",VLOOKUP($C34,'Orçamento N_DESON.'!$D$11:$S$1153,16,FALSE),VLOOKUP($C34,'Orçamento DESON.'!$D$11:$S$1152,16,FALSE)) -> 0 | L34: =IF(Comparativo!$E$6="Tabela Não Desonerada",VLOOKUP($C34,'Orçamento N_DESON.'!$D$11:$S$1153,11,FALSE),VLOOKUP($C34,'Orçamento DESON.'!$D$11:$S$1152,11,FALSE)) -> - | M34: =IF(Comparativo!$E$6="Tabela Não Desonerada",Encargos!$F$44,Encargos!$D$44) -> 1.111
B35: =IF(AND(G35<>"",H35>0,I35<>"",J35<>0,K35<>0),COUNT($B$11:B34)+1,"") ->  | C35: ='Orçamento N_DESON.'!D34 -> 1.24 | D35: =IF(VLOOKUP($C35,'Orçamento N_DESON.'!$D$11:$G$1596,3,FALSE)="INDEXADO",VLOOKUP(VLOOKUP($C35,'Orçamento N_DESON.'!$D$11:$G$1596,2,FALSE),'Index N_DESON.'!$A$9:$B$604,2),VLOOKUP($C35,'Orçamento N_DESON.'!$D$11:$G$1596,3,FALSE)) -> 0 | E35: =VLOOKUP($C35,'Orçamento N_DESON.'!$D$11:$S$1153,2,FALSE) -> 0 | F35: =Dados!$C$7 -> 2021-10-01 | G35: =VLOOKUP($C35,'Orçamento N_DESON.'!$D$11:$S$1153,4,FALSE) -> - | H35: =VLOOKUP($C35,'Orçamento N_DESON.'!$D$11:$S$1153,6,FALSE) -> 0 | I35: =VLOOKUP($C35,'Orçamento N_DESON.'!$D$11:$S$1153,5,FALSE) -> - | J35: =IF(Comparativo!$E$6="Tabela Não Desonerada",VLOOKUP($C35,'Orçamento N_DESON.'!$D$11:$S$1153,12,FALSE),VLOOKUP($C35,'Orçamento DESON.'!$D$11:$S$1152,12,FALSE)) -> - | K35: =IF(Comparativo!$E$6="Tabela Não Desonerada",VLOOKUP($C35,'Orçamento N_DESON.'!$D$11:$S$1153,16,FALSE),VLOOKUP($C35,'Orçamento DESON.'!$D$11:$S$1152,16,FALSE)) -> 0 | L35: =IF(Comparativo!$E$6="Tabela Não Desonerada",VLOOKUP($C35,'Orçamento N_DESON.'!$D$11:$S$1153,11,FALSE),VLOOKUP($C35,'Orçamento DESON.'!$D$11:$S$1152,11,FALSE)) -> - | M35: =IF(Comparativo!$E$6="Tabela Não Desonerada",Encargos!$F$44,Encargos!$D$44) -> 1.111
B36: =IF(AND(G36<>"",H36>0,I36<>"",J36<>0,K36<>0),COUNT($B$11:B35)+1,"") ->  | C36: ='Orçamento N_DESON.'!D35 -> 1.25 | D36: =IF(VLOOKUP($C36,'Orçamento N_DESON.'!$D$11:$G$1596,3,FALSE)="INDEXADO",VLOOKUP(VLOOKUP($C36,'Orçamento N_DESON.'!$D$11:$G$1596,2,FALSE),'Index N_DESON.'!$A$9:$B$604,2),VLOOKUP($C36,'Orçamento N_DESON.'!$D$11:$G$1596,3,FALSE)) -> 0 | E36: =VLOOKUP($C36,'Orçamento N_DESON.'!$D$11:$S$1153,2,FALSE) -> 0 | F36: =Dados!$C$7 -> 2021-10-01 | G36: =VLOOKUP($C36,'Orçamento N_DESON.'!$D$11:$S$1153,4,FALSE) -> - | H36: =VLOOKUP($C36,'Orçamento N_DESON.'!$D$11:$S$1153,6,FALSE) -> 0 | I36: =VLOOKUP($C36,'Orçamento N_DESON.'!$D$11:$S$1153,5,FALSE) -> - | J36: =IF(Comparativo!$E$6="Tabela Não Desonerada",VLOOKUP($C36,'Orçamento N_DESON.'!$D$11:$S$1153,12,FALSE),VLOOKUP($C36,'Orçamento DESON.'!$D$11:$S$1152,12,FALSE)) -> - | K36: =IF(Comparativo!$E$6="Tabela Não Desonerada",VLOOKUP($C36,'Orçamento N_DESON.'!$D$11:$S$1153,16,FALSE),VLOOKUP($C36,'Orçamento DESON.'!$D$11:$S$1152,16,FALSE)) -> 0 | L36: =IF(Comparativo!$E$6="Tabela Não Desonerada",VLOOKUP($C36,'Orçamento N_DESON.'!$D$11:$S$1153,11,FALSE),VLOOKUP($C36,'Orçamento DESON.'!$D$11:$S$1152,11,FALSE)) -> - | M36: =IF(Comparativo!$E$6="Tabela Não Desonerada",Encargos!$F$44,Encargos!$D$44) -> 1.111
B37: =IF(AND(G37<>"",H37>0,I37<>"",J37<>0,K37<>0),COUNT($B$11:B36)+1,"") ->  | C37: ='Orçamento N_DESON.'!D36 -> 1.26 | D37: =IF(VLOOKUP($C37,'Orçamento N_DESON.'!$D$11:$G$1596,3,FALSE)="INDEXADO",VLOOKUP(VLOOKUP($C37,'Orçamento N_DESON.'!$D$11:$G$1596,2,FALSE),'Index N_DESON.'!$A$9:$B$604,2),VLOOKUP($C37,'Orçamento N_DESON.'!$D$11:$G$1596,3,FALSE)) -> 0 | E37: =VLOOKUP($C37,'Orçamento N_DESON.'!$D$11:$S$1153,2,FALSE) -> 0 | F37: =Dados!$C$7 -> 2021-10-01 | G37: =VLOOKUP($C37,'Orçamento N_DESON.'!$D$11:$S$1153,4,FALSE) -> - | H37: =VLOOKUP($C37,'Orçamento N_DESON.'!$D$11:$S$1153,6,FALSE) -> 0 | I37: =VLOOKUP($C37,'Orçamento N_DESON.'!$D$11:$S$1153,5,FALSE) -> - | J37: =IF(Comparativo!$E$6="Tabela Não Desonerada",VLOOKUP($C37,'Orçamento N_DESON.'!$D$11:$S$1153,12,FALSE),VLOOKUP($C37,'Orçamento DESON.'!$D$11:$S$1152,12,FALSE)) -> - | K37: =IF(Comparativo!$E$6="Tabela Não Desonerada",VLOOKUP($C37,'Orçamento N_DESON.'!$D$11:$S$1153,16,FALSE),VLOOKUP($C37,'Orçamento DESON.'!$D$11:$S$1152,16,FALSE)) -> 0 | L37: =IF(Comparativo!$E$6="Tabela Não Desonerada",VLOOKUP($C37,'Orçamento N_DESON.'!$D$11:$S$1153,11,FALSE),VLOOKUP($C37,'Orçamento DESON.'!$D$11:$S$1152,11,FALSE)) -> - | M37: =IF(Comparativo!$E$6="Tabela Não Desonerada",Encargos!$F$44,Encargos!$D$44) -> 1.111
B38: =IF(AND(G38<>"",H38>0,I38<>"",J38<>0,K38<>0),COUNT($B$11:B37)+1,"") ->  | C38: ='Orçamento N_DESON.'!D37 -> 1.27 | D38: =IF(VLOOKUP($C38,'Orçamento N_DESON.'!$D$11:$G$1596,3,FALSE)="INDEXADO",VLOOKUP(VLOOKUP($C38,'Orçamento N_DESON.'!$D$11:$G$1596,2,FALSE),'Index N_DESON.'!$A$9:$B$604,2),VLOOKUP($C38,'Orçamento N_DESON.'!$D$11:$G$1596,3,FALSE)) -> 0 | E38: =VLOOKUP($C38,'Orçamento N_DESON.'!$D$11:$S$1153,2,FALSE) -> 0 | F38: =Dados!$C$7 -> 2021-10-01 | G38: =VLOOKUP($C38,'Orçamento N_DESON.'!$D$11:$S$1153,4,FALSE) -> - | H38: =VLOOKUP($C38,'Orçamento N_DESON.'!$D$11:$S$1153,6,FALSE) -> 0 | I38: =VLOOKUP($C38,'Orçamento N_DESON.'!$D$11:$S$1153,5,FALSE) -> - | J38: =IF(Comparativo!$E$6="Tabela Não Desonerada",VLOOKUP($C38,'Orçamento N_DESON.'!$D$11:$S$1153,12,FALSE),VLOOKUP($C38,'Orçamento DESON.'!$D$11:$S$1152,12,FALSE)) -> - | K38: =IF(Comparativo!$E$6="Tabela Não Desonerada",VLOOKUP($C38,'Orçamento N_DESON.'!$D$11:$S$1153,16,FALSE),VLOOKUP($C38,'Orçamento DESON.'!$D$11:$S$1152,16,FALSE)) -> 0 | L38: =IF(Comparativo!$E$6="Tabela Não Desonerada",VLOOKUP($C38,'Orçamento N_DESON.'!$D$11:$S$1153,11,FALSE),VLOOKUP($C38,'Orçamento DESON.'!$D$11:$S$1152,11,FALSE)) -> - | M38: =IF(Comparativo!$E$6="Tabela Não Desonerada",Encargos!$F$44,Encargos!$D$44) -> 1.111
B39: =IF(AND(G39<>"",H39>0,I39<>"",J39<>0,K39<>0),COUNT($B$11:B38)+1,"") ->  | C39: ='Orçamento N_DESON.'!D38 -> 1.28 | D39: =IF(VLOOKUP($C39,'Orçamento N_DESON.'!$D$11:$G$1596,3,FALSE)="INDEXADO",VLOOKUP(VLOOKUP($C39,'Orçamento N_DESON.'!$D$11:$G$1596,2,FALSE),'Index N_DESON.'!$A$9:$B$604,2),VLOOKUP($C39,'Orçamento N_DESON.'!$D$11:$G$1596,3,FALSE)) -> 0 | E39: =VLOOKUP($C39,'Orçamento N_DESON.'!$D$11:$S$1153,2,FALSE) -> 0 | F39: =Dados!$C$7 -> 2021-10-01 | G39: =VLOOKUP($C39,'Orçamento N_DESON.'!$D$11:$S$1153,4,FALSE) -> - | H39: =VLOOKUP($C39,'Orçamento N_DESON.'!$D$11:$S$1153,6,FALSE) -> 0 | I39: =VLOOKUP($C39,'Orçamento N_DESON.'!$D$11:$S$1153,5,FALSE) -> - | J39: =IF(Comparativo!$E$6="Tabela Não Desonerada",VLOOKUP($C39,'Orçamento N_DESON.'!$D$11:$S$1153,12,FALSE),VLOOKUP($C39,'Orçamento DESON.'!$D$11:$S$1152,12,FALSE)) -> - | K39: =IF(Comparativo!$E$6="Tabela Não Desonerada",VLOOKUP($C39,'Orçamento N_DESON.'!$D$11:$S$1153,16,FALSE),VLOOKUP($C39,'Orçamento DESON.'!$D$11:$S$1152,16,FALSE)) -> 0 | L39: =IF(Comparativo!$E$6="Tabela Não Desonerada",VLOOKUP($C39,'Orçamento N_DESON.'!$D$11:$S$1153,11,FALSE),VLOOKUP($C39,'Orçamento DESON.'!$D$11:$S$1152,11,FALSE)) -> - | M39: =IF(Comparativo!$E$6="Tabela Não Desonerada",Encargos!$F$44,Encargos!$D$44) -> 1.111
B40: =IF(AND(G40<>"",H40>0,I40<>"",J40<>0,K40<>0),COUNT($B$11:B39)+1,"") ->  | C40: ='Orçamento N_DESON.'!D39 -> 1.29 | D40: =IF(VLOOKUP($C40,'Orçamento N_DESON.'!$D$11:$G$1596,3,FALSE)="INDEXADO",VLOOKUP(VLOOKUP($C40,'Orçamento N_DESON.'!$D$11:$G$1596,2,FALSE),'Index N_DESON.'!$A$9:$B$604,2),VLOOKUP($C40,'Orçamento N_DESON.'!$D$11:$G$1596,3,FALSE)) -> 0 | E40: =VLOOKUP($C40,'Orçamento N_DESON.'!$D$11:$S$1153,2,FALSE) -> 0 | F40: =Dados!$C$7 -> 2021-10-01 | G40: =VLOOKUP($C40,'Orçamento N_DESON.'!$D$11:$S$1153,4,FALSE) -> - | H40: =VLOOKUP($C40,'Orçamento N_DESON.'!$D$11:$S$1153,6,FALSE) -> 0 | I40: =VLOOKUP($C40,'Orçamento N_DESON.'!$D$11:$S$1153,5,FALSE) -> - | J40: =IF(Comparativo!$E$6="Tabela Não Desonerada",VLOOKUP($C40,'Orçamento N_DESON.'!$D$11:$S$1153,12,FALSE),VLOOKUP($C40,'Orçamento DESON.'!$D$11:$S$1152,12,FALSE)) -> - | K40: =IF(Comparativo!$E$6="Tabela Não Desonerada",VLOOKUP($C40,'Orçamento N_DESON.'!$D$11:$S$1153,16,FALSE),VLOOKUP($C40,'Orçamento DESON.'!$D$11:$S$1152,16,FALSE)) -> 0 | L40: =IF(Comparativo!$E$6="Tabela Não Desonerada",VLOOKUP($C40,'Orçamento N_DESON.'!$D$11:$S$1153,11,FALSE),VLOOKUP($C40,'Orçamento DESON.'!$D$11:$S$1152,11,FALSE)) -> - | M40: =IF(Comparativo!$E$6="Tabela Não Desonerada",Encargos!$F$44,Encargos!$D$44) -> 1.111
B41: =IF(AND(G41<>"",H41>0,I41<>"",J41<>0,K41<>0),COUNT($B$11:B40)+1,"") ->  | C41: ='Orçamento N_DESON.'!D40 -> 1.30 | D41: =IF(VLOOKUP($C41,'Orçamento N_DESON.'!$D$11:$G$1596,3,FALSE)="INDEXADO",VLOOKUP(VLOOKUP($C41,'Orçamento N_DESON.'!$D$11:$G$1596,2,FALSE),'Index N_DESON.'!$A$9:$B$604,2),VLOOKUP($C41,'Orçamento N_DESON.'!$D$11:$G$1596,3,FALSE)) -> 0 | E41: =VLOOKUP($C41,'Orçamento N_DESON.'!$D$11:$S$1153,2,FALSE) -> 0 | F41: =Dados!$C$7 -> 2021-10-01 | G41: =VLOOKUP($C41,'Orçamento N_DESON.'!$D$11:$S$1153,4,FALSE) -> - | H41: =VLOOKUP($C41,'Orçamento N_DESON.'!$D$11:$S$1153,6,FALSE) -> 0 | I41: =VLOOKUP($C41,'Orçamento N_DESON.'!$D$11:$S$1153,5,FALSE) -> - | J41: =IF(Comparativo!$E$6="Tabela Não Desonerada",VLOOKUP($C41,'Orçamento N_DESON.'!$D$11:$S$1153,12,FALSE),VLOOKUP($C41,'Orçamento DESON.'!$D$11:$S$1152,12,FALSE)) -> - | K41: =IF(Comparativo!$E$6="Tabela Não Desonerada",VLOOKUP($C41,'Orçamento N_DESON.'!$D$11:$S$1153,16,FALSE),VLOOKUP($C41,'Orçamento DESON.'!$D$11:$S$1152,16,FALSE)) -> 0 | L41: =IF(Comparativo!$E$6="Tabela Não Desonerada",VLOOKUP($C41,'Orçamento N_DESON.'!$D$11:$S$1153,11,FALSE),VLOOKUP($C41,'Orçamento DESON.'!$D$11:$S$1152,11,FALSE)) -> - | M41: =IF(Comparativo!$E$6="Tabela Não Desonerada",Encargos!$F$44,Encargos!$D$44) -> 1.111
B42: =IF(AND(G42<>"",H42>0,I42<>"",J42<>0,K42<>0),COUNT($B$11:B41)+1,"") ->  | C42: ='Orçamento N_DESON.'!D41 -> 1.31 | D42: =IF(VLOOKUP($C42,'Orçamento N_DESON.'!$D$11:$G$1596,3,FALSE)="INDEXADO",VLOOKUP(VLOOKUP($C42,'Orçamento N_DESON.'!$D$11:$G$1596,2,FALSE),'Index N_DESON.'!$A$9:$B$604,2),VLOOKUP($C42,'Orçamento N_DESON.'!$D$11:$G$1596,3,FALSE)) -> 0 | E42: =VLOOKUP($C42,'Orçamento N_DESON.'!$D$11:$S$1153,2,FALSE) -> 0 | F42: =Dados!$C$7 -> 2021-10-01 | G42: =VLOOKUP($C42,'Orçamento N_DESON.'!$D$11:$S$1153,4,FALSE) -> - | H42: =VLOOKUP($C42,'Orçamento N_DESON.'!$D$11:$S$1153,6,FALSE) -> 0 | I42: =VLOOKUP($C42,'Orçamento N_DESON.'!$D$11:$S$1153,5,FALSE) -> - | J42: =IF(Comparativo!$E$6="Tabela Não Desonerada",VLOOKUP($C42,'Orçamento N_DESON.'!$D$11:$S$1153,12,FALSE),VLOOKUP($C42,'Orçamento DESON.'!$D$11:$S$1152,12,FALSE)) -> - | K42: =IF(Comparativo!$E$6="Tabela Não Desonerada",VLOOKUP($C42,'Orçamento N_DESON.'!$D$11:$S$1153,16,FALSE),VLOOKUP($C42,'Orçamento DESON.'!$D$11:$S$1152,16,FALSE)) -> 0 | L42: =IF(Comparativo!$E$6="Tabela Não Desonerada",VLOOKUP($C42,'Orçamento N_DESON.'!$D$11:$S$1153,11,FALSE),VLOOKUP($C42,'Orçamento DESON.'!$D$11:$S$1152,11,FALSE)) -> - | M42: =IF(Comparativo!$E$6="Tabela Não Desonerada",Encargos!$F$44,Encargos!$D$44) -> 1.111
B43: =IF(AND(G43<>"",H43>0,I43<>"",J43<>0,K43<>0),COUNT($B$11:B42)+1,"") ->  | C43: ='Orçamento N_DESON.'!D42 -> 1.32 | D43: =IF(VLOOKUP($C43,'Orçamento N_DESON.'!$D$11:$G$1596,3,FALSE)="INDEXADO",VLOOKUP(VLOOKUP($C43,'Orçamento N_DESON.'!$D$11:$G$1596,2,FALSE),'Index N_DESON.'!$A$9:$B$604,2),VLOOKUP($C43,'Orçamento N_DESON.'!$D$11:$G$1596,3,FALSE)) -> 0 | E43: =VLOOKUP($C43,'Orçamento N_DESON.'!$D$11:$S$1153,2,FALSE) -> 0 | F43: =Dados!$C$7 -> 2021-10-01 | G43: =VLOOKUP($C43,'Orçamento N_DESON.'!$D$11:$S$1153,4,FALSE) -> - | H43: =VLOOKUP($C43,'Orçamento N_DESON.'!$D$11:$S$1153,6,FALSE) -> 0 | I43: =VLOOKUP($C43,'Orçamento N_DESON.'!$D$11:$S$1153,5,FALSE) -> - | J43: =IF(Comparativo!$E$6="Tabela Não Desonerada",VLOOKUP($C43,'Orçamento N_DESON.'!$D$11:$S$1153,12,FALSE),VLOOKUP($C43,'Orçamento DESON.'!$D$11:$S$1152,12,FALSE)) -> - | K43: =IF(Comparativo!$E$6="Tabela Não Desonerada",VLOOKUP($C43,'Orçamento N_DESON.'!$D$11:$S$1153,16,FALSE),VLOOKUP($C43,'Orçamento DESON.'!$D$11:$S$1152,16,FALSE)) -> 0 | L43: =IF(Comparativo!$E$6="Tabela Não Desonerada",VLOOKUP($C43,'Orçamento N_DESON.'!$D$11:$S$1153,11,FALSE),VLOOKUP($C43,'Orçamento DESON.'!$D$11:$S$1152,11,FALSE)) -> - | M43: =IF(Comparativo!$E$6="Tabela Não Desonerada",Encargos!$F$44,Encargos!$D$44) -> 1.111
B44: =IF(AND(G44<>"",H44>0,I44<>"",J44<>0,K44<>0),COUNT($B$11:B43)+1,"") ->  | C44: ='Orçamento N_DESON.'!D43 -> 1.33 | D44: =IF(VLOOKUP($C44,'Orçamento N_DESON.'!$D$11:$G$1596,3,FALSE)="INDEXADO",VLOOKUP(VLOOKUP($C44,'Orçamento N_DESON.'!$D$11:$G$1596,2,FALSE),'Index N_DESON.'!$A$9:$B$604,2),VLOOKUP($C44,'Orçamento N_DESON.'!$D$11:$G$1596,3,FALSE)) -> 0 | E44: =VLOOKUP($C44,'Orçamento N_DESON.'!$D$11:$S$1153,2,FALSE) -> 0 | F44: =Dados!$C$7 -> 2021-10-01 | G44: =VLOOKUP($C44,'Orçamento N_DESON.'!$D$11:$S$1153,4,FALSE) -> - | H44: =VLOOKUP($C44,'Orçamento N_DESON.'!$D$11:$S$1153,6,FALSE) -> 0 | I44: =VLOOKUP($C44,'Orçamento N_DESON.'!$D$11:$S$1153,5,FALSE) -> - | J44: =IF(Comparativo!$E$6="Tabela Não Desonerada",VLOOKUP($C44,'Orçamento N_DESON.'!$D$11:$S$1153,12,FALSE),VLOOKUP($C44,'Orçamento DESON.'!$D$11:$S$1152,12,FALSE)) -> - | K44: =IF(Comparativo!$E$6="Tabela Não Desonerada",VLOOKUP($C44,'Orçamento N_DESON.'!$D$11:$S$1153,16,FALSE),VLOOKUP($C44,'Orçamento DESON.'!$D$11:$S$1152,16,FALSE)) -> 0 | L44: =IF(Comparativo!$E$6="Tabela Não Desonerada",VLOOKUP($C44,'Orçamento N_DESON.'!$D$11:$S$1153,11,FALSE),VLOOKUP($C44,'Orçamento DESON.'!$D$11:$S$1152,11,FALSE)) -> - | M44: =IF(Comparativo!$E$6="Tabela Não Desonerada",Encargos!$F$44,Encargos!$D$44) -> 1.111
B45: =IF(AND(G45<>"",H45>0,I45<>"",J45<>0,K45<>0),COUNT($B$11:B44)+1,"") ->  | C45: ='Orçamento N_DESON.'!D44 -> 1.34 | D45: =IF(VLOOKUP($C45,'Orçamento N_DESON.'!$D$11:$G$1596,3,FALSE)="INDEXADO",VLOOKUP(VLOOKUP($C45,'Orçamento N_DESON.'!$D$11:$G$1596,2,FALSE),'Index N_DESON.'!$A$9:$B$604,2),VLOOKUP($C45,'Orçamento N_DESON.'!$D$11:$G$1596,3,FALSE)) -> 0 | E45: =VLOOKUP($C45,'Orçamento N_DESON.'!$D$11:$S$1153,2,FALSE) -> 0 | F45: =Dados!$C$7 -> 2021-10-01 | G45: =VLOOKUP($C45,'Orçamento N_DESON.'!$D$11:$S$1153,4,FALSE) -> - | H45: =VLOOKUP($C45,'Orçamento N_DESON.'!$D$11:$S$1153,6,FALSE) -> 0 | I45: =VLOOKUP($C45,'Orçamento N_DESON.'!$D$11:$S$1153,5,FALSE) -> - | J45: =IF(Comparativo!$E$6="Tabela Não Desonerada",VLOOKUP($C45,'Orçamento N_DESON.'!$D$11:$S$1153,12,FALSE),VLOOKUP($C45,'Orçamento DESON.'!$D$11:$S$1152,12,FALSE)) -> - | K45: =IF(Comparativo!$E$6="Tabela Não Desonerada",VLOOKUP($C45,'Orçamento N_DESON.'!$D$11:$S$1153,16,FALSE),VLOOKUP($C45,'Orçamento DESON.'!$D$11:$S$1152,16,FALSE)) -> 0 | L45: =IF(Comparativo!$E$6="Tabela Não Desonerada",VLOOKUP($C45,'Orçamento N_DESON.'!$D$11:$S$1153,11,FALSE),VLOOKUP($C45,'Orçamento DESON.'!$D$11:$S$1152,11,FALSE)) -> - | M45: =IF(Comparativo!$E$6="Tabela Não Desonerada",Encargos!$F$44,Encargos!$D$44) -> 1.111
B46: =IF(AND(G46<>"",H46>0,I46<>"",J46<>0,K46<>0),COUNT($B$11:B45)+1,"") ->  | C46: ='Orçamento N_DESON.'!D45 -> 1.35 | D46: =IF(VLOOKUP($C46,'Orçamento N_DESON.'!$D$11:$G$1596,3,FALSE)="INDEXADO",VLOOKUP(VLOOKUP($C46,'Orçamento N_DESON.'!$D$11:$G$1596,2,FALSE),'Index N_DESON.'!$A$9:$B$604,2),VLOOKUP($C46,'Orçamento N_DESON.'!$D$11:$G$1596,3,FALSE)) -> 0 | E46: =VLOOKUP($C46,'Orçamento N_DESON.'!$D$11:$S$1153,2,FALSE) -> 0 | F46: =Dados!$C$7 -> 2021-10-01 | G46: =VLOOKUP($C46,'Orçamento N_DESON.'!$D$11:$S$1153,4,FALSE) -> - | H46: =VLOOKUP($C46,'Orçamento N_DESON.'!$D$11:$S$1153,6,FALSE) -> 0 | I46: =VLOOKUP($C46,'Orçamento N_DESON.'!$D$11:$S$1153,5,FALSE) -> - | J46: =IF(Comparativo!$E$6="Tabela Não Desonerada",VLOOKUP($C46,'Orçamento N_DESON.'!$D$11:$S$1153,12,FALSE),VLOOKUP($C46,'Orçamento DESON.'!$D$11:$S$1152,12,FALSE)) -> - | K46: =IF(Comparativo!$E$6="Tabela Não Desonerada",VLOOKUP($C46,'Orçamento N_DESON.'!$D$11:$S$1153,16,FALSE),VLOOKUP($C46,'Orçamento DESON.'!$D$11:$S$1152,16,FALSE)) -> 0 | L46: =IF(Comparativo!$E$6="Tabela Não Desonerada",VLOOKUP($C46,'Orçamento N_DESON.'!$D$11:$S$1153,11,FALSE),VLOOKUP($C46,'Orçamento DESON.'!$D$11:$S$1152,11,FALSE)) -> - | M46: =IF(Comparativo!$E$6="Tabela Não Desonerada",Encargos!$F$44,Encargos!$D$44) -> 1.111
B47: =IF(AND(G47<>"",H47>0,I47<>"",J47<>0,K47<>0),COUNT($B$11:B46)+1,"") ->  | C47: ='Orçamento N_DESON.'!D46 -> 1.36 | D47: =IF(VLOOKUP($C47,'Orçamento N_DESON.'!$D$11:$G$1596,3,FALSE)="INDEXADO",VLOOKUP(VLOOKUP($C47,'Orçamento N_DESON.'!$D$11:$G$1596,2,FALSE),'Index N_DESON.'!$A$9:$B$604,2),VLOOKUP($C47,'Orçamento N_DESON.'!$D$11:$G$1596,3,FALSE)) -> 0 | E47: =VLOOKUP($C47,'Orçamento N_DESON.'!$D$11:$S$1153,2,FALSE) -> 0 | F47: =Dados!$C$7 -> 2021-10-01 | G47: =VLOOKUP($C47,'Orçamento N_DESON.'!$D$11:$S$1153,4,FALSE) -> - | H47: =VLOOKUP($C47,'Orçamento N_DESON.'!$D$11:$S$1153,6,FALSE) -> 0 | I47: =VLOOKUP($C47,'Orçamento N_DESON.'!$D$11:$S$1153,5,FALSE) -> - | J47: =IF(Comparativo!$E$6="Tabela Não Desonerada",VLOOKUP($C47,'Orçamento N_DESON.'!$D$11:$S$1153,12,FALSE),VLOOKUP($C47,'Orçamento DESON.'!$D$11:$S$1152,12,FALSE)) -> - | K47: =IF(Comparativo!$E$6="Tabela Não Desonerada",VLOOKUP($C47,'Orçamento N_DESON.'!$D$11:$S$1153,16,FALSE),VLOOKUP($C47,'Orçamento DESON.'!$D$11:$S$1152,16,FALSE)) -> 0 | L47: =IF(Comparativo!$E$6="Tabela Não Desonerada",VLOOKUP($C47,'Orçamento N_DESON.'!$D$11:$S$1153,11,FALSE),VLOOKUP($C47,'Orçamento DESON.'!$D$11:$S$1152,11,FALSE)) -> - | M47: =IF(Comparativo!$E$6="Tabela Não Desonerada",Encargos!$F$44,Encargos!$D$44) -> 1.111
B48: =IF(AND(G48<>"",H48>0,I48<>"",J48<>0,K48<>0),COUNT($B$11:B47)+1,"") ->  | C48: ='Orçamento N_DESON.'!D47 -> 1.37 | D48: =IF(VLOOKUP($C48,'Orçamento N_DESON.'!$D$11:$G$1596,3,FALSE)="INDEXADO",VLOOKUP(VLOOKUP($C48,'Orçamento N_DESON.'!$D$11:$G$1596,2,FALSE),'Index N_DESON.'!$A$9:$B$604,2),VLOOKUP($C48,'Orçamento N_DESON.'!$D$11:$G$1596,3,FALSE)) -> 0 | E48: =VLOOKUP($C48,'Orçamento N_DESON.'!$D$11:$S$1153,2,FALSE) -> 0 | F48: =Dados!$C$7 -> 2021-10-01 | G48: =VLOOKUP($C48,'Orçamento N_DESON.'!$D$11:$S$1153,4,FALSE) -> - | H48: =VLOOKUP($C48,'Orçamento N_DESON.'!$D$11:$S$1153,6,FALSE) -> 0 | I48: =VLOOKUP($C48,'Orçamento N_DESON.'!$D$11:$S$1153,5,FALSE) -> - | J48: =IF(Comparativo!$E$6="Tabela Não Desonerada",VLOOKUP($C48,'Orçamento N_DESON.'!$D$11:$S$1153,12,FALSE),VLOOKUP($C48,'Orçamento DESON.'!$D$11:$S$1152,12,FALSE)) -> - | K48: =IF(Comparativo!$E$6="Tabela Não Desonerada",VLOOKUP($C48,'Orçamento N_DESON.'!$D$11:$S$1153,16,FALSE),VLOOKUP($C48,'Orçamento DESON.'!$D$11:$S$1152,16,FALSE)) -> 0 | L48: =IF(Comparativo!$E$6="Tabela Não Desonerada",VLOOKUP($C48,'Orçamento N_DESON.'!$D$11:$S$1153,11,FALSE),VLOOKUP($C48,'Orçamento DESON.'!$D$11:$S$1152,11,FALSE)) -> - | M48: =IF(Comparativo!$E$6="Tabela Não Desonerada",Encargos!$F$44,Encargos!$D$44) -> 1.111
B49: =IF(AND(G49<>"",H49>0,I49<>"",J49<>0,K49<>0),COUNT($B$11:B48)+1,"") ->  | C49: ='Orçamento N_DESON.'!D48 -> 1.38 | D49: =IF(VLOOKUP($C49,'Orçamento N_DESON.'!$D$11:$G$1596,3,FALSE)="INDEXADO",VLOOKUP(VLOOKUP($C49,'Orçamento N_DESON.'!$D$11:$G$1596,2,FALSE),'Index N_DESON.'!$A$9:$B$604,2),VLOOKUP($C49,'Orçamento N_DESON.'!$D$11:$G$1596,3,FALSE)) -> 0 | E49: =VLOOKUP($C49,'Orçamento N_DESON.'!$D$11:$S$1153,2,FALSE) -> 0 | F49: =Dados!$C$7 -> 2021-10-01 | G49: =VLOOKUP($C49,'Orçamento N_DESON.'!$D$11:$S$1153,4,FALSE) -> - | H49: =VLOOKUP($C49,'Orçamento N_DESON.'!$D$11:$S$1153,6,FALSE) -> 0 | I49: =VLOOKUP($C49,'Orçamento N_DESON.'!$D$11:$S$1153,5,FALSE) -> - | J49: =IF(Comparativo!$E$6="Tabela Não Desonerada",VLOOKUP($C49,'Orçamento N_DESON.'!$D$11:$S$1153,12,FALSE),VLOOKUP($C49,'Orçamento DESON.'!$D$11:$S$1152,12,FALSE)) -> - | K49: =IF(Comparativo!$E$6="Tabela Não Desonerada",VLOOKUP($C49,'Orçamento N_DESON.'!$D$11:$S$1153,16,FALSE),VLOOKUP($C49,'Orçamento DESON.'!$D$11:$S$1152,16,FALSE)) -> 0 | L49: =IF(Comparativo!$E$6="Tabela Não Desonerada",VLOOKUP($C49,'Orçamento N_DESON.'!$D$11:$S$1153,11,FALSE),VLOOKUP($C49,'Orçamento DESON.'!$D$11:$S$1152,11,FALSE)) -> - | M49: =IF(Comparativo!$E$6="Tabela Não Desonerada",Encargos!$F$44,Encargos!$D$44) -> 1.111
B50: =IF(AND(G50<>"",H50>0,I50<>"",J50<>0,K50<>0),COUNT($B$11:B49)+1,"") ->  | C50: ='Orçamento N_DESON.'!D49 -> 1.39 | D50: =IF(VLOOKUP($C50,'Orçamento N_DESON.'!$D$11:$G$1596,3,FALSE)="INDEXADO",VLOOKUP(VLOOKUP($C50,'Orçamento N_DESON.'!$D$11:$G$1596,2,FALSE),'Index N_DESON.'!$A$9:$B$604,2),VLOOKUP($C50,'Orçamento N_DESON.'!$D$11:$G$1596,3,FALSE)) -> 0 | E50: =VLOOKUP($C50,'Orçamento N_DESON.'!$D$11:$S$1153,2,FALSE) -> 0 | F50: =Dados!$C$7 -> 2021-10-01 | G50: =VLOOKUP($C50,'Orçamento N_DESON.'!$D$11:$S$1153,4,FALSE) -> - | H50: =VLOOKUP($C50,'Orçamento N_DESON.'!$D$11:$S$1153,6,FALSE) -> 0 | I50: =VLOOKUP($C50,'Orçamento N_DESON.'!$D$11:$S$1153,5,FALSE) -> - | J50: =IF(Comparativo!$E$6="Tabela Não Desonerada",VLOOKUP($C50,'Orçamento N_DESON.'!$D$11:$S$1153,12,FALSE),VLOOKUP($C50,'Orçamento DESON.'!$D$11:$S$1152,12,FALSE)) -> - | K50: =IF(Comparativo!$E$6="Tabela Não Desonerada",VLOOKUP($C50,'Orçamento N_DESON.'!$D$11:$S$1153,16,FALSE),VLOOKUP($C50,'Orçamento DESON.'!$D$11:$S$1152,16,FALSE)) -> 0 | L50: =IF(Comparativo!$E$6="Tabela Não Desonerada",VLOOKUP($C50,'Orçamento N_DESON.'!$D$11:$S$1153,11,FALSE),VLOOKUP($C50,'Orçamento DESON.'!$D$11:$S$1152,11,FALSE)) -> - | M50: =IF(Comparativo!$E$6="Tabela Não Desonerada",Encargos!$F$44,Encargos!$D$44) -> 1.111
B51: =IF(AND(G51<>"",H51>0,I51<>"",J51<>0,K51<>0),COUNT($B$11:B50)+1,"") ->  | C51: ='Orçamento N_DESON.'!D50 -> 1.40 | D51: =IF(VLOOKUP($C51,'Orçamento N_DESON.'!$D$11:$G$1596,3,FALSE)="INDEXADO",VLOOKUP(VLOOKUP($C51,'Orçamento N_DESON.'!$D$11:$G$1596,2,FALSE),'Index N_DESON.'!$A$9:$B$604,2),VLOOKUP($C51,'Orçamento N_DESON.'!$D$11:$G$1596,3,FALSE)) -> 0 | E51: =VLOOKUP($C51,'Orçamento N_DESON.'!$D$11:$S$1153,2,FALSE) -> 0 | F51: =Dados!$C$7 -> 2021-10-01 | G51: =VLOOKUP($C51,'Orçamento N_DESON.'!$D$11:$S$1153,4,FALSE) -> - | H51: =VLOOKUP($C51,'Orçamento N_DESON.'!$D$11:$S$1153,6,FALSE) -> 0 | I51: =VLOOKUP($C51,'Orçamento N_DESON.'!$D$11:$S$1153,5,FALSE) -> - | J51: =IF(Comparativo!$E$6="Tabela Não Desonerada",VLOOKUP($C51,'Orçamento N_DESON.'!$D$11:$S$1153,12,FALSE),VLOOKUP($C51,'Orçamento DESON.'!$D$11:$S$1152,12,FALSE)) -> - | K51: =IF(Comparativo!$E$6="Tabela Não Desonerada",VLOOKUP($C51,'Orçamento N_DESON.'!$D$11:$S$1153,16,FALSE),VLOOKUP($C51,'Orçamento DESON.'!$D$11:$S$1152,16,FALSE)) -> 0 | L51: =IF(Comparativo!$E$6="Tabela Não Desonerada",VLOOKUP($C51,'Orçamento N_DESON.'!$D$11:$S$1153,11,FALSE),VLOOKUP($C51,'Orçamento DESON.'!$D$11:$S$1152,11,FALSE)) -> - | M51: =IF(Comparativo!$E$6="Tabela Não Desonerada",Encargos!$F$44,Encargos!$D$44) -> 1.111
B52: =IF(AND(G52<>"",H52>0,I52<>"",J52<>0,K52<>0),COUNT($B$11:B51)+1,"") ->  | C52: ='Orçamento N_DESON.'!D51 -> 1.41 | D52: =IF(VLOOKUP($C52,'Orçamento N_DESON.'!$D$11:$G$1596,3,FALSE)="INDEXADO",VLOOKUP(VLOOKUP($C52,'Orçamento N_DESON.'!$D$11:$G$1596,2,FALSE),'Index N_DESON.'!$A$9:$B$604,2),VLOOKUP($C52,'Orçamento N_DESON.'!$D$11:$G$1596,3,FALSE)) -> 0 | E52: =VLOOKUP($C52,'Orçamento N_DESON.'!$D$11:$S$1153,2,FALSE) -> 0 | F52: =Dados!$C$7 -> 2021-10-01 | G52: =VLOOKUP($C52,'Orçamento N_DESON.'!$D$11:$S$1153,4,FALSE) -> - | H52: =VLOOKUP($C52,'Orçamento N_DESON.'!$D$11:$S$1153,6,FALSE) -> 0 | I52: =VLOOKUP($C52,'Orçamento N_DESON.'!$D$11:$S$1153,5,FALSE) -> - | J52: =IF(Comparativo!$E$6="Tabela Não Desonerada",VLOOKUP($C52,'Orçamento N_DESON.'!$D$11:$S$1153,12,FALSE),VLOOKUP($C52,'Orçamento DESON.'!$D$11:$S$1152,12,FALSE)) -> - | K52: =IF(Comparativo!$E$6="Tabela Não Desonerada",VLOOKUP($C52,'Orçamento N_DESON.'!$D$11:$S$1153,16,FALSE),VLOOKUP($C52,'Orçamento DESON.'!$D$11:$S$1152,16,FALSE)) -> 0 | L52: =IF(Comparativo!$E$6="Tabela Não Desonerada",VLOOKUP($C52,'Orçamento N_DESON.'!$D$11:$S$1153,11,FALSE),VLOOKUP($C52,'Orçamento DESON.'!$D$11:$S$1152,11,FALSE)) -> - | M52: =IF(Comparativo!$E$6="Tabela Não Desonerada",Encargos!$F$44,Encargos!$D$44) -> 1.111
B53: =IF(AND(G53<>"",H53>0,I53<>"",J53<>0,K53<>0),COUNT($B$11:B52)+1,"") ->  | C53: ='Orçamento N_DESON.'!D52 -> 1.42 | D53: =IF(VLOOKUP($C53,'Orçamento N_DESON.'!$D$11:$G$1596,3,FALSE)="INDEXADO",VLOOKUP(VLOOKUP($C53,'Orçamento N_DESON.'!$D$11:$G$1596,2,FALSE),'Index N_DESON.'!$A$9:$B$604,2),VLOOKUP($C53,'Orçamento N_DESON.'!$D$11:$G$1596,3,FALSE)) -> 0 | E53: =VLOOKUP($C53,'Orçamento N_DESON.'!$D$11:$S$1153,2,FALSE) -> 0 | F53: =Dados!$C$7 -> 2021-10-01 | G53: =VLOOKUP($C53,'Orçamento N_DESON.'!$D$11:$S$1153,4,FALSE) -> - | H53: =VLOOKUP($C53,'Orçamento N_DESON.'!$D$11:$S$1153,6,FALSE) -> 0 | I53: =VLOOKUP($C53,'Orçamento N_DESON.'!$D$11:$S$1153,5,FALSE) -> - | J53: =IF(Comparativo!$E$6="Tabela Não Desonerada",VLOOKUP($C53,'Orçamento N_DESON.'!$D$11:$S$1153,12,FALSE),VLOOKUP($C53,'Orçamento DESON.'!$D$11:$S$1152,12,FALSE)) -> - | K53: =IF(Comparativo!$E$6="Tabela Não Desonerada",VLOOKUP($C53,'Orçamento N_DESON.'!$D$11:$S$1153,16,FALSE),VLOOKUP($C53,'Orçamento DESON.'!$D$11:$S$1152,16,FALSE)) -> 0 | L53: =IF(Comparativo!$E$6="Tabela Não Desonerada",VLOOKUP($C53,'Orçamento N_DESON.'!$D$11:$S$1153,11,FALSE),VLOOKUP($C53,'Orçamento DESON.'!$D$11:$S$1152,11,FALSE)) -> - | M53: =IF(Comparativo!$E$6="Tabela Não Desonerada",Encargos!$F$44,Encargos!$D$44) -> 1.111
B54: =IF(AND(G54<>"",H54>0,I54<>"",J54<>0,K54<>0),COUNT($B$11:B53)+1,"") ->  | C54: ='Orçamento N_DESON.'!D53 -> 1.43 | D54: =IF(VLOOKUP($C54,'Orçamento N_DESON.'!$D$11:$G$1596,3,FALSE)="INDEXADO",VLOOKUP(VLOOKUP($C54,'Orçamento N_DESON.'!$D$11:$G$1596,2,FALSE),'Index N_DESON.'!$A$9:$B$604,2),VLOOKUP($C54,'Orçamento N_DESON.'!$D$11:$G$1596,3,FALSE)) -> 0 | E54: =VLOOKUP($C54,'Orçamento N_DESON.'!$D$11:$S$1153,2,FALSE) -> 0 | F54: =Dados!$C$7 -> 2021-10-01 | G54: =VLOOKUP($C54,'Orçamento N_DESON.'!$D$11:$S$1153,4,FALSE) -> - | H54: =VLOOKUP($C54,'Orçamento N_DESON.'!$D$11:$S$1153,6,FALSE) -> 0 | I54: =VLOOKUP($C54,'Orçamento N_DESON.'!$D$11:$S$1153,5,FALSE) -> - | J54: =IF(Comparativo!$E$6="Tabela Não Desonerada",VLOOKUP($C54,'Orçamento N_DESON.'!$D$11:$S$1153,12,FALSE),VLOOKUP($C54,'Orçamento DESON.'!$D$11:$S$1152,12,FALSE)) -> - | K54: =IF(Comparativo!$E$6="Tabela Não Desonerada",VLOOKUP($C54,'Orçamento N_DESON.'!$D$11:$S$1153,16,FALSE),VLOOKUP($C54,'Orçamento DESON.'!$D$11:$S$1152,16,FALSE)) -> 0 | L54: =IF(Comparativo!$E$6="Tabela Não Desonerada",VLOOKUP($C54,'Orçamento N_DESON.'!$D$11:$S$1153,11,FALSE),VLOOKUP($C54,'Orçamento DESON.'!$D$11:$S$1152,11,FALSE)) -> - | M54: =IF(Comparativo!$E$6="Tabela Não Desonerada",Encargos!$F$44,Encargos!$D$44) -> 1.111
B55: =IF(AND(G55<>"",H55>0,I55<>"",J55<>0,K55<>0),COUNT($B$11:B54)+1,"") ->  | C55: ='Orçamento N_DESON.'!D54 -> 1.44 | D55: =IF(VLOOKUP($C55,'Orçamento N_DESON.'!$D$11:$G$1596,3,FALSE)="INDEXADO",VLOOKUP(VLOOKUP($C55,'Orçamento N_DESON.'!$D$11:$G$1596,2,FALSE),'Index N_DESON.'!$A$9:$B$604,2),VLOOKUP($C55,'Orçamento N_DESON.'!$D$11:$G$1596,3,FALSE)) -> 0 | E55: =VLOOKUP($C55,'Orçamento N_DESON.'!$D$11:$S$1153,2,FALSE) -> 0 | F55: =Dados!$C$7 -> 2021-10-01 | G55: =VLOOKUP($C55,'Orçamento N_DESON.'!$D$11:$S$1153,4,FALSE) -> - | H55: =VLOOKUP($C55,'Orçamento N_DESON.'!$D$11:$S$1153,6,FALSE) -> 0 | I55: =VLOOKUP($C55,'Orçamento N_DESON.'!$D$11:$S$1153,5,FALSE) -> - | J55: =IF(Comparativo!$E$6="Tabela Não Desonerada",VLOOKUP($C55,'Orçamento N_DESON.'!$D$11:$S$1153,12,FALSE),VLOOKUP($C55,'Orçamento DESON.'!$D$11:$S$1152,12,FALSE)) -> - | K55: =IF(Comparativo!$E$6="Tabela Não Desonerada",VLOOKUP($C55,'Orçamento N_DESON.'!$D$11:$S$1153,16,FALSE),VLOOKUP($C55,'Orçamento DESON.'!$D$11:$S$1152,16,FALSE)) -> 0 | L55: =IF(Comparativo!$E$6="Tabela Não Desonerada",VLOOKUP($C55,'Orçamento N_DESON.'!$D$11:$S$1153,11,FALSE),VLOOKUP($C55,'Orçamento DESON.'!$D$11:$S$1152,11,FALSE)) -> - | M55: =IF(Comparativo!$E$6="Tabela Não Desonerada",Encargos!$F$44,Encargos!$D$44) -> 1.111
B56: =IF(AND(G56<>"",H56>0,I56<>"",J56<>0,K56<>0),COUNT($B$11:B55)+1,"") ->  | C56: ='Orçamento N_DESON.'!D55 -> 1.45 | D56: =IF(VLOOKUP($C56,'Orçamento N_DESON.'!$D$11:$G$1596,3,FALSE)="INDEXADO",VLOOKUP(VLOOKUP($C56,'Orçamento N_DESON.'!$D$11:$G$1596,2,FALSE),'Index N_DESON.'!$A$9:$B$604,2),VLOOKUP($C56,'Orçamento N_DESON.'!$D$11:$G$1596,3,FALSE)) -> 0 | E56: =VLOOKUP($C56,'Orçamento N_DESON.'!$D$11:$S$1153,2,FALSE) -> 0 | F56: =Dados!$C$7 -> 2021-10-01 | G56: =VLOOKUP($C56,'Orçamento N_DESON.'!$D$11:$S$1153,4,FALSE) -> - | H56: =VLOOKUP($C56,'Orçamento N_DESON.'!$D$11:$S$1153,6,FALSE) -> 0 | I56: =VLOOKUP($C56,'Orçamento N_DESON.'!$D$11:$S$1153,5,FALSE) -> - | J56: =IF(Comparativo!$E$6="Tabela Não Desonerada",VLOOKUP($C56,'Orçamento N_DESON.'!$D$11:$S$1153,12,FALSE),VLOOKUP($C56,'Orçamento DESON.'!$D$11:$S$1152,12,FALSE)) -> - | K56: =IF(Comparativo!$E$6="Tabela Não Desonerada",VLOOKUP($C56,'Orçamento N_DESON.'!$D$11:$S$1153,16,FALSE),VLOOKUP($C56,'Orçamento DESON.'!$D$11:$S$1152,16,FALSE)) -> 0 | L56: =IF(Comparativo!$E$6="Tabela Não Desonerada",VLOOKUP($C56,'Orçamento N_DESON.'!$D$11:$S$1153,11,FALSE),VLOOKUP($C56,'Orçamento DESON.'!$D$11:$S$1152,11,FALSE)) -> - | M56: =IF(Comparativo!$E$6="Tabela Não Desonerada",Encargos!$F$44,Encargos!$D$44) -> 1.111
B57: =IF(AND(G57<>"",H57>0,I57<>"",J57<>0,K57<>0),COUNT($B$11:B56)+1,"") ->  | C57: ='Orçamento N_DESON.'!D56 -> 1.46 | D57: =IF(VLOOKUP($C57,'Orçamento N_DESON.'!$D$11:$G$1596,3,FALSE)="INDEXADO",VLOOKUP(VLOOKUP($C57,'Orçamento N_DESON.'!$D$11:$G$1596,2,FALSE),'Index N_DESON.'!$A$9:$B$604,2),VLOOKUP($C57,'Orçamento N_DESON.'!$D$11:$G$1596,3,FALSE)) -> 0 | E57: =VLOOKUP($C57,'Orçamento N_DESON.'!$D$11:$S$1153,2,FALSE) -> 0 | F57: =Dados!$C$7 -> 2021-10-01 | G57: =VLOOKUP($C57,'Orçamento N_DESON.'!$D$11:$S$1153,4,FALSE) -> - | H57: =VLOOKUP($C57,'Orçamento N_DESON.'!$D$11:$S$1153,6,FALSE) -> 0 | I57: =VLOOKUP($C57,'Orçamento N_DESON.'!$D$11:$S$1153,5,FALSE) -> - | J57: =IF(Comparativo!$E$6="Tabela Não Desonerada",VLOOKUP($C57,'Orçamento N_DESON.'!$D$11:$S$1153,12,FALSE),VLOOKUP($C57,'Orçamento DESON.'!$D$11:$S$1152,12,FALSE)) -> - | K57: =IF(Comparativo!$E$6="Tabela Não Desonerada",VLOOKUP($C57,'Orçamento N_DESON.'!$D$11:$S$1153,16,FALSE),VLOOKUP($C57,'Orçamento DESON.'!$D$11:$S$1152,16,FALSE)) -> 0 | L57: =IF(Comparativo!$E$6="Tabela Não Desonerada",VLOOKUP($C57,'Orçamento N_DESON.'!$D$11:$S$1153,11,FALSE),VLOOKUP($C57,'Orçamento DESON.'!$D$11:$S$1152,11,FALSE)) -> - | M57: =IF(Comparativo!$E$6="Tabela Não Desonerada",Encargos!$F$44,Encargos!$D$44) -> 1.111
B58: =IF(AND(G58<>"",H58>0,I58<>"",J58<>0,K58<>0),COUNT($B$11:B57)+1,"") ->  | C58: ='Orçamento N_DESON.'!D57 -> 1.47 | D58: =IF(VLOOKUP($C58,'Orçamento N_DESON.'!$D$11:$G$1596,3,FALSE)="INDEXADO",VLOOKUP(VLOOKUP($C58,'Orçamento N_DESON.'!$D$11:$G$1596,2,FALSE),'Index N_DESON.'!$A$9:$B$604,2),VLOOKUP($C58,'Orçamento N_DESON.'!$D$11:$G$1596,3,FALSE)) -> 0 | E58: =VLOOKUP($C58,'Orçamento N_DESON.'!$D$11:$S$1153,2,FALSE) -> 0 | F58: =Dados!$C$7 -> 2021-10-01 | G58: =VLOOKUP($C58,'Orçamento N_DESON.'!$D$11:$S$1153,4,FALSE) -> - | H58: =VLOOKUP($C58,'Orçamento N_DESON.'!$D$11:$S$1153,6,FALSE) -> 0 | I58: =VLOOKUP($C58,'Orçamento N_DESON.'!$D$11:$S$1153,5,FALSE) -> - | J58: =IF(Comparativo!$E$6="Tabela Não Desonerada",VLOOKUP($C58,'Orçamento N_DESON.'!$D$11:$S$1153,12,FALSE),VLOOKUP($C58,'Orçamento DESON.'!$D$11:$S$1152,12,FALSE)) -> - | K58: =IF(Comparativo!$E$6="Tabela Não Desonerada",VLOOKUP($C58,'Orçamento N_DESON.'!$D$11:$S$1153,16,FALSE),VLOOKUP($C58,'Orçamento DESON.'!$D$11:$S$1152,16,FALSE)) -> 0 | L58: =IF(Comparativo!$E$6="Tabela Não Desonerada",VLOOKUP($C58,'Orçamento N_DESON.'!$D$11:$S$1153,11,FALSE),VLOOKUP($C58,'Orçamento DESON.'!$D$11:$S$1152,11,FALSE)) -> - | M58: =IF(Comparativo!$E$6="Tabela Não Desonerada",Encargos!$F$44,Encargos!$D$44) -> 1.111
B59: =IF(AND(G59<>"",H59>0,I59<>"",J59<>0,K59<>0),COUNT($B$11:B58)+1,"") ->  | C59: ='Orçamento N_DESON.'!D58 -> 1.48 | D59: =IF(VLOOKUP($C59,'Orçamento N_DESON.'!$D$11:$G$1596,3,FALSE)="INDEXADO",VLOOKUP(VLOOKUP($C59,'Orçamento N_DESON.'!$D$11:$G$1596,2,FALSE),'Index N_DESON.'!$A$9:$B$604,2),VLOOKUP($C59,'Orçamento N_DESON.'!$D$11:$G$1596,3,FALSE)) -> 0 | E59: =VLOOKUP($C59,'Orçamento N_DESON.'!$D$11:$S$1153,2,FALSE) -> 0 | F59: =Dados!$C$7 -> 2021-10-01 | G59: =VLOOKUP($C59,'Orçamento N_DESON.'!$D$11:$S$1153,4,FALSE) -> - | H59: =VLOOKUP($C59,'Orçamento N_DESON.'!$D$11:$S$1153,6,FALSE) -> 0 | I59: =VLOOKUP($C59,'Orçamento N_DESON.'!$D$11:$S$1153,5,FALSE) -> - | J59: =IF(Comparativo!$E$6="Tabela Não Desonerada",VLOOKUP($C59,'Orçamento N_DESON.'!$D$11:$S$1153,12,FALSE),VLOOKUP($C59,'Orçamento DESON.'!$D$11:$S$1152,12,FALSE)) -> - | K59: =IF(Comparativo!$E$6="Tabela Não Desonerada",VLOOKUP($C59,'Orçamento N_DESON.'!$D$11:$S$1153,16,FALSE),VLOOKUP($C59,'Orçamento DESON.'!$D$11:$S$1152,16,FALSE)) -> 0 | L59: =IF(Comparativo!$E$6="Tabela Não Desonerada",VLOOKUP($C59,'Orçamento N_DESON.'!$D$11:$S$1153,11,FALSE),VLOOKUP($C59,'Orçamento DESON.'!$D$11:$S$1152,11,FALSE)) -> - | M59: =IF(Comparativo!$E$6="Tabela Não Desonerada",Encargos!$F$44,Encargos!$D$44) -> 1.111
B60: =IF(AND(G60<>"",H60>0,I60<>"",J60<>0,K60<>0),COUNT($B$11:B59)+1,"") ->  | C60: ='Orçamento N_DESON.'!D59 -> 1.49 | D60: =IF(VLOOKUP($C60,'Orçamento N_DESON.'!$D$11:$G$1596,3,FALSE)="INDEXADO",VLOOKUP(VLOOKUP($C60,'Orçamento N_DESON.'!$D$11:$G$1596,2,FALSE),'Index N_DESON.'!$A$9:$B$604,2),VLOOKUP($C60,'Orçamento N_DESON.'!$D$11:$G$1596,3,FALSE)) -> 0 | E60: =VLOOKUP($C60,'Orçamento N_DESON.'!$D$11:$S$1153,2,FALSE) -> 0 | F60: =Dados!$C$7 -> 2021-10-01 | G60: =VLOOKUP($C60,'Orçamento N_DESON.'!$D$11:$S$1153,4,FALSE) -> - | H60: =VLOOKUP($C60,'Orçamento N_DESON.'!$D$11:$S$1153,6,FALSE) -> 0 | I60: =VLOOKUP($C60,'Orçamento N_DESON.'!$D$11:$S$1153,5,FALSE) -> - | J60: =IF(Comparativo!$E$6="Tabela Não Desonerada",VLOOKUP($C60,'Orçamento N_DESON.'!$D$11:$S$1153,12,FALSE),VLOOKUP($C60,'Orçamento DESON.'!$D$11:$S$1152,12,FALSE)) -> - | K60: =IF(Comparativo!$E$6="Tabela Não Desonerada",VLOOKUP($C60,'Orçamento N_DESON.'!$D$11:$S$1153,16,FALSE),VLOOKUP($C60,'Orçamento DESON.'!$D$11:$S$1152,16,FALSE)) -> 0 | L60: =IF(Comparativo!$E$6="Tabela Não Desonerada",VLOOKUP($C60,'Orçamento N_DESON.'!$D$11:$S$1153,11,FALSE),VLOOKUP($C60,'Orçamento DESON.'!$D$11:$S$1152,11,FALSE)) -> - | M60: =IF(Comparativo!$E$6="Tabela Não Desonerada",Encargos!$F$44,Encargos!$D$44) -> 1.111
B61: =IF(AND(G61<>"",H61>0,I61<>"",J61<>0,K61<>0),COUNT($B$11:B60)+1,"") ->  | C61: ='Orçamento N_DESON.'!D60 -> 1.50 | D61: =IF(VLOOKUP($C61,'Orçamento N_DESON.'!$D$11:$G$1596,3,FALSE)="INDEXADO",VLOOKUP(VLOOKUP($C61,'Orçamento N_DESON.'!$D$11:$G$1596,2,FALSE),'Index N_DESON.'!$A$9:$B$604,2),VLOOKUP($C61,'Orçamento N_DESON.'!$D$11:$G$1596,3,FALSE)) -> 0 | E61: =VLOOKUP($C61,'Orçamento N_DESON.'!$D$11:$S$1153,2,FALSE) -> 0 | F61: =Dados!$C$7 -> 2021-10-01 | G61: =VLOOKUP($C61,'Orçamento N_DESON.'!$D$11:$S$1153,4,FALSE) -> - | H61: =VLOOKUP($C61,'Orçamento N_DESON.'!$D$11:$S$1153,6,FALSE) -> 0 | I61: =VLOOKUP($C61,'Orçamento N_DESON.'!$D$11:$S$1153,5,FALSE) -> - | J61: =IF(Comparativo!$E$6="Tabela Não Desonerada",VLOOKUP($C61,'Orçamento N_DESON.'!$D$11:$S$1153,12,FALSE),VLOOKUP($C61,'Orçamento DESON.'!$D$11:$S$1152,12,FALSE)) -> - | K61: =IF(Comparativo!$E$6="Tabela Não Desonerada",VLOOKUP($C61,'Orçamento N_DESON.'!$D$11:$S$1153,16,FALSE),VLOOKUP($C61,'Orçamento DESON.'!$D$11:$S$1152,16,FALSE)) -> 0 | L61: =IF(Comparativo!$E$6="Tabela Não Desonerada",VLOOKUP($C61,'Orçamento N_DESON.'!$D$11:$S$1153,11,FALSE),VLOOKUP($C61,'Orçamento DESON.'!$D$11:$S$1152,11,FALSE)) -> - | M61: =IF(Comparativo!$E$6="Tabela Não Desonerada",Encargos!$F$44,Encargos!$D$44) -> 1.111
B62: =IF(AND(G62<>"",H62>0,I62<>"",J62<>0,K62<>0),COUNT($B$11:B61)+1,"") -> 1 | C62: ='Orçamento N_DESON.'!D65 -> 2.1 | D62: =IF(VLOOKUP($C62,'Orçamento N_DESON.'!$D$11:$G$1596,3,FALSE)="INDEXADO",VLOOKUP(VLOOKUP($C62,'Orçamento N_DESON.'!$D$11:$G$1596,2,FALSE),'Index N_DESON.'!$A$9:$B$604,2),VLOOKUP($C62,'Orçamento N_DESON.'!$D$11:$G$1596,3,FALSE)) -> CCU | E62: =VLOOKUP($C62,'Orçamento N_DESON.'!$D$11:$S$1153,2,FALSE) -> CCU-03 | F62: =Dados!$C$7 -> 2021-10-01 | G62: =VLOOKUP($C62,'Orçamento N_DESON.'!$D$11:$S$1153,4,FALSE) -> ART (ANOTAÇÃO DE RESPONSABILIDADE TÉCNICA PELA EXECUÇÃO TOTAL DO OBJETO) | H62: =VLOOKUP($C62,'Orçamento N_DESON.'!$D$11:$S$1153,6,FALSE) -> 1 | I62: =VLOOKUP($C62,'Orçamento N_DESON.'!$D$11:$S$1153,5,FALSE) -> UN | J62: =IF(Comparativo!$E$6="Tabela Não Desonerada",VLOOKUP($C62,'Orçamento N_DESON.'!$D$11:$S$1153,12,FALSE),VLOOKUP($C62,'Orçamento DESON.'!$D$11:$S$1152,12,FALSE)) -> 276.05 | K62: =IF(Comparativo!$E$6="Tabela Não Desonerada",VLOOKUP($C62,'Orçamento N_DESON.'!$D$11:$S$1153,16,FALSE),VLOOKUP($C62,'Orçamento DESON.'!$D$11:$S$1152,16,FALSE)) -> 276.05 | L62: =IF(Comparativo!$E$6="Tabela Não Desonerada",VLOOKUP($C62,'Orçamento N_DESON.'!$D$11:$S$1153,11,FALSE),VLOOKUP($C62,'Orçamento DESON.'!$D$11:$S$1152,11,FALSE)) -> 0.2215 | M62: =IF(Comparativo!$E$6="Tabela Não Desonerada",Encargos!$F$44,Encargos!$D$44) -> 1.111
B63: =IF(AND(G63<>"",H63>0,I63<>"",J63<>0,K63<>0),COUNT($B$11:B62)+1,"") ->  | C63: ='Orçamento N_DESON.'!D66 -> 2.2 | D63: =IF(VLOOKUP($C63,'Orçamento N_DESON.'!$D$11:$G$1596,3,FALSE)="INDEXADO",VLOOKUP(VLOOKUP($C63,'Orçamento N_DESON.'!$D$11:$G$1596,2,FALSE),'Index N_DESON.'!$A$9:$B$604,2),VLOOKUP($C63,'Orçamento N_DESON.'!$D$11:$G$1596,3,FALSE)) -> 0 | E63: =VLOOKUP($C63,'Orçamento N_DESON.'!$D$11:$S$1153,2,FALSE) -> 0 | F63: =Dados!$C$7 -> 2021-10-01 | G63: =VLOOKUP($C63,'Orçamento N_DESON.'!$D$11:$S$1153,4,FALSE) -> - | H63: =VLOOKUP($C63,'Orçamento N_DESON.'!$D$11:$S$1153,6,FALSE) -> 0 | I63: =VLOOKUP($C63,'Orçamento N_DESON.'!$D$11:$S$1153,5,FALSE) -> - | J63: =IF(Comparativo!$E$6="Tabela Não Desonerada",VLOOKUP($C63,'Orçamento N_DESON.'!$D$11:$S$1153,12,FALSE),VLOOKUP($C63,'Orçamento DESON.'!$D$11:$S$1152,12,FALSE)) -> - | K63: =IF(Comparativo!$E$6="Tabela Não Desonerada",VLOOKUP($C63,'Orçamento N_DESON.'!$D$11:$S$1153,16,FALSE),VLOOKUP($C63,'Orçamento DESON.'!$D$11:$S$1152,16,FALSE)) -> 0 | L63: =IF(Comparativo!$E$6="Tabela Não Desonerada",VLOOKUP($C63,'Orçamento N_DESON.'!$D$11:$S$1153,11,FALSE),VLOOKUP($C63,'Orçamento DESON.'!$D$11:$S$1152,11,FALSE)) -> - | M63: =IF(Comparativo!$E$6="Tabela Não Desonerada",Encargos!$F$44,Encargos!$D$44) -> 1.111
B64: =IF(AND(G64<>"",H64>0,I64<>"",J64<>0,K64<>0),COUNT($B$11:B63)+1,"") ->  | C64: ='Orçamento N_DESON.'!D67 -> 2.3 | D64: =IF(VLOOKUP($C64,'Orçamento N_DESON.'!$D$11:$G$1596,3,FALSE)="INDEXADO",VLOOKUP(VLOOKUP($C64,'Orçamento N_DESON.'!$D$11:$G$1596,2,FALSE),'Index N_DESON.'!$A$9:$B$604,2),VLOOKUP($C64,'Orçamento N_DESON.'!$D$11:$G$1596,3,FALSE)) -> 0 | E64: =VLOOKUP($C64,'Orçamento N_DESON.'!$D$11:$S$1153,2,FALSE) -> 0 | F64: =Dados!$C$7 -> 2021-10-01 | G64: =VLOOKUP($C64,'Orçamento N_DESON.'!$D$11:$S$1153,4,FALSE) -> - | H64: =VLOOKUP($C64,'Orçamento N_DESON.'!$D$11:$S$1153,6,FALSE) -> 0 | I64: =VLOOKUP($C64,'Orçamento N_DESON.'!$D$11:$S$1153,5,FALSE) -> - | J64: =IF(Comparativo!$E$6="Tabela Não Desonerada",VLOOKUP($C64,'Orçamento N_DESON.'!$D$11:$S$1153,12,FALSE),VLOOKUP($C64,'Orçamento DESON.'!$D$11:$S$1152,12,FALSE)) -> - | K64: =IF(Comparativo!$E$6="Tabela Não Desonerada",VLOOKUP($C64,'Orçamento N_DESON.'!$D$11:$S$1153,16,FALSE),VLOOKUP($C64,'Orçamento DESON.'!$D$11:$S$1152,16,FALSE)) -> 0 | L64: =IF(Comparativo!$E$6="Tabela Não Desonerada",VLOOKUP($C64,'Orçamento N_DESON.'!$D$11:$S$1153,11,FALSE),VLOOKUP($C64,'Orçamento DESON.'!$D$11:$S$1152,11,FALSE)) -> - | M64: =IF(Comparativo!$E$6="Tabela Não Desonerada",Encargos!$F$44,Encargos!$D$44) -> 1.111
B65: =IF(AND(G65<>"",H65>0,I65<>"",J65<>0,K65<>0),COUNT($B$11:B64)+1,"") ->  | C65: ='Orçamento N_DESON.'!D68 -> 2.4 | D65: =IF(VLOOKUP($C65,'Orçamento N_DESON.'!$D$11:$G$1596,3,FALSE)="INDEXADO",VLOOKUP(VLOOKUP($C65,'Orçamento N_DESON.'!$D$11:$G$1596,2,FALSE),'Index N_DESON.'!$A$9:$B$604,2),VLOOKUP($C65,'Orçamento N_DESON.'!$D$11:$G$1596,3,FALSE)) -> 0 | E65: =VLOOKUP($C65,'Orçamento N_DESON.'!$D$11:$S$1153,2,FALSE) -> 0 | F65: =Dados!$C$7 -> 2021-10-01 | G65: =VLOOKUP($C65,'Orçamento N_DESON.'!$D$11:$S$1153,4,FALSE) -> - | H65: =VLOOKUP($C65,'Orçamento N_DESON.'!$D$11:$S$1153,6,FALSE) -> 0 | I65: =VLOOKUP($C65,'Orçamento N_DESON.'!$D$11:$S$1153,5,FALSE) -> - | J65: =IF(Comparativo!$E$6="Tabela Não Desonerada",VLOOKUP($C65,'Orçamento N_DESON.'!$D$11:$S$1153,12,FALSE),VLOOKUP($C65,'Orçamento DESON.'!$D$11:$S$1152,12,FALSE)) -> - | K65: =IF(Comparativo!$E$6="Tabela Não Desonerada",VLOOKUP($C65,'Orçamento N_DESON.'!$D$11:$S$1153,16,FALSE),VLOOKUP($C65,'Orçamento DESON.'!$D$11:$S$1152,16,FALSE)) -> 0 | L65: =IF(Comparativo!$E$6="Tabela Não Desonerada",VLOOKUP($C65,'Orçamento N_DESON.'!$D$11:$S$1153,11,FALSE),VLOOKUP($C65,'Orçamento DESON.'!$D$11:$S$1152,11,FALSE)) -> - | M65: =IF(Comparativo!$E$6="Tabela Não Desonerada",Encargos!$F$44,Encargos!$D$44) -> 1.111
B66: =IF(AND(G66<>"",H66>0,I66<>"",J66<>0,K66<>0),COUNT($B$11:B65)+1,"") ->  | C66: ='Orçamento N_DESON.'!D69 -> 2.5 | D66: =IF(VLOOKUP($C66,'Orçamento N_DESON.'!$D$11:$G$1596,3,FALSE)="INDEXADO",VLOOKUP(VLOOKUP($C66,'Orçamento N_DESON.'!$D$11:$G$1596,2,FALSE),'Index N_DESON.'!$A$9:$B$604,2),VLOOKUP($C66,'Orçamento N_DESON.'!$D$11:$G$1596,3,FALSE)) -> 0 | E66: =VLOOKUP($C66,'Orçamento N_DESON.'!$D$11:$S$1153,2,FALSE) -> 0 | F66: =Dados!$C$7 -> 2021-10-01 | G66: =VLOOKUP($C66,'Orçamento N_DESON.'!$D$11:$S$1153,4,FALSE) -> - | H66: =VLOOKUP($C66,'Orçamento N_DESON.'!$D$11:$S$1153,6,FALSE) -> 0 | I66: =VLOOKUP($C66,'Orçamento N_DESON.'!$D$11:$S$1153,5,FALSE) -> - | J66: =IF(Comparativo!$E$6="Tabela Não Desonerada",VLOOKUP($C66,'Orçamento N_DESON.'!$D$11:$S$1153,12,FALSE),VLOOKUP($C66,'Orçamento DESON.'!$D$11:$S$1152,12,FALSE)) -> - | K66: =IF(Comparativo!$E$6="Tabela Não Desonerada",VLOOKUP($C66,'Orçamento N_DESON.'!$D$11:$S$1153,16,FALSE),VLOOKUP($C66,'Orçamento DESON.'!$D$11:$S$1152,16,FALSE)) -> 0 | L66: =IF(Comparativo!$E$6="Tabela Não Desonerada",VLOOKUP($C66,'Orçamento N_DESON.'!$D$11:$S$1153,11,FALSE),VLOOKUP($C66,'Orçamento DESON.'!$D$11:$S$1152,11,FALSE)) -> - | M66: =IF(Comparativo!$E$6="Tabela Não Desonerada",Encargos!$F$44,Encargos!$D$44) -> 1.111
B67: =IF(AND(G67<>"",H67>0,I67<>"",J67<>0,K67<>0),COUNT($B$11:B66)+1,"") ->  | C67: ='Orçamento N_DESON.'!D70 -> 2.6 | D67: =IF(VLOOKUP($C67,'Orçamento N_DESON.'!$D$11:$G$1596,3,FALSE)="INDEXADO",VLOOKUP(VLOOKUP($C67,'Orçamento N_DESON.'!$D$11:$G$1596,2,FALSE),'Index N_DESON.'!$A$9:$B$604,2),VLOOKUP($C67,'Orçamento N_DESON.'!$D$11:$G$1596,3,FALSE)) -> 0 | E67: =VLOOKUP($C67,'Orçamento N_DESON.'!$D$11:$S$1153,2,FALSE) -> 0 | F67: =Dados!$C$7 -> 2021-10-01 | G67: =VLOOKUP($C67,'Orçamento N_DESON.'!$D$11:$S$1153,4,FALSE) -> - | H67: =VLOOKUP($C67,'Orçamento N_DESON.'!$D$11:$S$1153,6,FALSE) -> 0 | I67: =VLOOKUP($C67,'Orçamento N_DESON.'!$D$11:$S$1153,5,FALSE) -> - | J67: =IF(Comparativo!$E$6="Tabela Não Desonerada",VLOOKUP($C67,'Orçamento N_DESON.'!$D$11:$S$1153,12,FALSE),VLOOKUP($C67,'Orçamento DESON.'!$D$11:$S$1152,12,FALSE)) -> - | K67: =IF(Comparativo!$E$6="Tabela Não Desonerada",VLOOKUP($C67,'Orçamento N_DESON.'!$D$11:$S$1153,16,FALSE),VLOOKUP($C67,'Orçamento DESON.'!$D$11:$S$1152,16,FALSE)) -> 0 | L67: =IF(Comparativo!$E$6="Tabela Não Desonerada",VLOOKUP($C67,'Orçamento N_DESON.'!$D$11:$S$1153,11,FALSE),VLOOKUP($C67,'Orçamento DESON.'!$D$11:$S$1152,11,FALSE)) -> - | M67: =IF(Comparativo!$E$6="Tabela Não Desonerada",Encargos!$F$44,Encargos!$D$44) -> 1.111
B68: =IF(AND(G68<>"",H68>0,I68<>"",J68<>0,K68<>0),COUNT($B$11:B67)+1,"") ->  | C68: ='Orçamento N_DESON.'!D71 -> 2.7 | D68: =IF(VLOOKUP($C68,'Orçamento N_DESON.'!$D$11:$G$1596,3,FALSE)="INDEXADO",VLOOKUP(VLOOKUP($C68,'Orçamento N_DESON.'!$D$11:$G$1596,2,FALSE),'Index N_DESON.'!$A$9:$B$604,2),VLOOKUP($C68,'Orçamento N_DESON.'!$D$11:$G$1596,3,FALSE)) -> 0 | E68: =VLOOKUP($C68,'Orçamento N_DESON.'!$D$11:$S$1153,2,FALSE) -> 0 | F68: =Dados!$C$7 -> 2021-10-01 | G68: =VLOOKUP($C68,'Orçamento N_DESON.'!$D$11:$S$1153,4,FALSE) -> - | H68: =VLOOKUP($C68,'Orçamento N_DESON.'!$D$11:$S$1153,6,FALSE) -> 0 | I68: =VLOOKUP($C68,'Orçamento N_DESON.'!$D$11:$S$1153,5,FALSE) -> - | J68: =IF(Comparativo!$E$6="Tabela Não Desonerada",VLOOKUP($C68,'Orçamento N_DESON.'!$D$11:$S$1153,12,FALSE),VLOOKUP($C68,'Orçamento DESON.'!$D$11:$S$1152,12,FALSE)) -> - | K68: =IF(Comparativo!$E$6="Tabela Não Desonerada",VLOOKUP($C68,'Orçamento N_DESON.'!$D$11:$S$1153,16,FALSE),VLOOKUP($C68,'Orçamento DESON.'!$D$11:$S$1152,16,FALSE)) -> 0 | L68: =IF(Comparativo!$E$6="Tabela Não Desonerada",VLOOKUP($C68,'Orçamento N_DESON.'!$D$11:$S$1153,11,FALSE),VLOOKUP($C68,'Orçamento DESON.'!$D$11:$S$1152,11,FALSE)) -> - | M68: =IF(Comparativo!$E$6="Tabela Não Desonerada",Encargos!$F$44,Encargos!$D$44) -> 1.111
B69: =IF(AND(G69<>"",H69>0,I69<>"",J69<>0,K69<>0),COUNT($B$11:B68)+1,"") ->  | C69: ='Orçamento N_DESON.'!D72 -> 2.8 | D69: =IF(VLOOKUP($C69,'Orçamento N_DESON.'!$D$11:$G$1596,3,FALSE)="INDEXADO",VLOOKUP(VLOOKUP($C69,'Orçamento N_DESON.'!$D$11:$G$1596,2,FALSE),'Index N_DESON.'!$A$9:$B$604,2),VLOOKUP($C69,'Orçamento N_DESON.'!$D$11:$G$1596,3,FALSE)) -> 0 | E69: =VLOOKUP($C69,'Orçamento N_DESON.'!$D$11:$S$1153,2,FALSE) -> 0 | F69: =Dados!$C$7 -> 2021-10-01 | G69: =VLOOKUP($C69,'Orçamento N_DESON.'!$D$11:$S$1153,4,FALSE) -> - | H69: =VLOOKUP($C69,'Orçamento N_DESON.'!$D$11:$S$1153,6,FALSE) -> 0 | I69: =VLOOKUP($C69,'Orçamento N_DESON.'!$D$11:$S$1153,5,FALSE) -> - | J69: =IF(Comparativo!$E$6="Tabela Não Desonerada",VLOOKUP($C69,'Orçamento N_DESON.'!$D$11:$S$1153,12,FALSE),VLOOKUP($C69,'Orçamento DESON.'!$D$11:$S$1152,12,FALSE)) -> - | K69: =IF(Comparativo!$E$6="Tabela Não Desonerada",VLOOKUP($C69,'Orçamento N_DESON.'!$D$11:$S$1153,16,FALSE),VLOOKUP($C69,'Orçamento DESON.'!$D$11:$S$1152,16,FALSE)) -> 0 | L69: =IF(Comparativo!$E$6="Tabela Não Desonerada",VLOOKUP($C69,'Orçamento N_DESON.'!$D$11:$S$1153,11,FALSE),VLOOKUP($C69,'Orçamento DESON.'!$D$11:$S$1152,11,FALSE)) -> - | M69: =IF(Comparativo!$E$6="Tabela Não Desonerada",Encargos!$F$44,Encargos!$D$44) -> 1.111
B70: =IF(AND(G70<>"",H70>0,I70<>"",J70<>0,K70<>0),COUNT($B$11:B69)+1,"") ->  | C70: ='Orçamento N_DESON.'!D73 -> 2.9 | D70: =IF(VLOOKUP($C70,'Orçamento N_DESON.'!$D$11:$G$1596,3,FALSE)="INDEXADO",VLOOKUP(VLOOKUP($C70,'Orçamento N_DESON.'!$D$11:$G$1596,2,FALSE),'Index N_DESON.'!$A$9:$B$604,2),VLOOKUP($C70,'Orçamento N_DESON.'!$D$11:$G$1596,3,FALSE)) -> 0 | E70: =VLOOKUP($C70,'Orçamento N_DESON.'!$D$11:$S$1153,2,FALSE) -> 0 | F70: =Dados!$C$7 -> 2021-10-01 | G70: =VLOOKUP($C70,'Orçamento N_DESON.'!$D$11:$S$1153,4,FALSE) -> - | H70: =VLOOKUP($C70,'Orçamento N_DESON.'!$D$11:$S$1153,6,FALSE) -> 0 | I70: =VLOOKUP($C70,'Orçamento N_DESON.'!$D$11:$S$1153,5,FALSE) -> - | J70: =IF(Comparativo!$E$6="Tabela Não Desonerada",VLOOKUP($C70,'Orçamento N_DESON.'!$D$11:$S$1153,12,FALSE),VLOOKUP($C70,'Orçamento DESON.'!$D$11:$S$1152,12,FALSE)) -> - | K70: =IF(Comparativo!$E$6="Tabela Não Desonerada",VLOOKUP($C70,'Orçamento N_DESON.'!$D$11:$S$1153,16,FALSE),VLOOKUP($C70,'Orçamento DESON.'!$D$11:$S$1152,16,FALSE)) -> 0 | L70: =IF(Comparativo!$E$6="Tabela Não Desonerada",VLOOKUP($C70,'Orçamento N_DESON.'!$D$11:$S$1153,11,FALSE),VLOOKUP($C70,'Orçamento DESON.'!$D$11:$S$1152,11,FALSE)) -> - | M70: =IF(Comparativo!$E$6="Tabela Não Desonerada",Encargos!$F$44,Encargos!$D$44) -> 1.111
B71: =IF(AND(G71<>"",H71>0,I71<>"",J71<>0,K71<>0),COUNT($B$11:B70)+1,"") ->  | C71: ='Orçamento N_DESON.'!D74 -> 2.10 | D71: =IF(VLOOKUP($C71,'Orçamento N_DESON.'!$D$11:$G$1596,3,FALSE)="INDEXADO",VLOOKUP(VLOOKUP($C71,'Orçamento N_DESON.'!$D$11:$G$1596,2,FALSE),'Index N_DESON.'!$A$9:$B$604,2),VLOOKUP($C71,'Orçamento N_DESON.'!$D$11:$G$1596,3,FALSE)) -> 0 | E71: =VLOOKUP($C71,'Orçamento N_DESON.'!$D$11:$S$1153,2,FALSE) -> 0 | F71: =Dados!$C$7 -> 2021-10-01 | G71: =VLOOKUP($C71,'Orçamento N_DESON.'!$D$11:$S$1153,4,FALSE) -> - | H71: =VLOOKUP($C71,'Orçamento N_DESON.'!$D$11:$S$1153,6,FALSE) -> 0 | I71: =VLOOKUP($C71,'Orçamento N_DESON.'!$D$11:$S$1153,5,FALSE) -> - | J71: =IF(Comparativo!$E$6="Tabela Não Desonerada",VLOOKUP($C71,'Orçamento N_DESON.'!$D$11:$S$1153,12,FALSE),VLOOKUP($C71,'Orçamento DESON.'!$D$11:$S$1152,12,FALSE)) -> - | K71: =IF(Comparativo!$E$6="Tabela Não Desonerada",VLOOKUP($C71,'Orçamento N_DESON.'!$D$11:$S$1153,16,FALSE),VLOOKUP($C71,'Orçamento DESON.'!$D$11:$S$1152,16,FALSE)) -> 0 | L71: =IF(Comparativo!$E$6="Tabela Não Desonerada",VLOOKUP($C71,'Orçamento N_DESON.'!$D$11:$S$1153,11,FALSE),VLOOKUP($C71,'Orçamento DESON.'!$D$11:$S$1152,11,FALSE)) -> - | M71: =IF(Comparativo!$E$6="Tabela Não Desonerada",Encargos!$F$44,Encargos!$D$44) -> 1.111
B72: =IF(AND(G72<>"",H72>0,I72<>"",J72<>0,K72<>0),COUNT($B$11:B71)+1,"") ->  | C72: ='Orçamento N_DESON.'!D75 -> 2.11 | D72: =IF(VLOOKUP($C72,'Orçamento N_DESON.'!$D$11:$G$1596,3,FALSE)="INDEXADO",VLOOKUP(VLOOKUP($C72,'Orçamento N_DESON.'!$D$11:$G$1596,2,FALSE),'Index N_DESON.'!$A$9:$B$604,2),VLOOKUP($C72,'Orçamento N_DESON.'!$D$11:$G$1596,3,FALSE)) -> 0 | E72: =VLOOKUP($C72,'Orçamento N_DESON.'!$D$11:$S$1153,2,FALSE) -> 0 | F72: =Dados!$C$7 -> 2021-10-01 | G72: =VLOOKUP($C72,'Orçamento N_DESON.'!$D$11:$S$1153,4,FALSE) -> - | H72: =VLOOKUP($C72,'Orçamento N_DESON.'!$D$11:$S$1153,6,FALSE) -> 0 | I72: =VLOOKUP($C72,'Orçamento N_DESON.'!$D$11:$S$1153,5,FALSE) -> - | J72: =IF(Comparativo!$E$6="Tabela Não Desonerada",VLOOKUP($C72,'Orçamento N_DESON.'!$D$11:$S$1153,12,FALSE),VLOOKUP($C72,'Orçamento DESON.'!$D$11:$S$1152,12,FALSE)) -> - | K72: =IF(Comparativo!$E$6="Tabela Não Desonerada",VLOOKUP($C72,'Orçamento N_DESON.'!$D$11:$S$1153,16,FALSE),VLOOKUP($C72,'Orçamento DESON.'!$D$11:$S$1152,16,FALSE)) -> 0 | L72: =IF(Comparativo!$E$6="Tabela Não Desonerada",VLOOKUP($C72,'Orçamento N_DESON.'!$D$11:$S$1153,11,FALSE),VLOOKUP($C72,'Orçamento DESON.'!$D$11:$S$1152,11,FALSE)) -> - | M72: =IF(Comparativo!$E$6="Tabela Não Desonerada",Encargos!$F$44,Encargos!$D$44) -> 1.111
B73: =IF(AND(G73<>"",H73>0,I73<>"",J73<>0,K73<>0),COUNT($B$11:B72)+1,"") ->  | C73: ='Orçamento N_DESON.'!D76 -> 2.12 | D73: =IF(VLOOKUP($C73,'Orçamento N_DESON.'!$D$11:$G$1596,3,FALSE)="INDEXADO",VLOOKUP(VLOOKUP($C73,'Orçamento N_DESON.'!$D$11:$G$1596,2,FALSE),'Index N_DESON.'!$A$9:$B$604,2),VLOOKUP($C73,'Orçamento N_DESON.'!$D$11:$G$1596,3,FALSE)) -> 0 | E73: =VLOOKUP($C73,'Orçamento N_DESON.'!$D$11:$S$1153,2,FALSE) -> 0 | F73: =Dados!$C$7 -> 2021-10-01 | G73: =VLOOKUP($C73,'Orçamento N_DESON.'!$D$11:$S$1153,4,FALSE) -> - | H73: =VLOOKUP($C73,'Orçamento N_DESON.'!$D$11:$S$1153,6,FALSE) -> 0 | I73: =VLOOKUP($C73,'Orçamento N_DESON.'!$D$11:$S$1153,5,FALSE) -> - | J73: =IF(Comparativo!$E$6="Tabela Não Desonerada",VLOOKUP($C73,'Orçamento N_DESON.'!$D$11:$S$1153,12,FALSE),VLOOKUP($C73,'Orçamento DESON.'!$D$11:$S$1152,12,FALSE)) -> - | K73: =IF(Comparativo!$E$6="Tabela Não Desonerada",VLOOKUP($C73,'Orçamento N_DESON.'!$D$11:$S$1153,16,FALSE),VLOOKUP($C73,'Orçamento DESON.'!$D$11:$S$1152,16,FALSE)) -> 0 | L73: =IF(Comparativo!$E$6="Tabela Não Desonerada",VLOOKUP($C73,'Orçamento N_DESON.'!$D$11:$S$1153,11,FALSE),VLOOKUP($C73,'Orçamento DESON.'!$D$11:$S$1152,11,FALSE)) -> - | M73: =IF(Comparativo!$E$6="Tabela Não Desonerada",Encargos!$F$44,Encargos!$D$44) -> 1.111
B74: =IF(AND(G74<>"",H74>0,I74<>"",J74<>0,K74<>0),COUNT($B$11:B73)+1,"") ->  | C74: ='Orçamento N_DESON.'!D77 -> 2.13 | D74: =IF(VLOOKUP($C74,'Orçamento N_DESON.'!$D$11:$G$1596,3,FALSE)="INDEXADO",VLOOKUP(VLOOKUP($C74,'Orçamento N_DESON.'!$D$11:$G$1596,2,FALSE),'Index N_DESON.'!$A$9:$B$604,2),VLOOKUP($C74,'Orçamento N_DESON.'!$D$11:$G$1596,3,FALSE)) -> 0 | E74: =VLOOKUP($C74,'Orçamento N_DESON.'!$D$11:$S$1153,2,FALSE) -> 0 | F74: =Dados!$C$7 -> 2021-10-01 | G74: =VLOOKUP($C74,'Orçamento N_DESON.'!$D$11:$S$1153,4,FALSE) -> - | H74: =VLOOKUP($C74,'Orçamento N_DESON.'!$D$11:$S$1153,6,FALSE) -> 0 | I74: =VLOOKUP($C74,'Orçamento N_DESON.'!$D$11:$S$1153,5,FALSE) -> - | J74: =IF(Comparativo!$E$6="Tabela Não Desonerada",VLOOKUP($C74,'Orçamento N_DESON.'!$D$11:$S$1153,12,FALSE),VLOOKUP($C74,'Orçamento DESON.'!$D$11:$S$1152,12,FALSE)) -> - | K74: =IF(Comparativo!$E$6="Tabela Não Desonerada",VLOOKUP($C74,'Orçamento N_DESON.'!$D$11:$S$1153,16,FALSE),VLOOKUP($C74,'Orçamento DESON.'!$D$11:$S$1152,16,FALSE)) -> 0 | L74: =IF(Comparativo!$E$6="Tabela Não Desonerada",VLOOKUP($C74,'Orçamento N_DESON.'!$D$11:$S$1153,11,FALSE),VLOOKUP($C74,'Orçamento DESON.'!$D$11:$S$1152,11,FALSE)) -> - | M74: =IF(Comparativo!$E$6="Tabela Não Desonerada",Encargos!$F$44,Encargos!$D$44) -> 1.111
B75: =IF(AND(G75<>"",H75>0,I75<>"",J75<>0,K75<>0),COUNT($B$11:B74)+1,"") ->  | C75: ='Orçamento N_DESON.'!D78 -> 2.14 | D75: =IF(VLOOKUP($C75,'Orçamento N_DESON.'!$D$11:$G$1596,3,FALSE)="INDEXADO",VLOOKUP(VLOOKUP($C75,'Orçamento N_DESON.'!$D$11:$G$1596,2,FALSE),'Index N_DESON.'!$A$9:$B$604,2),VLOOKUP($C75,'Orçamento N_DESON.'!$D$11:$G$1596,3,FALSE)) -> 0 | E75: =VLOOKUP($C75,'Orçamento N_DESON.'!$D$11:$S$1153,2,FALSE) -> 0 | F75: =Dados!$C$7 -> 2021-10-01 | G75: =VLOOKUP($C75,'Orçamento N_DESON.'!$D$11:$S$1153,4,FALSE) -> - | H75: =VLOOKUP($C75,'Orçamento N_DESON.'!$D$11:$S$1153,6,FALSE) -> 0 | I75: =VLOOKUP($C75,'Orçamento N_DESON.'!$D$11:$S$1153,5,FALSE) -> - | J75: =IF(Comparativo!$E$6="Tabela Não Desonerada",VLOOKUP($C75,'Orçamento N_DESON.'!$D$11:$S$1153,12,FALSE),VLOOKUP($C75,'Orçamento DESON.'!$D$11:$S$1152,12,FALSE)) -> - | K75: =IF(Comparativo!$E$6="Tabela Não Desonerada",VLOOKUP($C75,'Orçamento N_DESON.'!$D$11:$S$1153,16,FALSE),VLOOKUP($C75,'Orçamento DESON.'!$D$11:$S$1152,16,FALSE)) -> 0 | L75: =IF(Comparativo!$E$6="Tabela Não Desonerada",VLOOKUP($C75,'Orçamento N_DESON.'!$D$11:$S$1153,11,FALSE),VLOOKUP($C75,'Orçamento DESON.'!$D$11:$S$1152,11,FALSE)) -> - | M75: =IF(Comparativo!$E$6="Tabela Não Desonerada",Encargos!$F$44,Encargos!$D$44) -> 1.111
B76: =IF(AND(G76<>"",H76>0,I76<>"",J76<>0,K76<>0),COUNT($B$11:B75)+1,"") ->  | C76: ='Orçamento N_DESON.'!D79 -> 2.15 | D76: =IF(VLOOKUP($C76,'Orçamento N_DESON.'!$D$11:$G$1596,3,FALSE)="INDEXADO",VLOOKUP(VLOOKUP($C76,'Orçamento N_DESON.'!$D$11:$G$1596,2,FALSE),'Index N_DESON.'!$A$9:$B$604,2),VLOOKUP($C76,'Orçamento N_DESON.'!$D$11:$G$1596,3,FALSE)) -> 0 | E76: =VLOOKUP($C76,'Orçamento N_DESON.'!$D$11:$S$1153,2,FALSE) -> 0 | F76: =Dados!$C$7 -> 2021-10-01 | G76: =VLOOKUP($C76,'Orçamento N_DESON.'!$D$11:$S$1153,4,FALSE) -> - | H76: =VLOOKUP($C76,'Orçamento N_DESON.'!$D$11:$S$1153,6,FALSE) -> 0 | I76: =VLOOKUP($C76,'Orçamento N_DESON.'!$D$11:$S$1153,5,FALSE) -> - | J76: =IF(Comparativo!$E$6="Tabela Não Desonerada",VLOOKUP($C76,'Orçamento N_DESON.'!$D$11:$S$1153,12,FALSE),VLOOKUP($C76,'Orçamento DESON.'!$D$11:$S$1152,12,FALSE)) -> - | K76: =IF(Comparativo!$E$6="Tabela Não Desonerada",VLOOKUP($C76,'Orçamento N_DESON.'!$D$11:$S$1153,16,FALSE),VLOOKUP($C76,'Orçamento DESON.'!$D$11:$S$1152,16,FALSE)) -> 0 | L76: =IF(Comparativo!$E$6="Tabela Não Desonerada",VLOOKUP($C76,'Orçamento N_DESON.'!$D$11:$S$1153,11,FALSE),VLOOKUP($C76,'Orçamento DESON.'!$D$11:$S$1152,11,FALSE)) -> - | M76: =IF(Comparativo!$E$6="Tabela Não Desonerada",Encargos!$F$44,Encargos!$D$44) -> 1.111
B77: =IF(AND(G77<>"",H77>0,I77<>"",J77<>0,K77<>0),COUNT($B$11:B76)+1,"") ->  | C77: ='Orçamento N_DESON.'!D80 -> 2.16 | D77: =IF(VLOOKUP($C77,'Orçamento N_DESON.'!$D$11:$G$1596,3,FALSE)="INDEXADO",VLOOKUP(VLOOKUP($C77,'Orçamento N_DESON.'!$D$11:$G$1596,2,FALSE),'Index N_DESON.'!$A$9:$B$604,2),VLOOKUP($C77,'Orçamento N_DESON.'!$D$11:$G$1596,3,FALSE)) -> 0 | E77: =VLOOKUP($C77,'Orçamento N_DESON.'!$D$11:$S$1153,2,FALSE) -> 0 | F77: =Dados!$C$7 -> 2021-10-01 | G77: =VLOOKUP($C77,'Orçamento N_DESON.'!$D$11:$S$1153,4,FALSE) -> - | H77: =VLOOKUP($C77,'Orçamento N_DESON.'!$D$11:$S$1153,6,FALSE) -> 0 | I77: =VLOOKUP($C77,'Orçamento N_DESON.'!$D$11:$S$1153,5,FALSE) -> - | J77: =IF(Comparativo!$E$6="Tabela Não Desonerada",VLOOKUP($C77,'Orçamento N_DESON.'!$D$11:$S$1153,12,FALSE),VLOOKUP($C77,'Orçamento DESON.'!$D$11:$S$1152,12,FALSE)) -> - | K77: =IF(Comparativo!$E$6="Tabela Não Desonerada",VLOOKUP($C77,'Orçamento N_DESON.'!$D$11:$S$1153,16,FALSE),VLOOKUP($C77,'Orçamento DESON.'!$D$11:$S$1152,16,FALSE)) -> 0 | L77: =IF(Comparativo!$E$6="Tabela Não Desonerada",VLOOKUP($C77,'Orçamento N_DESON.'!$D$11:$S$1153,11,FALSE),VLOOKUP($C77,'Orçamento DESON.'!$D$11:$S$1152,11,FALSE)) -> - | M77: =IF(Comparativo!$E$6="Tabela Não Desonerada",Encargos!$F$44,Encargos!$D$44) -> 1.111
B78: =IF(AND(G78<>"",H78>0,I78<>"",J78<>0,K78<>0),COUNT($B$11:B77)+1,"") ->  | C78: ='Orçamento N_DESON.'!D81 -> 2.17 | D78: =IF(VLOOKUP($C78,'Orçamento N_DESON.'!$D$11:$G$1596,3,FALSE)="INDEXADO",VLOOKUP(VLOOKUP($C78,'Orçamento N_DESON.'!$D$11:$G$1596,2,FALSE),'Index N_DESON.'!$A$9:$B$604,2),VLOOKUP($C78,'Orçamento N_DESON.'!$D$11:$G$1596,3,FALSE)) -> 0 | E78: =VLOOKUP($C78,'Orçamento N_DESON.'!$D$11:$S$1153,2,FALSE) -> 0 | F78: =Dados!$C$7 -> 2021-10-01 | G78: =VLOOKUP($C78,'Orçamento N_DESON.'!$D$11:$S$1153,4,FALSE) -> - | H78: =VLOOKUP($C78,'Orçamento N_DESON.'!$D$11:$S$1153,6,FALSE) -> 0 | I78: =VLOOKUP($C78,'Orçamento N_DESON.'!$D$11:$S$1153,5,FALSE) -> - | J78: =IF(Comparativo!$E$6="Tabela Não Desonerada",VLOOKUP($C78,'Orçamento N_DESON.'!$D$11:$S$1153,12,FALSE),VLOOKUP($C78,'Orçamento DESON.'!$D$11:$S$1152,12,FALSE)) -> - | K78: =IF(Comparativo!$E$6="Tabela Não Desonerada",VLOOKUP($C78,'Orçamento N_DESON.'!$D$11:$S$1153,16,FALSE),VLOOKUP($C78,'Orçamento DESON.'!$D$11:$S$1152,16,FALSE)) -> 0 | L78: =IF(Comparativo!$E$6="Tabela Não Desonerada",VLOOKUP($C78,'Orçamento N_DESON.'!$D$11:$S$1153,11,FALSE),VLOOKUP($C78,'Orçamento DESON.'!$D$11:$S$1152,11,FALSE)) -> - | M78: =IF(Comparativo!$E$6="Tabela Não Desonerada",Encargos!$F$44,Encargos!$D$44) -> 1.111
B79: =IF(AND(G79<>"",H79>0,I79<>"",J79<>0,K79<>0),COUNT($B$11:B78)+1,"") ->  | C79: ='Orçamento N_DESON.'!D82 -> 2.18 | D79: =IF(VLOOKUP($C79,'Orçamento N_DESON.'!$D$11:$G$1596,3,FALSE)="INDEXADO",VLOOKUP(VLOOKUP($C79,'Orçamento N_DESON.'!$D$11:$G$1596,2,FALSE),'Index N_DESON.'!$A$9:$B$604,2),VLOOKUP($C79,'Orçamento N_DESON.'!$D$11:$G$1596,3,FALSE)) -> 0 | E79: =VLOOKUP($C79,'Orçamento N_DESON.'!$D$11:$S$1153,2,FALSE) -> 0 | F79: =Dados!$C$7 -> 2021-10-01 | G79: =VLOOKUP($C79,'Orçamento N_DESON.'!$D$11:$S$1153,4,FALSE) -> - | H79: =VLOOKUP($C79,'Orçamento N_DESON.'!$D$11:$S$1153,6,FALSE) -> 0 | I79: =VLOOKUP($C79,'Orçamento N_DESON.'!$D$11:$S$1153,5,FALSE) -> - | J79: =IF(Comparativo!$E$6="Tabela Não Desonerada",VLOOKUP($C79,'Orçamento N_DESON.'!$D$11:$S$1153,12,FALSE),VLOOKUP($C79,'Orçamento DESON.'!$D$11:$S$1152,12,FALSE)) -> - | K79: =IF(Comparativo!$E$6="Tabela Não Desonerada",VLOOKUP($C79,'Orçamento N_DESON.'!$D$11:$S$1153,16,FALSE),VLOOKUP($C79,'Orçamento DESON.'!$D$11:$S$1152,16,FALSE)) -> 0 | L79: =IF(Comparativo!$E$6="Tabela Não Desonerada",VLOOKUP($C79,'Orçamento N_DESON.'!$D$11:$S$1153,11,FALSE),VLOOKUP($C79,'Orçamento DESON.'!$D$11:$S$1152,11,FALSE)) -> - | M79: =IF(Comparativo!$E$6="Tabela Não Desonerada",Encargos!$F$44,Encargos!$D$44) -> 1.111
B80: =IF(AND(G80<>"",H80>0,I80<>"",J80<>0,K80<>0),COUNT($B$11:B79)+1,"") ->  | C80: ='Orçamento N_DESON.'!D83 -> 2.19 | D80: =IF(VLOOKUP($C80,'Orçamento N_DESON.'!$D$11:$G$1596,3,FALSE)="INDEXADO",VLOOKUP(VLOOKUP($C80,'Orçamento N_DESON.'!$D$11:$G$1596,2,FALSE),'Index N_DESON.'!$A$9:$B$604,2),VLOOKUP($C80,'Orçamento N_DESON.'!$D$11:$G$1596,3,FALSE)) -> 0 | E80: =VLOOKUP($C80,'Orçamento N_DESON.'!$D$11:$S$1153,2,FALSE) -> 0 | F80: =Dados!$C$7 -> 2021-10-01 | G80: =VLOOKUP($C80,'Orçamento N_DESON.'!$D$11:$S$1153,4,FALSE) -> - | H80: =VLOOKUP($C80,'Orçamento N_DESON.'!$D$11:$S$1153,6,FALSE) -> 0 | I80: =VLOOKUP($C80,'Orçamento N_DESON.'!$D$11:$S$1153,5,FALSE) -> - | J80: =IF(Comparativo!$E$6="Tabela Não Desonerada",VLOOKUP($C80,'Orçamento N_DESON.'!$D$11:$S$1153,12,FALSE),VLOOKUP($C80,'Orçamento DESON.'!$D$11:$S$1152,12,FALSE)) -> - | K80: =IF(Comparativo!$E$6="Tabela Não Desonerada",VLOOKUP($C80,'Orçamento N_DESON.'!$D$11:$S$1153,16,FALSE),VLOOKUP($C80,'Orçamento DESON.'!$D$11:$S$1152,16,FALSE)) -> 0 | L80: =IF(Comparativo!$E$6="Tabela Não Desonerada",VLOOKUP($C80,'Orçamento N_DESON.'!$D$11:$S$1153,11,FALSE),VLOOKUP($C80,'Orçamento DESON.'!$D$11:$S$1152,11,FALSE)) -> - | M80: =IF(Comparativo!$E$6="Tabela Não Desonerada",Encargos!$F$44,Encargos!$D$44) -> 1.111
B81: =IF(AND(G81<>"",H81>0,I81<>"",J81<>0,K81<>0),COUNT($B$11:B80)+1,"") ->  | C81: ='Orçamento N_DESON.'!D84 -> 2.20 | D81: =IF(VLOOKUP($C81,'Orçamento N_DESON.'!$D$11:$G$1596,3,FALSE)="INDEXADO",VLOOKUP(VLOOKUP($C81,'Orçamento N_DESON.'!$D$11:$G$1596,2,FALSE),'Index N_DESON.'!$A$9:$B$604,2),VLOOKUP($C81,'Orçamento N_DESON.'!$D$11:$G$1596,3,FALSE)) -> 0 | E81: =VLOOKUP($C81,'Orçamento N_DESON.'!$D$11:$S$1153,2,FALSE) -> 0 | F81: =Dados!$C$7 -> 2021-10-01 | G81: =VLOOKUP($C81,'Orçamento N_DESON.'!$D$11:$S$1153,4,FALSE) -> - | H81: =VLOOKUP($C81,'Orçamento N_DESON.'!$D$11:$S$1153,6,FALSE) -> 0 | I81: =VLOOKUP($C81,'Orçamento N_DESON.'!$D$11:$S$1153,5,FALSE) -> - | J81: =IF(Comparativo!$E$6="Tabela Não Desonerada",VLOOKUP($C81,'Orçamento N_DESON.'!$D$11:$S$1153,12,FALSE),VLOOKUP($C81,'Orçamento DESON.'!$D$11:$S$1152,12,FALSE)) -> - | K81: =IF(Comparativo!$E$6="Tabela Não Desonerada",VLOOKUP($C81,'Orçamento N_DESON.'!$D$11:$S$1153,16,FALSE),VLOOKUP($C81,'Orçamento DESON.'!$D$11:$S$1152,16,FALSE)) -> 0 | L81: =IF(Comparativo!$E$6="Tabela Não Desonerada",VLOOKUP($C81,'Orçamento N_DESON.'!$D$11:$S$1153,11,FALSE),VLOOKUP($C81,'Orçamento DESON.'!$D$11:$S$1152,11,FALSE)) -> - | M81: =IF(Comparativo!$E$6="Tabela Não Desonerada",Encargos!$F$44,Encargos!$D$44) -> 1.111
B82: =IF(AND(G82<>"",H82>0,I82<>"",J82<>0,K82<>0),COUNT($B$11:B81)+1,"") ->  | C82: ='Orçamento N_DESON.'!D85 -> 2.21 | D82: =IF(VLOOKUP($C82,'Orçamento N_DESON.'!$D$11:$G$1596,3,FALSE)="INDEXADO",VLOOKUP(VLOOKUP($C82,'Orçamento N_DESON.'!$D$11:$G$1596,2,FALSE),'Index N_DESON.'!$A$9:$B$604,2),VLOOKUP($C82,'Orçamento N_DESON.'!$D$11:$G$1596,3,FALSE)) -> 0 | E82: =VLOOKUP($C82,'Orçamento N_DESON.'!$D$11:$S$1153,2,FALSE) -> 0 | F82: =Dados!$C$7 -> 2021-10-01 | G82: =VLOOKUP($C82,'Orçamento N_DESON.'!$D$11:$S$1153,4,FALSE) -> - | H82: =VLOOKUP($C82,'Orçamento N_DESON.'!$D$11:$S$1153,6,FALSE) -> 0 | I82: =VLOOKUP($C82,'Orçamento N_DESON.'!$D$11:$S$1153,5,FALSE) -> - | J82: =IF(Comparativo!$E$6="Tabela Não Desonerada",VLOOKUP($C82,'Orçamento N_DESON.'!$D$11:$S$1153,12,FALSE),VLOOKUP($C82,'Orçamento DESON.'!$D$11:$S$1152,12,FALSE)) -> - | K82: =IF(Comparativo!$E$6="Tabela Não Desonerada",VLOOKUP($C82,'Orçamento N_DESON.'!$D$11:$S$1153,16,FALSE),VLOOKUP($C82,'Orçamento DESON.'!$D$11:$S$1152,16,FALSE)) -> 0 | L82: =IF(Comparativo!$E$6="Tabela Não Desonerada",VLOOKUP($C82,'Orçamento N_DESON.'!$D$11:$S$1153,11,FALSE),VLOOKUP($C82,'Orçamento DESON.'!$D$11:$S$1152,11,FALSE)) -> - | M82: =IF(Comparativo!$E$6="Tabela Não Desonerada",Encargos!$F$44,Encargos!$D$44) -> 1.111
B83: =IF(AND(G83<>"",H83>0,I83<>"",J83<>0,K83<>0),COUNT($B$11:B82)+1,"") ->  | C83: ='Orçamento N_DESON.'!D86 -> 2.22 | D83: =IF(VLOOKUP($C83,'Orçamento N_DESON.'!$D$11:$G$1596,3,FALSE)="INDEXADO",VLOOKUP(VLOOKUP($C83,'Orçamento N_DESON.'!$D$11:$G$1596,2,FALSE),'Index N_DESON.'!$A$9:$B$604,2),VLOOKUP($C83,'Orçamento N_DESON.'!$D$11:$G$1596,3,FALSE)) -> 0 | E83: =VLOOKUP($C83,'Orçamento N_DESON.'!$D$11:$S$1153,2,FALSE) -> 0 | F83: =Dados!$C$7 -> 2021-10-01 | G83: =VLOOKUP($C83,'Orçamento N_DESON.'!$D$11:$S$1153,4,FALSE) -> - | H83: =VLOOKUP($C83,'Orçamento N_DESON.'!$D$11:$S$1153,6,FALSE) -> 0 | I83: =VLOOKUP($C83,'Orçamento N_DESON.'!$D$11:$S$1153,5,FALSE) -> - | J83: =IF(Comparativo!$E$6="Tabela Não Desonerada",VLOOKUP($C83,'Orçamento N_DESON.'!$D$11:$S$1153,12,FALSE),VLOOKUP($C83,'Orçamento DESON.'!$D$11:$S$1152,12,FALSE)) -> - | K83: =IF(Comparativo!$E$6="Tabela Não Desonerada",VLOOKUP($C83,'Orçamento N_DESON.'!$D$11:$S$1153,16,FALSE),VLOOKUP($C83,'Orçamento DESON.'!$D$11:$S$1152,16,FALSE)) -> 0 | L83: =IF(Comparativo!$E$6="Tabela Não Desonerada",VLOOKUP($C83,'Orçamento N_DESON.'!$D$11:$S$1153,11,FALSE),VLOOKUP($C83,'Orçamento DESON.'!$D$11:$S$1152,11,FALSE)) -> - | M83: =IF(Comparativo!$E$6="Tabela Não Desonerada",Encargos!$F$44,Encargos!$D$44) -> 1.111
B84: =IF(AND(G84<>"",H84>0,I84<>"",J84<>0,K84<>0),COUNT($B$11:B83)+1,"") ->  | C84: ='Orçamento N_DESON.'!D87 -> 2.23 | D84: =IF(VLOOKUP($C84,'Orçamento N_DESON.'!$D$11:$G$1596,3,FALSE)="INDEXADO",VLOOKUP(VLOOKUP($C84,'Orçamento N_DESON.'!$D$11:$G$1596,2,FALSE),'Index N_DESON.'!$A$9:$B$604,2),VLOOKUP($C84,'Orçamento N_DESON.'!$D$11:$G$1596,3,FALSE)) -> 0 | E84: =VLOOKUP($C84,'Orçamento N_DESON.'!$D$11:$S$1153,2,FALSE) -> 0 | F84: =Dados!$C$7 -> 2021-10-01 | G84: =VLOOKUP($C84,'Orçamento N_DESON.'!$D$11:$S$1153,4,FALSE) -> - | H84: =VLOOKUP($C84,'Orçamento N_DESON.'!$D$11:$S$1153,6,FALSE) -> 0 | I84: =VLOOKUP($C84,'Orçamento N_DESON.'!$D$11:$S$1153,5,FALSE) -> - | J84: =IF(Comparativo!$E$6="Tabela Não Desonerada",VLOOKUP($C84,'Orçamento N_DESON.'!$D$11:$S$1153,12,FALSE),VLOOKUP($C84,'Orçamento DESON.'!$D$11:$S$1152,12,FALSE)) -> - | K84: =IF(Comparativo!$E$6="Tabela Não Desonerada",VLOOKUP($C84,'Orçamento N_DESON.'!$D$11:$S$1153,16,FALSE),VLOOKUP($C84,'Orçamento DESON.'!$D$11:$S$1152,16,FALSE)) -> 0 | L84: =IF(Comparativo!$E$6="Tabela Não Desonerada",VLOOKUP($C84,'Orçamento N_DESON.'!$D$11:$S$1153,11,FALSE),VLOOKUP($C84,'Orçamento DESON.'!$D$11:$S$1152,11,FALSE)) -> - | M84: =IF(Comparativo!$E$6="Tabela Não Desonerada",Encargos!$F$44,Encargos!$D$44) -> 1.111
B85: =IF(AND(G85<>"",H85>0,I85<>"",J85<>0,K85<>0),COUNT($B$11:B84)+1,"") ->  | C85: ='Orçamento N_DESON.'!D88 -> 2.24 | D85: =IF(VLOOKUP($C85,'Orçamento N_DESON.'!$D$11:$G$1596,3,FALSE)="INDEXADO",VLOOKUP(VLOOKUP($C85,'Orçamento N_DESON.'!$D$11:$G$1596,2,FALSE),'Index N_DESON.'!$A$9:$B$604,2),VLOOKUP($C85,'Orçamento N_DESON.'!$D$11:$G$1596,3,FALSE)) -> 0 | E85: =VLOOKUP($C85,'Orçamento N_DESON.'!$D$11:$S$1153,2,FALSE) -> 0 | F85: =Dados!$C$7 -> 2021-10-01 | G85: =VLOOKUP($C85,'Orçamento N_DESON.'!$D$11:$S$1153,4,FALSE) -> - | H85: =VLOOKUP($C85,'Orçamento N_DESON.'!$D$11:$S$1153,6,FALSE) -> 0 | I85: =VLOOKUP($C85,'Orçamento N_DESON.'!$D$11:$S$1153,5,FALSE) -> - | J85: =IF(Comparativo!$E$6="Tabela Não Desonerada",VLOOKUP($C85,'Orçamento N_DESON.'!$D$11:$S$1153,12,FALSE),VLOOKUP($C85,'Orçamento DESON.'!$D$11:$S$1152,12,FALSE)) -> - | K85: =IF(Comparativo!$E$6="Tabela Não Desonerada",VLOOKUP($C85,'Orçamento N_DESON.'!$D$11:$S$1153,16,FALSE),VLOOKUP($C85,'Orçamento DESON.'!$D$11:$S$1152,16,FALSE)) -> 0 | L85: =IF(Comparativo!$E$6="Tabela Não Desonerada",VLOOKUP($C85,'Orçamento N_DESON.'!$D$11:$S$1153,11,FALSE),VLOOKUP($C85,'Orçamento DESON.'!$D$11:$S$1152,11,FALSE)) -> - | M85: =IF(Comparativo!$E$6="Tabela Não Desonerada",Encargos!$F$44,Encargos!$D$44) -> 1.111
B86: =IF(AND(G86<>"",H86>0,I86<>"",J86<>0,K86<>0),COUNT($B$11:B85)+1,"") ->  | C86: ='Orçamento N_DESON.'!D89 -> 2.25 | D86: =IF(VLOOKUP($C86,'Orçamento N_DESON.'!$D$11:$G$1596,3,FALSE)="INDEXADO",VLOOKUP(VLOOKUP($C86,'Orçamento N_DESON.'!$D$11:$G$1596,2,FALSE),'Index N_DESON.'!$A$9:$B$604,2),VLOOKUP($C86,'Orçamento N_DESON.'!$D$11:$G$1596,3,FALSE)) -> 0 | E86: =VLOOKUP($C86,'Orçamento N_DESON.'!$D$11:$S$1153,2,FALSE) -> 0 | F86: =Dados!$C$7 -> 2021-10-01 | G86: =VLOOKUP($C86,'Orçamento N_DESON.'!$D$11:$S$1153,4,FALSE) -> - | H86: =VLOOKUP($C86,'Orçamento N_DESON.'!$D$11:$S$1153,6,FALSE) -> 0 | I86: =VLOOKUP($C86,'Orçamento N_DESON.'!$D$11:$S$1153,5,FALSE) -> - | J86: =IF(Comparativo!$E$6="Tabela Não Desonerada",VLOOKUP($C86,'Orçamento N_DESON.'!$D$11:$S$1153,12,FALSE),VLOOKUP($C86,'Orçamento DESON.'!$D$11:$S$1152,12,FALSE)) -> - | K86: =IF(Comparativo!$E$6="Tabela Não Desonerada",VLOOKUP($C86,'Orçamento N_DESON.'!$D$11:$S$1153,16,FALSE),VLOOKUP($C86,'Orçamento DESON.'!$D$11:$S$1152,16,FALSE)) -> 0 | L86: =IF(Comparativo!$E$6="Tabela Não Desonerada",VLOOKUP($C86,'Orçamento N_DESON.'!$D$11:$S$1153,11,FALSE),VLOOKUP($C86,'Orçamento DESON.'!$D$11:$S$1152,11,FALSE)) -> - | M86: =IF(Comparativo!$E$6="Tabela Não Desonerada",Encargos!$F$44,Encargos!$D$44) -> 1.111
B87: =IF(AND(G87<>"",H87>0,I87<>"",J87<>0,K87<>0),COUNT($B$11:B86)+1,"") ->  | C87: ='Orçamento N_DESON.'!D90 -> 2.26 | D87: =IF(VLOOKUP($C87,'Orçamento N_DESON.'!$D$11:$G$1596,3,FALSE)="INDEXADO",VLOOKUP(VLOOKUP($C87,'Orçamento N_DESON.'!$D$11:$G$1596,2,FALSE),'Index N_DESON.'!$A$9:$B$604,2),VLOOKUP($C87,'Orçamento N_DESON.'!$D$11:$G$1596,3,FALSE)) -> 0 | E87: =VLOOKUP($C87,'Orçamento N_DESON.'!$D$11:$S$1153,2,FALSE) -> 0 | F87: =Dados!$C$7 -> 2021-10-01 | G87: =VLOOKUP($C87,'Orçamento N_DESON.'!$D$11:$S$1153,4,FALSE) -> - | H87: =VLOOKUP($C87,'Orçamento N_DESON.'!$D$11:$S$1153,6,FALSE) -> 0 | I87: =VLOOKUP($C87,'Orçamento N_DESON.'!$D$11:$S$1153,5,FALSE) -> - | J87: =IF(Comparativo!$E$6="Tabela Não Desonerada",VLOOKUP($C87,'Orçamento N_DESON.'!$D$11:$S$1153,12,FALSE),VLOOKUP($C87,'Orçamento DESON.'!$D$11:$S$1152,12,FALSE)) -> - | K87: =IF(Comparativo!$E$6="Tabela Não Desonerada",VLOOKUP($C87,'Orçamento N_DESON.'!$D$11:$S$1153,16,FALSE),VLOOKUP($C87,'Orçamento DESON.'!$D$11:$S$1152,16,FALSE)) -> 0 | L87: =IF(Comparativo!$E$6="Tabela Não Desonerada",VLOOKUP($C87,'Orçamento N_DESON.'!$D$11:$S$1153,11,FALSE),VLOOKUP($C87,'Orçamento DESON.'!$D$11:$S$1152,11,FALSE)) -> - | M87: =IF(Comparativo!$E$6="Tabela Não Desonerada",Encargos!$F$44,Encargos!$D$44) -> 1.111
B88: =IF(AND(G88<>"",H88>0,I88<>"",J88<>0,K88<>0),COUNT($B$11:B87)+1,"") ->  | C88: ='Orçamento N_DESON.'!D91 -> 2.27 | D88: =IF(VLOOKUP($C88,'Orçamento N_DESON.'!$D$11:$G$1596,3,FALSE)="INDEXADO",VLOOKUP(VLOOKUP($C88,'Orçamento N_DESON.'!$D$11:$G$1596,2,FALSE),'Index N_DESON.'!$A$9:$B$604,2),VLOOKUP($C88,'Orçamento N_DESON.'!$D$11:$G$1596,3,FALSE)) -> 0 | E88: =VLOOKUP($C88,'Orçamento N_DESON.'!$D$11:$S$1153,2,FALSE) -> 0 | F88: =Dados!$C$7 -> 2021-10-01 | G88: =VLOOKUP($C88,'Orçamento N_DESON.'!$D$11:$S$1153,4,FALSE) -> - | H88: =VLOOKUP($C88,'Orçamento N_DESON.'!$D$11:$S$1153,6,FALSE) -> 0 | I88: =VLOOKUP($C88,'Orçamento N_DESON.'!$D$11:$S$1153,5,FALSE) -> - | J88: =IF(Comparativo!$E$6="Tabela Não Desonerada",VLOOKUP($C88,'Orçamento N_DESON.'!$D$11:$S$1153,12,FALSE),VLOOKUP($C88,'Orçamento DESON.'!$D$11:$S$1152,12,FALSE)) -> - | K88: =IF(Comparativo!$E$6="Tabela Não Desonerada",VLOOKUP($C88,'Orçamento N_DESON.'!$D$11:$S$1153,16,FALSE),VLOOKUP($C88,'Orçamento DESON.'!$D$11:$S$1152,16,FALSE)) -> 0 | L88: =IF(Comparativo!$E$6="Tabela Não Desonerada",VLOOKUP($C88,'Orçamento N_DESON.'!$D$11:$S$1153,11,FALSE),VLOOKUP($C88,'Orçamento DESON.'!$D$11:$S$1152,11,FALSE)) -> - | M88: =IF(Comparativo!$E$6="Tabela Não Desonerada",Encargos!$F$44,Encargos!$D$44) -> 1.111
B89: =IF(AND(G89<>"",H89>0,I89<>"",J89<>0,K89<>0),COUNT($B$11:B88)+1,"") ->  | C89: ='Orçamento N_DESON.'!D92 -> 2.28 | D89: =IF(VLOOKUP($C89,'Orçamento N_DESON.'!$D$11:$G$1596,3,FALSE)="INDEXADO",VLOOKUP(VLOOKUP($C89,'Orçamento N_DESON.'!$D$11:$G$1596,2,FALSE),'Index N_DESON.'!$A$9:$B$604,2),VLOOKUP($C89,'Orçamento N_DESON.'!$D$11:$G$1596,3,FALSE)) -> 0 | E89: =VLOOKUP($C89,'Orçamento N_DESON.'!$D$11:$S$1153,2,FALSE) -> 0 | F89: =Dados!$C$7 -> 2021-10-01 | G89: =VLOOKUP($C89,'Orçamento N_DESON.'!$D$11:$S$1153,4,FALSE) -> - | H89: =VLOOKUP($C89,'Orçamento N_DESON.'!$D$11:$S$1153,6,FALSE) -> 0 | I89: =VLOOKUP($C89,'Orçamento N_DESON.'!$D$11:$S$1153,5,FALSE) -> - | J89: =IF(Comparativo!$E$6="Tabela Não Desonerada",VLOOKUP($C89,'Orçamento N_DESON.'!$D$11:$S$1153,12,FALSE),VLOOKUP($C89,'Orçamento DESON.'!$D$11:$S$1152,12,FALSE)) -> - | K89: =IF(Comparativo!$E$6="Tabela Não Desonerada",VLOOKUP($C89,'Orçamento N_DESON.'!$D$11:$S$1153,16,FALSE),VLOOKUP($C89,'Orçamento DESON.'!$D$11:$S$1152,16,FALSE)) -> 0 | L89: =IF(Comparativo!$E$6="Tabela Não Desonerada",VLOOKUP($C89,'Orçamento N_DESON.'!$D$11:$S$1153,11,FALSE),VLOOKUP($C89,'Orçamento DESON.'!$D$11:$S$1152,11,FALSE)) -> - | M89: =IF(Comparativo!$E$6="Tabela Não Desonerada",Encargos!$F$44,Encargos!$D$44) -> 1.111
B90: =IF(AND(G90<>"",H90>0,I90<>"",J90<>0,K90<>0),COUNT($B$11:B89)+1,"") ->  | C90: ='Orçamento N_DESON.'!D93 -> 2.29 | D90: =IF(VLOOKUP($C90,'Orçamento N_DESON.'!$D$11:$G$1596,3,FALSE)="INDEXADO",VLOOKUP(VLOOKUP($C90,'Orçamento N_DESON.'!$D$11:$G$1596,2,FALSE),'Index N_DESON.'!$A$9:$B$604,2),VLOOKUP($C90,'Orçamento N_DESON.'!$D$11:$G$1596,3,FALSE)) -> 0 | E90: =VLOOKUP($C90,'Orçamento N_DESON.'!$D$11:$S$1153,2,FALSE) -> 0 | F90: =Dados!$C$7 -> 2021-10-01 | G90: =VLOOKUP($C90,'Orçamento N_DESON.'!$D$11:$S$1153,4,FALSE) -> - | H90: =VLOOKUP($C90,'Orçamento N_DESON.'!$D$11:$S$1153,6,FALSE) -> 0 | I90: =VLOOKUP($C90,'Orçamento N_DESON.'!$D$11:$S$1153,5,FALSE) -> - | J90: =IF(Comparativo!$E$6="Tabela Não Desonerada",VLOOKUP($C90,'Orçamento N_DESON.'!$D$11:$S$1153,12,FALSE),VLOOKUP($C90,'Orçamento DESON.'!$D$11:$S$1152,12,FALSE)) -> - | K90: =IF(Comparativo!$E$6="Tabela Não Desonerada",VLOOKUP($C90,'Orçamento N_DESON.'!$D$11:$S$1153,16,FALSE),VLOOKUP($C90,'Orçamento DESON.'!$D$11:$S$1152,16,FALSE)) -> 0 | L90: =IF(Comparativo!$E$6="Tabela Não Desonerada",VLOOKUP($C90,'Orçamento N_DESON.'!$D$11:$S$1153,11,FALSE),VLOOKUP($C90,'Orçamento DESON.'!$D$11:$S$1152,11,FALSE)) -> - | M90: =IF(Comparativo!$E$6="Tabela Não Desonerada",Encargos!$F$44,Encargos!$D$44) -> 1.111
B91: =IF(AND(G91<>"",H91>0,I91<>"",J91<>0,K91<>0),COUNT($B$11:B90)+1,"") ->  | C91: ='Orçamento N_DESON.'!D94 -> 2.30 | D91: =IF(VLOOKUP($C91,'Orçamento N_DESON.'!$D$11:$G$1596,3,FALSE)="INDEXADO",VLOOKUP(VLOOKUP($C91,'Orçamento N_DESON.'!$D$11:$G$1596,2,FALSE),'Index N_DESON.'!$A$9:$B$604,2),VLOOKUP($C91,'Orçamento N_DESON.'!$D$11:$G$1596,3,FALSE)) -> 0 | E91: =VLOOKUP($C91,'Orçamento N_DESON.'!$D$11:$S$1153,2,FALSE) -> 0 | F91: =Dados!$C$7 -> 2021-10-01 | G91: =VLOOKUP($C91,'Orçamento N_DESON.'!$D$11:$S$1153,4,FALSE) -> - | H91: =VLOOKUP($C91,'Orçamento N_DESON.'!$D$11:$S$1153,6,FALSE) -> 0 | I91: =VLOOKUP($C91,'Orçamento N_DESON.'!$D$11:$S$1153,5,FALSE) -> - | J91: =IF(Comparativo!$E$6="Tabela Não Desonerada",VLOOKUP($C91,'Orçamento N_DESON.'!$D$11:$S$1153,12,FALSE),VLOOKUP($C91,'Orçamento DESON.'!$D$11:$S$1152,12,FALSE)) -> - | K91: =IF(Comparativo!$E$6="Tabela Não Desonerada",VLOOKUP($C91,'Orçamento N_DESON.'!$D$11:$S$1153,16,FALSE),VLOOKUP($C91,'Orçamento DESON.'!$D$11:$S$1152,16,FALSE)) -> 0 | L91: =IF(Comparativo!$E$6="Tabela Não Desonerada",VLOOKUP($C91,'Orçamento N_DESON.'!$D$11:$S$1153,11,FALSE),VLOOKUP($C91,'Orçamento DESON.'!$D$11:$S$1152,11,FALSE)) -> - | M91: =IF(Comparativo!$E$6="Tabela Não Desonerada",Encargos!$F$44,Encargos!$D$44) -> 1.111
B92: =IF(AND(G92<>"",H92>0,I92<>"",J92<>0,K92<>0),COUNT($B$11:B91)+1,"") ->  | C92: ='Orçamento N_DESON.'!D95 -> 2.31 | D92: =IF(VLOOKUP($C92,'Orçamento N_DESON.'!$D$11:$G$1596,3,FALSE)="INDEXADO",VLOOKUP(VLOOKUP($C92,'Orçamento N_DESON.'!$D$11:$G$1596,2,FALSE),'Index N_DESON.'!$A$9:$B$604,2),VLOOKUP($C92,'Orçamento N_DESON.'!$D$11:$G$1596,3,FALSE)) -> 0 | E92: =VLOOKUP($C92,'Orçamento N_DESON.'!$D$11:$S$1153,2,FALSE) -> 0 | F92: =Dados!$C$7 -> 2021-10-01 | G92: =VLOOKUP($C92,'Orçamento N_DESON.'!$D$11:$S$1153,4,FALSE) -> - | H92: =VLOOKUP($C92,'Orçamento N_DESON.'!$D$11:$S$1153,6,FALSE) -> 0 | I92: =VLOOKUP($C92,'Orçamento N_DESON.'!$D$11:$S$1153,5,FALSE) -> - | J92: =IF(Comparativo!$E$6="Tabela Não Desonerada",VLOOKUP($C92,'Orçamento N_DESON.'!$D$11:$S$1153,12,FALSE),VLOOKUP($C92,'Orçamento DESON.'!$D$11:$S$1152,12,FALSE)) -> - | K92: =IF(Comparativo!$E$6="Tabela Não Desonerada",VLOOKUP($C92,'Orçamento N_DESON.'!$D$11:$S$1153,16,FALSE),VLOOKUP($C92,'Orçamento DESON.'!$D$11:$S$1152,16,FALSE)) -> 0 | L92: =IF(Comparativo!$E$6="Tabela Não Desonerada",VLOOKUP($C92,'Orçamento N_DESON.'!$D$11:$S$1153,11,FALSE),VLOOKUP($C92,'Orçamento DESON.'!$D$11:$S$1152,11,FALSE)) -> - | M92: =IF(Comparativo!$E$6="Tabela Não Desonerada",Encargos!$F$44,Encargos!$D$44) -> 1.111
B93: =IF(AND(G93<>"",H93>0,I93<>"",J93<>0,K93<>0),COUNT($B$11:B92)+1,"") ->  | C93: ='Orçamento N_DESON.'!D96 -> 2.32 | D93: =IF(VLOOKUP($C93,'Orçamento N_DESON.'!$D$11:$G$1596,3,FALSE)="INDEXADO",VLOOKUP(VLOOKUP($C93,'Orçamento N_DESON.'!$D$11:$G$1596,2,FALSE),'Index N_DESON.'!$A$9:$B$604,2),VLOOKUP($C93,'Orçamento N_DESON.'!$D$11:$G$1596,3,FALSE)) -> 0 | E93: =VLOOKUP($C93,'Orçamento N_DESON.'!$D$11:$S$1153,2,FALSE) -> 0 | F93: =Dados!$C$7 -> 2021-10-01 | G93: =VLOOKUP($C93,'Orçamento N_DESON.'!$D$11:$S$1153,4,FALSE) -> - | H93: =VLOOKUP($C93,'Orçamento N_DESON.'!$D$11:$S$1153,6,FALSE) -> 0 | I93: =VLOOKUP($C93,'Orçamento N_DESON.'!$D$11:$S$1153,5,FALSE) -> - | J93: =IF(Comparativo!$E$6="Tabela Não Desonerada",VLOOKUP($C93,'Orçamento N_DESON.'!$D$11:$S$1153,12,FALSE),VLOOKUP($C93,'Orçamento DESON.'!$D$11:$S$1152,12,FALSE)) -> - | K93: =IF(Comparativo!$E$6="Tabela Não Desonerada",VLOOKUP($C93,'Orçamento N_DESON.'!$D$11:$S$1153,16,FALSE),VLOOKUP($C93,'Orçamento DESON.'!$D$11:$S$1152,16,FALSE)) -> 0 | L93: =IF(Comparativo!$E$6="Tabela Não Desonerada",VLOOKUP($C93,'Orçamento N_DESON.'!$D$11:$S$1153,11,FALSE),VLOOKUP($C93,'Orçamento DESON.'!$D$11:$S$1152,11,FALSE)) -> - | M93: =IF(Comparativo!$E$6="Tabela Não Desonerada",Encargos!$F$44,Encargos!$D$44) -> 1.111
B94: =IF(AND(G94<>"",H94>0,I94<>"",J94<>0,K94<>0),COUNT($B$11:B93)+1,"") ->  | C94: ='Orçamento N_DESON.'!D97 -> 2.33 | D94: =IF(VLOOKUP($C94,'Orçamento N_DESON.'!$D$11:$G$1596,3,FALSE)="INDEXADO",VLOOKUP(VLOOKUP($C94,'Orçamento N_DESON.'!$D$11:$G$1596,2,FALSE),'Index N_DESON.'!$A$9:$B$604,2),VLOOKUP($C94,'Orçamento N_DESON.'!$D$11:$G$1596,3,FALSE)) -> 0 | E94: =VLOOKUP($C94,'Orçamento N_DESON.'!$D$11:$S$1153,2,FALSE) -> 0 | F94: =Dados!$C$7 -> 2021-10-01 | G94: =VLOOKUP($C94,'Orçamento N_DESON.'!$D$11:$S$1153,4,FALSE) -> - | H94: =VLOOKUP($C94,'Orçamento N_DESON.'!$D$11:$S$1153,6,FALSE) -> 0 | I94: =VLOOKUP($C94,'Orçamento N_DESON.'!$D$11:$S$1153,5,FALSE) -> - | J94: =IF(Comparativo!$E$6="Tabela Não Desonerada",VLOOKUP($C94,'Orçamento N_DESON.'!$D$11:$S$1153,12,FALSE),VLOOKUP($C94,'Orçamento DESON.'!$D$11:$S$1152,12,FALSE)) -> - | K94: =IF(Comparativo!$E$6="Tabela Não Desonerada",VLOOKUP($C94,'Orçamento N_DESON.'!$D$11:$S$1153,16,FALSE),VLOOKUP($C94,'Orçamento DESON.'!$D$11:$S$1152,16,FALSE)) -> 0 | L94: =IF(Comparativo!$E$6="Tabela Não Desonerada",VLOOKUP($C94,'Orçamento N_DESON.'!$D$11:$S$1153,11,FALSE),VLOOKUP($C94,'Orçamento DESON.'!$D$11:$S$1152,11,FALSE)) -> - | M94: =IF(Comparativo!$E$6="Tabela Não Desonerada",Encargos!$F$44,Encargos!$D$44) -> 1.111
B95: =IF(AND(G95<>"",H95>0,I95<>"",J95<>0,K95<>0),COUNT($B$11:B94)+1,"") ->  | C95: ='Orçamento N_DESON.'!D98 -> 2.34 | D95: =IF(VLOOKUP($C95,'Orçamento N_DESON.'!$D$11:$G$1596,3,FALSE)="INDEXADO",VLOOKUP(VLOOKUP($C95,'Orçamento N_DESON.'!$D$11:$G$1596,2,FALSE),'Index N_DESON.'!$A$9:$B$604,2),VLOOKUP($C95,'Orçamento N_DESON.'!$D$11:$G$1596,3,FALSE)) -> 0 | E95: =VLOOKUP($C95,'Orçamento N_DESON.'!$D$11:$S$1153,2,FALSE) -> 0 | F95: =Dados!$C$7 -> 2021-10-01 | G95: =VLOOKUP($C95,'Orçamento N_DESON.'!$D$11:$S$1153,4,FALSE) -> - | H95: =VLOOKUP($C95,'Orçamento N_DESON.'!$D$11:$S$1153,6,FALSE) -> 0 | I95: =VLOOKUP($C95,'Orçamento N_DESON.'!$D$11:$S$1153,5,FALSE) -> - | J95: =IF(Comparativo!$E$6="Tabela Não Desonerada",VLOOKUP($C95,'Orçamento N_DESON.'!$D$11:$S$1153,12,FALSE),VLOOKUP($C95,'Orçamento DESON.'!$D$11:$S$1152,12,FALSE)) -> - | K95: =IF(Comparativo!$E$6="Tabela Não Desonerada",VLOOKUP($C95,'Orçamento N_DESON.'!$D$11:$S$1153,16,FALSE),VLOOKUP($C95,'Orçamento DESON.'!$D$11:$S$1152,16,FALSE)) -> 0 | L95: =IF(Comparativo!$E$6="Tabela Não Desonerada",VLOOKUP($C95,'Orçamento N_DESON.'!$D$11:$S$1153,11,FALSE),VLOOKUP($C95,'Orçamento DESON.'!$D$11:$S$1152,11,FALSE)) -> - | M95: =IF(Comparativo!$E$6="Tabela Não Desonerada",Encargos!$F$44,Encargos!$D$44) -> 1.111
B96: =IF(AND(G96<>"",H96>0,I96<>"",J96<>0,K96<>0),COUNT($B$11:B95)+1,"") ->  | C96: ='Orçamento N_DESON.'!D99 -> 2.35 | D96: =IF(VLOOKUP($C96,'Orçamento N_DESON.'!$D$11:$G$1596,3,FALSE)="INDEXADO",VLOOKUP(VLOOKUP($C96,'Orçamento N_DESON.'!$D$11:$G$1596,2,FALSE),'Index N_DESON.'!$A$9:$B$604,2),VLOOKUP($C96,'Orçamento N_DESON.'!$D$11:$G$1596,3,FALSE)) -> 0 | E96: =VLOOKUP($C96,'Orçamento N_DESON.'!$D$11:$S$1153,2,FALSE) -> 0 | F96: =Dados!$C$7 -> 2021-10-01 | G96: =VLOOKUP($C96,'Orçamento N_DESON.'!$D$11:$S$1153,4,FALSE) -> - | H96: =VLOOKUP($C96,'Orçamento N_DESON.'!$D$11:$S$1153,6,FALSE) -> 0 | I96: =VLOOKUP($C96,'Orçamento N_DESON.'!$D$11:$S$1153,5,FALSE) -> - | J96: =IF(Comparativo!$E$6="Tabela Não Desonerada",VLOOKUP($C96,'Orçamento N_DESON.'!$D$11:$S$1153,12,FALSE),VLOOKUP($C96,'Orçamento DESON.'!$D$11:$S$1152,12,FALSE)) -> - | K96: =IF(Comparativo!$E$6="Tabela Não Desonerada",VLOOKUP($C96,'Orçamento N_DESON.'!$D$11:$S$1153,16,FALSE),VLOOKUP($C96,'Orçamento DESON.'!$D$11:$S$1152,16,FALSE)) -> 0 | L96: =IF(Comparativo!$E$6="Tabela Não Desonerada",VLOOKUP($C96,'Orçamento N_DESON.'!$D$11:$S$1153,11,FALSE),VLOOKUP($C96,'Orçamento DESON.'!$D$11:$S$1152,11,FALSE)) -> - | M96: =IF(Comparativo!$E$6="Tabela Não Desonerada",Encargos!$F$44,Encargos!$D$44) -> 1.111
B97: =IF(AND(G97<>"",H97>0,I97<>"",J97<>0,K97<>0),COUNT($B$11:B96)+1,"") ->  | C97: ='Orçamento N_DESON.'!D100 -> 2.36 | D97: =IF(VLOOKUP($C97,'Orçamento N_DESON.'!$D$11:$G$1596,3,FALSE)="INDEXADO",VLOOKUP(VLOOKUP($C97,'Orçamento N_DESON.'!$D$11:$G$1596,2,FALSE),'Index N_DESON.'!$A$9:$B$604,2),VLOOKUP($C97,'Orçamento N_DESON.'!$D$11:$G$1596,3,FALSE)) -> 0 | E97: =VLOOKUP($C97,'Orçamento N_DESON.'!$D$11:$S$1153,2,FALSE) -> 0 | F97: =Dados!$C$7 -> 2021-10-01 | G97: =VLOOKUP($C97,'Orçamento N_DESON.'!$D$11:$S$1153,4,FALSE) -> - | H97: =VLOOKUP($C97,'Orçamento N_DESON.'!$D$11:$S$1153,6,FALSE) -> 0 | I97: =VLOOKUP($C97,'Orçamento N_DESON.'!$D$11:$S$1153,5,FALSE) -> - | J97: =IF(Comparativo!$E$6="Tabela Não Desonerada",VLOOKUP($C97,'Orçamento N_DESON.'!$D$11:$S$1153,12,FALSE),VLOOKUP($C97,'Orçamento DESON.'!$D$11:$S$1152,12,FALSE)) -> - | K97: =IF(Comparativo!$E$6="Tabela Não Desonerada",VLOOKUP($C97,'Orçamento N_DESON.'!$D$11:$S$1153,16,FALSE),VLOOKUP($C97,'Orçamento DESON.'!$D$11:$S$1152,16,FALSE)) -> 0 | L97: =IF(Comparativo!$E$6="Tabela Não Desonerada",VLOOKUP($C97,'Orçamento N_DESON.'!$D$11:$S$1153,11,FALSE),VLOOKUP($C97,'Orçamento DESON.'!$D$11:$S$1152,11,FALSE)) -> - | M97: =IF(Comparativo!$E$6="Tabela Não Desonerada",Encargos!$F$44,Encargos!$D$44) -> 1.111
B98: =IF(AND(G98<>"",H98>0,I98<>"",J98<>0,K98<>0),COUNT($B$11:B97)+1,"") ->  | C98: ='Orçamento N_DESON.'!D101 -> 2.37 | D98: =IF(VLOOKUP($C98,'Orçamento N_DESON.'!$D$11:$G$1596,3,FALSE)="INDEXADO",VLOOKUP(VLOOKUP($C98,'Orçamento N_DESON.'!$D$11:$G$1596,2,FALSE),'Index N_DESON.'!$A$9:$B$604,2),VLOOKUP($C98,'Orçamento N_DESON.'!$D$11:$G$1596,3,FALSE)) -> 0 | E98: =VLOOKUP($C98,'Orçamento N_DESON.'!$D$11:$S$1153,2,FALSE) -> 0 | F98: =Dados!$C$7 -> 2021-10-01 | G98: =VLOOKUP($C98,'Orçamento N_DESON.'!$D$11:$S$1153,4,FALSE) -> - | H98: =VLOOKUP($C98,'Orçamento N_DESON.'!$D$11:$S$1153,6,FALSE) -> 0 | I98: =VLOOKUP($C98,'Orçamento N_DESON.'!$D$11:$S$1153,5,FALSE) -> - | J98: =IF(Comparativo!$E$6="Tabela Não Desonerada",VLOOKUP($C98,'Orçamento N_DESON.'!$D$11:$S$1153,12,FALSE),VLOOKUP($C98,'Orçamento DESON.'!$D$11:$S$1152,12,FALSE)) -> - | K98: =IF(Comparativo!$E$6="Tabela Não Desonerada",VLOOKUP($C98,'Orçamento N_DESON.'!$D$11:$S$1153,16,FALSE),VLOOKUP($C98,'Orçamento DESON.'!$D$11:$S$1152,16,FALSE)) -> 0 | L98: =IF(Comparativo!$E$6="Tabela Não Desonerada",VLOOKUP($C98,'Orçamento N_DESON.'!$D$11:$S$1153,11,FALSE),VLOOKUP($C98,'Orçamento DESON.'!$D$11:$S$1152,11,FALSE)) -> - | M98: =IF(Comparativo!$E$6="Tabela Não Desonerada",Encargos!$F$44,Encargos!$D$44) -> 1.111
B99: =IF(AND(G99<>"",H99>0,I99<>"",J99<>0,K99<>0),COUNT($B$11:B98)+1,"") ->  | C99: ='Orçamento N_DESON.'!D102 -> 2.38 | D99: =IF(VLOOKUP($C99,'Orçamento N_DESON.'!$D$11:$G$1596,3,FALSE)="INDEXADO",VLOOKUP(VLOOKUP($C99,'Orçamento N_DESON.'!$D$11:$G$1596,2,FALSE),'Index N_DESON.'!$A$9:$B$604,2),VLOOKUP($C99,'Orçamento N_DESON.'!$D$11:$G$1596,3,FALSE)) -> 0 | E99: =VLOOKUP($C99,'Orçamento N_DESON.'!$D$11:$S$1153,2,FALSE) -> 0 | F99: =Dados!$C$7 -> 2021-10-01 | G99: =VLOOKUP($C99,'Orçamento N_DESON.'!$D$11:$S$1153,4,FALSE) -> - | H99: =VLOOKUP($C99,'Orçamento N_DESON.'!$D$11:$S$1153,6,FALSE) -> 0 | I99: =VLOOKUP($C99,'Orçamento N_DESON.'!$D$11:$S$1153,5,FALSE) -> - | J99: =IF(Comparativo!$E$6="Tabela Não Desonerada",VLOOKUP($C99,'Orçamento N_DESON.'!$D$11:$S$1153,12,FALSE),VLOOKUP($C99,'Orçamento DESON.'!$D$11:$S$1152,12,FALSE)) -> - | K99: =IF(Comparativo!$E$6="Tabela Não Desonerada",VLOOKUP($C99,'Orçamento N_DESON.'!$D$11:$S$1153,16,FALSE),VLOOKUP($C99,'Orçamento DESON.'!$D$11:$S$1152,16,FALSE)) -> 0 | L99: =IF(Comparativo!$E$6="Tabela Não Desonerada",VLOOKUP($C99,'Orçamento N_DESON.'!$D$11:$S$1153,11,FALSE),VLOOKUP($C99,'Orçamento DESON.'!$D$11:$S$1152,11,FALSE)) -> - | M99: =IF(Comparativo!$E$6="Tabela Não Desonerada",Encargos!$F$44,Encargos!$D$44) -> 1.111
B100: =IF(AND(G100<>"",H100>0,I100<>"",J100<>0,K100<>0),COUNT($B$11:B99)+1,"") ->  | C100: ='Orçamento N_DESON.'!D103 -> 2.39 | D100: =IF(VLOOKUP($C100,'Orçamento N_DESON.'!$D$11:$G$1596,3,FALSE)="INDEXADO",VLOOKUP(VLOOKUP($C100,'Orçamento N_DESON.'!$D$11:$G$1596,2,FALSE),'Index N_DESON.'!$A$9:$B$604,2),VLOOKUP($C100,'Orçamento N_DESON.'!$D$11:$G$1596,3,FALSE)) -> 0 | E100: =VLOOKUP($C100,'Orçamento N_DESON.'!$D$11:$S$1153,2,FALSE) -> 0 | F100: =Dados!$C$7 -> 2021-10-01 | G100: =VLOOKUP($C100,'Orçamento N_DESON.'!$D$11:$S$1153,4,FALSE) -> - | H100: =VLOOKUP($C100,'Orçamento N_DESON.'!$D$11:$S$1153,6,FALSE) -> 0 | I100: =VLOOKUP($C100,'Orçamento N_DESON.'!$D$11:$S$1153,5,FALSE) -> - | J100: =IF(Comparativo!$E$6="Tabela Não Desonerada",VLOOKUP($C100,'Orçamento N_DESON.'!$D$11:$S$1153,12,FALSE),VLOOKUP($C100,'Orçamento DESON.'!$D$11:$S$1152,12,FALSE)) -> - | K100: =IF(Comparativo!$E$6="Tabela Não Desonerada",VLOOKUP($C100,'Orçamento N_DESON.'!$D$11:$S$1153,16,FALSE),VLOOKUP($C100,'Orçamento DESON.'!$D$11:$S$1152,16,FALSE)) -> 0 | L100: =IF(Comparativo!$E$6="Tabela Não Desonerada",VLOOKUP($C100,'Orçamento N_DESON.'!$D$11:$S$1153,11,FALSE),VLOOKUP($C100,'Orçamento DESON.'!$D$11:$S$1152,11,FALSE)) -> - | M100: =IF(Comparativo!$E$6="Tabela Não Desonerada",Encargos!$F$44,Encargos!$D$44) -> 1.111
B101: =IF(AND(G101<>"",H101>0,I101<>"",J101<>0,K101<>0),COUNT($B$11:B100)+1,"") ->  | C101: ='Orçamento N_DESON.'!D104 -> 2.40 | D101: =IF(VLOOKUP($C101,'Orçamento N_DESON.'!$D$11:$G$1596,3,FALSE)="INDEXADO",VLOOKUP(VLOOKUP($C101,'Orçamento N_DESON.'!$D$11:$G$1596,2,FALSE),'Index N_DESON.'!$A$9:$B$604,2),VLOOKUP($C101,'Orçamento N_DESON.'!$D$11:$G$1596,3,FALSE)) -> 0 | E101: =VLOOKUP($C101,'Orçamento N_DESON.'!$D$11:$S$1153,2,FALSE) -> 0 | F101: =Dados!$C$7 -> 2021-10-01 | G101: =VLOOKUP($C101,'Orçamento N_DESON.'!$D$11:$S$1153,4,FALSE) -> - | H101: =VLOOKUP($C101,'Orçamento N_DESON.'!$D$11:$S$1153,6,FALSE) -> 0 | I101: =VLOOKUP($C101,'Orçamento N_DESON.'!$D$11:$S$1153,5,FALSE) -> - | J101: =IF(Comparativo!$E$6="Tabela Não Desonerada",VLOOKUP($C101,'Orçamento N_DESON.'!$D$11:$S$1153,12,FALSE),VLOOKUP($C101,'Orçamento DESON.'!$D$11:$S$1152,12,FALSE)) -> - | K101: =IF(Comparativo!$E$6="Tabela Não Desonerada",VLOOKUP($C101,'Orçamento N_DESON.'!$D$11:$S$1153,16,FALSE),VLOOKUP($C101,'Orçamento DESON.'!$D$11:$S$1152,16,FALSE)) -> 0 | L101: =IF(Comparativo!$E$6="Tabela Não Desonerada",VLOOKUP($C101,'Orçamento N_DESON.'!$D$11:$S$1153,11,FALSE),VLOOKUP($C101,'Orçamento DESON.'!$D$11:$S$1152,11,FALSE)) -> - | M101: =IF(Comparativo!$E$6="Tabela Não Desonerada",Encargos!$F$44,Encargos!$D$44) -> 1.111
B102: =IF(AND(G102<>"",H102>0,I102<>"",J102<>0,K102<>0),COUNT($B$11:B101)+1,"") ->  | C102: ='Orçamento N_DESON.'!D105 -> 2.41 | D102: =IF(VLOOKUP($C102,'Orçamento N_DESON.'!$D$11:$G$1596,3,FALSE)="INDEXADO",VLOOKUP(VLOOKUP($C102,'Orçamento N_DESON.'!$D$11:$G$1596,2,FALSE),'Index N_DESON.'!$A$9:$B$604,2),VLOOKUP($C102,'Orçamento N_DESON.'!$D$11:$G$1596,3,FALSE)) -> 0 | E102: =VLOOKUP($C102,'Orçamento N_DESON.'!$D$11:$S$1153,2,FALSE) -> 0 | F102: =Dados!$C$7 -> 2021-10-01 | G102: =VLOOKUP($C102,'Orçamento N_DESON.'!$D$11:$S$1153,4,FALSE) -> - | H102: =VLOOKUP($C102,'Orçamento N_DESON.'!$D$11:$S$1153,6,FALSE) -> 0 | I102: =VLOOKUP($C102,'Orçamento N_DESON.'!$D$11:$S$1153,5,FALSE) -> - | J102: =IF(Comparativo!$E$6="Tabela Não Desonerada",VLOOKUP($C102,'Orçamento N_DESON.'!$D$11:$S$1153,12,FALSE),VLOOKUP($C102,'Orçamento DESON.'!$D$11:$S$1152,12,FALSE)) -> - | K102: =IF(Comparativo!$E$6="Tabela Não Desonerada",VLOOKUP($C102,'Orçamento N_DESON.'!$D$11:$S$1153,16,FALSE),VLOOKUP($C102,'Orçamento DESON.'!$D$11:$S$1152,16,FALSE)) -> 0 | L102: =IF(Comparativo!$E$6="Tabela Não Desonerada",VLOOKUP($C102,'Orçamento N_DESON.'!$D$11:$S$1153,11,FALSE),VLOOKUP($C102,'Orçamento DESON.'!$D$11:$S$1152,11,FALSE)) -> - | M102: =IF(Comparativo!$E$6="Tabela Não Desonerada",Encargos!$F$44,Encargos!$D$44) -> 1.111
B103: =IF(AND(G103<>"",H103>0,I103<>"",J103<>0,K103<>0),COUNT($B$11:B102)+1,"") ->  | C103: ='Orçamento N_DESON.'!D106 -> 2.42 | D103: =IF(VLOOKUP($C103,'Orçamento N_DESON.'!$D$11:$G$1596,3,FALSE)="INDEXADO",VLOOKUP(VLOOKUP($C103,'Orçamento N_DESON.'!$D$11:$G$1596,2,FALSE),'Index N_DESON.'!$A$9:$B$604,2),VLOOKUP($C103,'Orçamento N_DESON.'!$D$11:$G$1596,3,FALSE)) -> 0 | E103: =VLOOKUP($C103,'Orçamento N_DESON.'!$D$11:$S$1153,2,FALSE) -> 0 | F103: =Dados!$C$7 -> 2021-10-01 | G103: =VLOOKUP($C103,'Orçamento N_DESON.'!$D$11:$S$1153,4,FALSE) -> - | H103: =VLOOKUP($C103,'Orçamento N_DESON.'!$D$11:$S$1153,6,FALSE) -> 0 | I103: =VLOOKUP($C103,'Orçamento N_DESON.'!$D$11:$S$1153,5,FALSE) -> - | J103: =IF(Comparativo!$E$6="Tabela Não Desonerada",VLOOKUP($C103,'Orçamento N_DESON.'!$D$11:$S$1153,12,FALSE),VLOOKUP($C103,'Orçamento DESON.'!$D$11:$S$1152,12,FALSE)) -> - | K103: =IF(Comparativo!$E$6="Tabela Não Desonerada",VLOOKUP($C103,'Orçamento N_DESON.'!$D$11:$S$1153,16,FALSE),VLOOKUP($C103,'Orçamento DESON.'!$D$11:$S$1152,16,FALSE)) -> 0 | L103: =IF(Comparativo!$E$6="Tabela Não Desonerada",VLOOKUP($C103,'Orçamento N_DESON.'!$D$11:$S$1153,11,FALSE),VLOOKUP($C103,'Orçamento DESON.'!$D$11:$S$1152,11,FALSE)) -> - | M103: =IF(Comparativo!$E$6="Tabela Não Desonerada",Encargos!$F$44,Encargos!$D$44) -> 1.111
B104: =IF(AND(G104<>"",H104>0,I104<>"",J104<>0,K104<>0),COUNT($B$11:B103)+1,"") ->  | C104: ='Orçamento N_DESON.'!D107 -> 2.43 | D104: =IF(VLOOKUP($C104,'Orçamento N_DESON.'!$D$11:$G$1596,3,FALSE)="INDEXADO",VLOOKUP(VLOOKUP($C104,'Orçamento N_DESON.'!$D$11:$G$1596,2,FALSE),'Index N_DESON.'!$A$9:$B$604,2),VLOOKUP($C104,'Orçamento N_DESON.'!$D$11:$G$1596,3,FALSE)) -> 0 | E104: =VLOOKUP($C104,'Orçamento N_DESON.'!$D$11:$S$1153,2,FALSE) -> 0 | F104: =Dados!$C$7 -> 2021-10-01 | G104: =VLOOKUP($C104,'Orçamento N_DESON.'!$D$11:$S$1153,4,FALSE) -> - | H104: =VLOOKUP($C104,'Orçamento N_DESON.'!$D$11:$S$1153,6,FALSE) -> 0 | I104: =VLOOKUP($C104,'Orçamento N_DESON.'!$D$11:$S$1153,5,FALSE) -> - | J104: =IF(Comparativo!$E$6="Tabela Não Desonerada",VLOOKUP($C104,'Orçamento N_DESON.'!$D$11:$S$1153,12,FALSE),VLOOKUP($C104,'Orçamento DESON.'!$D$11:$S$1152,12,FALSE)) -> - | K104: =IF(Comparativo!$E$6="Tabela Não Desonerada",VLOOKUP($C104,'Orçamento N_DESON.'!$D$11:$S$1153,16,FALSE),VLOOKUP($C104,'Orçamento DESON.'!$D$11:$S$1152,16,FALSE)) -> 0 | L104: =IF(Comparativo!$E$6="Tabela Não Desonerada",VLOOKUP($C104,'Orçamento N_DESON.'!$D$11:$S$1153,11,FALSE),VLOOKUP($C104,'Orçamento DESON.'!$D$11:$S$1152,11,FALSE)) -> - | M104: =IF(Comparativo!$E$6="Tabela Não Desonerada",Encargos!$F$44,Encargos!$D$44) -> 1.111
B105: =IF(AND(G105<>"",H105>0,I105<>"",J105<>0,K105<>0),COUNT($B$11:B104)+1,"") ->  | C105: ='Orçamento N_DESON.'!D108 -> 2.44 | D105: =IF(VLOOKUP($C105,'Orçamento N_DESON.'!$D$11:$G$1596,3,FALSE)="INDEXADO",VLOOKUP(VLOOKUP($C105,'Orçamento N_DESON.'!$D$11:$G$1596,2,FALSE),'Index N_DESON.'!$A$9:$B$604,2),VLOOKUP($C105,'Orçamento N_DESON.'!$D$11:$G$1596,3,FALSE)) -> 0 | E105: =VLOOKUP($C105,'Orçamento N_DESON.'!$D$11:$S$1153,2,FALSE) -> 0 | F105: =Dados!$C$7 -> 2021-10-01 | G105: =VLOOKUP($C105,'Orçamento N_DESON.'!$D$11:$S$1153,4,FALSE) -> - | H105: =VLOOKUP($C105,'Orçamento N_DESON.'!$D$11:$S$1153,6,FALSE) -> 0 | I105: =VLOOKUP($C105,'Orçamento N_DESON.'!$D$11:$S$1153,5,FALSE) -> - | J105: =IF(Comparativo!$E$6="Tabela Não Desonerada",VLOOKUP($C105,'Orçamento N_DESON.'!$D$11:$S$1153,12,FALSE),VLOOKUP($C105,'Orçamento DESON.'!$D$11:$S$1152,12,FALSE)) -> - | K105: =IF(Comparativo!$E$6="Tabela Não Desonerada",VLOOKUP($C105,'Orçamento N_DESON.'!$D$11:$S$1153,16,FALSE),VLOOKUP($C105,'Orçamento DESON.'!$D$11:$S$1152,16,FALSE)) -> 0 | L105: =IF(Comparativo!$E$6="Tabela Não Desonerada",VLOOKUP($C105,'Orçamento N_DESON.'!$D$11:$S$1153,11,FALSE),VLOOKUP($C105,'Orçamento DESON.'!$D$11:$S$1152,11,FALSE)) -> - | M105: =IF(Comparativo!$E$6="Tabela Não Desonerada",Encargos!$F$44,Encargos!$D$44) -> 1.111
B106: =IF(AND(G106<>"",H106>0,I106<>"",J106<>0,K106<>0),COUNT($B$11:B105)+1,"") ->  | C106: ='Orçamento N_DESON.'!D109 -> 2.45 | D106: =IF(VLOOKUP($C106,'Orçamento N_DESON.'!$D$11:$G$1596,3,FALSE)="INDEXADO",VLOOKUP(VLOOKUP($C106,'Orçamento N_DESON.'!$D$11:$G$1596,2,FALSE),'Index N_DESON.'!$A$9:$B$604,2),VLOOKUP($C106,'Orçamento N_DESON.'!$D$11:$G$1596,3,FALSE)) -> 0 | E106: =VLOOKUP($C106,'Orçamento N_DESON.'!$D$11:$S$1153,2,FALSE) -> 0 | F106: =Dados!$C$7 -> 2021-10-01 | G106: =VLOOKUP($C106,'Orçamento N_DESON.'!$D$11:$S$1153,4,FALSE) -> - | H106: =VLOOKUP($C106,'Orçamento N_DESON.'!$D$11:$S$1153,6,FALSE) -> 0 | I106: =VLOOKUP($C106,'Orçamento N_DESON.'!$D$11:$S$1153,5,FALSE) -> - | J106: =IF(Comparativo!$E$6="Tabela Não Desonerada",VLOOKUP($C106,'Orçamento N_DESON.'!$D$11:$S$1153,12,FALSE),VLOOKUP($C106,'Orçamento DESON.'!$D$11:$S$1152,12,FALSE)) -> - | K106: =IF(Comparativo!$E$6="Tabela Não Desonerada",VLOOKUP($C106,'Orçamento N_DESON.'!$D$11:$S$1153,16,FALSE),VLOOKUP($C106,'Orçamento DESON.'!$D$11:$S$1152,16,FALSE)) -> 0 | L106: =IF(Comparativo!$E$6="Tabela Não Desonerada",VLOOKUP($C106,'Orçamento N_DESON.'!$D$11:$S$1153,11,FALSE),VLOOKUP($C106,'Orçamento DESON.'!$D$11:$S$1152,11,FALSE)) -> - | M106: =IF(Comparativo!$E$6="Tabela Não Desonerada",Encargos!$F$44,Encargos!$D$44) -> 1.111
B107: =IF(AND(G107<>"",H107>0,I107<>"",J107<>0,K107<>0),COUNT($B$11:B106)+1,"") ->  | C107: ='Orçamento N_DESON.'!D110 -> 2.46 | D107: =IF(VLOOKUP($C107,'Orçamento N_DESON.'!$D$11:$G$1596,3,FALSE)="INDEXADO",VLOOKUP(VLOOKUP($C107,'Orçamento N_DESON.'!$D$11:$G$1596,2,FALSE),'Index N_DESON.'!$A$9:$B$604,2),VLOOKUP($C107,'Orçamento N_DESON.'!$D$11:$G$1596,3,FALSE)) -> 0 | E107: =VLOOKUP($C107,'Orçamento N_DESON.'!$D$11:$S$1153,2,FALSE) -> 0 | F107: =Dados!$C$7 -> 2021-10-01 | G107: =VLOOKUP($C107,'Orçamento N_DESON.'!$D$11:$S$1153,4,FALSE) -> - | H107: =VLOOKUP($C107,'Orçamento N_DESON.'!$D$11:$S$1153,6,FALSE) -> 0 | I107: =VLOOKUP($C107,'Orçamento N_DESON.'!$D$11:$S$1153,5,FALSE) -> - | J107: =IF(Comparativo!$E$6="Tabela Não Desonerada",VLOOKUP($C107,'Orçamento N_DESON.'!$D$11:$S$1153,12,FALSE),VLOOKUP($C107,'Orçamento DESON.'!$D$11:$S$1152,12,FALSE)) -> - | K107: =IF(Comparativo!$E$6="Tabela Não Desonerada",VLOOKUP($C107,'Orçamento N_DESON.'!$D$11:$S$1153,16,FALSE),VLOOKUP($C107,'Orçamento DESON.'!$D$11:$S$1152,16,FALSE)) -> 0 | L107: =IF(Comparativo!$E$6="Tabela Não Desonerada",VLOOKUP($C107,'Orçamento N_DESON.'!$D$11:$S$1153,11,FALSE),VLOOKUP($C107,'Orçamento DESON.'!$D$11:$S$1152,11,FALSE)) -> - | M107: =IF(Comparativo!$E$6="Tabela Não Desonerada",Encargos!$F$44,Encargos!$D$44) -> 1.111
B108: =IF(AND(G108<>"",H108>0,I108<>"",J108<>0,K108<>0),COUNT($B$11:B107)+1,"") ->  | C108: ='Orçamento N_DESON.'!D111 -> 2.47 | D108: =IF(VLOOKUP($C108,'Orçamento N_DESON.'!$D$11:$G$1596,3,FALSE)="INDEXADO",VLOOKUP(VLOOKUP($C108,'Orçamento N_DESON.'!$D$11:$G$1596,2,FALSE),'Index N_DESON.'!$A$9:$B$604,2),VLOOKUP($C108,'Orçamento N_DESON.'!$D$11:$G$1596,3,FALSE)) -> 0 | E108: =VLOOKUP($C108,'Orçamento N_DESON.'!$D$11:$S$1153,2,FALSE) -> 0 | F108: =Dados!$C$7 -> 2021-10-01 | G108: =VLOOKUP($C108,'Orçamento N_DESON.'!$D$11:$S$1153,4,FALSE) -> - | H108: =VLOOKUP($C108,'Orçamento N_DESON.'!$D$11:$S$1153,6,FALSE) -> 0 | I108: =VLOOKUP($C108,'Orçamento N_DESON.'!$D$11:$S$1153,5,FALSE) -> - | J108: =IF(Comparativo!$E$6="Tabela Não Desonerada",VLOOKUP($C108,'Orçamento N_DESON.'!$D$11:$S$1153,12,FALSE),VLOOKUP($C108,'Orçamento DESON.'!$D$11:$S$1152,12,FALSE)) -> - | K108: =IF(Comparativo!$E$6="Tabela Não Desonerada",VLOOKUP($C108,'Orçamento N_DESON.'!$D$11:$S$1153,16,FALSE),VLOOKUP($C108,'Orçamento DESON.'!$D$11:$S$1152,16,FALSE)) -> 0 | L108: =IF(Comparativo!$E$6="Tabela Não Desonerada",VLOOKUP($C108,'Orçamento N_DESON.'!$D$11:$S$1153,11,FALSE),VLOOKUP($C108,'Orçamento DESON.'!$D$11:$S$1152,11,FALSE)) -> - | M108: =IF(Comparativo!$E$6="Tabela Não Desonerada",Encargos!$F$44,Encargos!$D$44) -> 1.111
B109: =IF(AND(G109<>"",H109>0,I109<>"",J109<>0,K109<>0),COUNT($B$11:B108)+1,"") ->  | C109: ='Orçamento N_DESON.'!D112 -> 2.48 | D109: =IF(VLOOKUP($C109,'Orçamento N_DESON.'!$D$11:$G$1596,3,FALSE)="INDEXADO",VLOOKUP(VLOOKUP($C109,'Orçamento N_DESON.'!$D$11:$G$1596,2,FALSE),'Index N_DESON.'!$A$9:$B$604,2),VLOOKUP($C109,'Orçamento N_DESON.'!$D$11:$G$1596,3,FALSE)) -> 0 | E109: =VLOOKUP($C109,'Orçamento N_DESON.'!$D$11:$S$1153,2,FALSE) -> 0 | F109: =Dados!$C$7 -> 2021-10-01 | G109: =VLOOKUP($C109,'Orçamento N_DESON.'!$D$11:$S$1153,4,FALSE) -> - | H109: =VLOOKUP($C109,'Orçamento N_DESON.'!$D$11:$S$1153,6,FALSE) -> 0 | I109: =VLOOKUP($C109,'Orçamento N_DESON.'!$D$11:$S$1153,5,FALSE) -> - | J109: =IF(Comparativo!$E$6="Tabela Não Desonerada",VLOOKUP($C109,'Orçamento N_DESON.'!$D$11:$S$1153,12,FALSE),VLOOKUP($C109,'Orçamento DESON.'!$D$11:$S$1152,12,FALSE)) -> - | K109: =IF(Comparativo!$E$6="Tabela Não Desonerada",VLOOKUP($C109,'Orçamento N_DESON.'!$D$11:$S$1153,16,FALSE),VLOOKUP($C109,'Orçamento DESON.'!$D$11:$S$1152,16,FALSE)) -> 0 | L109: =IF(Comparativo!$E$6="Tabela Não Desonerada",VLOOKUP($C109,'Orçamento N_DESON.'!$D$11:$S$1153,11,FALSE),VLOOKUP($C109,'Orçamento DESON.'!$D$11:$S$1152,11,FALSE)) -> - | M109: =IF(Comparativo!$E$6="Tabela Não Desonerada",Encargos!$F$44,Encargos!$D$44) -> 1.111
B110: =IF(AND(G110<>"",H110>0,I110<>"",J110<>0,K110<>0),COUNT($B$11:B109)+1,"") ->  | C110: ='Orçamento N_DESON.'!D113 -> 2.49 | D110: =IF(VLOOKUP($C110,'Orçamento N_DESON.'!$D$11:$G$1596,3,FALSE)="INDEXADO",VLOOKUP(VLOOKUP($C110,'Orçamento N_DESON.'!$D$11:$G$1596,2,FALSE),'Index N_DESON.'!$A$9:$B$604,2),VLOOKUP($C110,'Orçamento N_DESON.'!$D$11:$G$1596,3,FALSE)) -> 0 | E110: =VLOOKUP($C110,'Orçamento N_DESON.'!$D$11:$S$1153,2,FALSE) -> 0 | F110: =Dados!$C$7 -> 2021-10-01 | G110: =VLOOKUP($C110,'Orçamento N_DESON.'!$D$11:$S$1153,4,FALSE) -> - | H110: =VLOOKUP($C110,'Orçamento N_DESON.'!$D$11:$S$1153,6,FALSE) -> 0 | I110: =VLOOKUP($C110,'Orçamento N_DESON.'!$D$11:$S$1153,5,FALSE) -> - | J110: =IF(Comparativo!$E$6="Tabela Não Desonerada",VLOOKUP($C110,'Orçamento N_DESON.'!$D$11:$S$1153,12,FALSE),VLOOKUP($C110,'Orçamento DESON.'!$D$11:$S$1152,12,FALSE)) -> - | K110: =IF(Comparativo!$E$6="Tabela Não Desonerada",VLOOKUP($C110,'Orçamento N_DESON.'!$D$11:$S$1153,16,FALSE),VLOOKUP($C110,'Orçamento DESON.'!$D$11:$S$1152,16,FALSE)) -> 0 | L110: =IF(Comparativo!$E$6="Tabela Não Desonerada",VLOOKUP($C110,'Orçamento N_DESON.'!$D$11:$S$1153,11,FALSE),VLOOKUP($C110,'Orçamento DESON.'!$D$11:$S$1152,11,FALSE)) -> - | M110: =IF(Comparativo!$E$6="Tabela Não Desonerada",Encargos!$F$44,Encargos!$D$44) -> 1.111
B111: =IF(AND(G111<>"",H111>0,I111<>"",J111<>0,K111<>0),COUNT($B$11:B110)+1,"") ->  | C111: ='Orçamento N_DESON.'!D114 -> 2.50 | D111: =IF(VLOOKUP($C111,'Orçamento N_DESON.'!$D$11:$G$1596,3,FALSE)="INDEXADO",VLOOKUP(VLOOKUP($C111,'Orçamento N_DESON.'!$D$11:$G$1596,2,FALSE),'Index N_DESON.'!$A$9:$B$604,2),VLOOKUP($C111,'Orçamento N_DESON.'!$D$11:$G$1596,3,FALSE)) -> 0 | E111: =VLOOKUP($C111,'Orçamento N_DESON.'!$D$11:$S$1153,2,FALSE) -> 0 | F111: =Dados!$C$7 -> 2021-10-01 | G111: =VLOOKUP($C111,'Orçamento N_DESON.'!$D$11:$S$1153,4,FALSE) -> - | H111: =VLOOKUP($C111,'Orçamento N_DESON.'!$D$11:$S$1153,6,FALSE) -> 0 | I111: =VLOOKUP($C111,'Orçamento N_DESON.'!$D$11:$S$1153,5,FALSE) -> - | J111: =IF(Comparativo!$E$6="Tabela Não Desonerada",VLOOKUP($C111,'Orçamento N_DESON.'!$D$11:$S$1153,12,FALSE),VLOOKUP($C111,'Orçamento DESON.'!$D$11:$S$1152,12,FALSE)) -> - | K111: =IF(Comparativo!$E$6="Tabela Não Desonerada",VLOOKUP($C111,'Orçamento N_DESON.'!$D$11:$S$1153,16,FALSE),VLOOKUP($C111,'Orçamento DESON.'!$D$11:$S$1152,16,FALSE)) -> 0 | L111: =IF(Comparativo!$E$6="Tabela Não Desonerada",VLOOKUP($C111,'Orçamento N_DESON.'!$D$11:$S$1153,11,FALSE),VLOOKUP($C111,'Orçamento DESON.'!$D$11:$S$1152,11,FALSE)) -> - | M111: =IF(Comparativo!$E$6="Tabela Não Desonerada",Encargos!$F$44,Encargos!$D$44) -> 1.111
B112: =IF(AND(G112<>"",H112>0,I112<>"",J112<>0,K112<>0),COUNT($B$11:B111)+1,"") -> 2 | C112: ='Orçamento N_DESON.'!D119 -> 3.1 | D112: =IF(VLOOKUP($C112,'Orçamento N_DESON.'!$D$11:$G$1596,3,FALSE)="INDEXADO",VLOOKUP(VLOOKUP($C112,'Orçamento N_DESON.'!$D$11:$G$1596,2,FALSE),'Index N_DESON.'!$A$9:$B$604,2),VLOOKUP($C112,'Orçamento N_DESON.'!$D$11:$G$1596,3,FALSE)) -> CCU | E112: =VLOOKUP($C112,'Orçamento N_DESON.'!$D$11:$S$1153,2,FALSE) -> CCU-04 | F112: =Dados!$C$7 -> 2021-10-01 | G112: =VLOOKUP($C112,'Orçamento N_DESON.'!$D$11:$S$1153,4,FALSE) -> TAPUME EM CHAPA DE COMPENSADO RESINADO | H112: =VLOOKUP($C112,'Orçamento N_DESON.'!$D$11:$S$1153,6,FALSE) -> 88 | I112: =VLOOKUP($C112,'Orçamento N_DESON.'!$D$11:$S$1153,5,FALSE) -> M2 | J112: =IF(Comparativo!$E$6="Tabela Não Desonerada",VLOOKUP($C112,'Orçamento N_DESON.'!$D$11:$S$1153,12,FALSE),VLOOKUP($C112,'Orçamento DESON.'!$D$11:$S$1152,12,FALSE)) -> 120.7 | K112: =IF(Comparativo!$E$6="Tabela Não Desonerada",VLOOKUP($C112,'Orçamento N_DESON.'!$D$11:$S$1153,16,FALSE),VLOOKUP($C112,'Orçamento DESON.'!$D$11:$S$1152,16,FALSE)) -> 10621.6 | L112: =IF(Comparativo!$E$6="Tabela Não Desonerada",VLOOKUP($C112,'Orçamento N_DESON.'!$D$11:$S$1153,11,FALSE),VLOOKUP($C112,'Orçamento DESON.'!$D$11:$S$1152,11,FALSE)) -> 0.2215 | M112: =IF(Comparativo!$E$6="Tabela Não Desonerada",Encargos!$F$44,Encargos!$D$44) -> 1.111
B113: =IF(AND(G113<>"",H113>0,I113<>"",J113<>0,K113<>0),COUNT($B$11:B112)+1,"") -> 3 | C113: ='Orçamento N_DESON.'!D120 -> 3.2 | D113: =IF(VLOOKUP($C113,'Orçamento N_DESON.'!$D$11:$G$1596,3,FALSE)="INDEXADO",VLOOKUP(VLOOKUP($C113,'Orçamento N_DESON.'!$D$11:$G$1596,2,FALSE),'Index N_DESON.'!$A$9:$B$604,2),VLOOKUP($C113,'Orçamento N_DESON.'!$D$11:$G$1596,3,FALSE)) -> CCU | E113: =VLOOKUP($C113,'Orçamento N_DESON.'!$D$11:$S$1153,2,FALSE) -> CCU-05 | F113: =Dados!$C$7 -> 2021-10-01 | G113: =VLOOKUP($C113,'Orçamento N_DESON.'!$D$11:$S$1153,4,FALSE) -> LOCAÇÃO DE BANHEIRO QUÍMICO | H113: =VLOOKUP($C113,'Orçamento N_DESON.'!$D$11:$S$1153,6,FALSE) -> 100 | I113: =VLOOKUP($C113,'Orçamento N_DESON.'!$D$11:$S$1153,5,FALSE) -> CENTO | J113: =IF(Comparativo!$E$6="Tabela Não Desonerada",VLOOKUP($C113,'Orçamento N_DESON.'!$D$11:$S$1153,12,FALSE),VLOOKUP($C113,'Orçamento DESON.'!$D$11:$S$1152,12,FALSE)) -> 12.45 | K113: =IF(Comparativo!$E$6="Tabela Não Desonerada",VLOOKUP($C113,'Orçamento N_DESON.'!$D$11:$S$1153,16,FALSE),VLOOKUP($C113,'Orçamento DESON.'!$D$11:$S$1152,16,FALSE)) -> 1245 | L113: =IF(Comparativo!$E$6="Tabela Não Desonerada",VLOOKUP($C113,'Orçamento N_DESON.'!$D$11:$S$1153,11,FALSE),VLOOKUP($C113,'Orçamento DESON.'!$D$11:$S$1152,11,FALSE)) -> 0.2215 | M113: =IF(Comparativo!$E$6="Tabela Não Desonerada",Encargos!$F$44,Encargos!$D$44) -> 1.111
B114: =IF(AND(G114<>"",H114>0,I114<>"",J114<>0,K114<>0),COUNT($B$11:B113)+1,"") -> 4 | C114: ='Orçamento N_DESON.'!D121 -> 3.3 | D114: =IF(VLOOKUP($C114,'Orçamento N_DESON.'!$D$11:$G$1596,3,FALSE)="INDEXADO",VLOOKUP(VLOOKUP($C114,'Orçamento N_DESON.'!$D$11:$G$1596,2,FALSE),'Index N_DESON.'!$A$9:$B$604,2),VLOOKUP($C114,'Orçamento N_DESON.'!$D$11:$G$1596,3,FALSE)) -> CCU | E114: =VLOOKUP($C114,'Orçamento N_DESON.'!$D$11:$S$1153,2,FALSE) -> CCU-06 | F114: =Dados!$C$7 -> 2021-10-01 | G114: =VLOOKUP($C114,'Orçamento N_DESON.'!$D$11:$S$1153,4,FALSE) -> FRETE P/ BANHEIRO QUÍMICO (IDA E VOLTA) | H114: =VLOOKUP($C114,'Orçamento N_DESON.'!$D$11:$S$1153,6,FALSE) -> 1 | I114: =VLOOKUP($C114,'Orçamento N_DESON.'!$D$11:$S$1153,5,FALSE) -> CJ | J114: =IF(Comparativo!$E$6="Tabela Não Desonerada",VLOOKUP($C114,'Orçamento N_DESON.'!$D$11:$S$1153,12,FALSE),VLOOKUP($C114,'Orçamento DESON.'!$D$11:$S$1152,12,FALSE)) -> 1198.53 | K114: =IF(Comparativo!$E$6="Tabela Não Desonerada",VLOOKUP($C114,'Orçamento N_DESON.'!$D$11:$S$1153,16,FALSE),VLOOKUP($C114,'Orçamento DESON.'!$D$11:$S$1152,16,FALSE)) -> 1198.53 | L114: =IF(Comparativo!$E$6="Tabela Não Desonerada",VLOOKUP($C114,'Orçamento N_DESON.'!$D$11:$S$1153,11,FALSE),VLOOKUP($C114,'Orçamento DESON.'!$D$11:$S$1152,11,FALSE)) -> 0.2215 | M114: =IF(Comparativo!$E$6="Tabela Não Desonerada",Encargos!$F$44,Encargos!$D$44) -> 1.111
B115: =IF(AND(G115<>"",H115>0,I115<>"",J115<>0,K115<>0),COUNT($B$11:B114)+1,"") -> 5 | C115: ='Orçamento N_DESON.'!D122 -> 3.4 | D115: =IF(VLOOKUP($C115,'Orçamento N_DESON.'!$D$11:$G$1596,3,FALSE)="INDEXADO",VLOOKUP(VLOOKUP($C115,'Orçamento N_DESON.'!$D$11:$G$1596,2,FALSE),'Index N_DESON.'!$A$9:$B$604,2),VLOOKUP($C115,'Orçamento N_DESON.'!$D$11:$G$1596,3,FALSE)) -> CCU | E115: =VLOOKUP($C115,'Orçamento N_DESON.'!$D$11:$S$1153,2,FALSE) -> CCU-07 | F115: =Dados!$C$7 -> 2021-10-01 | G115: =VLOOKUP($C115,'Orçamento N_DESON.'!$D$11:$S$1153,4,FALSE) -> INSTALAÇÃO PROVISÓRIA DE ENERGIA, AÉREA, TRIFASICA, COM CAIXA DE EMBUTIR C/ POSTE H=9,00M | H115: =VLOOKUP($C115,'Orçamento N_DESON.'!$D$11:$S$1153,6,FALSE) -> 1 | I115: =VLOOKUP($C115,'Orçamento N_DESON.'!$D$11:$S$1153,5,FALSE) -> PT | J115: =IF(Comparativo!$E$6="Tabela Não Desonerada",VLOOKUP($C115,'Orçamento N_DESON.'!$D$11:$S$1153,12,FALSE),VLOOKUP($C115,'Orçamento DESON.'!$D$11:$S$1152,12,FALSE)) -> 3205.02 | K115: =IF(Comparativo!$E$6="Tabela Não Desonerada",VLOOKUP($C115,'Orçamento N_DESON.'!$D$11:$S$1153,16,FALSE),VLOOKUP($C115,'Orçamento DESON.'!$D$11:$S$1152,16,FALSE)) -> 3205.02 | L115: =IF(Comparativo!$E$6="Tabela Não Desonerada",VLOOKUP($C115,'Orçamento N_DESON.'!$D$11:$S$1153,11,FALSE),VLOOKUP($C115,'Orçamento DESON.'!$D$11:$S$1152,11,FALSE)) -> 0.2215 | M115: =IF(Comparativo!$E$6="Tabela Não Desonerada",Encargos!$F$44,Encargos!$D$44) -> 1.111
B116: =IF(AND(G116<>"",H116>0,I116<>"",J116<>0,K116<>0),COUNT($B$11:B115)+1,"") -> 6 | C116: ='Orçamento N_DESON.'!D123 -> 3.5 | D116: =IF(VLOOKUP($C116,'Orçamento N_DESON.'!$D$11:$G$1596,3,FALSE)="INDEXADO",VLOOKUP(VLOOKUP($C116,'Orçamento N_DESON.'!$D$11:$G$1596,2,FALSE),'Index N_DESON.'!$A$9:$B$604,2),VLOOKUP($C116,'Orçamento N_DESON.'!$D$11:$G$1596,3,FALSE)) -> CCU | E116: =VLOOKUP($C116,'Orçamento N_DESON.'!$D$11:$S$1153,2,FALSE) -> CCU-08 | F116: =Dados!$C$7 -> 2021-10-01 | G116: =VLOOKUP($C116,'Orçamento N_DESON.'!$D$11:$S$1153,4,FALSE) -> INSTALAÇÃO PROVISÓRIA DE ÁGUA | H116: =VLOOKUP($C116,'Orçamento N_DESON.'!$D$11:$S$1153,6,FALSE) -> 1 | I116: =VLOOKUP($C116,'Orçamento N_DESON.'!$D$11:$S$1153,5,FALSE) -> PT | J116: =IF(Comparativo!$E$6="Tabela Não Desonerada",VLOOKUP($C116,'Orçamento N_DESON.'!$D$11:$S$1153,12,FALSE),VLOOKUP($C116,'Orçamento DESON.'!$D$11:$S$1152,12,FALSE)) -> 978.51 | K116: =IF(Comparativo!$E$6="Tabela Não Desonerada",VLOOKUP($C116,'Orçamento N_DESON.'!$D$11:$S$1153,16,FALSE),VLOOKUP($C116,'Orçamento DESON.'!$D$11:$S$1152,16,FALSE)) -> 978.51 | L116: =IF(Comparativo!$E$6="Tabela Não Desonerada",VLOOKUP($C116,'Orçamento N_DESON.'!$D$11:$S$1153,11,FALSE),VLOOKUP($C116,'Orçamento DESON.'!$D$11:$S$1152,11,FALSE)) -> 0.2215 | M116: =IF(Comparativo!$E$6="Tabela Não Desonerada",Encargos!$F$44,Encargos!$D$44) -> 1.111
B117: =IF(AND(G117<>"",H117>0,I117<>"",J117<>0,K117<>0),COUNT($B$11:B116)+1,"") -> 7 | C117: ='Orçamento N_DESON.'!D124 -> 3.6 | D117: =IF(VLOOKUP($C117,'Orçamento N_DESON.'!$D$11:$G$1596,3,FALSE)="INDEXADO",VLOOKUP(VLOOKUP($C117,'Orçamento N_DESON.'!$D$11:$G$1596,2,FALSE),'Index N_DESON.'!$A$9:$B$604,2),VLOOKUP($C117,'Orçamento N_DESON.'!$D$11:$G$1596,3,FALSE)) -> CCU | E117: =VLOOKUP($C117,'Orçamento N_DESON.'!$D$11:$S$1153,2,FALSE) -> CCU-09 | F117: =Dados!$C$7 -> 2021-10-01 | G117: =VLOOKUP($C117,'Orçamento N_DESON.'!$D$11:$S$1153,4,FALSE) -> PLACA DE OBRA EM CHAPA GALVANIZADA | H117: =VLOOKUP($C117,'Orçamento N_DESON.'!$D$11:$S$1153,6,FALSE) -> 3 | I117: =VLOOKUP($C117,'Orçamento N_DESON.'!$D$11:$S$1153,5,FALSE) -> M2 | J117: =IF(Comparativo!$E$6="Tabela Não Desonerada",VLOOKUP($C117,'Orçamento N_DESON.'!$D$11:$S$1153,12,FALSE),VLOOKUP($C117,'Orçamento DESON.'!$D$11:$S$1152,12,FALSE)) -> 420.03 | K117: =IF(Comparativo!$E$6="Tabela Não Desonerada",VLOOKUP($C117,'Orçamento N_DESON.'!$D$11:$S$1153,16,FALSE),VLOOKUP($C117,'Orçamento DESON.'!$D$11:$S$1152,16,FALSE)) -> 1260.09 | L117: =IF(Comparativo!$E$6="Tabela Não Desonerada",VLOOKUP($C117,'Orçamento N_DESON.'!$D$11:$S$1153,11,FALSE),VLOOKUP($C117,'Orçamento DESON.'!$D$11:$S$1152,11,FALSE)) -> 0.2215 | M117: =IF(Comparativo!$E$6="Tabela Não Desonerada",Encargos!$F$44,Encargos!$D$44) -> 1.111
B118: =IF(AND(G118<>"",H118>0,I118<>"",J118<>0,K118<>0),COUNT($B$11:B117)+1,"") -> 8 | C118: ='Orçamento N_DESON.'!D125 -> 3.7 | D118: =IF(VLOOKUP($C118,'Orçamento N_DESON.'!$D$11:$G$1596,3,FALSE)="INDEXADO",VLOOKUP(VLOOKUP($C118,'Orçamento N_DESON.'!$D$11:$G$1596,2,FALSE),'Index N_DESON.'!$A$9:$B$604,2),VLOOKUP($C118,'Orçamento N_DESON.'!$D$11:$G$1596,3,FALSE)) -> CCU | E118: =VLOOKUP($C118,'Orçamento N_DESON.'!$D$11:$S$1153,2,FALSE) -> CCU-10 | F118: =Dados!$C$7 -> 2021-10-01 | G118: =VLOOKUP($C118,'Orçamento N_DESON.'!$D$11:$S$1153,4,FALSE) -> SINALIZAÇÃO COM TELA PLÁSTICA LARANJA FIXADA EM CONE PLÁSTICO | H118: =VLOOKUP($C118,'Orçamento N_DESON.'!$D$11:$S$1153,6,FALSE) -> 97.5 | I118: =VLOOKUP($C118,'Orçamento N_DESON.'!$D$11:$S$1153,5,FALSE) -> M | J118: =IF(Comparativo!$E$6="Tabela Não Desonerada",VLOOKUP($C118,'Orçamento N_DESON.'!$D$11:$S$1153,12,FALSE),VLOOKUP($C118,'Orçamento DESON.'!$D$11:$S$1152,12,FALSE)) -> 35.03 | K118: =IF(Comparativo!$E$6="Tabela Não Desonerada",VLOOKUP($C118,'Orçamento N_DESON.'!$D$11:$S$1153,16,FALSE),VLOOKUP($C118,'Orçamento DESON.'!$D$11:$S$1152,16,FALSE)) -> 3415.42 | L118: =IF(Comparativo!$E$6="Tabela Não Desonerada",VLOOKUP($C118,'Orçamento N_DESON.'!$D$11:$S$1153,11,FALSE),VLOOKUP($C118,'Orçamento DESON.'!$D$11:$S$1152,11,FALSE)) -> 0.2215 | M118: =IF(Comparativo!$E$6="Tabela Não Desonerada",Encargos!$F$44,Encargos!$D$44) -> 1.111
B119: =IF(AND(G119<>"",H119>0,I119<>"",J119<>0,K119<>0),COUNT($B$11:B118)+1,"") -> 9 | C119: ='Orçamento N_DESON.'!D126 -> 3.8 | D119: =IF(VLOOKUP($C119,'Orçamento N_DESON.'!$D$11:$G$1596,3,FALSE)="INDEXADO",VLOOKUP(VLOOKUP($C119,'Orçamento N_DESON.'!$D$11:$G$1596,2,FALSE),'Index N_DESON.'!$A$9:$B$604,2),VLOOKUP($C119,'Orçamento N_DESON.'!$D$11:$G$1596,3,FALSE)) -> CCU | E119: =VLOOKUP($C119,'Orçamento N_DESON.'!$D$11:$S$1153,2,FALSE) -> CCU-11 | F119: =Dados!$C$7 -> 2021-10-01 | G119: =VLOOKUP($C119,'Orçamento N_DESON.'!$D$11:$S$1153,4,FALSE) -> LOCAÇÃO DE OBRA | H119: =VLOOKUP($C119,'Orçamento N_DESON.'!$D$11:$S$1153,6,FALSE) -> 97.5 | I119: =VLOOKUP($C119,'Orçamento N_DESON.'!$D$11:$S$1153,5,FALSE) -> M | J119: =IF(Comparativo!$E$6="Tabela Não Desonerada",VLOOKUP($C119,'Orçamento N_DESON.'!$D$11:$S$1153,12,FALSE),VLOOKUP($C119,'Orçamento DESON.'!$D$11:$S$1152,12,FALSE)) -> 0.67 | K119: =IF(Comparativo!$E$6="Tabela Não Desonerada",VLOOKUP($C119,'Orçamento N_DESON.'!$D$11:$S$1153,16,FALSE),VLOOKUP($C119,'Orçamento DESON.'!$D$11:$S$1152,16,FALSE)) -> 65.32 | L119: =IF(Comparativo!$E$6="Tabela Não Desonerada",VLOOKUP($C119,'Orçamento N_DESON.'!$D$11:$S$1153,11,FALSE),VLOOKUP($C119,'Orçamento DESON.'!$D$11:$S$1152,11,FALSE)) -> 0.2215 | M119: =IF(Comparativo!$E$6="Tabela Não Desonerada",Encargos!$F$44,Encargos!$D$44) -> 1.111
B120: =IF(AND(G120<>"",H120>0,I120<>"",J120<>0,K120<>0),COUNT($B$11:B119)+1,"") -> 10 | C120: ='Orçamento N_DESON.'!D127 -> 3.9 | D120: =IF(VLOOKUP($C120,'Orçamento N_DESON.'!$D$11:$G$1596,3,FALSE)="INDEXADO",VLOOKUP(VLOOKUP($C120,'Orçamento N_DESON.'!$D$11:$G$1596,2,FALSE),'Index N_DESON.'!$A$9:$B$604,2),VLOOKUP($C120,'Orçamento N_DESON.'!$D$11:$G$1596,3,FALSE)) -> CCU | E120: =VLOOKUP($C120,'Orçamento N_DESON.'!$D$11:$S$1153,2,FALSE) -> CCU-12 | F120: =Dados!$C$7 -> 2021-10-01 | G120: =VLOOKUP($C120,'Orçamento N_DESON.'!$D$11:$S$1153,4,FALSE) -> NIVELAMENTO | H120: =VLOOKUP($C120,'Orçamento N_DESON.'!$D$11:$S$1153,6,FALSE) -> 238.74 | I120: =VLOOKUP($C120,'Orçamento N_DESON.'!$D$11:$S$1153,5,FALSE) -> M2 | J120: =IF(Comparativo!$E$6="Tabela Não Desonerada",VLOOKUP($C120,'Orçamento N_DESON.'!$D$11:$S$1153,12,FALSE),VLOOKUP($C120,'Orçamento DESON.'!$D$11:$S$1152,12,FALSE)) -> 0.19 | K120: =IF(Comparativo!$E$6="Tabela Não Desonerada",VLOOKUP($C120,'Orçamento N_DESON.'!$D$11:$S$1153,16,FALSE),VLOOKUP($C120,'Orçamento DESON.'!$D$11:$S$1152,16,FALSE)) -> 45.36 | L120: =IF(Comparativo!$E$6="Tabela Não Desonerada",VLOOKUP($C120,'Orçamento N_DESON.'!$D$11:$S$1153,11,FALSE),VLOOKUP($C120,'Orçamento DESON.'!$D$11:$S$1152,11,FALSE)) -> 0.2215 | M120: =IF(Comparativo!$E$6="Tabela Não Desonerada",Encargos!$F$44,Encargos!$D$44) -> 1.111
B121: =IF(AND(G121<>"",H121>0,I121<>"",J121<>0,K121<>0),COUNT($B$11:B120)+1,"") ->  | C121: ='Orçamento N_DESON.'!D128 -> 3.10 | D121: =IF(VLOOKUP($C121,'Orçamento N_DESON.'!$D$11:$G$1596,3,FALSE)="INDEXADO",VLOOKUP(VLOOKUP($C121,'Orçamento N_DESON.'!$D$11:$G$1596,2,FALSE),'Index N_DESON.'!$A$9:$B$604,2),VLOOKUP($C121,'Orçamento N_DESON.'!$D$11:$G$1596,3,FALSE)) -> 0 | E121: =VLOOKUP($C121,'Orçamento N_DESON.'!$D$11:$S$1153,2,FALSE) -> 0 | F121: =Dados!$C$7 -> 2021-10-01 | G121: =VLOOKUP($C121,'Orçamento N_DESON.'!$D$11:$S$1153,4,FALSE) -> - | H121: =VLOOKUP($C121,'Orçamento N_DESON.'!$D$11:$S$1153,6,FALSE) -> 0 | I121: =VLOOKUP($C121,'Orçamento N_DESON.'!$D$11:$S$1153,5,FALSE) -> - | J121: =IF(Comparativo!$E$6="Tabela Não Desonerada",VLOOKUP($C121,'Orçamento N_DESON.'!$D$11:$S$1153,12,FALSE),VLOOKUP($C121,'Orçamento DESON.'!$D$11:$S$1152,12,FALSE)) -> - | K121: =IF(Comparativo!$E$6="Tabela Não Desonerada",VLOOKUP($C121,'Orçamento N_DESON.'!$D$11:$S$1153,16,FALSE),VLOOKUP($C121,'Orçamento DESON.'!$D$11:$S$1152,16,FALSE)) -> 0 | L121: =IF(Comparativo!$E$6="Tabela Não Desonerada",VLOOKUP($C121,'Orçamento N_DESON.'!$D$11:$S$1153,11,FALSE),VLOOKUP($C121,'Orçamento DESON.'!$D$11:$S$1152,11,FALSE)) -> - | M121: =IF(Comparativo!$E$6="Tabela Não Desonerada",Encargos!$F$44,Encargos!$D$44) -> 1.111
B122: =IF(AND(G122<>"",H122>0,I122<>"",J122<>0,K122<>0),COUNT($B$11:B121)+1,"") ->  | C122: ='Orçamento N_DESON.'!D129 -> 3.11 | D122: =IF(VLOOKUP($C122,'Orçamento N_DESON.'!$D$11:$G$1596,3,FALSE)="INDEXADO",VLOOKUP(VLOOKUP($C122,'Orçamento N_DESON.'!$D$11:$G$1596,2,FALSE),'Index N_DESON.'!$A$9:$B$604,2),VLOOKUP($C122,'Orçamento N_DESON.'!$D$11:$G$1596,3,FALSE)) -> 0 | E122: =VLOOKUP($C122,'Orçamento N_DESON.'!$D$11:$S$1153,2,FALSE) -> 0 | F122: =Dados!$C$7 -> 2021-10-01 | G122: =VLOOKUP($C122,'Orçamento N_DESON.'!$D$11:$S$1153,4,FALSE) -> - | H122: =VLOOKUP($C122,'Orçamento N_DESON.'!$D$11:$S$1153,6,FALSE) -> 0 | I122: =VLOOKUP($C122,'Orçamento N_DESON.'!$D$11:$S$1153,5,FALSE) -> - | J122: =IF(Comparativo!$E$6="Tabela Não Desonerada",VLOOKUP($C122,'Orçamento N_DESON.'!$D$11:$S$1153,12,FALSE),VLOOKUP($C122,'Orçamento DESON.'!$D$11:$S$1152,12,FALSE)) -> - | K122: =IF(Comparativo!$E$6="Tabela Não Desonerada",VLOOKUP($C122,'Orçamento N_DESON.'!$D$11:$S$1153,16,FALSE),VLOOKUP($C122,'Orçamento DESON.'!$D$11:$S$1152,16,FALSE)) -> 0 | L122: =IF(Comparativo!$E$6="Tabela Não Desonerada",VLOOKUP($C122,'Orçamento N_DESON.'!$D$11:$S$1153,11,FALSE),VLOOKUP($C122,'Orçamento DESON.'!$D$11:$S$1152,11,FALSE)) -> - | M122: =IF(Comparativo!$E$6="Tabela Não Desonerada",Encargos!$F$44,Encargos!$D$44) -> 1.111
B123: =IF(AND(G123<>"",H123>0,I123<>"",J123<>0,K123<>0),COUNT($B$11:B122)+1,"") ->  | C123: ='Orçamento N_DESON.'!D130 -> 3.12 | D123: =IF(VLOOKUP($C123,'Orçamento N_DESON.'!$D$11:$G$1596,3,FALSE)="INDEXADO",VLOOKUP(VLOOKUP($C123,'Orçamento N_DESON.'!$D$11:$G$1596,2,FALSE),'Index N_DESON.'!$A$9:$B$604,2),VLOOKUP($C123,'Orçamento N_DESON.'!$D$11:$G$1596,3,FALSE)) -> 0 | E123: =VLOOKUP($C123,'Orçamento N_DESON.'!$D$11:$S$1153,2,FALSE) -> 0 | F123: =Dados!$C$7 -> 2021-10-01 | G123: =VLOOKUP($C123,'Orçamento N_DESON.'!$D$11:$S$1153,4,FALSE) -> - | H123: =VLOOKUP($C123,'Orçamento N_DESON.'!$D$11:$S$1153,6,FALSE) -> 0 | I123: =VLOOKUP($C123,'Orçamento N_DESON.'!$D$11:$S$1153,5,FALSE) -> - | J123: =IF(Comparativo!$E$6="Tabela Não Desonerada",VLOOKUP($C123,'Orçamento N_DESON.'!$D$11:$S$1153,12,FALSE),VLOOKUP($C123,'Orçamento DESON.'!$D$11:$S$1152,12,FALSE)) -> - | K123: =IF(Comparativo!$E$6="Tabela Não Desonerada",VLOOKUP($C123,'Orçamento N_DESON.'!$D$11:$S$1153,16,FALSE),VLOOKUP($C123,'Orçamento DESON.'!$D$11:$S$1152,16,FALSE)) -> 0 | L123: =IF(Comparativo!$E$6="Tabela Não Desonerada",VLOOKUP($C123,'Orçamento N_DESON.'!$D$11:$S$1153,11,FALSE),VLOOKUP($C123,'Orçamento DESON.'!$D$11:$S$1152,11,FALSE)) -> - | M123: =IF(Comparativo!$E$6="Tabela Não Desonerada",Encargos!$F$44,Encargos!$D$44) -> 1.111
B124: =IF(AND(G124<>"",H124>0,I124<>"",J124<>0,K124<>0),COUNT($B$11:B123)+1,"") ->  | C124: ='Orçamento N_DESON.'!D131 -> 3.13 | D124: =IF(VLOOKUP($C124,'Orçamento N_DESON.'!$D$11:$G$1596,3,FALSE)="INDEXADO",VLOOKUP(VLOOKUP($C124,'Orçamento N_DESON.'!$D$11:$G$1596,2,FALSE),'Index N_DESON.'!$A$9:$B$604,2),VLOOKUP($C124,'Orçamento N_DESON.'!$D$11:$G$1596,3,FALSE)) -> 0 | E124: =VLOOKUP($C124,'Orçamento N_DESON.'!$D$11:$S$1153,2,FALSE) -> 0 | F124: =Dados!$C$7 -> 2021-10-01 | G124: =VLOOKUP($C124,'Orçamento N_DESON.'!$D$11:$S$1153,4,FALSE) -> - | H124: =VLOOKUP($C124,'Orçamento N_DESON.'!$D$11:$S$1153,6,FALSE) -> 0 | I124: =VLOOKUP($C124,'Orçamento N_DESON.'!$D$11:$S$1153,5,FALSE) -> - | J124: =IF(Comparativo!$E$6="Tabela Não Desonerada",VLOOKUP($C124,'Orçamento N_DESON.'!$D$11:$S$1153,12,FALSE),VLOOKUP($C124,'Orçamento DESON.'!$D$11:$S$1152,12,FALSE)) -> - | K124: =IF(Comparativo!$E$6="Tabela Não Desonerada",VLOOKUP($C124,'Orçamento N_DESON.'!$D$11:$S$1153,16,FALSE),VLOOKUP($C124,'Orçamento DESON.'!$D$11:$S$1152,16,FALSE)) -> 0 | L124: =IF(Comparativo!$E$6="Tabela Não Desonerada",VLOOKUP($C124,'Orçamento N_DESON.'!$D$11:$S$1153,11,FALSE),VLOOKUP($C124,'Orçamento DESON.'!$D$11:$S$1152,11,FALSE)) -> - | M124: =IF(Comparativo!$E$6="Tabela Não Desonerada",Encargos!$F$44,Encargos!$D$44) -> 1.111
B125: =IF(AND(G125<>"",H125>0,I125<>"",J125<>0,K125<>0),COUNT($B$11:B124)+1,"") ->  | C125: ='Orçamento N_DESON.'!D132 -> 3.14 | D125: =IF(VLOOKUP($C125,'Orçamento N_DESON.'!$D$11:$G$1596,3,FALSE)="INDEXADO",VLOOKUP(VLOOKUP($C125,'Orçamento N_DESON.'!$D$11:$G$1596,2,FALSE),'Index N_DESON.'!$A$9:$B$604,2),VLOOKUP($C125,'Orçamento N_DESON.'!$D$11:$G$1596,3,FALSE)) -> 0 | E125: =VLOOKUP($C125,'Orçamento N_DESON.'!$D$11:$S$1153,2,FALSE) -> 0 | F125: =Dados!$C$7 -> 2021-10-01 | G125: =VLOOKUP($C125,'Orçamento N_DESON.'!$D$11:$S$1153,4,FALSE) -> - | H125: =VLOOKUP($C125,'Orçamento N_DESON.'!$D$11:$S$1153,6,FALSE) -> 0 | I125: =VLOOKUP($C125,'Orçamento N_DESON.'!$D$11:$S$1153,5,FALSE) -> - | J125: =IF(Comparativo!$E$6="Tabela Não Desonerada",VLOOKUP($C125,'Orçamento N_DESON.'!$D$11:$S$1153,12,FALSE),VLOOKUP($C125,'Orçamento DESON.'!$D$11:$S$1152,12,FALSE)) -> - | K125: =IF(Comparativo!$E$6="Tabela Não Desonerada",VLOOKUP($C125,'Orçamento N_DESON.'!$D$11:$S$1153,16,FALSE),VLOOKUP($C125,'Orçamento DESON.'!$D$11:$S$1152,16,FALSE)) -> 0 | L125: =IF(Comparativo!$E$6="Tabela Não Desonerada",VLOOKUP($C125,'Orçamento N_DESON.'!$D$11:$S$1153,11,FALSE),VLOOKUP($C125,'Orçamento DESON.'!$D$11:$S$1152,11,FALSE)) -> - | M125: =IF(Comparativo!$E$6="Tabela Não Desonerada",Encargos!$F$44,Encargos!$D$44) -> 1.111
... 156 more rows

Sheet Proposta-TCE (hidden)
A1: PROPOSTA
A2: Modalidade | E2: N° | G2: Ano
A3: Descrição do Objeto | C3: =Dados!C5 -> OBRA DE REVITALIZAÇÃO PRAÇA ESTÁDIO ALIM PEDRO - ACADEMIA AO AR LIVRE
A4: Licitante | G4: CNPJ*
A5: Tipo de Objeto
A6: Preço Total Proposto
A7: Atenção! Se existirem itens sem preço proposto, deixe a célula do preço unitário proposto em branco.
A8: Para incluir itens da proposta, selecione as células A13 a K13 e arraste para baixo, de acordo com o número de itens cadastrado na planilha Orçamento-base.
A9: *Campos de preenchimento obrigatório | F9: **Obrigatório só para Obras e Serviços de Engenharia
A10: Nº do lote | B10: Nº Ordem | C10: Nº Item | D10: Descrição do item | E10: Proposta | O10: Equipamento | Q10: Mão de Obra | S10: Material
E11: Qtd. | F11: Unid. | G11: Preço unitário (R$)* | H11: Preço Total (R$) | I11: % BDI** | J11: % Encargos Sociais** | K11: Percentual de Desconto | L11: Pr. Unit. Material | M11: Pr. Unit. Mão de obra | O11: Preço total | P11: Preço unit. | Q11: Preço total | R11: Preço unit. | S11: Preço total | T11: Preço unit.
A12: 1 | C12: ='Orçamento-TCE'!C12 -> 1.1 | D12: ='Orçamento-TCE'!G12 -> REMOÇÃO DE PASSEIOS - SEM REMOÇÃO DE ENTULHOS | E12: ='Orçamento-TCE'!H12 -> 3.48 | F12: ='Orçamento-TCE'!I12 -> M2 | G12: =IF(Comparativo!$E$6="Tabela Não Desonerada",VLOOKUP($C12,'Orçamento N_DESON.'!$D$11:$S$1153,12,FALSE),VLOOKUP($C12,'Orçamento DESON.'!$D$11:$S$1152,12,FALSE)) -> 10.89 | H12: =IF(Comparativo!$E$6="Tabela Não Desonerada",VLOOKUP($C12,'Orçamento N_DESON.'!$D$11:$S$1153,16,FALSE),VLOOKUP($C12,'Orçamento DESON.'!$D$11:$S$1152,16,FALSE)) -> 37.89 | I12: =IF(Comparativo!$E$6="Tabela Não Desonerada",VLOOKUP($C12,'Orçamento N_DESON.'!$D$11:$S$1153,11,FALSE),VLOOKUP($C12,'Orçamento DESON.'!$D$11:$S$1152,11,FALSE)) -> 0.2215 | J12: =IF(Comparativo!$E$6="Tabela Não Desonerada",Encargos!$F$44,Encargos!$D$44) -> 1.111 | L12: =P12+T12 -> 0 | M12: =R12 -> 10.88793103 | O12: =IF(Comparativo!$E$6="Tabela Não Desonerada",VLOOKUP($C12,'Orçamento N_DESON.'!$D$11:$S$1153,13,FALSE),VLOOKUP($C12,'Orçamento DESON.'!$D$11:$S$1152,13,FALSE)) -> 0 | P12: =O12/E12 -> 0 | Q12: =IF(Comparativo!$E$6="Tabela Não Desonerada",VLOOKUP($C12,'Orçamento N_DESON.'!$D$11:$S$1153,14,FALSE),VLOOKUP($C12,'Orçamento DESON.'!$D$11:$S$1152,14,FALSE)) -> 37.89 | R12: =Q12/E12 -> 10.88793103 | S12: =IF(Comparativo!$E$6="Tabela Não Desonerada",VLOOKUP($C12,'Orçamento N_DESON.'!$D$11:$S$1153,15,FALSE),VLOOKUP($C12,'Orçamento DESON.'!$D$11:$S$1152,15,FALSE)) -> 0 | T12: =S12/E12 -> 0
A13: 1 | C13: ='Orçamento-TCE'!C13 -> 1.2 | D13: ='Orçamento-TCE'!G13 -> REMOÇÃO DE ENTULHO C/CAÇAMBA | E13: ='Orçamento-TCE'!H13 -> 20.35 | F13: ='Orçamento-TCE'!I13 -> M3 | G13: =IF(Comparativo!$E$6="Tabela Não Desonerada",VLOOKUP($C13,'Orçamento N_DESON.'!$D$11:$S$1153,12,FALSE),VLOOKUP($C13,'Orçamento DESON.'!$D$11:$S$1152,12,FALSE)) -> 151.47 | H13: =IF(Comparativo!$E$6="Tabela Não Desonerada",VLOOKUP($C13,'Orçamento N_DESON.'!$D$11:$S$1153,16,FALSE),VLOOKUP($C13,'Orçamento DESON.'!$D$11:$S$1152,16,FALSE)) -> 3082.41 | I13: =IF(Comparativo!$E$6="Tabela Não Desonerada",VLOOKUP($C13,'Orçamento N_DESON.'!$D$11:$S$1153,11,FALSE),VLOOKUP($C13,'Orçamento DESON.'!$D$11:$S$1152,11,FALSE)) -> 0.2215 | J13: =IF(Comparativo!$E$6="Tabela Não Desonerada",Encargos!$F$44,Encargos!$D$44) -> 1.111 | L13: =P13+T13 -> 135.3798526 | M13: =R13 -> 16.08992629 | O13: =IF(Comparativo!$E$6="Tabela Não Desonerada",VLOOKUP($C13,'Orçamento N_DESON.'!$D$11:$S$1153,13,FALSE),VLOOKUP($C13,'Orçamento DESON.'!$D$11:$S$1152,13,FALSE)) -> 2754.77 | P13: =O13/E13 -> 135.3695332 | Q13: =IF(Comparativo!$E$6="Tabela Não Desonerada",VLOOKUP($C13,'Orçamento N_DESON.'!$D$11:$S$1153,14,FALSE),VLOOKUP($C13,'Orçamento DESON.'!$D$11:$S$1152,14,FALSE)) -> 327.43 | R13: =Q13/E13 -> 16.08992629 | S13: =IF(Comparativo!$E$6="Tabela Não Desonerada",VLOOKUP($C13,'Orçamento N_DESON.'!$D$11:$S$1153,15,FALSE),VLOOKUP($C13,'Orçamento DESON.'!$D$11:$S$1152,15,FALSE)) -> 0.21 | T13: =S13/E13 -> 0.01031941032
A14: 1 | C14: ='Orçamento-TCE'!C14 -> 1.3 | D14: ='Orçamento-TCE'!G14 -> - | E14: ='Orçamento-TCE'!H14 -> 0 | F14: ='Orçamento-TCE'!I14 -> - | G14: =IF(Comparativo!$E$6="Tabela Não Desonerada",VLOOKUP($C14,'Orçamento N_DESON.'!$D$11:$S$1153,12,FALSE),VLOOKUP($C14,'Orçamento DESON.'!$D$11:$S$1152,12,FALSE)) -> - | H14: =IF(Comparativo!$E$6="Tabela Não Desonerada",VLOOKUP($C14,'Orçamento N_DESON.'!$D$11:$S$1153,16,FALSE),VLOOKUP($C14,'Orçamento DESON.'!$D$11:$S$1152,16,FALSE)) -> 0 | I14: =IF(Comparativo!$E$6="Tabela Não Desonerada",VLOOKUP($C14,'Orçamento N_DESON.'!$D$11:$S$1153,11,FALSE),VLOOKUP($C14,'Orçamento DESON.'!$D$11:$S$1152,11,FALSE)) -> - | J14: =IF(Comparativo!$E$6="Tabela Não Desonerada",Encargos!$F$44,Encargos!$D$44) -> 1.111 | O14: =IF(Comparativo!$E$6="Tabela Não Desonerada",VLOOKUP($C14,'Orçamento N_DESON.'!$D$11:$S$1153,13,FALSE),VLOOKUP($C14,'Orçamento DESON.'!$D$11:$S$1152,13,FALSE)) -> 0 | Q14: =IF(Comparativo!$E$6="Tabela Não Desonerada",VLOOKUP($C14,'Orçamento N_DESON.'!$D$11:$S$1153,14,FALSE),VLOOKUP($C14,'Orçamento DESON.'!$D$11:$S$1152,14,FALSE)) -> 0 | S14: =IF(Comparativo!$E$6="Tabela Não Desonerada",VLOOKUP($C14,'Orçamento N_DESON.'!$D$11:$S$1153,15,FALSE),VLOOKUP($C14,'Orçamento DESON.'!$D$11:$S$1152,15,FALSE)) -> 0
A15: 1 | C15: ='Orçamento-TCE'!C15 -> 1.4 | D15: ='Orçamento-TCE'!G15 -> - | E15: ='Orçamento-TCE'!H15 -> 0 | F15: ='Orçamento-TCE'!I15 -> - | G15: =IF(Comparativo!$E$6="Tabela Não Desonerada",VLOOKUP($C15,'Orçamento N_DESON.'!$D$11:$S$1153,12,FALSE),VLOOKUP($C15,'Orçamento DESON.'!$D$11:$S$1152,12,FALSE)) -> - | H15: =IF(Comparativo!$E$6="Tabela Não Desonerada",VLOOKUP($C15,'Orçamento N_DESON.'!$D$11:$S$1153,16,FALSE),VLOOKUP($C15,'Orçamento DESON.'!$D$11:$S$1152,16,FALSE)) -> 0 | I15: =IF(Comparativo!$E$6="Tabela Não Desonerada",VLOOKUP($C15,'Orçamento N_DESON.'!$D$11:$S$1153,11,FALSE),VLOOKUP($C15,'Orçamento DESON.'!$D$11:$S$1152,11,FALSE)) -> - | J15: =IF(Comparativo!$E$6="Tabela Não Desonerada",Encargos!$F$44,Encargos!$D$44) -> 1.111 | O15: =IF(Comparativo!$E$6="Tabela Não Desonerada",VLOOKUP($C15,'Orçamento N_DESON.'!$D$11:$S$1153,13,FALSE),VLOOKUP($C15,'Orçamento DESON.'!$D$11:$S$1152,13,FALSE)) -> 0 | Q15: =IF(Comparativo!$E$6="Tabela Não Desonerada",VLOOKUP($C15,'Orçamento N_DESON.'!$D$11:$S$1153,14,FALSE),VLOOKUP($C15,'Orçamento DESON.'!$D$11:$S$1152,14,FALSE)) -> 0 | S15: =IF(Comparativo!$E$6="Tabela Não Desonerada",VLOOKUP($C15,'Orçamento N_DESON.'!$D$11:$S$1153,15,FALSE),VLOOKUP($C15,'Orçamento DESON.'!$D$11:$S$1152,15,FALSE)) -> 0
A16: 1 | C16: ='Orçamento-TCE'!C16 -> 1.5 | D16: ='Orçamento-TCE'!G16 -> - | E16: ='Orçamento-TCE'!H16 -> 0 | F16: ='Orçamento-TCE'!I16 -> - | G16: =IF(Comparativo!$E$6="Tabela Não Desonerada",VLOOKUP($C16,'Orçamento N_DESON.'!$D$11:$S$1153,12,FALSE),VLOOKUP($C16,'Orçamento DESON.'!$D$11:$S$1152,12,FALSE)) -> - | H16: =IF(Comparativo!$E$6="Tabela Não Desonerada",VLOOKUP($C16,'Orçamento N_DESON.'!$D$11:$S$1153,16,FALSE),VLOOKUP($C16,'Orçamento DESON.'!$D$11:$S$1152,16,FALSE)) -> 0 | I16: =IF(Comparativo!$E$6="Tabela Não Desonerada",VLOOKUP($C16,'Orçamento N_DESON.'!$D$11:$S$1153,11,FALSE),VLOOKUP($C16,'Orçamento DESON.'!$D$11:$S$1152,11,FALSE)) -> - | J16: =IF(Comparativo!$E$6="Tabela Não Desonerada",Encargos!$F$44,Encargos!$D$44) -> 1.111 | L16: =P16+T16 ->  | M16: =R16 ->  | O16: =IF(Comparativo!$E$6="Tabela Não Desonerada",VLOOKUP($C16,'Orçamento N_DESON.'!$D$11:$S$1153,13,FALSE),VLOOKUP($C16,'Orçamento DESON.'!$D$11:$S$1152,13,FALSE)) -> 0 | Q16: =IF(Comparativo!$E$6="Tabela Não Desonerada",VLOOKUP($C16,'Orçamento N_DESON.'!$D$11:$S$1153,14,FALSE),VLOOKUP($C16,'Orçamento DESON.'!$D$11:$S$1152,14,FALSE)) -> 0 | S16: =IF(Comparativo!$E$6="Tabela Não Desonerada",VLOOKUP($C16,'Orçamento N_DESON.'!$D$11:$S$1153,15,FALSE),VLOOKUP($C16,'Orçamento DESON.'!$D$11:$S$1152,15,FALSE)) -> 0
A17: 1 | C17: ='Orçamento-TCE'!C17 -> 1.6 | D17: ='Orçamento-TCE'!G17 -> - | E17: ='Orçamento-TCE'!H17 -> 0 | F17: ='Orçamento-TCE'!I17 -> - | G17: =IF(Comparativo!$E$6="Tabela Não Desonerada",VLOOKUP($C17,'Orçamento N_DESON.'!$D$11:$S$1153,12,FALSE),VLOOKUP($C17,'Orçamento DESON.'!$D$11:$S$1152,12,FALSE)) -> - | H17: =IF(Comparativo!$E$6="Tabela Não Desonerada",VLOOKUP($C17,'Orçamento N_DESON.'!$D$11:$S$1153,16,FALSE),VLOOKUP($C17,'Orçamento DESON.'!$D$11:$S$1152,16,FALSE)) -> 0 | I17: =IF(Comparativo!$E$6="Tabela Não Desonerada",VLOOKUP($C17,'Orçamento N_DESON.'!$D$11:$S$1153,11,FALSE),VLOOKUP($C17,'Orçamento DESON.'!$D$11:$S$1152,11,FALSE)) -> - | J17: =IF(Comparativo!$E$6="Tabela Não Desonerada",Encargos!$F$44,Encargos!$D$44) -> 1.111 | O17: =IF(Comparativo!$E$6="Tabela Não Desonerada",VLOOKUP($C17,'Orçamento N_DESON.'!$D$11:$S$1153,13,FALSE),VLOOKUP($C17,'Orçamento DESON.'!$D$11:$S$1152,13,FALSE)) -> 0 | Q17: =IF(Comparativo!$E$6="Tabela Não Desonerada",VLOOKUP($C17,'Orçamento N_DESON.'!$D$11:$S$1153,14,FALSE),VLOOKUP($C17,'Orçamento DESON.'!$D$11:$S$1152,14,FALSE)) -> 0 | S17: =IF(Comparativo!$E$6="Tabela Não Desonerada",VLOOKUP($C17,'Orçamento N_DESON.'!$D$11:$S$1153,15,FALSE),VLOOKUP($C17,'Orçamento DESON.'!$D$11:$S$1152,15,FALSE)) -> 0
A18: 1 | C18: ='Orçamento-TCE'!C18 -> 1.7 | D18: ='Orçamento-TCE'!G18 -> - | E18: ='Orçamento-TCE'!H18 -> 0 | F18: ='Orçamento-TCE'!I18 -> - | G18: =IF(Comparativo!$E$6="Tabela Não Desonerada",VLOOKUP($C18,'Orçamento N_DESON.'!$D$11:$S$1153,12,FALSE),VLOOKUP($C18,'Orçamento DESON.'!$D$11:$S$1152,12,FALSE)) -> - | H18: =IF(Comparativo!$E$6="Tabela Não Desonerada",VLOOKUP($C18,'Orçamento N_DESON.'!$D$11:$S$1153,16,FALSE),VLOOKUP($C18,'Orçamento DESON.'!$D$11:$S$1152,16,FALSE)) -> 0 | I18: =IF(Comparativo!$E$6="Tabela Não Desonerada",VLOOKUP($C18,'Orçamento N_DESON.'!$D$11:$S$1153,11,FALSE),VLOOKUP($C18,'Orçamento DESON.'!$D$11:$S$1152,11,FALSE)) -> - | J18: =IF(Comparativo!$E$6="Tabela Não Desonerada",Encargos!$F$44,Encargos!$D$44) -> 1.111 | O18: =IF(Comparativo!$E$6="Tabela Não Desonerada",VLOOKUP($C18,'Orçamento N_DESON.'!$D$11:$S$1153,13,FALSE),VLOOKUP($C18,'Orçamento DESON.'!$D$11:$S$1152,13,FALSE)) -> 0 | Q18: =IF(Comparativo!$E$6="Tabela Não Desonerada",VLOOKUP($C18,'Orçamento N_DESON.'!$D$11:$S$1153,14,FALSE),VLOOKUP($C18,'Orçamento DESON.'!$D$11:$S$1152,14,FALSE)) -> 0 | S18: =IF(Comparativo!$E$6="Tabela Não Desonerada",VLOOKUP($C18,'Orçamento N_DESON.'!$D$11:$S$1153,15,FALSE),VLOOKUP($C18,'Orçamento DESON.'!$D$11:$S$1152,15,FALSE)) -> 0
A19: 1 | C19: ='Orçamento-TCE'!C19 -> 1.8 | D19: ='Orçamento-TCE'!G19 -> - | E19: ='Orçamento-TCE'!H19 -> 0 | F19: ='Orçamento-TCE'!I19 -> - | G19: =IF(Comparativo!$E$6="Tabela Não Desonerada",VLOOKUP($C19,'Orçamento N_DESON.'!$D$11:$S$1153,12,FALSE),VLOOKUP($C19,'Orçamento DESON.'!$D$11:$S$1152,12,FALSE)) -> - | H19: =IF(Comparativo!$E$6="Tabela Não Desonerada",VLOOKUP($C19,'Orçamento N_DESON.'!$D$11:$S$1153,16,FALSE),VLOOKUP($C19,'Orçamento DESON.'!$D$11:$S$1152,16,FALSE)) -> 0 | I19: =IF(Comparativo!$E$6="Tabela Não Desonerada",VLOOKUP($C19,'Orçamento N_DESON.'!$D$11:$S$1153,11,FALSE),VLOOKUP($C19,'Orçamento DESON.'!$D$11:$S$1152,11,FALSE)) -> - | J19: =IF(Comparativo!$E$6="Tabela Não Desonerada",Encargos!$F$44,Encargos!$D$44) -> 1.111 | O19: =IF(Comparativo!$E$6="Tabela Não Desonerada",VLOOKUP($C19,'Orçamento N_DESON.'!$D$11:$S$1153,13,FALSE),VLOOKUP($C19,'Orçamento DESON.'!$D$11:$S$1152,13,FALSE)) -> 0 | Q19: =IF(Comparativo!$E$6="Tabela Não Desonerada",VLOOKUP($C19,'Orçamento N_DESON.'!$D$11:$S$1153,14,FALSE),VLOOKUP($C19,'Orçamento DESON.'!$D$11:$S$1152,14,FALSE)) -> 0 | S19: =IF(Comparativo!$E$6="Tabela Não Desonerada",VLOOKUP($C19,'Orçamento N_DESON.'!$D$11:$S$1153,15,FALSE),VLOOKUP($C19,'Orçamento DESON.'!$D$11:$S$1152,15,FALSE)) -> 0
A20: 1 | C20: ='Orçamento-TCE'!C20 -> 1.9 | D20: ='Orçamento-TCE'!G20 -> - | E20: ='Orçamento-TCE'!H20 -> 0 | F20: ='Orçamento-TCE'!I20 -> - | G20: =IF(Comparativo!$E$6="Tabela Não Desonerada",VLOOKUP($C20,'Orçamento N_DESON.'!$D$11:$S$1153,12,FALSE),VLOOKUP($C20,'Orçamento DESON.'!$D$11:$S$1152,12,FALSE)) -> - | H20: =IF(Comparativo!$E$6="Tabela Não Desonerada",VLOOKUP($C20,'Orçamento N_DESON.'!$D$11:$S$1153,16,FALSE),VLOOKUP($C20,'Orçamento DESON.'!$D$11:$S$1152,16,FALSE)) -> 0 | I20: =IF(Comparativo!$E$6="Tabela Não Desonerada",VLOOKUP($C20,'Orçamento N_DESON.'!$D$11:$S$1153,11,FALSE),VLOOKUP($C20,'Orçamento DESON.'!$D$11:$S$1152,11,FALSE)) -> - | J20: =IF(Comparativo!$E$6="Tabela Não Desonerada",Encargos!$F$44,Encargos!$D$44) -> 1.111 | O20: =IF(Comparativo!$E$6="Tabela Não Desonerada",VLOOKUP($C20,'Orçamento N_DESON.'!$D$11:$S$1153,13,FALSE),VLOOKUP($C20,'Orçamento DESON.'!$D$11:$S$1152,13,FALSE)) -> 0 | Q20: =IF(Comparativo!$E$6="Tabela Não Desonerada",VLOOKUP($C20,'Orçamento N_DESON.'!$D$11:$S$1153,14,FALSE),VLOOKUP($C20,'Orçamento DESON.'!$D$11:$S$1152,14,FALSE)) -> 0 | S20: =IF(Comparativo!$E$6="Tabela Não Desonerada",VLOOKUP($C20,'Orçamento N_DESON.'!$D$11:$S$1153,15,FALSE),VLOOKUP($C20,'Orçamento DESON.'!$D$11:$S$1152,15,FALSE)) -> 0
A21: 1 | C21: ='Orçamento-TCE'!C21 -> 1.10 | D21: ='Orçamento-TCE'!G21 -> - | E21: ='Orçamento-TCE'!H21 -> 0 | F21: ='Orçamento-TCE'!I21 -> - | G21: =IF(Comparativo!$E$6="Tabela Não Desonerada",VLOOKUP($C21,'Orçamento N_DESON.'!$D$11:$S$1153,12,FALSE),VLOOKUP($C21,'Orçamento DESON.'!$D$11:$S$1152,12,FALSE)) -> - | H21: =IF(Comparativo!$E$6="Tabela Não Desonerada",VLOOKUP($C21,'Orçamento N_DESON.'!$D$11:$S$1153,16,FALSE),VLOOKUP($C21,'Orçamento DESON.'!$D$11:$S$1152,16,FALSE)) -> 0 | I21: =IF(Comparativo!$E$6="Tabela Não Desonerada",VLOOKUP($C21,'Orçamento N_DESON.'!$D$11:$S$1153,11,FALSE),VLOOKUP($C21,'Orçamento DESON.'!$D$11:$S$1152,11,FALSE)) -> - | J21: =IF(Comparativo!$E$6="Tabela Não Desonerada",Encargos!$F$44,Encargos!$D$44) -> 1.111 | O21: =IF(Comparativo!$E$6="Tabela Não Desonerada",VLOOKUP($C21,'Orçamento N_DESON.'!$D$11:$S$1153,13,FALSE),VLOOKUP($C21,'Orçamento DESON.'!$D$11:$S$1152,13,FALSE)) -> 0 | Q21: =IF(Comparativo!$E$6="Tabela Não Desonerada",VLOOKUP($C21,'Orçamento N_DESON.'!$D$11:$S$1153,14,FALSE),VLOOKUP($C21,'Orçamento DESON.'!$D$11:$S$1152,14,FALSE)) -> 0 | S21: =IF(Comparativo!$E$6="Tabela Não Desonerada",VLOOKUP($C21,'Orçamento N_DESON.'!$D$11:$S$1153,15,FALSE),VLOOKUP($C21,'Orçamento DESON.'!$D$11:$S$1152,15,FALSE)) -> 0
A22: 1 | C22: ='Orçamento-TCE'!C22 -> 1.11 | D22: ='Orçamento-TCE'!G22 -> - | E22: ='Orçamento-TCE'!H22 -> 0 | F22: ='Orçamento-TCE'!I22 -> - | G22: =IF(Comparativo!$E$6="Tabela Não Desonerada",VLOOKUP($C22,'Orçamento N_DESON.'!$D$11:$S$1153,12,FALSE),VLOOKUP($C22,'Orçamento DESON.'!$D$11:$S$1152,12,FALSE)) -> - | H22: =IF(Comparativo!$E$6="Tabela Não Desonerada",VLOOKUP($C22,'Orçamento N_DESON.'!$D$11:$S$1153,16,FALSE),VLOOKUP($C22,'Orçamento DESON.'!$D$11:$S$1152,16,FALSE)) -> 0 | I22: =IF(Comparativo!$E$6="Tabela Não Desonerada",VLOOKUP($C22,'Orçamento N_DESON.'!$D$11:$S$1153,11,FALSE),VLOOKUP($C22,'Orçamento DESON.'!$D$11:$S$1152,11,FALSE)) -> - | J22: =IF(Comparativo!$E$6="Tabela Não Desonerada",Encargos!$F$44,Encargos!$D$44) -> 1.111 | O22: =IF(Comparativo!$E$6="Tabela Não Desonerada",VLOOKUP($C22,'Orçamento N_DESON.'!$D$11:$S$1153,13,FALSE),VLOOKUP($C22,'Orçamento DESON.'!$D$11:$S$1152,13,FALSE)) -> 0 | Q22: =IF(Comparativo!$E$6="Tabela Não Desonerada",VLOOKUP($C22,'Orçamento N_DESON.'!$D$11:$S$1153,14,FALSE),VLOOKUP($C22,'Orçamento DESON.'!$D$11:$S$1152,14,FALSE)) -> 0 | S22: =IF(Comparativo!$E$6="Tabela Não Desonerada",VLOOKUP($C22,'Orçamento N_DESON.'!$D$11:$S$1153,15,FALSE),VLOOKUP($C22,'Orçamento DESON.'!$D$11:$S$1152,15,FALSE)) -> 0
A23: 1 | C23: ='Orçamento-TCE'!C23 -> 1.12 | D23: ='Orçamento-TCE'!G23 -> - | E23: ='Orçamento-TCE'!H23 -> 0 | F23: ='Orçamento-TCE'!I23 -> - | G23: =IF(Comparativo!$E$6="Tabela Não Desonerada",VLOOKUP($C23,'Orçamento N_DESON.'!$D$11:$S$1153,12,FALSE),VLOOKUP($C23,'Orçamento DESON.'!$D$11:$S$1152,12,FALSE)) -> - | H23: =IF(Comparativo!$E$6="Tabela Não Desonerada",VLOOKUP($C23,'Orçamento N_DESON.'!$D$11:$S$1153,16,FALSE),VLOOKUP($C23,'Orçamento DESON.'!$D$11:$S$1152,16,FALSE)) -> 0 | I23: =IF(Comparativo!$E$6="Tabela Não Desonerada",VLOOKUP($C23,'Orçamento N_DESON.'!$D$11:$S$1153,11,FALSE),VLOOKUP($C23,'Orçamento DESON.'!$D$11:$S$1152,11,FALSE)) -> - | J23: =IF(Comparativo!$E$6="Tabela Não Desonerada",Encargos!$F$44,Encargos!$D$44) -> 1.111 | O23: =IF(Comparativo!$E$6="Tabela Não Desonerada",VLOOKUP($C23,'Orçamento N_DESON.'!$D$11:$S$1153,13,FALSE),VLOOKUP($C23,'Orçamento DESON.'!$D$11:$S$1152,13,FALSE)) -> 0 | Q23: =IF(Comparativo!$E$6="Tabela Não Desonerada",VLOOKUP($C23,'Orçamento N_DESON.'!$D$11:$S$1153,14,FALSE),VLOOKUP($C23,'Orçamento DESON.'!$D$11:$S$1152,14,FALSE)) -> 0 | S23: =IF(Comparativo!$E$6="Tabela Não Desonerada",VLOOKUP($C23,'Orçamento N_DESON.'!$D$11:$S$1153,15,FALSE),VLOOKUP($C23,'Orçamento DESON.'!$D$11:$S$1152,15,FALSE)) -> 0
A24: 1 | C24: ='Orçamento-TCE'!C24 -> 1.13 | D24: ='Orçamento-TCE'!G24 -> - | E24: ='Orçamento-TCE'!H24 -> 0 | F24: ='Orçamento-TCE'!I24 -> - | G24: =IF(Comparativo!$E$6="Tabela Não Desonerada",VLOOKUP($C24,'Orçamento N_DESON.'!$D$11:$S$1153,12,FALSE),VLOOKUP($C24,'Orçamento DESON.'!$D$11:$S$1152,12,FALSE)) -> - | H24: =IF(Comparativo!$E$6="Tabela Não Desonerada",VLOOKUP($C24,'Orçamento N_DESON.'!$D$11:$S$1153,16,FALSE),VLOOKUP($C24,'Orçamento DESON.'!$D$11:$S$1152,16,FALSE)) -> 0 | I24: =IF(Comparativo!$E$6="Tabela Não Desonerada",VLOOKUP($C24,'Orçamento N_DESON.'!$D$11:$S$1153,11,FALSE),VLOOKUP($C24,'Orçamento DESON.'!$D$11:$S$1152,11,FALSE)) -> - | J24: =IF(Comparativo!$E$6="Tabela Não Desonerada",Encargos!$F$44,Encargos!$D$44) -> 1.111 | O24: =IF(Comparativo!$E$6="Tabela Não Desonerada",VLOOKUP($C24,'Orçamento N_DESON.'!$D$11:$S$1153,13,FALSE),VLOOKUP($C24,'Orçamento DESON.'!$D$11:$S$1152,13,FALSE)) -> 0 | Q24: =IF(Comparativo!$E$6="Tabela Não Desonerada",VLOOKUP($C24,'Orçamento N_DESON.'!$D$11:$S$1153,14,FALSE),VLOOKUP($C24,'Orçamento DESON.'!$D$11:$S$1152,14,FALSE)) -> 0 | S24: =IF(Comparativo!$E$6="Tabela Não Desonerada",VLOOKUP($C24,'Orçamento N_DESON.'!$D$11:$S$1153,15,FALSE),VLOOKUP($C24,'Orçamento DESON.'!$D$11:$S$1152,15,FALSE)) -> 0
A25: 1 | C25: ='Orçamento-TCE'!C25 -> 1.14 | D25: ='Orçamento-TCE'!G25 -> - | E25: ='Orçamento-TCE'!H25 -> 0 | F25: ='Orçamento-TCE'!I25 -> - | G25: =IF(Comparativo!$E$6="Tabela Não Desonerada",VLOOKUP($C25,'Orçamento N_DESON.'!$D$11:$S$1153,12,FALSE),VLOOKUP($C25,'Orçamento DESON.'!$D$11:$S$1152,12,FALSE)) -> - | H25: =IF(Comparativo!$E$6="Tabela Não Desonerada",VLOOKUP($C25,'Orçamento N_DESON.'!$D$11:$S$1153,16,FALSE),VLOOKUP($C25,'Orçamento DESON.'!$D$11:$S$1152,16,FALSE)) -> 0 | I25: =IF(Comparativo!$E$6="Tabela Não Desonerada",VLOOKUP($C25,'Orçamento N_DESON.'!$D$11:$S$1153,11,FALSE),VLOOKUP($C25,'Orçamento DESON.'!$D$11:$S$1152,11,FALSE)) -> - | J25: =IF(Comparativo!$E$6="Tabela Não Desonerada",Encargos!$F$44,Encargos!$D$44) -> 1.111 | O25: =IF(Comparativo!$E$6="Tabela Não Desonerada",VLOOKUP($C25,'Orçamento N_DESON.'!$D$11:$S$1153,13,FALSE),VLOOKUP($C25,'Orçamento DESON.'!$D$11:$S$1152,13,FALSE)) -> 0 | Q25: =IF(Comparativo!$E$6="Tabela Não Desonerada",VLOOKUP($C25,'Orçamento N_DESON.'!$D$11:$S$1153,14,FALSE),VLOOKUP($C25,'Orçamento DESON.'!$D$11:$S$1152,14,FALSE)) -> 0 | S25: =IF(Comparativo!$E$6="Tabela Não Desonerada",VLOOKUP($C25,'Orçamento N_DESON.'!$D$11:$S$1153,15,FALSE),VLOOKUP($C25,'Orçamento DESON.'!$D$11:$S$1152,15,FALSE)) -> 0
A26: 1 | C26: ='Orçamento-TCE'!C26 -> 1.15 | D26: ='Orçamento-TCE'!G26 -> - | E26: ='Orçamento-TCE'!H26 -> 0 | F26: ='Orçamento-TCE'!I26 -> - | G26: =IF(Comparativo!$E$6="Tabela Não Desonerada",VLOOKUP($C26,'Orçamento N_DESON.'!$D$11:$S$1153,12,FALSE),VLOOKUP($C26,'Orçamento DESON.'!$D$11:$S$1152,12,FALSE)) -> - | H26: =IF(Comparativo!$E$6="Tabela Não Desonerada",VLOOKUP($C26,'Orçamento N_DESON.'!$D$11:$S$1153,16,FALSE),VLOOKUP($C26,'Orçamento DESON.'!$D$11:$S$1152,16,FALSE)) -> 0 | I26: =IF(Comparativo!$E$6="Tabela Não Desonerada",VLOOKUP($C26,'Orçamento N_DESON.'!$D$11:$S$1153,11,FALSE),VLOOKUP($C26,'Orçamento DESON.'!$D$11:$S$1152,11,FALSE)) -> - | J26: =IF(Comparativo!$E$6="Tabela Não Desonerada",Encargos!$F$44,Encargos!$D$44) -> 1.111 | O26: =IF(Comparativo!$E$6="Tabela Não Desonerada",VLOOKUP($C26,'Orçamento N_DESON.'!$D$11:$S$1153,13,FALSE),VLOOKUP($C26,'Orçamento DESON.'!$D$11:$S$1152,13,FALSE)) -> 0 | Q26: =IF(Comparativo!$E$6="Tabela Não Desonerada",VLOOKUP($C26,'Orçamento N_DESON.'!$D$11:$S$1153,14,FALSE),VLOOKUP($C26,'Orçamento DESON.'!$D$11:$S$1152,14,FALSE)) -> 0 | S26: =IF(Comparativo!$E$6="Tabela Não Desonerada",VLOOKUP($C26,'Orçamento N_DESON.'!$D$11:$S$1153,15,FALSE),VLOOKUP($C26,'Orçamento DESON.'!$D$11:$S$1152,15,FALSE)) -> 0
A27: 1 | C27: ='Orçamento-TCE'!C27 -> 1.16 | D27: ='Orçamento-TCE'!G27 -> - | E27: ='Orçamento-TCE'!H27 -> 0 | F27: ='Orçamento-TCE'!I27 -> - | G27: =IF(Comparativo!$E$6="Tabela Não Desonerada",VLOOKUP($C27,'Orçamento N_DESON.'!$D$11:$S$1153,12,FALSE),VLOOKUP($C27,'Orçamento DESON.'!$D$11:$S$1152,12,FALSE)) -> - | H27: =IF(Comparativo!$E$6="Tabela Não Desonerada",VLOOKUP($C27,'Orçamento N_DESON.'!$D$11:$S$1153,16,FALSE),VLOOKUP($C27,'Orçamento DESON.'!$D$11:$S$1152,16,FALSE)) -> 0 | I27: =IF(Comparativo!$E$6="Tabela Não Desonerada",VLOOKUP($C27,'Orçamento N_DESON.'!$D$11:$S$1153,11,FALSE),VLOOKUP($C27,'Orçamento DESON.'!$D$11:$S$1152,11,FALSE)) -> - | J27: =IF(Comparativo!$E$6="Tabela Não Desonerada",Encargos!$F$44,Encargos!$D$44) -> 1.111 | O27: =IF(Comparativo!$E$6="Tabela Não Desonerada",VLOOKUP($C27,'Orçamento N_DESON.'!$D$11:$S$1153,13,FALSE),VLOOKUP($C27,'Orçamento DESON.'!$D$11:$S$1152,13,FALSE)) -> 0 | Q27: =IF(Comparativo!$E$6="Tabela Não Desonerada",VLOOKUP($C27,'Orçamento N_DESON.'!$D$11:$S$1153,14,FALSE),VLOOKUP($C27,'Orçamento DESON.'!$D$11:$S$1152,14,FALSE)) -> 0 | S27: =IF(Comparativo!$E$6="Tabela Não Desonerada",VLOOKUP($C27,'Orçamento N_DESON.'!$D$11:$S$1153,15,FALSE),VLOOKUP($C27,'Orçamento DESON.'!$D$11:$S$1152,15,FALSE)) -> 0
A28: 1 | C28: ='Orçamento-TCE'!C28 -> 1.17 | D28: ='Orçamento-TCE'!G28 -> - | E28: ='Orçamento-TCE'!H28 -> 0 | F28: ='Orçamento-TCE'!I28 -> - | G28: =IF(Comparativo!$E$6="Tabela Não Desonerada",VLOOKUP($C28,'Orçamento N_DESON.'!$D$11:$S$1153,12,FALSE),VLOOKUP($C28,'Orçamento DESON.'!$D$11:$S$1152,12,FALSE)) -> - | H28: =IF(Comparativo!$E$6="Tabela Não Desonerada",VLOOKUP($C28,'Orçamento N_DESON.'!$D$11:$S$1153,16,FALSE),VLOOKUP($C28,'Orçamento DESON.'!$D$11:$S$1152,16,FALSE)) -> 0 | I28: =IF(Comparativo!$E$6="Tabela Não Desonerada",VLOOKUP($C28,'Orçamento N_DESON.'!$D$11:$S$1153,11,FALSE),VLOOKUP($C28,'Orçamento DESON.'!$D$11:$S$1152,11,FALSE)) -> - | J28: =IF(Comparativo!$E$6="Tabela Não Desonerada",Encargos!$F$44,Encargos!$D$44) -> 1.111 | O28: =IF(Comparativo!$E$6="Tabela Não Desonerada",VLOOKUP($C28,'Orçamento N_DESON.'!$D$11:$S$1153,13,FALSE),VLOOKUP($C28,'Orçamento DESON.'!$D$11:$S$1152,13,FALSE)) -> 0 | Q28: =IF(Comparativo!$E$6="Tabela Não Desonerada",VLOOKUP($C28,'Orçamento N_DESON.'!$D$11:$S$1153,14,FALSE),VLOOKUP($C28,'Orçamento DESON.'!$D$11:$S$1152,14,FALSE)) -> 0 | S28: =IF(Comparativo!$E$6="Tabela Não Desonerada",VLOOKUP($C28,'Orçamento N_DESON.'!$D$11:$S$1153,15,FALSE),VLOOKUP($C28,'Orçamento DESON.'!$D$11:$S$1152,15,FALSE)) -> 0
A29: 1 | C29: ='Orçamento-TCE'!C29 -> 1.18 | D29: ='Orçamento-TCE'!G29 -> - | E29: ='Orçamento-TCE'!H29 -> 0 | F29: ='Orçamento-TCE'!I29 -> - | G29: =IF(Comparativo!$E$6="Tabela Não Desonerada",VLOOKUP($C29,'Orçamento N_DESON.'!$D$11:$S$1153,12,FALSE),VLOOKUP($C29,'Orçamento DESON.'!$D$11:$S$1152,12,FALSE)) -> - | H29: =IF(Comparativo!$E$6="Tabela Não Desonerada",VLOOKUP($C29,'Orçamento N_DESON.'!$D$11:$S$1153,16,FALSE),VLOOKUP($C29,'Orçamento DESON.'!$D$11:$S$1152,16,FALSE)) -> 0 | I29: =IF(Comparativo!$E$6="Tabela Não Desonerada",VLOOKUP($C29,'Orçamento N_DESON.'!$D$11:$S$1153,11,FALSE),VLOOKUP($C29,'Orçamento DESON.'!$D$11:$S$1152,11,FALSE)) -> - | J29: =IF(Comparativo!$E$6="Tabela Não Desonerada",Encargos!$F$44,Encargos!$D$44) -> 1.111 | O29: =IF(Comparativo!$E$6="Tabela Não Desonerada",VLOOKUP($C29,'Orçamento N_DESON.'!$D$11:$S$1153,13,FALSE),VLOOKUP($C29,'Orçamento DESON.'!$D$11:$S$1152,13,FALSE)) -> 0 | Q29: =IF(Comparativo!$E$6="Tabela Não Desonerada",VLOOKUP($C29,'Orçamento N_DESON.'!$D$11:$S$1153,14,FALSE),VLOOKUP($C29,'Orçamento DESON.'!$D$11:$S$1152,14,FALSE)) -> 0 | S29: =IF(Comparativo!$E$6="Tabela Não Desonerada",VLOOKUP($C29,'Orçamento N_DESON.'!$D$11:$S$1153,15,FALSE),VLOOKUP($C29,'Orçamento DESON.'!$D$11:$S$1152,15,FALSE)) -> 0
A30: 1 | C30: ='Orçamento-TCE'!C30 -> 1.19 | D30: ='Orçamento-TCE'!G30 -> - | E30: ='Orçamento-TCE'!H30 -> 0 | F30: ='Orçamento-TCE'!I30 -> - | G30: =IF(Comparativo!$E$6="Tabela Não Desonerada",VLOOKUP($C30,'Orçamento N_DESON.'!$D$11:$S$1153,12,FALSE),VLOOKUP($C30,'Orçamento DESON.'!$D$11:$S$1152,12,FALSE)) -> - | H30: =IF(Comparativo!$E$6="Tabela Não Desonerada",VLOOKUP($C30,'Orçamento N_DESON.'!$D$11:$S$1153,16,FALSE),VLOOKUP($C30,'Orçamento DESON.'!$D$11:$S$1152,16,FALSE)) -> 0 | I30: =IF(Comparativo!$E$6="Tabela Não Desonerada",VLOOKUP($C30,'Orçamento N_DESON.'!$D$11:$S$1153,11,FALSE),VLOOKUP($C30,'Orçamento DESON.'!$D$11:$S$1152,11,FALSE)) -> - | J30: =IF(Comparativo!$E$6="Tabela Não Desonerada",Encargos!$F$44,Encargos!$D$44) -> 1.111 | O30: =IF(Comparativo!$E$6="Tabela Não Desonerada",VLOOKUP($C30,'Orçamento N_DESON.'!$D$11:$S$1153,13,FALSE),VLOOKUP($C30,'Orçamento DESON.'!$D$11:$S$1152,13,FALSE)) -> 0 | Q30: =IF(Comparativo!$E$6="Tabela Não Desonerada",VLOOKUP($C30,'Orçamento N_DESON.'!$D$11:$S$1153,14,FALSE),VLOOKUP($C30,'Orçamento DESON.'!$D$11:$S$1152,14,FALSE)) -> 0 | S30: =IF(Comparativo!$E$6="Tabela Não Desonerada",VLOOKUP($C30,'Orçamento N_DESON.'!$D$11:$S$1153,15,FALSE),VLOOKUP($C30,'Orçamento DESON.'!$D$11:$S$1152,15,FALSE)) -> 0
A31: 1 | C31: ='Orçamento-TCE'!C31 -> 1.20 | D31: ='Orçamento-TCE'!G31 -> - | E31: ='Orçamento-TCE'!H31 -> 0 | F31: ='Orçamento-TCE'!I31 -> - | G31: =IF(Comparativo!$E$6="Tabela Não Desonerada",VLOOKUP($C31,'Orçamento N_DESON.'!$D$11:$S$1153,12,FALSE),VLOOKUP($C31,'Orçamento DESON.'!$D$11:$S$1152,12,FALSE)) -> - | H31: =IF(Comparativo!$E$6="Tabela Não Desonerada",VLOOKUP($C31,'Orçamento N_DESON.'!$D$11:$S$1153,16,FALSE),VLOOKUP($C31,'Orçamento DESON.'!$D$11:$S$1152,16,FALSE)) -> 0 | I31: =IF(Comparativo!$E$6="Tabela Não Desonerada",VLOOKUP($C31,'Orçamento N_DESON.'!$D$11:$S$1153,11,FALSE),VLOOKUP($C31,'Orçamento DESON.'!$D$11:$S$1152,11,FALSE)) -> - | J31: =IF(Comparativo!$E$6="Tabela Não Desonerada",Encargos!$F$44,Encargos!$D$44) -> 1.111 | O31: =IF(Comparativo!$E$6="Tabela Não Desonerada",VLOOKUP($C31,'Orçamento N_DESON.'!$D$11:$S$1153,13,FALSE),VLOOKUP($C31,'Orçamento DESON.'!$D$11:$S$1152,13,FALSE)) -> 0 | Q31: =IF(Comparativo!$E$6="Tabela Não Desonerada",VLOOKUP($C31,'Orçamento N_DESON.'!$D$11:$S$1153,14,FALSE),VLOOKUP($C31,'Orçamento DESON.'!$D$11:$S$1152,14,FALSE)) -> 0 | S31: =IF(Comparativo!$E$6="Tabela Não Desonerada",VLOOKUP($C31,'Orçamento N_DESON.'!$D$11:$S$1153,15,FALSE),VLOOKUP($C31,'Orçamento DESON.'!$D$11:$S$1152,15,FALSE)) -> 0
A32: 1 | C32: ='Orçamento-TCE'!C32 -> 1.21 | D32: ='Orçamento-TCE'!G32 -> - | E32: ='Orçamento-TCE'!H32 -> 0 | F32: ='Orçamento-TCE'!I32 -> - | G32: =IF(Comparativo!$E$6="Tabela Não Desonerada",VLOOKUP($C32,'Orçamento N_DESON.'!$D$11:$S$1153,12,FALSE),VLOOKUP($C32,'Orçamento DESON.'!$D$11:$S$1152,12,FALSE)) -> - | H32: =IF(Comparativo!$E$6="Tabela Não Desonerada",VLOOKUP($C32,'Orçamento N_DESON.'!$D$11:$S$1153,16,FALSE),VLOOKUP($C32,'Orçamento DESON.'!$D$11:$S$1152,16,FALSE)) -> 0 | I32: =IF(Comparativo!$E$6="Tabela Não Desonerada",VLOOKUP($C32,'Orçamento N_DESON.'!$D$11:$S$1153,11,FALSE),VLOOKUP($C32,'Orçamento DESON.'!$D$11:$S$1152,11,FALSE)) -> - | J32: =IF(Comparativo!$E$6="Tabela Não Desonerada",Encargos!$F$44,Encargos!$D$44) -> 1.111 | O32: =IF(Comparativo!$E$6="Tabela Não Desonerada",VLOOKUP($C32,'Orçamento N_DESON.'!$D$11:$S$1153,13,FALSE),VLOOKUP($C32,'Orçamento DESON.'!$D$11:$S$1152,13,FALSE)) -> 0 | Q32: =IF(Comparativo!$E$6="Tabela Não Desonerada",VLOOKUP($C32,'Orçamento N_DESON.'!$D$11:$S$1153,14,FALSE),VLOOKUP($C32,'Orçamento DESON.'!$D$11:$S$1152,14,FALSE)) -> 0 | S32: =IF(Comparativo!$E$6="Tabela Não Desonerada",VLOOKUP($C32,'Orçamento N_DESON.'!$D$11:$S$1153,15,FALSE),VLOOKUP($C32,'Orçamento DESON.'!$D$11:$S$1152,15,FALSE)) -> 0
A33: 1 | C33: ='Orçamento-TCE'!C33 -> 1.22 | D33: ='Orçamento-TCE'!G33 -> - | E33: ='Orçamento-TCE'!H33 -> 0 | F33: ='Orçamento-TCE'!I33 -> - | G33: =IF(Comparativo!$E$6="Tabela Não Desonerada",VLOOKUP($C33,'Orçamento N_DESON.'!$D$11:$S$1153,12,FALSE),VLOOKUP($C33,'Orçamento DESON.'!$D$11:$S$1152,12,FALSE)) -> - | H33: =IF(Comparativo!$E$6="Tabela Não Desonerada",VLOOKUP($C33,'Orçamento N_DESON.'!$D$11:$S$1153,16,FALSE),VLOOKUP($C33,'Orçamento DESON.'!$D$11:$S$1152,16,FALSE)) -> 0 | I33: =IF(Comparativo!$E$6="Tabela Não Desonerada",VLOOKUP($C33,'Orçamento N_DESON.'!$D$11:$S$1153,11,FALSE),VLOOKUP($C33,'Orçamento DESON.'!$D$11:$S$1152,11,FALSE)) -> - | J33: =IF(Comparativo!$E$6="Tabela Não Desonerada",Encargos!$F$44,Encargos!$D$44) -> 1.111 | O33: =IF(Comparativo!$E$6="Tabela Não Desonerada",VLOOKUP($C33,'Orçamento N_DESON.'!$D$11:$S$1153,13,FALSE),VLOOKUP($C33,'Orçamento DESON.'!$D$11:$S$1152,13,FALSE)) -> 0 | Q33: =IF(Comparativo!$E$6="Tabela Não Desonerada",VLOOKUP($C33,'Orçamento N_DESON.'!$D$11:$S$1153,14,FALSE),VLOOKUP($C33,'Orçamento DESON.'!$D$11:$S$1152,14,FALSE)) -> 0 | S33: =IF(Comparativo!$E$6="Tabela Não Desonerada",VLOOKUP($C33,'Orçamento N_DESON.'!$D$11:$S$1153,15,FALSE),VLOOKUP($C33,'Orçamento DESON.'!$D$11:$S$1152,15,FALSE)) -> 0
A34: 1 | C34: ='Orçamento-TCE'!C34 -> 1.23 | D34: ='Orçamento-TCE'!G34 -> - | E34: ='Orçamento-TCE'!H34 -> 0 | F34: ='Orçamento-TCE'!I34 -> - | G34: =IF(Comparativo!$E$6="Tabela Não Desonerada",VLOOKUP($C34,'Orçamento N_DESON.'!$D$11:$S$1153,12,FALSE),VLOOKUP($C34,'Orçamento DESON.'!$D$11:$S$1152,12,FALSE)) -> - | H34: =IF(Comparativo!$E$6="Tabela Não Desonerada",VLOOKUP($C34,'Orçamento N_DESON.'!$D$11:$S$1153,16,FALSE),VLOOKUP($C34,'Orçamento DESON.'!$D$11:$S$1152,16,FALSE)) -> 0 | I34: =IF(Comparativo!$E$6="Tabela Não Desonerada",VLOOKUP($C34,'Orçamento N_DESON.'!$D$11:$S$1153,11,FALSE),VLOOKUP($C34,'Orçamento DESON.'!$D$11:$S$1152,11,FALSE)) -> - | J34: =IF(Comparativo!$E$6="Tabela Não Desonerada",Encargos!$F$44,Encargos!$D$44) -> 1.111 | O34: =IF(Comparativo!$E$6="Tabela Não Desonerada",VLOOKUP($C34,'Orçamento N_DESON.'!$D$11:$S$1153,13,FALSE),VLOOKUP($C34,'Orçamento DESON.'!$D$11:$S$1152,13,FALSE)) -> 0 | Q34: =IF(Comparativo!$E$6="Tabela Não Desonerada",VLOOKUP($C34,'Orçamento N_DESON.'!$D$11:$S$1153,14,FALSE),VLOOKUP($C34,'Orçamento DESON.'!$D$11:$S$1152,14,FALSE)) -> 0 | S34: =IF(Comparativo!$E$6="Tabela Não Desonerada",VLOOKUP($C34,'Orçamento N_DESON.'!$D$11:$S$1153,15,FALSE),VLOOKUP($C34,'Orçamento DESON.'!$D$11:$S$1152,15,FALSE)) -> 0
A35: 1 | C35: ='Orçamento-TCE'!C35 -> 1.24 | D35: ='Orçamento-TCE'!G35 -> - | E35: ='Orçamento-TCE'!H35 -> 0 | F35: ='Orçamento-TCE'!I35 -> - | G35: =IF(Comparativo!$E$6="Tabela Não Desonerada",VLOOKUP($C35,'Orçamento N_DESON.'!$D$11:$S$1153,12,FALSE),VLOOKUP($C35,'Orçamento DESON.'!$D$11:$S$1152,12,FALSE)) -> - | H35: =IF(Comparativo!$E$6="Tabela Não Desonerada",VLOOKUP($C35,'Orçamento N_DESON.'!$D$11:$S$1153,16,FALSE),VLOOKUP($C35,'Orçamento DESON.'!$D$11:$S$1152,16,FALSE)) -> 0 | I35: =IF(Comparativo!$E$6="Tabela Não Desonerada",VLOOKUP($C35,'Orçamento N_DESON.'!$D$11:$S$1153,11,FALSE),VLOOKUP($C35,'Orçamento DESON.'!$D$11:$S$1152,11,FALSE)) -> - | J35: =IF(Comparativo!$E$6="Tabela Não Desonerada",Encargos!$F$44,Encargos!$D$44) -> 1.111 | O35: =IF(Comparativo!$E$6="Tabela Não Desonerada",VLOOKUP($C35,'Orçamento N_DESON.'!$D$11:$S$1153,13,FALSE),VLOOKUP($C35,'Orçamento DESON.'!$D$11:$S$1152,13,FALSE)) -> 0 | Q35: =IF(Comparativo!$E$6="Tabela Não Desonerada",VLOOKUP($C35,'Orçamento N_DESON.'!$D$11:$S$1153,14,FALSE),VLOOKUP($C35,'Orçamento DESON.'!$D$11:$S$1152,14,FALSE)) -> 0 | S35: =IF(Comparativo!$E$6="Tabela Não Desonerada",VLOOKUP($C35,'Orçamento N_DESON.'!$D$11:$S$1153,15,FALSE),VLOOKUP($C35,'Orçamento DESON.'!$D$11:$S$1152,15,FALSE)) -> 0
A36: 1 | C36: ='Orçamento-TCE'!C36 -> 1.25 | D36: ='Orçamento-TCE'!G36 -> - | E36: ='Orçamento-TCE'!H36 -> 0 | F36: ='Orçamento-TCE'!I36 -> - | G36: =IF(Comparativo!$E$6="Tabela Não Desonerada",VLOOKUP($C36,'Orçamento N_DESON.'!$D$11:$S$1153,12,FALSE),VLOOKUP($C36,'Orçamento DESON.'!$D$11:$S$1152,12,FALSE)) -> - | H36: =IF(Comparativo!$E$6="Tabela Não Desonerada",VLOOKUP($C36,'Orçamento N_DESON.'!$D$11:$S$1153,16,FALSE),VLOOKUP($C36,'Orçamento DESON.'!$D$11:$S$1152,16,FALSE)) -> 0 | I36: =IF(Comparativo!$E$6="Tabela Não Desonerada",VLOOKUP($C36,'Orçamento N_DESON.'!$D$11:$S$1153,11,FALSE),VLOOKUP($C36,'Orçamento DESON.'!$D$11:$S$1152,11,FALSE)) -> - | J36: =IF(Comparativo!$E$6="Tabela Não Desonerada",Encargos!$F$44,Encargos!$D$44) -> 1.111 | O36: =IF(Comparativo!$E$6="Tabela Não Desonerada",VLOOKUP($C36,'Orçamento N_DESON.'!$D$11:$S$1153,13,FALSE),VLOOKUP($C36,'Orçamento DESON.'!$D$11:$S$1152,13,FALSE)) -> 0 | Q36: =IF(Comparativo!$E$6="Tabela Não Desonerada",VLOOKUP($C36,'Orçamento N_DESON.'!$D$11:$S$1153,14,FALSE),VLOOKUP($C36,'Orçamento DESON.'!$D$11:$S$1152,14,FALSE)) -> 0 | S36: =IF(Comparativo!$E$6="Tabela Não Desonerada",VLOOKUP($C36,'Orçamento N_DESON.'!$D$11:$S$1153,15,FALSE),VLOOKUP($C36,'Orçamento DESON.'!$D$11:$S$1152,15,FALSE)) -> 0
A37: 1 | C37: ='Orçamento-TCE'!C37 -> 1.26 | D37: ='Orçamento-TCE'!G37 -> - | E37: ='Orçamento-TCE'!H37 -> 0 | F37: ='Orçamento-TCE'!I37 -> - | G37: =IF(Comparativo!$E$6="Tabela Não Desonerada",VLOOKUP($C37,'Orçamento N_DESON.'!$D$11:$S$1153,12,FALSE),VLOOKUP($C37,'Orçamento DESON.'!$D$11:$S$1152,12,FALSE)) -> - | H37: =IF(Comparativo!$E$6="Tabela Não Desonerada",VLOOKUP($C37,'Orçamento N_DESON.'!$D$11:$S$1153,16,FALSE),VLOOKUP($C37,'Orçamento DESON.'!$D$11:$S$1152,16,FALSE)) -> 0 | I37: =IF(Comparativo!$E$6="Tabela Não Desonerada",VLOOKUP($C37,'Orçamento N_DESON.'!$D$11:$S$1153,11,FALSE),VLOOKUP($C37,'Orçamento DESON.'!$D$11:$S$1152,11,FALSE)) -> - | J37: =IF(Comparativo!$E$6="Tabela Não Desonerada",Encargos!$F$44,Encargos!$D$44) -> 1.111 | O37: =IF(Comparativo!$E$6="Tabela Não Desonerada",VLOOKUP($C37,'Orçamento N_DESON.'!$D$11:$S$1153,13,FALSE),VLOOKUP($C37,'Orçamento DESON.'!$D$11:$S$1152,13,FALSE)) -> 0 | Q37: =IF(Comparativo!$E$6="Tabela Não Desonerada",VLOOKUP($C37,'Orçamento N_DESON.'!$D$11:$S$1153,14,FALSE),VLOOKUP($C37,'Orçamento DESON.'!$D$11:$S$1152,14,FALSE)) -> 0 | S37: =IF(Comparativo!$E$6="Tabela Não Desonerada",VLOOKUP($C37,'Orçamento N_DESON.'!$D$11:$S$1153,15,FALSE),VLOOKUP($C37,'Orçamento DESON.'!$D$11:$S$1152,15,FALSE)) -> 0
A38: 1 | C38: ='Orçamento-TCE'!C38 -> 1.27 | D38: ='Orçamento-TCE'!G38 -> - | E38: ='Orçamento-TCE'!H38 -> 0 | F38: ='Orçamento-TCE'!I38 -> - | G38: =IF(Comparativo!$E$6="Tabela Não Desonerada",VLOOKUP($C38,'Orçamento N_DESON.'!$D$11:$S$1153,12,FALSE),VLOOKUP($C38,'Orçamento DESON.'!$D$11:$S$1152,12,FALSE)) -> - | H38: =IF(Comparativo!$E$6="Tabela Não Desonerada",VLOOKUP($C38,'Orçamento N_DESON.'!$D$11:$S$1153,16,FALSE),VLOOKUP($C38,'Orçamento DESON.'!$D$11:$S$1152,16,FALSE)) -> 0 | I38: =IF(Comparativo!$E$6="Tabela Não Desonerada",VLOOKUP($C38,'Orçamento N_DESON.'!$D$11:$S$1153,11,FALSE),VLOOKUP($C38,'Orçamento DESON.'!$D$11:$S$1152,11,FALSE)) -> - | J38: =IF(Comparativo!$E$6="Tabela Não Desonerada",Encargos!$F$44,Encargos!$D$44) -> 1.111 | O38: =IF(Comparativo!$E$6="Tabela Não Desonerada",VLOOKUP($C38,'Orçamento N_DESON.'!$D$11:$S$1153,13,FALSE),VLOOKUP($C38,'Orçamento DESON.'!$D$11:$S$1152,13,FALSE)) -> 0 | Q38: =IF(Comparativo!$E$6="Tabela Não Desonerada",VLOOKUP($C38,'Orçamento N_DESON.'!$D$11:$S$1153,14,FALSE),VLOOKUP($C38,'Orçamento DESON.'!$D$11:$S$1152,14,FALSE)) -> 0 | S38: =IF(Comparativo!$E$6="Tabela Não Desonerada",VLOOKUP($C38,'Orçamento N_DESON.'!$D$11:$S$1153,15,FALSE),VLOOKUP($C38,'Orçamento DESON.'!$D$11:$S$1152,15,FALSE)) -> 0
